Workbook

Sheet 170 N
B1: 170 N-Rechner | J1: Betrieb: | U1: Betriebsnummer:
B2: gem. § 6 Absatz 4 DüV | J2: erstellt von: | V2: =IF(CE38="Einhaltung Düngerecht","Bezugszeitraum:","") -> Bezugszeitraum: | AH2: =IF((AC3+366)<AH3,1,0) -> 0
B3: Größe der Tabelle: | J3: erstellt am: | AA3: Version: | AC3: 2021-06-11 | AD3: Druckdatum: | AH3: =NOW() -> 2021-06-11T12:12:24.200 | BW3: GesN nach Abzug Stall-/Lagerverl. | CB3: Ausblenden/bedingte Formatierung | CP3: ausgewähltes Verfahren ohne Berücksichtigung Weidehaltung | CV3: Dunganfall Standard | CZ3: 1/2 Jauchebindung | DC3: Jauchebindung
B4: Nr. | C4: Kategorie | E4: Verfahren | N4: Fütterung | P4: Entmistung | R4: Weide | V4: belegte Tierplätze | W4: Dungmenge/Jahr einschließlich Anfall auf der Weide | AD4: Gesamt- Norg /Jahr | AG4: P₂O₅ /Jahr | AJ4: GV | AK4: Ein-gabe lö-schen | AN4: Dunganfall im Stall | AP4: Ges N | AR4: P2O5 | AT4: Mindestwirksamkeit flüssig | AX4: Mindestwirksamkeit fest | BB4: "Dunganfall" Weide | BD4: GesN Weide | BF4: P2O5 Weide | BH4: Prozesswasser | BI4: NH4 Stall flüssig | BK4: NH4 Stall fest | BM4: NH 4 Weide | BO4: kein Festmist von Huf-u.K. | BQ4: Tierart ID LWK | BR4: N brutto | BS4: Einstreu/Jahr | BU4: GesN nach Abzug Stall-/Lagerverl. | BY4: Gülle? | BZ4: Verfahren auf Gülle? | CA4: erhöhte Einstreu? | CB4: Entmistung | CC4: Fütterung | CD4: Weidef. | CE4: Weidetage | CF4: WTage Rahmen | CG4: WTage Feld weiß | CH4: WTage Schrift grau | CJ4: Gülle/Mist gewählt | CK4: Futter | CL4: effektive Stallzeit | CM4: Dungart aus Spalte Q | CN4: Flüssig/fest gem. WebDVO | CO4: Lagerungsdichte | DE4: Milchkuh | DL4: Weidetage | DM4: x Tier | DO4: Auflistung Weideverfahren | DR4: Tierart | DS4: Anzahl Tiere | DT4: Anzahl Tage | DU4: Faktor | DV4: Tiere x Tage
R5: Faktor | T5: Tage | AN5: flüssig m³ | AO5: fest (t) | AP5: flüssig | AQ5: fest | AR5: flüssig | AS5: fest | AT5: Acker | AU5: x kg N | AV5: Grünland | AW5: x kg N | AX5: Acker | AY5: x kg N | AZ5: Grünland | BA5: x kg N | BB5: fl. m³ | BC5: fest t | BD5: flüssig | BE5: fest | BF5: flüssig | BG5: fest | BI5: Anteil | BJ5: x kg N | BK5: Anteil | BL5: x kg N | BM5: x kg N fl. | BN5: x kg N fe. | BW5: Stall | BX5: Weide | CP5: Gesamt fest (t) | CQ5: Gesamt fest in m³ | CR5: Gesamt flüssig | CS5: Mist | CT5: Jauche | CU5: Einstreu | CV5: Gesamt lt. WEB-DVO | CW5: Mist | CX5: Jauche | CY5: Einstreu (t) | CZ5: Mist (t) | DA5: Jauche (m³) | DB5: Einstreu | DC5: Mist | DD5: Einstreu | DE5: Acker | DF5: Grünland | DG5: beides? | DH5: allgemein | DI5: Laufstall | DJ5: Anbindehaltung
B6: 1 | W6: =IFERROR(IF(V6="","",IF(CN6<>"t","",CP6))," ") ->  | X6: =IFERROR(IF(CN6="t","t",""),"") ->  | Y6: =IFERROR(IF(W6="","",IF(CM6="Festmist von Huf- und Klauentieren","Mist",IF(OR(CM6="Puten Elterntiermist",CM6="Puten Elterntieraufzuchtmist",CM6="Flugentenmist",CM6="Pekingentenmist",CM6="Gänse Elterntiermist",CM6="Gänse Mittelmastmist",CM6="Gänse Spätmastmist",CM6="Gänse Schnellmastmist",CM6="Hähnchenmastmist",CM6="Putenaufzuchtmist",CM6="Putenmist",CM6="Mist aus der Laufvogelhaltung"),"Geflügelmist",IF(OR(CM6="Junghennenaufzuchtkot",CM6="Legehennenkot",CM6="Hähnchenmast Elterntierkot"),"Geflügelkot",IF(CM6="Kaninchenmist","Mist",CM6)))))," Fehler in") ->  | AB6: =IFERROR(IF(V6="","",IF(AND(CR6=0,DI6+DJ6=0),"",CR6+BH6)),"dieser") ->  | AC6: =IFERROR(IF(AB6="","",IF(CM6="Festmist von Huf- und Klauentieren","m³"&" Jauche","m³ "&CM6)),"Zeile!") ->  | AD6: =IFERROR(IF(BU6=0,"",BU6),"") ->  | AF6: =IF(AD6="","","kg") ->  | AG6: =IFERROR(IF(V6="","",ROUND(VLOOKUP('170 N'!$E6,'Dd1'!$H$2:$M$66,6,FALSE)*V6,0)),"") ->  | AI6: =IF(AG6="","","kg") ->  | AJ6: =IFERROR(IF(V6="","",VLOOKUP('170 N'!$E6,'Dd1'!$H$2:$V$66,11,FALSE)*V6),"") ->  | AN6: =IF(V6="","",IF(AND(CR6=0,DI6+DJ6=0),"",CR6/365*CL6+BH6)) ->  | AO6: =IF(W6="","",W6/365*CL6) ->  | AP6: =IF($AB6="","",IF(P6="Mist und Jauche",BW6/365*CL6/100*VLOOKUP(BQ6,Stammdaten!$BF$1:$BP$353,5,FALSE),IF(P6="Mist mit 1/2 Jauchebindung",BW6/365*CL6/100*VLOOKUP(BQ6,Stammdaten!$BF$1:$BP$353,5,FALSE)/2,IF(P6="Mist mit Jauchebindung",0,BW6/365*CL6)))) ->  | AQ6: =IF($Y6="","",IF(P6="Mist und Jauche",BW6/365*CL6/100*(100-VLOOKUP($BQ6,Stammdaten!$BF$1:$BP$353,5,FALSE)),IF(P6="Mist mit 1/2 Jauchebindung",BW6/365*CL6/100*(100-VLOOKUP($BQ6,Stammdaten!$BF$1:$BP$353,5,FALSE))+BW6/365*CL6/100*(VLOOKUP($BQ6,Stammdaten!$BF$1:$BP$353,5,FALSE))/2,IF(P6="Mist mit Jauchebindung",BW6/365*CL6/100*(100-VLOOKUP($BQ6,Stammdaten!$BF$1:$BP$353,5,FALSE))+BW6/365*CL6/100*(VLOOKUP($BQ6,Stammdaten!$BF$1:$BP$353,5,FALSE)),BW6/365*CL6)))) ->  | AR6: =IF($AB6="","",IF(P6="Mist und Jauche",AG6/365*CL6/100*VLOOKUP(BQ6,Stammdaten!$BF$1:$BP$353,5,FALSE),IF(P6="Mist mit 1/2 Jauchebindung",AG6/365*CL6/100*VLOOKUP(BQ6,Stammdaten!$BF$1:$BP$353,5,FALSE)/2,IF(P6="Mist mit Jauchebindung",0,AG6/365*CL6)))) ->  | AS6: =IF($Y6="","",IF(P6="Mist und Jauche",AG6/365*CL6/100*(100-VLOOKUP($BQ6,Stammdaten!$BF$1:$BP$353,5,FALSE)),IF(P6="Mist mit 1/2 Jauchebindung",AG6/365*CL6/100*(100-VLOOKUP($BQ6,Stammdaten!$BF$1:$BP$353,5,FALSE))+AG6/365*CL6/100*(VLOOKUP($BQ6,Stammdaten!$BF$1:$BP$353,5,FALSE))/2,IF(P6="Mist mit Jauchebindung",AG6/365*CL6/100*(100-VLOOKUP($BQ6,Stammdaten!$BF$1:$BP$353,5,FALSE))+AG6/365*CL6/100*(VLOOKUP($BQ6,Stammdaten!$BF$1:$BP$353,5,FALSE)),AG6/365*CL6)))) ->  | AT6: =IF(V6="","",VLOOKUP($BQ6,Stammdaten!$BF$1:$BP$354,8,FALSE)) ->  | AU6: =IF(AP6="","",AT6*AP6) ->  | AV6: =IF(V6="","",VLOOKUP(BQ6,Stammdaten!$BF$1:$BP$354,9,FALSE)) ->  | AW6: =IF(AP6="","",AV6*AP6) ->  | AX6: =IF(V6="","",VLOOKUP($BQ6,Stammdaten!$BF$1:$BP$354,10,FALSE)) ->  | AY6: =IF(AQ6="","",AX6*AQ6) ->  | AZ6: =IF(V6="","",VLOOKUP($BQ6,Stammdaten!$BF$1:$BP$354,11,FALSE)) ->  | BA6: =IF(AQ6="","",AZ6*AQ6) ->  | BB6: =IF(V6="","",IF(AND(CR6=0,DI6+DJ6=0),"",CR6/365*(365-CL6))) ->  | BC6: =IF(W6="","",W6/365*(365-CL6)) ->  | BD6: =IF($AB6="","",IF(P6="Mist und Jauche",BX6/365*(365-CL6)/100*VLOOKUP(BQ6,Stammdaten!$BF$1:$BP$353,5,FALSE),IF(P6="Mist mit 1/2 Jauchebindung",BX6/365*(365-CL6)/100*VLOOKUP(BQ6,Stammdaten!$BF$1:$BP$353,5,FALSE)/2,IF(P6="Mist mit Jauchebindung",0,BX6/365*(365-CL6))))) ->  | BE6: =IF($Y6="","",IF(P6="Mist und Jauche",BX6/365*(365-CL6)/100*(100-VLOOKUP($BQ6,Stammdaten!$BF$1:$BP$353,5,FALSE)),IF(P6="Mist mit 1/2 Jauchebindung",BX6/365*(365-CL6)/100*(100-VLOOKUP($BQ6,Stammdaten!$BF$1:$BP$353,5,FALSE))+BX6/365*(365-CL6)/100*(VLOOKUP($BQ6,Stammdaten!$BF$1:$BP$353,5,FALSE))/2,IF(P6="Mist mit Jauchebindung",BX6/365*(365-CL6)/100*(100-VLOOKUP($BQ6,Stammdaten!$BF$1:$BP$353,5,FALSE))+BX6/365*(365-CL6)/100*(VLOOKUP($BQ6,Stammdaten!$BF$1:$BP$353,5,FALSE)),BX6/365*(365-CL6))))) ->  | BF6: =IF($AB6="","",IF(P6="Mist und Jauche",AG6/365*(365-CL6)/100*VLOOKUP(BQ6,Stammdaten!$BF$1:$BP$353,5,FALSE),IF(P6="Mist mit 1/2 Jauchebindung",AG6/365*(365-CL6)/100*VLOOKUP(BQ6,Stammdaten!$BF$1:$BP$353,5,FALSE)/2,IF(P6="Mist mit Jauchebindung",0,AG6/365*(365-CL6))))) ->  | BG6: =IF($Y6="","",IF(P6="Mist und Jauche",AG6/365*(365-CL6)/100*(100-VLOOKUP($BQ6,Stammdaten!$BF$1:$BP$353,5,FALSE)),IF(P6="Mist mit 1/2 Jauchebindung",AG6/365*(365-CL6)/100*(100-VLOOKUP($BQ6,Stammdaten!$BF$1:$BP$353,5,FALSE))+AG6/365*(365-CL6)/100*(VLOOKUP($BQ6,Stammdaten!$BF$1:$BP$353,5,FALSE))/2,IF(P6="Mist mit Jauchebindung",AG6/365*(365-CL6)/100*(100-VLOOKUP($BQ6,Stammdaten!$BF$1:$BP$353,5,FALSE))+AG6/365*(365-CL6)/100*(VLOOKUP($BQ6,Stammdaten!$BF$1:$BP$353,5,FALSE)),AG6/365*(365-CL6))))) ->  | BH6: =IF(V6="","",IF(DI6=1,8*V6,IF(DJ6=1,2.4*V6,0))) ->  | BI6: =IF(V6="","",VLOOKUP($BQ6,Stammdaten!$BF$1:$BR$354,12,FALSE)) ->  | BJ6: =IF(OR(BI6="",AP6=""),"",AP6*BI6) ->  | BK6: =IF(V6="","",VLOOKUP($BQ6,Stammdaten!$BF$1:$BR$354,13,FALSE)) ->  | BL6: =IF(OR(BK6="",AQ6=""),"",AQ6*BK6) ->  | BM6: =IF(OR(BI6="",BD6=""),"",BD6*BI6) ->  | BN6: =IF(OR(BK6="",BE6=""),"",BE6*BK6) ->  | BO6: =IFERROR(IF(CM6<>"Festmist von Huf- und Klauentieren",1,""),"") ->  | BQ6: =IF(V6="","",VLOOKUP('170 N'!$E6,'Dd1'!$H$2:$X$66,15,FALSE)) ->  | BR6: =IF(V6="","",VLOOKUP('170 N'!$E6,'Dd1'!$H$2:$M$66,5,FALSE)*V6) ->  | BS6: =IFERROR(IF(OR(V6="",BZ6="ja"),"",CU6/365*CL6),"") ->  | BT6: =IF(BS6="","","t") ->  | BU6: =BW6/365*CL6+BX6/365*(365-CL6) -> 0 | BW6: =IF(V6="",0,(VLOOKUP('170 N'!$E6,'Dd1'!$H$2:$M$66,5,FALSE)*V6)/100*(100-VLOOKUP('170 N'!$E6,'Dd1'!$H$2:$X$66,17,FALSE))) -> 0 | BX6: =IF(V6="",0,IF(OR(C6="Milchviehhaltung",C6="Rindermast"),(VLOOKUP('170 N'!$E6,'Dd1'!$H$2:$M$66,5,FALSE)*V6)/100*70,BW6)) -> 0 | BY6: =IF(CM6="Gülle",1,0) ->  | BZ6: =IF(P6="Gülle","ja",IF(AND(P6="",V6<>"",CB6<>1),"X","")) ->  | CA6: =IF(P6="Mist mit 1/2 Jauchebindung","1/2 Jauche-bindung",IF(P6="Mist mit Jauchebindung","Jauche-bindung","")) ->  | CB6: =IF(AND($C6<>"",'Dd1'!$D$3=""),1,"") ->  | CC6: =IF(AND($E6<>"",'Dd1'!$F$10=""),1,"") ->  | CD6: =IF(AND(C6="Geflügelmast",N6="N-/P-reduziert"),1,IF(AND($C6<>"",'Dd1'!$D$17=""),1,IF(AND(R6="",C6="Geflügelmast",VLOOKUP('170 N'!$E6,'Dd1'!$H$2:$X$66,16,FALSE)="N"),1,""))) ->  | CE6: =IF(R6="Stall- haltung",1,IF(CD6=1,1,IF(AND($C6<>"",'Dd1'!$D$17=""),1,""))) ->  | CF6: =IF(AND(OR(R6="halb- tags",R6="ganz- tags"),T6=""),1,"") ->  | CG6: =IF(OR(R6="ganz- tags",R6="halb- tags"),1,"") ->  | CH6: =IF(OR(R6="Stall- haltung",AND(V6<>"",R6="")),1,"") ->  | CJ6: =IF(C6="","",IF(AND(C6<>"",'Dd1'!$D$4="",C6<>"Schweinemast",C6<>"Jungrindermast"),"Mist/Tr.Kot/Jauche",IF(AND(OR(C6="Schweinemast",C6="Jungrindermast"),P6="",BZ6<>"X"),"Gülle",IF(BZ6="ja","Gülle",IF(BZ6="X","X","Mist/Tr.Kot/Jauche"))))) ->  | CK6: =IFERROR(IF(OR(CC6=1,AND(N6="",V6="")),VLOOKUP(C6,'Dd1'!$B$24:$D$36,2,FALSE),IF(AND(N6="",V6<>"",CC6<>1),"X",'170 N'!N6)),"") ->  | CL6: =IF(OR(R6="",R6="Stall- haltung",T6=""),365,365-T6+T6*IF(R6="halb- tags",0.5,0)) -> 365 | CM6: =VLOOKUP('170 N'!$E6,'Dd1'!$H$2:$M$66,4,FALSE) ->  | CN6: =IF(V6="","",VLOOKUP('170 N'!$E6,'Dd1'!$H$2:$M$66,3,FALSE)) ->  | CO6: =IF(V6="","",IF(OR(CA6="1/2 Jauche-bindung",CA6="Jauche-bindung"),0.9,VLOOKUP('170 N'!$E6,'Dd1'!$H$2:$V$66,14,FALSE))) ->  | CP6: =IF(V6="","",ROUND(IF(CN6="m³","",IF(OR(CA6="",CA6="Standard-verfahren"),IF(CW6<>0,CW6,CV6),IF(CA6="1/2 Jauche-bindung",CZ6,IF(CA6="Jauche-bindung",DC6,"")))),0)) ->  | CQ6: =IF(CP6="","",CP6/CO6) ->  | CR6: =IF(CN6="m³",CV6,IF(CN6="t",IF(CM6<>"Festmist von Huf- und Klauentieren",0,IF(CM6="Festmist von Huf- und Klauentieren",IF(OR(CA6="",CA6="Standard-verfahren"),CX6,IF(CA6="1/2 Jauche-bindung",DA6,0)))))) -> FALSE | CS6: =IF(V6="","",IF(OR($CA6="",CA6="Standard-verfahren"),CW6,IF($CA6="1/2 Jauche-bindung",CZ6,IF($CA6="Jauche-bindung",DC6,"")))) ->  | CT6: =IF(V6="","",IF(OR($CA6="",CA6="Standard-verfahren"),CX6,IF($CA6="1/2 Jauche-bindung",DA6,IF($CA6="Jauche-bindung",0,"")))) ->  | CU6: =IF(V6="","",IF(OR($CA6="",CA6="Standard-verfahren"),CY6,IF($CA6="1/2 Jauche-bindung",DB6,IF($CA6="Jauche-bindung",DD6,"")))) ->  | CV6: =IF(V6="","",VLOOKUP('170 N'!$E6,'Dd1'!$H$2:$M$66,2,FALSE)*V6) ->  | CW6: =VLOOKUP('170 N'!$E6,'Dd1'!$H$2:$S$66,7,FALSE)*V6 ->  | CX6: =VLOOKUP('170 N'!$E6,'Dd1'!$H$2:$S$66,8,FALSE)*V6 ->  | CY6: =VLOOKUP('170 N'!$E6,'Dd1'!$H$2:$T$66,10,FALSE)*V6/1000 ->  | CZ6: =CW6+DA6+DB6-CY6 ->  | DA6: =CX6/2 ->  | DB6: =VLOOKUP('170 N'!$E6,'Dd1'!$H$2:$T$66,12,FALSE)*365*V6/1000 ->  | DC6: =CW6+DD6+CX6-CY6 ->  | DD6: =VLOOKUP('170 N'!$E6,'Dd1'!$H$2:$T$66,13,FALSE)*V6*365/1000 ->  | DE6: =IF(ISERROR(FIND("Milchkuh",'170 N'!E6)>0),0,IF(N6="Ackerfutterbau",1,0)) -> 0 | DF6: =IF(ISERROR(FIND("Milchkuh",'170 N'!E6)>0),0,IF(N6="Grünland",1,0)) -> 0 | DG6: =IF(ISERROR(FIND("Milchkuh",E6)),0,IF(AND(SUM($DE$6:$DE$35)>0,SUM($DF$6:$DF$35)>0),1,0)) -> 0 | DH6: =IF(ISERROR(FIND("Milchkuh",'170 N'!E6)>0),0,1) -> 0 | DI6: =IF(ISERROR(FIND("Laufstall",'170 N'!E6)>0),0,IF(DH6=1,1,"")) -> 0 | DJ6: =IF(ISERROR(FIND("Anbindehaltung",'170 N'!E6)>0),0,IF(DH6=1,1,"")) -> 0 | DL6: =365-CL6 -> 0 | DM6: =DL6*V6 -> 0 | DO6: =IF(DR6="",0,1) -> 0 | DP6: =DO6 -> 0 | DQ6: =DP6 -> 0 | DR6: =IF(DL6>0,E6,"") ->  | DS6: =IF(DL6>0,V6,0) -> 0 | DT6: =IF(DL6>0,T6,0) -> 0 | DU6: =IF(DO6=1,R6,"") ->  | DV6: =DS6*DT6 -> 0
W7: =IFERROR(IF(W6="","",CQ6),"") ->  | X7: =IF(W7="","","m³") ->  | CC7: =IF(AND($E7<>"",'Dd2'!$F$10=""),1,"") ->  | CQ7: =IF(CP7="","",CP7/CO7) ->  | DE7: =IF(ISERROR(FIND("Milchkuh",'170 N'!E7)>0),0,IF(N7="Ackerfutterbau",1,0)) -> 0 | DF7: =IF(ISERROR(FIND("Milchkuh",'170 N'!E7)>0),0,IF(N7="Grünland",1,0)) -> 0 | DG7: 0 | DH7: =IF(ISERROR(FIND("Milchkuh",'170 N'!E7)>0),0,1) -> 0 | DI7: =IF(ISERROR(FIND("Laufstall",'170 N'!E7)>0),0,IF(DH7=1,1,"")) -> 0 | DJ7: =IF(ISERROR(FIND("Anbindehaltung",'170 N'!E7)>0),0,IF(DH7=1,1,"")) -> 0
B8: 2 | W8: =IFERROR(IF(V8="","",IF(CN8<>"t","",CP8))," ") ->  | X8: =IFERROR(IF(CN8="t","t",""),"") ->  | Y8: =IFERROR(IF(W8="","",IF(CM8="Festmist von Huf- und Klauentieren","Mist",IF(OR(CM8="Puten Elterntiermist",CM8="Puten Elterntieraufzuchtmist",CM8="Flugentenmist",CM8="Pekingentenmist",CM8="Gänse Elterntiermist",CM8="Gänse Mittelmastmist",CM8="Gänse Spätmastmist",CM8="Gänse Schnellmastmist",CM8="Hähnchenmastmist",CM8="Putenaufzuchtmist",CM8="Putenmist",CM8="Mist aus der Laufvogelhaltung"),"Geflügelmist",IF(OR(CM8="Junghennenaufzuchtkot",CM8="Legehennenkot",CM8="Hähnchenmast Elterntierkot"),"Geflügelkot",IF(CM8="Kaninchenmist","Mist",CM8)))))," Fehler in") ->  | AB8: =IFERROR(IF(V8="","",IF(AND(CR8=0,DI8+DJ8=0),"",CR8+BH8)),"dieser") ->  | AC8: =IFERROR(IF(AB8="","",IF(CM8="Festmist von Huf- und Klauentieren","m³"&" Jauche","m³ "&CM8)),"Zeile!") ->  | AD8: =IFERROR(IF(BU8=0,"",BU8),"") ->  | AF8: =IF(AD8="","","kg") ->  | AG8: =IFERROR(IF(V8="","",ROUND(VLOOKUP('170 N'!$E8,'Dd2'!$H$2:$M$66,6,FALSE)*V8,0)),"") ->  | AI8: =IF(AG8="","","kg") ->  | AJ8: =IFERROR(IF(V8="","",VLOOKUP('170 N'!$E8,'Dd2'!$H$2:$V$66,11,FALSE)*V8),"") ->  | AN8: =IF(V8="","",IF(AND(CR8=0,DI8+DJ8=0),"",CR8/365*CL8+BH8)) ->  | AO8: =IF(W8="","",W8/365*CL8) ->  | AP8: =IF($AB8="","",IF(P8="Mist und Jauche",BW8/365*CL8/100*VLOOKUP(BQ8,Stammdaten!$BF$1:$BP$353,5,FALSE),IF(P8="Mist mit 1/2 Jauchebindung",BW8/365*CL8/100*VLOOKUP(BQ8,Stammdaten!$BF$1:$BP$353,5,FALSE)/2,IF(P8="Mist mit Jauchebindung",0,BW8/365*CL8)))) ->  | AQ8: =IF($Y8="","",IF(P8="Mist und Jauche",BW8/365*CL8/100*(100-VLOOKUP($BQ8,Stammdaten!$BF$1:$BP$353,5,FALSE)),IF(P8="Mist mit 1/2 Jauchebindung",BW8/365*CL8/100*(100-VLOOKUP($BQ8,Stammdaten!$BF$1:$BP$353,5,FALSE))+BW8/365*CL8/100*(VLOOKUP($BQ8,Stammdaten!$BF$1:$BP$353,5,FALSE))/2,IF(P8="Mist mit Jauchebindung",BW8/365*CL8/100*(100-VLOOKUP($BQ8,Stammdaten!$BF$1:$BP$353,5,FALSE))+BW8/365*CL8/100*(VLOOKUP($BQ8,Stammdaten!$BF$1:$BP$353,5,FALSE)),BW8/365*CL8)))) ->  | AR8: =IF($AB8="","",IF(P8="Mist und Jauche",AG8/365*CL8/100*VLOOKUP(BQ8,Stammdaten!$BF$1:$BP$353,5,FALSE),IF(P8="Mist mit 1/2 Jauchebindung",AG8/365*CL8/100*VLOOKUP(BQ8,Stammdaten!$BF$1:$BP$353,5,FALSE)/2,IF(P8="Mist mit Jauchebindung",0,AG8/365*CL8)))) ->  | AS8: =IF($Y8="","",IF(P8="Mist und Jauche",AG8/365*CL8/100*(100-VLOOKUP($BQ8,Stammdaten!$BF$1:$BP$353,5,FALSE)),IF(P8="Mist mit 1/2 Jauchebindung",AG8/365*CL8/100*(100-VLOOKUP($BQ8,Stammdaten!$BF$1:$BP$353,5,FALSE))+AG8/365*CL8/100*(VLOOKUP($BQ8,Stammdaten!$BF$1:$BP$353,5,FALSE))/2,IF(P8="Mist mit Jauchebindung",AG8/365*CL8/100*(100-VLOOKUP($BQ8,Stammdaten!$BF$1:$BP$353,5,FALSE))+AG8/365*CL8/100*(VLOOKUP($BQ8,Stammdaten!$BF$1:$BP$353,5,FALSE)),AG8/365*CL8)))) ->  | AT8: =IF(V8="","",VLOOKUP($BQ8,Stammdaten!$BF$1:$BP$354,8,FALSE)) ->  | AU8: =IF(AP8="","",AT8*AP8) ->  | AV8: =IF(V8="","",VLOOKUP(BQ8,Stammdaten!$BF$1:$BP$354,9,FALSE)) ->  | AW8: =IF(AP8="","",AV8*AP8) ->  | AX8: =IF(V8="","",VLOOKUP($BQ8,Stammdaten!$BF$1:$BP$354,10,FALSE)) ->  | AY8: =IF(AQ8="","",AX8*AQ8) ->  | AZ8: =IF(V8="","",VLOOKUP($BQ8,Stammdaten!$BF$1:$BP$354,11,FALSE)) ->  | BA8: =IF(AQ8="","",AZ8*AQ8) ->  | BB8: =IF(V8="","",IF(AND(CR8=0,DI8+DJ8=0),"",CR8/365*(365-CL8))) ->  | BC8: =IF(W8="","",W8/365*(365-CL8)) ->  | BD8: =IF($AB8="","",IF(P8="Mist und Jauche",BX8/365*(365-CL8)/100*VLOOKUP(BQ8,Stammdaten!$BF$1:$BP$353,5,FALSE),IF(P8="Mist mit 1/2 Jauchebindung",BX8/365*(365-CL8)/100*VLOOKUP(BQ8,Stammdaten!$BF$1:$BP$353,5,FALSE)/2,IF(P8="Mist mit Jauchebindung",0,BX8/365*(365-CL8))))) ->  | BE8: =IF($Y8="","",IF(P8="Mist und Jauche",BX8/365*(365-CL8)/100*(100-VLOOKUP($BQ8,Stammdaten!$BF$1:$BP$353,5,FALSE)),IF(P8="Mist mit 1/2 Jauchebindung",BX8/365*(365-CL8)/100*(100-VLOOKUP($BQ8,Stammdaten!$BF$1:$BP$353,5,FALSE))+BX8/365*(365-CL8)/100*(VLOOKUP($BQ8,Stammdaten!$BF$1:$BP$353,5,FALSE))/2,IF(P8="Mist mit Jauchebindung",BX8/365*(365-CL8)/100*(100-VLOOKUP($BQ8,Stammdaten!$BF$1:$BP$353,5,FALSE))+BX8/365*(365-CL8)/100*(VLOOKUP($BQ8,Stammdaten!$BF$1:$BP$353,5,FALSE)),BX8/365*(365-CL8))))) ->  | BF8: =IF($AB8="","",IF(P8="Mist und Jauche",AG8/365*(365-CL8)/100*VLOOKUP(BQ8,Stammdaten!$BF$1:$BP$353,5,FALSE),IF(P8="Mist mit 1/2 Jauchebindung",AG8/365*(365-CL8)/100*VLOOKUP(BQ8,Stammdaten!$BF$1:$BP$353,5,FALSE)/2,IF(P8="Mist mit Jauchebindung",0,AG8/365*(365-CL8))))) ->  | BG8: =IF($Y8="","",IF(P8="Mist und Jauche",AG8/365*(365-CL8)/100*(100-VLOOKUP($BQ8,Stammdaten!$BF$1:$BP$353,5,FALSE)),IF(P8="Mist mit 1/2 Jauchebindung",AG8/365*(365-CL8)/100*(100-VLOOKUP($BQ8,Stammdaten!$BF$1:$BP$353,5,FALSE))+AG8/365*(365-CL8)/100*(VLOOKUP($BQ8,Stammdaten!$BF$1:$BP$353,5,FALSE))/2,IF(P8="Mist mit Jauchebindung",AG8/365*(365-CL8)/100*(100-VLOOKUP($BQ8,Stammdaten!$BF$1:$BP$353,5,FALSE))+AG8/365*(365-CL8)/100*(VLOOKUP($BQ8,Stammdaten!$BF$1:$BP$353,5,FALSE)),AG8/365*(365-CL8))))) ->  | BH8: =IF(V8="","",IF(DI8=1,8*V8,IF(DJ8=1,2.4*V8,0))) ->  | BI8: =IF(V8="","",VLOOKUP($BQ8,Stammdaten!$BF$1:$BR$354,12,FALSE)) ->  | BJ8: =IF(OR(BI8="",AP8=""),"",AP8*BI8) ->  | BK8: =IF(V8="","",VLOOKUP($BQ8,Stammdaten!$BF$1:$BR$354,13,FALSE)) ->  | BL8: =IF(OR(BK8="",AQ8=""),"",AQ8*BK8) ->  | BM8: =IF(OR(BI8="",BD8=""),"",BD8*BI8) ->  | BN8: =IF(OR(BK8="",BE8=""),"",BE8*BK8) ->  | BO8: =IFERROR(IF(CM8<>"Festmist von Huf- und Klauentieren",1,""),"") ->  | BQ8: =IF(V8="","",VLOOKUP('170 N'!$E8,'Dd2'!$H$2:$X$66,15,FALSE)) ->  | BR8: =IF(V8="","",VLOOKUP('170 N'!$E8,'Dd2'!$H$2:$M$66,5,FALSE)*V8) ->  | BS8: =IFERROR(IF(OR(V8="",BZ8="ja"),"",CU8/365*CL8),"") ->  | BT8: =IF(BS8="","","t") ->  | BU8: =BW8/365*CL8+BX8/365*(365-CL8) -> 0 | BW8: =IF(V8="",0,(VLOOKUP('170 N'!$E8,'Dd2'!$H$2:$M$66,5,FALSE)*V8)/100*(100-VLOOKUP('170 N'!$E8,'Dd2'!$H$2:$X$66,17,FALSE))) -> 0 | BX8: =IF(V8="",0,IF(OR(C8="Milchviehhaltung",C8="Rindermast"),(VLOOKUP('170 N'!$E8,'Dd2'!$H$2:$M$66,5,FALSE)*V8)/100*70,BW8)) -> 0 | BY8: =IF(CM8="Gülle",1,0) ->  | BZ8: =IF(P8="Gülle","ja",IF(AND(P8="",V8<>"",CB8<>1),"X","")) ->  | CA8: =IF(P8="Mist mit 1/2 Jauchebindung","1/2 Jauche-bindung",IF(P8="Mist mit Jauchebindung","Jauche-bindung","")) ->  | CB8: =IF(AND($C8<>"",'Dd2'!$D$3=""),1,"") ->  | CC8: =IF(AND($E8<>"",'Dd2'!$F$10=""),1,"") ->  | CD8: =IF(AND(C8="Geflügelmast",N8="N-/P-reduziert"),1,IF(AND($C8<>"",'Dd2'!$D$17=""),1,IF(AND(R8="",C8="Geflügelmast",VLOOKUP('170 N'!$E8,'Dd2'!$H$2:$X$66,16,FALSE)="N"),1,""))) ->  | CE8: =IF(R8="Stall- haltung",1,IF(CD8=1,1,IF(AND($C8<>"",'Dd2'!$D$17=""),1,""))) ->  | CF8: =IF(AND(OR(R8="halb- tags",R8="ganz- tags"),T8=""),1,"") ->  | CG8: =IF(OR(R8="ganz- tags",R8="halb- tags"),1,"") ->  | CH8: =IF(OR(R8="Stall- haltung",AND(V8<>"",R8="")),1,"") ->  | CJ8: =IF(C8="","",IF(AND(C8<>"",'Dd2'!$D$4="",C8<>"Schweinemast",C8<>"Jungrindermast"),"Mist/Tr.Kot/Jauche",IF(AND(OR(C8="Schweinemast",C8="Jungrindermast"),P8="",BZ8<>"X"),"Gülle",IF(BZ8="ja","Gülle",IF(BZ8="X","X","Mist/Tr.Kot/Jauche"))))) ->  | CK8: =IFERROR(IF(OR(CC8=1,AND(N8="",V8="")),VLOOKUP(C8,'Dd1'!$B$24:$D$36,2,FALSE),IF(AND(N8="",V8<>"",CC8<>1),"X",'170 N'!N8)),"") ->  | CL8: =IF(OR(R8="",R8="Stall- haltung",T8=""),365,365-T8+T8*IF(R8="halb- tags",0.5,0)) -> 365 | CM8: =VLOOKUP('170 N'!$E8,'Dd2'!$H$2:$M$66,4,FALSE) ->  | CN8: =IF(V8="","",VLOOKUP('170 N'!$E8,'Dd2'!$H$2:$M$66,3,FALSE)) ->  | CO8: =IF(V8="","",IF(OR(CA8="1/2 Jauche-bindung",CA8="Jauche-bindung"),0.9,VLOOKUP('170 N'!$E8,'Dd2'!$H$2:$V$66,14,FALSE))) ->  | CP8: =IF(V8="","",ROUND(IF(CN8="m³","",IF(OR(CA8="",CA8="Standard-verfahren"),IF(CW8<>0,CW8,CV8),IF(CA8="1/2 Jauche-bindung",CZ8,IF(CA8="Jauche-bindung",DC8,"")))),0)) ->  | CQ8: =IF(CP8="","",CP8/CO8) ->  | CR8: =IF(CN8="m³",CV8,IF(CN8="t",IF(CM8<>"Festmist von Huf- und Klauentieren",0,IF(CM8="Festmist von Huf- und Klauentieren",IF(OR(CA8="",CA8="Standard-verfahren"),CX8,IF(CA8="1/2 Jauche-bindung",DA8,0)))))) -> FALSE | CS8: =IF(V8="","",IF(OR($CA8="",CA8="Standard-verfahren"),CW8,IF($CA8="1/2 Jauche-bindung",CZ8,IF($CA8="Jauche-bindung",DC8,"")))) ->  | CT8: =IF(V8="","",IF(OR($CA8="",CA8="Standard-verfahren"),CX8,IF($CA8="1/2 Jauche-bindung",DA8,IF($CA8="Jauche-bindung",0,"")))) ->  | CU8: =IF(V8="","",IF(OR($CA8="",CA8="Standard-verfahren"),CY8,IF($CA8="1/2 Jauche-bindung",DB8,IF($CA8="Jauche-bindung",DD8,"")))) ->  | CV8: =IF(V8="","",VLOOKUP('170 N'!$E8,'Dd2'!$H$2:$M$66,2,FALSE)*V8) ->  | CW8: =VLOOKUP('170 N'!$E8,'Dd2'!$H$2:$S$66,7,FALSE)*V8 ->  | CX8: =VLOOKUP('170 N'!$E8,'Dd2'!$H$2:$S$66,8,FALSE)*V8 ->  | CY8: =VLOOKUP('170 N'!$E8,'Dd2'!$H$2:$T$66,10,FALSE)*V8/1000 ->  | CZ8: =CW8+DA8+DB8-CY8 ->  | DA8: =CX8/2 ->  | DB8: =VLOOKUP('170 N'!$E8,'Dd2'!$H$2:$T$66,12,FALSE)*365*V8/1000 ->  | DC8: =CW8+DD8+CX8-CY8 ->  | DD8: =VLOOKUP('170 N'!$E8,'Dd2'!$H$2:$T$66,13,FALSE)*V8*365/1000 ->  | DE8: =IF(ISERROR(FIND("Milchkuh",'170 N'!E8)>0),0,IF(N8="Ackerfutterbau",1,0)) -> 0 | DF8: =IF(ISERROR(FIND("Milchkuh",'170 N'!E8)>0),0,IF(N8="Grünland",1,0)) -> 0 | DG8: 0 | DH8: =IF(ISERROR(FIND("Milchkuh",'170 N'!E8)>0),0,1) -> 0 | DI8: =IF(ISERROR(FIND("Laufstall",'170 N'!E8)>0),0,IF(DH8=1,1,"")) -> 0 | DJ8: =IF(ISERROR(FIND("Anbindehaltung",'170 N'!E8)>0),0,IF(DH8=1,1,"")) -> 0 | DL8: =365-CL8 -> 0 | DM8: =DL8*V8 -> 0 | DO8: =IF(DR8="",0,1) -> 0 | DP8: =DO8+DP6 -> 0 | DQ8: =IF(DP8=DP6,"",DP8) ->  | DR8: =IF(DL8>0,E8,"") ->  | DS8: =IF(DL8>0,V8,0) -> 0 | DT8: =IF(DL8>0,T8,0) -> 0 | DU8: =IF(DO8=1,R8,"") ->  | DV8: =DS8*DT8 -> 0
W9: =IFERROR(IF(W8="","",CQ8),"") ->  | X9: =IF(W9="","","m³") ->  | DE9: =IF(ISERROR(FIND("Milchkuh",'170 N'!E9)>0),0,IF(N9="Ackerfutterbau",1,0)) -> 0 | DF9: =IF(ISERROR(FIND("Milchkuh",'170 N'!E9)>0),0,IF(N9="Grünland",1,0)) -> 0 | DG9: 0 | DH9: =IF(ISERROR(FIND("Milchkuh",'170 N'!E9)>0),0,1) -> 0 | DI9: =IF(ISERROR(FIND("Laufstall",'170 N'!E9)>0),0,IF(DH9=1,1,"")) -> 0 | DJ9: =IF(ISERROR(FIND("Anbindehaltung",'170 N'!E9)>0),0,IF(DH9=1,1,"")) -> 0
B10: 3 | W10: =IFERROR(IF(V10="","",IF(CN10<>"t","",CP10))," ") ->  | X10: =IFERROR(IF(CN10="t","t",""),"") ->  | Y10: =IFERROR(IF(W10="","",IF(CM10="Festmist von Huf- und Klauentieren","Mist",IF(OR(CM10="Puten Elterntiermist",CM10="Puten Elterntieraufzuchtmist",CM10="Flugentenmist",CM10="Pekingentenmist",CM10="Gänse Elterntiermist",CM10="Gänse Mittelmastmist",CM10="Gänse Spätmastmist",CM10="Gänse Schnellmastmist",CM10="Hähnchenmastmist",CM10="Putenaufzuchtmist",CM10="Putenmist",CM10="Mist aus der Laufvogelhaltung"),"Geflügelmist",IF(OR(CM10="Junghennenaufzuchtkot",CM10="Legehennenkot",CM10="Hähnchenmast Elterntierkot"),"Geflügelkot",IF(CM10="Kaninchenmist","Mist",CM10)))))," Fehler in") ->  | AB10: =IFERROR(IF(V10="","",IF(AND(CR10=0,DI10+DJ10=0),"",CR10+BH10)),"dieser") ->  | AC10: =IFERROR(IF(AB10="","",IF(CM10="Festmist von Huf- und Klauentieren","m³"&" Jauche","m³ "&CM10)),"Zeile!") ->  | AD10: =IFERROR(IF(BU10=0,"",BU10),"") ->  | AF10: =IF(AD10="","","kg") ->  | AG10: =IFERROR(IF(V10="","",ROUND(VLOOKUP('170 N'!$E10,'Dd3'!$H$2:$M$66,6,FALSE)*V10,0)),"") ->  | AI10: =IF(AG10="","","kg") ->  | AJ10: =IFERROR(IF(V10="","",VLOOKUP('170 N'!$E10,'Dd3'!$H$2:$V$66,11,FALSE)*V10),"") ->  | AN10: =IF(V10="","",IF(AND(CR10=0,DI10+DJ10=0),"",CR10/365*CL10+BH10)) ->  | AO10: =IF(W10="","",W10/365*CL10) ->  | AP10: =IF($AB10="","",IF(P10="Mist und Jauche",BW10/365*CL10/100*VLOOKUP(BQ10,Stammdaten!$BF$1:$BP$353,5,FALSE),IF(P10="Mist mit 1/2 Jauchebindung",BW10/365*CL10/100*VLOOKUP(BQ10,Stammdaten!$BF$1:$BP$353,5,FALSE)/2,IF(P10="Mist mit Jauchebindung",0,BW10/365*CL10)))) ->  | AQ10: =IF($Y10="","",IF(P10="Mist und Jauche",BW10/365*CL10/100*(100-VLOOKUP($BQ10,Stammdaten!$BF$1:$BP$353,5,FALSE)),IF(P10="Mist mit 1/2 Jauchebindung",BW10/365*CL10/100*(100-VLOOKUP($BQ10,Stammdaten!$BF$1:$BP$353,5,FALSE))+BW10/365*CL10/100*(VLOOKUP($BQ10,Stammdaten!$BF$1:$BP$353,5,FALSE))/2,IF(P10="Mist mit Jauchebindung",BW10/365*CL10/100*(100-VLOOKUP($BQ10,Stammdaten!$BF$1:$BP$353,5,FALSE))+BW10/365*CL10/100*(VLOOKUP($BQ10,Stammdaten!$BF$1:$BP$353,5,FALSE)),BW10/365*CL10)))) ->  | AR10: =IF($AB10="","",IF(P10="Mist und Jauche",AG10/365*CL10/100*VLOOKUP(BQ10,Stammdaten!$BF$1:$BP$353,5,FALSE),IF(P10="Mist mit 1/2 Jauchebindung",AG10/365*CL10/100*VLOOKUP(BQ10,Stammdaten!$BF$1:$BP$353,5,FALSE)/2,IF(P10="Mist mit Jauchebindung",0,AG10/365*CL10)))) ->  | AS10: =IF($Y10="","",IF(P10="Mist und Jauche",AG10/365*CL10/100*(100-VLOOKUP($BQ10,Stammdaten!$BF$1:$BP$353,5,FALSE)),IF(P10="Mist mit 1/2 Jauchebindung",AG10/365*CL10/100*(100-VLOOKUP($BQ10,Stammdaten!$BF$1:$BP$353,5,FALSE))+AG10/365*CL10/100*(VLOOKUP($BQ10,Stammdaten!$BF$1:$BP$353,5,FALSE))/2,IF(P10="Mist mit Jauchebindung",AG10/365*CL10/100*(100-VLOOKUP($BQ10,Stammdaten!$BF$1:$BP$353,5,FALSE))+AG10/365*CL10/100*(VLOOKUP($BQ10,Stammdaten!$BF$1:$BP$353,5,FALSE)),AG10/365*CL10)))) ->  | AT10: =IF(V10="","",VLOOKUP($BQ10,Stammdaten!$BF$1:$BP$354,8,FALSE)) ->  | AU10: =IF(AP10="","",AT10*AP10) ->  | AV10: =IF(V10="","",VLOOKUP(BQ10,Stammdaten!$BF$1:$BP$354,9,FALSE)) ->  | AW10: =IF(AP10="","",AV10*AP10) ->  | AX10: =IF(V10="","",VLOOKUP($BQ10,Stammdaten!$BF$1:$BP$354,10,FALSE)) ->  | AY10: =IF(AQ10="","",AX10*AQ10) ->  | AZ10: =IF(V10="","",VLOOKUP($BQ10,Stammdaten!$BF$1:$BP$354,11,FALSE)) ->  | BA10: =IF(AQ10="","",AZ10*AQ10) ->  | BB10: =IF(V10="","",IF(AND(CR10=0,DI10+DJ10=0),"",CR10/365*(365-CL10))) ->  | BC10: =IF(W10="","",W10/365*(365-CL10)) ->  | BD10: =IF($AB10="","",IF(P10="Mist und Jauche",BX10/365*(365-CL10)/100*VLOOKUP(BQ10,Stammdaten!$BF$1:$BP$353,5,FALSE),IF(P10="Mist mit 1/2 Jauchebindung",BX10/365*(365-CL10)/100*VLOOKUP(BQ10,Stammdaten!$BF$1:$BP$353,5,FALSE)/2,IF(P10="Mist mit Jauchebindung",0,BX10/365*(365-CL10))))) ->  | BE10: =IF($Y10="","",IF(P10="Mist und Jauche",BX10/365*(365-CL10)/100*(100-VLOOKUP($BQ10,Stammdaten!$BF$1:$BP$353,5,FALSE)),IF(P10="Mist mit 1/2 Jauchebindung",BX10/365*(365-CL10)/100*(100-VLOOKUP($BQ10,Stammdaten!$BF$1:$BP$353,5,FALSE))+BX10/365*(365-CL10)/100*(VLOOKUP($BQ10,Stammdaten!$BF$1:$BP$353,5,FALSE))/2,IF(P10="Mist mit Jauchebindung",BX10/365*(365-CL10)/100*(100-VLOOKUP($BQ10,Stammdaten!$BF$1:$BP$353,5,FALSE))+BX10/365*(365-CL10)/100*(VLOOKUP($BQ10,Stammdaten!$BF$1:$BP$353,5,FALSE)),BX10/365*(365-CL10))))) ->  | BF10: =IF($AB10="","",IF(P10="Mist und Jauche",AG10/365*(365-CL10)/100*VLOOKUP(BQ10,Stammdaten!$BF$1:$BP$353,5,FALSE),IF(P10="Mist mit 1/2 Jauchebindung",AG10/365*(365-CL10)/100*VLOOKUP(BQ10,Stammdaten!$BF$1:$BP$353,5,FALSE)/2,IF(P10="Mist mit Jauchebindung",0,AG10/365*(365-CL10))))) ->  | BG10: =IF($Y10="","",IF(P10="Mist und Jauche",AG10/365*(365-CL10)/100*(100-VLOOKUP($BQ10,Stammdaten!$BF$1:$BP$353,5,FALSE)),IF(P10="Mist mit 1/2 Jauchebindung",AG10/365*(365-CL10)/100*(100-VLOOKUP($BQ10,Stammdaten!$BF$1:$BP$353,5,FALSE))+AG10/365*(365-CL10)/100*(VLOOKUP($BQ10,Stammdaten!$BF$1:$BP$353,5,FALSE))/2,IF(P10="Mist mit Jauchebindung",AG10/365*(365-CL10)/100*(100-VLOOKUP($BQ10,Stammdaten!$BF$1:$BP$353,5,FALSE))+AG10/365*(365-CL10)/100*(VLOOKUP($BQ10,Stammdaten!$BF$1:$BP$353,5,FALSE)),AG10/365*(365-CL10))))) ->  | BH10: =IF(V10="","",IF(DI10=1,8*V10,IF(DJ10=1,2.4*V10,0))) ->  | BI10: =IF(V10="","",VLOOKUP($BQ10,Stammdaten!$BF$1:$BR$354,12,FALSE)) ->  | BJ10: =IF(OR(BI10="",AP10=""),"",AP10*BI10) ->  | BK10: =IF(V10="","",VLOOKUP($BQ10,Stammdaten!$BF$1:$BR$354,13,FALSE)) ->  | BL10: =IF(OR(BK10="",AQ10=""),"",AQ10*BK10) ->  | BM10: =IF(OR(BI10="",BD10=""),"",BD10*BI10) ->  | BN10: =IF(OR(BK10="",BE10=""),"",BE10*BK10) ->  | BO10: =IFERROR(IF(CM10<>"Festmist von Huf- und Klauentieren",1,""),"") ->  | BQ10: =IF(V10="","",VLOOKUP('170 N'!$E10,'Dd3'!$H$2:$X$66,15,FALSE)) ->  | BR10: =IF(V10="","",VLOOKUP('170 N'!$E10,'Dd3'!$H$2:$M$66,5,FALSE)*V10) ->  | BS10: =IFERROR(IF(OR(V10="",BZ10="ja"),"",CU10/365*CL10),"") ->  | BT10: =IF(BS10="","","t") ->  | BU10: =BW10/365*CL10+BX10/365*(365-CL10) -> 0 | BW10: =IF(V10="",0,(VLOOKUP('170 N'!$E10,'Dd3'!$H$2:$M$66,5,FALSE)*V10)/100*(100-VLOOKUP('170 N'!$E10,'Dd3'!$H$2:$X$66,17,FALSE))) -> 0 | BX10: =IF(V10="",0,IF(OR(C10="Milchviehhaltung",C10="Rindermast"),(VLOOKUP('170 N'!$E10,'Dd3'!$H$2:$M$66,5,FALSE)*V10)/100*70,BW10)) -> 0 | BY10: =IF(CM10="Gülle",1,0) ->  | BZ10: =IF(P10="Gülle","ja",IF(AND(P10="",V10<>"",CB10<>1),"X","")) ->  | CA10: =IF(P10="Mist mit 1/2 Jauchebindung","1/2 Jauche-bindung",IF(P10="Mist mit Jauchebindung","Jauche-bindung","")) ->  | CB10: =IF(AND($C10<>"",'Dd3'!$D$3=""),1,"") ->  | CC10: =IF(AND($E10<>"",'Dd3'!$F$10=""),1,"") ->  | CD10: =IF(AND(C10="Geflügelmast",N10="N-/P-reduziert"),1,IF(AND($C10<>"",'Dd3'!$D$17=""),1,IF(AND(R10="",C10="Geflügelmast",VLOOKUP('170 N'!$E10,'Dd3'!$H$2:$X$66,16,FALSE)="N"),1,""))) ->  | CE10: =IF(R10="Stall- haltung",1,IF(CD10=1,1,IF(AND($C10<>"",'Dd3'!$D$17=""),1,""))) ->  | CF10: =IF(AND(OR(R10="halb- tags",R10="ganz- tags"),T10=""),1,"") ->  | CG10: =IF(OR(R10="ganz- tags",R10="halb- tags"),1,"") ->  | CH10: =IF(OR(R10="Stall- haltung",AND(V10<>"",R10="")),1,"") ->  | CJ10: =IF(C10="","",IF(AND(C10<>"",'Dd3'!$D$4="",C10<>"Schweinemast",C10<>"Jungrindermast"),"Mist/Tr.Kot/Jauche",IF(AND(OR(C10="Schweinemast",C10="Jungrindermast"),P10="",BZ10<>"X"),"Gülle",IF(BZ10="ja","Gülle",IF(BZ10="X","X","Mist/Tr.Kot/Jauche"))))) ->  | CK10: =IFERROR(IF(OR(CC10=1,AND(N10="",V10="")),VLOOKUP(C10,'Dd1'!$B$24:$D$36,2,FALSE),IF(AND(N10="",V10<>"",CC10<>1),"X",'170 N'!N10)),"") ->  | CL10: =IF(OR(R10="",R10="Stall- haltung",T10=""),365,365-T10+T10*IF(R10="halb- tags",0.5,0)) -> 365 | CM10: =VLOOKUP('170 N'!$E10,'Dd3'!$H$2:$M$66,4,FALSE) ->  | CN10: =IF(V10="","",VLOOKUP('170 N'!$E10,'Dd3'!$H$2:$M$66,3,FALSE)) ->  | CO10: =IF(V10="","",IF(OR(CA10="1/2 Jauche-bindung",CA10="Jauche-bindung"),0.9,VLOOKUP('170 N'!$E10,'Dd3'!$H$3:$V$66,14,FALSE))) ->  | CP10: =IF(V10="","",ROUND(IF(CN10="m³","",IF(OR(CA10="",CA10="Standard-verfahren"),IF(CW10<>0,CW10,CV10),IF(CA10="1/2 Jauche-bindung",CZ10,IF(CA10="Jauche-bindung",DC10,"")))),0)) ->  | CQ10: =IF(CP10="","",CP10/CO10) ->  | CR10: =IF(CN10="m³",CV10,IF(CN10="t",IF(CM10<>"Festmist von Huf- und Klauentieren",0,IF(CM10="Festmist von Huf- und Klauentieren",IF(OR(CA10="",CA10="Standard-verfahren"),CX10,IF(CA10="1/2 Jauche-bindung",DA10,0)))))) -> FALSE | CS10: =IF(V10="","",IF(OR($CA10="",CA10="Standard-verfahren"),CW10,IF($CA10="1/2 Jauche-bindung",CZ10,IF($CA10="Jauche-bindung",DC10,"")))) ->  | CT10: =IF(V10="","",IF(OR($CA10="",CA10="Standard-verfahren"),CX10,IF($CA10="1/2 Jauche-bindung",DA10,IF($CA10="Jauche-bindung",0,"")))) ->  | CU10: =IF(V10="","",IF(OR($CA10="",CA10="Standard-verfahren"),CY10,IF($CA10="1/2 Jauche-bindung",DB10,IF($CA10="Jauche-bindung",DD10,"")))) ->  | CV10: =IF(V10="","",VLOOKUP('170 N'!$E10,'Dd3'!$H$2:$M$66,2,FALSE)*V10) ->  | CW10: =VLOOKUP('170 N'!$E10,'Dd3'!$H$2:$S$66,7,FALSE)*V10 ->  | CX10: =VLOOKUP('170 N'!$E10,'Dd3'!$H$2:$S$66,8,FALSE)*V10 ->  | CY10: =VLOOKUP('170 N'!$E10,'Dd3'!$H$2:$T$66,10,FALSE)*V10/1000 ->  | CZ10: =CW10+DA10+DB10-CY10 ->  | DA10: =CX10/2 ->  | DB10: =VLOOKUP('170 N'!$E10,'Dd3'!$H$2:$T$66,12,FALSE)*365*V10/1000 ->  | DC10: =CW10+DD10+CX10-CY10 ->  | DD10: =VLOOKUP('170 N'!$E10,'Dd3'!$H$2:$T$66,13,FALSE)*V10*365/1000 ->  | DE10: =IF(ISERROR(FIND("Milchkuh",'170 N'!E10)>0),0,IF(N10="Ackerfutterbau",1,0)) -> 0 | DF10: =IF(ISERROR(FIND("Milchkuh",'170 N'!E10)>0),0,IF(N10="Grünland",1,0)) -> 0 | DG10: 0 | DH10: =IF(ISERROR(FIND("Milchkuh",'170 N'!E10)>0),0,1) -> 0 | DI10: =IF(ISERROR(FIND("Laufstall",'170 N'!E10)>0),0,IF(DH10=1,1,"")) -> 0 | DJ10: =IF(ISERROR(FIND("Anbindehaltung",'170 N'!E10)>0),0,IF(DH10=1,1,"")) -> 0 | DL10: =365-CL10 -> 0 | DM10: =DL10*V10 -> 0 | DO10: =IF(DR10="",0,1) -> 0 | DP10: =DO10+DP8 -> 0 | DQ10: =IF(DP10=DP8,"",DP10) ->  | DR10: =IF(DL10>0,E10,"") ->  | DS10: =IF(DL10>0,V10,0) -> 0 | DT10: =IF(DL10>0,T10,0) -> 0 | DU10: =IF(DO10=1,R10,"") ->  | DV10: =DS10*DT10 -> 0
W11: =IFERROR(IF(W10="","",CQ10),"") ->  | X11: =IF(W11="","","m³") ->  | DE11: =IF(ISERROR(FIND("Milchkuh",'170 N'!E11)>0),0,IF(N11="Ackerfutterbau",1,0)) -> 0 | DF11: =IF(ISERROR(FIND("Milchkuh",'170 N'!E11)>0),0,IF(N11="Grünland",1,0)) -> 0 | DG11: 0 | DH11: =IF(ISERROR(FIND("Milchkuh",'170 N'!E11)>0),0,1) -> 0 | DI11: =IF(ISERROR(FIND("Laufstall",'170 N'!E11)>0),0,IF(DH11=1,1,"")) -> 0 | DJ11: =IF(ISERROR(FIND("Anbindehaltung",'170 N'!E11)>0),0,IF(DH11=1,1,"")) -> 0
B12: 4 | W12: =IFERROR(IF(V12="","",IF(CN12<>"t","",CP12))," ") ->  | X12: =IFERROR(IF(CN12="t","t",""),"") ->  | Y12: =IFERROR(IF(W12="","",IF(CM12="Festmist von Huf- und Klauentieren","Mist",IF(OR(CM12="Puten Elterntiermist",CM12="Puten Elterntieraufzuchtmist",CM12="Flugentenmist",CM12="Pekingentenmist",CM12="Gänse Elterntiermist",CM12="Gänse Mittelmastmist",CM12="Gänse Spätmastmist",CM12="Gänse Schnellmastmist",CM12="Hähnchenmastmist",CM12="Putenaufzuchtmist",CM12="Putenmist",CM12="Mist aus der Laufvogelhaltung"),"Geflügelmist",IF(OR(CM12="Junghennenaufzuchtkot",CM12="Legehennenkot",CM12="Hähnchenmast Elterntierkot"),"Geflügelkot",IF(CM12="Kaninchenmist","Mist",CM12)))))," Fehler in") ->  | AB12: =IFERROR(IF(V12="","",IF(AND(CR12=0,DI12+DJ12=0),"",CR12+BH12)),"dieser") ->  | AC12: =IFERROR(IF(AB12="","",IF(CM12="Festmist von Huf- und Klauentieren","m³"&" Jauche","m³ "&CM12)),"Zeile!") ->  | AD12: =IFERROR(IF(BU12=0,"",BU12),"") ->  | AF12: =IF(AD12="","","kg") ->  | AG12: =IFERROR(IF(V12="","",ROUND(VLOOKUP('170 N'!$E12,'Dd4'!$H$2:$M$66,6,FALSE)*V12,0)),"") ->  | AI12: =IF(AG12="","","kg") ->  | AJ12: =IFERROR(IF(V12="","",VLOOKUP('170 N'!$E12,'Dd4'!$H$2:$V$66,11,FALSE)*V12),"") ->  | AN12: =IF(V12="","",IF(AND(CR12=0,DI12+DJ12=0),"",CR12/365*CL12+BH12)) ->  | AO12: =IF(W12="","",W12/365*CL12) ->  | AP12: =IF($AB12="","",IF(P12="Mist und Jauche",BW12/365*CL12/100*VLOOKUP(BQ12,Stammdaten!$BF$1:$BP$353,5,FALSE),IF(P12="Mist mit 1/2 Jauchebindung",BW12/365*CL12/100*VLOOKUP(BQ12,Stammdaten!$BF$1:$BP$353,5,FALSE)/2,IF(P12="Mist mit Jauchebindung",0,BW12/365*CL12)))) ->  | AQ12: =IF($Y12="","",IF(P12="Mist und Jauche",BW12/365*CL12/100*(100-VLOOKUP($BQ12,Stammdaten!$BF$1:$BP$353,5,FALSE)),IF(P12="Mist mit 1/2 Jauchebindung",BW12/365*CL12/100*(100-VLOOKUP($BQ12,Stammdaten!$BF$1:$BP$353,5,FALSE))+BW12/365*CL12/100*(VLOOKUP($BQ12,Stammdaten!$BF$1:$BP$353,5,FALSE))/2,IF(P12="Mist mit Jauchebindung",BW12/365*CL12/100*(100-VLOOKUP($BQ12,Stammdaten!$BF$1:$BP$353,5,FALSE))+BW12/365*CL12/100*(VLOOKUP($BQ12,Stammdaten!$BF$1:$BP$353,5,FALSE)),BW12/365*CL12)))) ->  | AR12: =IF($AB12="","",IF(P12="Mist und Jauche",AG12/365*CL12/100*VLOOKUP(BQ12,Stammdaten!$BF$1:$BP$353,5,FALSE),IF(P12="Mist mit 1/2 Jauchebindung",AG12/365*CL12/100*VLOOKUP(BQ12,Stammdaten!$BF$1:$BP$353,5,FALSE)/2,IF(P12="Mist mit Jauchebindung",0,AG12/365*CL12)))) ->  | AS12: =IF($Y12="","",IF(P12="Mist und Jauche",AG12/365*CL12/100*(100-VLOOKUP($BQ12,Stammdaten!$BF$1:$BP$353,5,FALSE)),IF(P12="Mist mit 1/2 Jauchebindung",AG12/365*CL12/100*(100-VLOOKUP($BQ12,Stammdaten!$BF$1:$BP$353,5,FALSE))+AG12/365*CL12/100*(VLOOKUP($BQ12,Stammdaten!$BF$1:$BP$353,5,FALSE))/2,IF(P12="Mist mit Jauchebindung",AG12/365*CL12/100*(100-VLOOKUP($BQ12,Stammdaten!$BF$1:$BP$353,5,FALSE))+AG12/365*CL12/100*(VLOOKUP($BQ12,Stammdaten!$BF$1:$BP$353,5,FALSE)),AG12/365*CL12)))) ->  | AT12: =IF(V12="","",VLOOKUP($BQ12,Stammdaten!$BF$1:$BP$354,8,FALSE)) ->  | AU12: =IF(AP12="","",AT12*AP12) ->  | AV12: =IF(V12="","",VLOOKUP(BQ12,Stammdaten!$BF$1:$BP$354,9,FALSE)) ->  | AW12: =IF(AP12="","",AV12*AP12) ->  | AX12: =IF(V12="","",VLOOKUP($BQ12,Stammdaten!$BF$1:$BP$354,10,FALSE)) ->  | AY12: =IF(AQ12="","",AX12*AQ12) ->  | AZ12: =IF(V12="","",VLOOKUP($BQ12,Stammdaten!$BF$1:$BP$354,11,FALSE)) ->  | BA12: =IF(AQ12="","",AZ12*AQ12) ->  | BB12: =IF(V12="","",IF(AND(CR12=0,DI12+DJ12=0),"",CR12/365*(365-CL12))) ->  | BC12: =IF(W12="","",W12/365*(365-CL12)) ->  | BD12: =IF($AB12="","",IF(P12="Mist und Jauche",BX12/365*(365-CL12)/100*VLOOKUP(BQ12,Stammdaten!$BF$1:$BP$353,5,FALSE),IF(P12="Mist mit 1/2 Jauchebindung",BX12/365*(365-CL12)/100*VLOOKUP(BQ12,Stammdaten!$BF$1:$BP$353,5,FALSE)/2,IF(P12="Mist mit Jauchebindung",0,BX12/365*(365-CL12))))) ->  | BE12: =IF($Y12="","",IF(P12="Mist und Jauche",BX12/365*(365-CL12)/100*(100-VLOOKUP($BQ12,Stammdaten!$BF$1:$BP$353,5,FALSE)),IF(P12="Mist mit 1/2 Jauchebindung",BX12/365*(365-CL12)/100*(100-VLOOKUP($BQ12,Stammdaten!$BF$1:$BP$353,5,FALSE))+BX12/365*(365-CL12)/100*(VLOOKUP($BQ12,Stammdaten!$BF$1:$BP$353,5,FALSE))/2,IF(P12="Mist mit Jauchebindung",BX12/365*(365-CL12)/100*(100-VLOOKUP($BQ12,Stammdaten!$BF$1:$BP$353,5,FALSE))+BX12/365*(365-CL12)/100*(VLOOKUP($BQ12,Stammdaten!$BF$1:$BP$353,5,FALSE)),BX12/365*(365-CL12))))) ->  | BF12: =IF($AB12="","",IF(P12="Mist und Jauche",AG12/365*(365-CL12)/100*VLOOKUP(BQ12,Stammdaten!$BF$1:$BP$353,5,FALSE),IF(P12="Mist mit 1/2 Jauchebindung",AG12/365*(365-CL12)/100*VLOOKUP(BQ12,Stammdaten!$BF$1:$BP$353,5,FALSE)/2,IF(P12="Mist mit Jauchebindung",0,AG12/365*(365-CL12))))) ->  | BG12: =IF($Y12="","",IF(P12="Mist und Jauche",AG12/365*(365-CL12)/100*(100-VLOOKUP($BQ12,Stammdaten!$BF$1:$BP$353,5,FALSE)),IF(P12="Mist mit 1/2 Jauchebindung",AG12/365*(365-CL12)/100*(100-VLOOKUP($BQ12,Stammdaten!$BF$1:$BP$353,5,FALSE))+AG12/365*(365-CL12)/100*(VLOOKUP($BQ12,Stammdaten!$BF$1:$BP$353,5,FALSE))/2,IF(P12="Mist mit Jauchebindung",AG12/365*(365-CL12)/100*(100-VLOOKUP($BQ12,Stammdaten!$BF$1:$BP$353,5,FALSE))+AG12/365*(365-CL12)/100*(VLOOKUP($BQ12,Stammdaten!$BF$1:$BP$353,5,FALSE)),AG12/365*(365-CL12))))) ->  | BH12: =IF(V12="","",IF(DI12=1,8*V12,IF(DJ12=1,2.4*V12,0))) ->  | BI12: =IF(V12="","",VLOOKUP($BQ12,Stammdaten!$BF$1:$BR$354,12,FALSE)) ->  | BJ12: =IF(OR(BI12="",AP12=""),"",AP12*BI12) ->  | BK12: =IF(V12="","",VLOOKUP($BQ12,Stammdaten!$BF$1:$BR$354,13,FALSE)) ->  | BL12: =IF(OR(BK12="",AQ12=""),"",AQ12*BK12) ->  | BM12: =IF(OR(BI12="",BD12=""),"",BD12*BI12) ->  | BN12: =IF(OR(BK12="",BE12=""),"",BE12*BK12) ->  | BO12: =IFERROR(IF(CM12<>"Festmist von Huf- und Klauentieren",1,""),"") ->  | BQ12: =IF(V12="","",VLOOKUP('170 N'!$E12,'Dd4'!$H$2:$X$66,15,FALSE)) ->  | BR12: =IF(V12="","",VLOOKUP('170 N'!$E12,'Dd4'!$H$2:$M$66,5,FALSE)*V12) ->  | BS12: =IFERROR(IF(OR(V12="",BZ12="ja"),"",CU12/365*CL12),"") ->  | BT12: =IF(BS12="","","t") ->  | BU12: =BW12/365*CL12+BX12/365*(365-CL12) -> 0 | BW12: =IF(V12="",0,(VLOOKUP('170 N'!$E12,'Dd4'!$H$2:$M$66,5,FALSE)*V12)/100*(100-VLOOKUP('170 N'!$E12,'Dd4'!$H$2:$X$66,17,FALSE))) -> 0 | BX12: =IF(V12="",0,IF(OR(C12="Milchviehhaltung",C12="Rindermast"),(VLOOKUP('170 N'!$E12,'Dd4'!$H$2:$M$66,5,FALSE)*V12)/100*70,BW12)) -> 0 | BY12: =IF(CM12="Gülle",1,0) ->  | BZ12: =IF(P12="Gülle","ja",IF(AND(P12="",V12<>"",CB12<>1),"X","")) ->  | CA12: =IF(P12="Mist mit 1/2 Jauchebindung","1/2 Jauche-bindung",IF(P12="Mist mit Jauchebindung","Jauche-bindung","")) ->  | CB12: =IF(AND($C12<>"",'Dd4'!$D$3=""),1,"") ->  | CC12: =IF(AND($E12<>"",'Dd4'!$F$10=""),1,"") ->  | CD12: =IF(AND(C12="Geflügelmast",N12="N-/P-reduziert"),1,IF(AND($C12<>"",'Dd4'!$D$17=""),1,IF(AND(R12="",C12="Geflügelmast",VLOOKUP('170 N'!$E12,'Dd4'!$H$2:$X$66,16,FALSE)="N"),1,""))) ->  | CE12: =IF(R12="Stall- haltung",1,IF(CD12=1,1,IF(AND($C12<>"",'Dd4'!$D$17=""),1,""))) ->  | CF12: =IF(AND(OR(R12="halb- tags",R12="ganz- tags"),T12=""),1,"") ->  | CG12: =IF(OR(R12="ganz- tags",R12="halb- tags"),1,"") ->  | CH12: =IF(OR(R12="Stall- haltung",AND(V12<>"",R12="")),1,"") ->  | CJ12: =IF(C12="","",IF(AND(C12<>"",'Dd4'!$D$4="",C12<>"Schweinemast",C12<>"Jungrindermast"),"Mist/Tr.Kot/Jauche",IF(AND(OR(C12="Schweinemast",C12="Jungrindermast"),P12="",BZ12<>"X"),"Gülle",IF(BZ12="ja","Gülle",IF(BZ12="X","X","Mist/Tr.Kot/Jauche"))))) ->  | CK12: =IFERROR(IF(OR(CC12=1,AND(N12="",V12="")),VLOOKUP(C12,'Dd1'!$B$24:$D$36,2,FALSE),IF(AND(N12="",V12<>"",CC12<>1),"X",'170 N'!N12)),"") ->  | CL12: =IF(OR(R12="",R12="Stall- haltung",T12=""),365,365-T12+T12*IF(R12="halb- tags",0.5,0)) -> 365 | CM12: =VLOOKUP('170 N'!$E12,'Dd4'!$H$2:$M$66,4,FALSE) ->  | CN12: =IF(V12="","",VLOOKUP('170 N'!$E12,'Dd4'!$H$2:$M$66,3,FALSE)) ->  | CO12: =IF(V12="","",IF(OR(CA12="1/2 Jauche-bindung",CA12="Jauche-bindung"),0.9,VLOOKUP('170 N'!$E12,'Dd4'!$H$2:$V$66,14,FALSE))) ->  | CP12: =IF(V12="","",ROUND(IF(CN12="m³","",IF(OR(CA12="",CA12="Standard-verfahren"),IF(CW12<>0,CW12,CV12),IF(CA12="1/2 Jauche-bindung",CZ12,IF(CA12="Jauche-bindung",DC12,"")))),0)) ->  | CQ12: =IF(CP12="","",CP12/CO12) ->  | CR12: =IF(CN12="m³",CV12,IF(CN12="t",IF(CM12<>"Festmist von Huf- und Klauentieren",0,IF(CM12="Festmist von Huf- und Klauentieren",IF(OR(CA12="",CA12="Standard-verfahren"),CX12,IF(CA12="1/2 Jauche-bindung",DA12,0)))))) -> FALSE | CS12: =IF(V12="","",IF(OR($CA12="",CA12="Standard-verfahren"),CW12,IF($CA12="1/2 Jauche-bindung",CZ12,IF($CA12="Jauche-bindung",DC12,"")))) ->  | CT12: =IF(V12="","",IF(OR($CA12="",CA12="Standard-verfahren"),CX12,IF($CA12="1/2 Jauche-bindung",DA12,IF($CA12="Jauche-bindung",0,"")))) ->  | CU12: =IF(V12="","",IF(OR($CA12="",CA12="Standard-verfahren"),CY12,IF($CA12="1/2 Jauche-bindung",DB12,IF($CA12="Jauche-bindung",DD12,"")))) ->  | CV12: =IF(V12="","",VLOOKUP('170 N'!$E12,'Dd4'!$H$2:$M$66,2,FALSE)*V12) ->  | CW12: =VLOOKUP('170 N'!$E12,'Dd4'!$H$2:$S$66,7,FALSE)*V12 ->  | CX12: =VLOOKUP('170 N'!$E12,'Dd4'!$H$2:$S$66,8,FALSE)*V12 ->  | CY12: =VLOOKUP('170 N'!$E12,'Dd4'!$H$2:$T$66,10,FALSE)*V12/1000 ->  | CZ12: =CW12+DA12+DB12-CY12 ->  | DA12: =CX12/2 ->  | DB12: =VLOOKUP('170 N'!$E12,'Dd4'!$H$2:$T$66,12,FALSE)*365*V12/1000 ->  | DC12: =CW12+DD12+CX12-CY12 ->  | DD12: =VLOOKUP('170 N'!$E12,'Dd4'!$H$2:$T$66,13,FALSE)*V12*365/1000 ->  | DE12: =IF(ISERROR(FIND("Milchkuh",'170 N'!E12)>0),0,IF(N12="Ackerfutterbau",1,0)) -> 0 | DF12: =IF(ISERROR(FIND("Milchkuh",'170 N'!E12)>0),0,IF(N12="Grünland",1,0)) -> 0 | DG12: 0 | DH12: =IF(ISERROR(FIND("Milchkuh",'170 N'!E12)>0),0,1) -> 0 | DI12: =IF(ISERROR(FIND("Laufstall",'170 N'!E12)>0),0,IF(DH12=1,1,"")) -> 0 | DJ12: =IF(ISERROR(FIND("Anbindehaltung",'170 N'!E12)>0),0,IF(DH12=1,1,"")) -> 0 | DL12: =365-CL12 -> 0 | DM12: =DL12*V12 -> 0 | DO12: =IF(DR12="",0,1) -> 0 | DP12: =DO12+DP10 -> 0 | DQ12: =IF(DP12=DP10,"",DP12) ->  | DR12: =IF(DL12>0,E12,"") ->  | DS12: =IF(DL12>0,V12,0) -> 0 | DT12: =IF(DL12>0,T12,0) -> 0 | DU12: =IF(DO12=1,R12,"") ->  | DV12: =DS12*DT12 -> 0
W13: =IFERROR(IF(W12="","",CQ12),"") ->  | X13: =IF(W13="","","m³") ->  | DE13: =IF(ISERROR(FIND("Milchkuh",'170 N'!E13)>0),0,IF(N13="Ackerfutterbau",1,0)) -> 0 | DF13: =IF(ISERROR(FIND("Milchkuh",'170 N'!E13)>0),0,IF(N13="Grünland",1,0)) -> 0 | DG13: 0 | DH13: =IF(ISERROR(FIND("Milchkuh",'170 N'!E13)>0),0,1) -> 0 | DI13: =IF(ISERROR(FIND("Laufstall",'170 N'!E13)>0),0,IF(DH13=1,1,"")) -> 0 | DJ13: =IF(ISERROR(FIND("Anbindehaltung",'170 N'!E13)>0),0,IF(DH13=1,1,"")) -> 0
B14: 5 | W14: =IFERROR(IF(V14="","",IF(CN14<>"t","",CP14))," ") ->  | X14: =IFERROR(IF(CN14="t","t",""),"") ->  | Y14: =IFERROR(IF(W14="","",IF(CM14="Festmist von Huf- und Klauentieren","Mist",IF(OR(CM14="Puten Elterntiermist",CM14="Puten Elterntieraufzuchtmist",CM14="Flugentenmist",CM14="Pekingentenmist",CM14="Gänse Elterntiermist",CM14="Gänse Mittelmastmist",CM14="Gänse Spätmastmist",CM14="Gänse Schnellmastmist",CM14="Hähnchenmastmist",CM14="Putenaufzuchtmist",CM14="Putenmist",CM14="Mist aus der Laufvogelhaltung"),"Geflügelmist",IF(OR(CM14="Junghennenaufzuchtkot",CM14="Legehennenkot",CM14="Hähnchenmast Elterntierkot"),"Geflügelkot",IF(CM14="Kaninchenmist","Mist",CM14)))))," Fehler in") ->  | AB14: =IFERROR(IF(V14="","",IF(AND(CR14=0,DI14+DJ14=0),"",CR14+BH14)),"dieser") ->  | AC14: =IFERROR(IF(AB14="","",IF(CM14="Festmist von Huf- und Klauentieren","m³"&" Jauche","m³ "&CM14)),"Zeile!") ->  | AD14: =IFERROR(IF(BU14=0,"",BU14),"") ->  | AF14: =IF(AD14="","","kg") ->  | AG14: =IFERROR(IF(V14="","",ROUND(VLOOKUP('170 N'!$E14,'Dd5'!$H$2:$M$66,6,FALSE)*V14,0)),"") ->  | AI14: =IF(AG14="","","kg") ->  | AJ14: =IFERROR(IF(V14="","",VLOOKUP('170 N'!$E14,'Dd5'!$H$2:$V$66,11,FALSE)*V14),"") ->  | AN14: =IF(V14="","",IF(AND(CR14=0,DI14+DJ14=0),"",CR14/365*CL14+BH14)) ->  | AO14: =IF(W14="","",W14/365*CL14) ->  | AP14: =IF($AB14="","",IF(P14="Mist und Jauche",BW14/365*CL14/100*VLOOKUP(BQ14,Stammdaten!$BF$1:$BP$353,5,FALSE),IF(P14="Mist mit 1/2 Jauchebindung",BW14/365*CL14/100*VLOOKUP(BQ14,Stammdaten!$BF$1:$BP$353,5,FALSE)/2,IF(P14="Mist mit Jauchebindung",0,BW14/365*CL14)))) ->  | AQ14: =IF($Y14="","",IF(P14="Mist und Jauche",BW14/365*CL14/100*(100-VLOOKUP($BQ14,Stammdaten!$BF$1:$BP$353,5,FALSE)),IF(P14="Mist mit 1/2 Jauchebindung",BW14/365*CL14/100*(100-VLOOKUP($BQ14,Stammdaten!$BF$1:$BP$353,5,FALSE))+BW14/365*CL14/100*(VLOOKUP($BQ14,Stammdaten!$BF$1:$BP$353,5,FALSE))/2,IF(P14="Mist mit Jauchebindung",BW14/365*CL14/100*(100-VLOOKUP($BQ14,Stammdaten!$BF$1:$BP$353,5,FALSE))+BW14/365*CL14/100*(VLOOKUP($BQ14,Stammdaten!$BF$1:$BP$353,5,FALSE)),BW14/365*CL14)))) ->  | AR14: =IF($AB14="","",IF(P14="Mist und Jauche",AG14/365*CL14/100*VLOOKUP(BQ14,Stammdaten!$BF$1:$BP$353,5,FALSE),IF(P14="Mist mit 1/2 Jauchebindung",AG14/365*CL14/100*VLOOKUP(BQ14,Stammdaten!$BF$1:$BP$353,5,FALSE)/2,IF(P14="Mist mit Jauchebindung",0,AG14/365*CL14)))) ->  | AS14: =IF($Y14="","",IF(P14="Mist und Jauche",AG14/365*CL14/100*(100-VLOOKUP($BQ14,Stammdaten!$BF$1:$BP$353,5,FALSE)),IF(P14="Mist mit 1/2 Jauchebindung",AG14/365*CL14/100*(100-VLOOKUP($BQ14,Stammdaten!$BF$1:$BP$353,5,FALSE))+AG14/365*CL14/100*(VLOOKUP($BQ14,Stammdaten!$BF$1:$BP$353,5,FALSE))/2,IF(P14="Mist mit Jauchebindung",AG14/365*CL14/100*(100-VLOOKUP($BQ14,Stammdaten!$BF$1:$BP$353,5,FALSE))+AG14/365*CL14/100*(VLOOKUP($BQ14,Stammdaten!$BF$1:$BP$353,5,FALSE)),AG14/365*CL14)))) ->  | AT14: =IF(V14="","",VLOOKUP($BQ14,Stammdaten!$BF$1:$BP$354,8,FALSE)) ->  | AU14: =IF(AP14="","",AT14*AP14) ->  | AV14: =IF(V14="","",VLOOKUP(BQ14,Stammdaten!$BF$1:$BP$354,9,FALSE)) ->  | AW14: =IF(AP14="","",AV14*AP14) ->  | AX14: =IF(V14="","",VLOOKUP($BQ14,Stammdaten!$BF$1:$BP$354,10,FALSE)) ->  | AY14: =IF(AQ14="","",AX14*AQ14) ->  | AZ14: =IF(V14="","",VLOOKUP($BQ14,Stammdaten!$BF$1:$BP$354,11,FALSE)) ->  | BA14: =IF(AQ14="","",AZ14*AQ14) ->  | BB14: =IF(V14="","",IF(AND(CR14=0,DI14+DJ14=0),"",CR14/365*(365-CL14))) ->  | BC14: =IF(W14="","",W14/365*(365-CL14)) ->  | BD14: =IF($AB14="","",IF(P14="Mist und Jauche",BX14/365*(365-CL14)/100*VLOOKUP(BQ14,Stammdaten!$BF$1:$BP$353,5,FALSE),IF(P14="Mist mit 1/2 Jauchebindung",BX14/365*(365-CL14)/100*VLOOKUP(BQ14,Stammdaten!$BF$1:$BP$353,5,FALSE)/2,IF(P14="Mist mit Jauchebindung",0,BX14/365*(365-CL14))))) ->  | BE14: =IF($Y14="","",IF(P14="Mist und Jauche",BX14/365*(365-CL14)/100*(100-VLOOKUP($BQ14,Stammdaten!$BF$1:$BP$353,5,FALSE)),IF(P14="Mist mit 1/2 Jauchebindung",BX14/365*(365-CL14)/100*(100-VLOOKUP($BQ14,Stammdaten!$BF$1:$BP$353,5,FALSE))+BX14/365*(365-CL14)/100*(VLOOKUP($BQ14,Stammdaten!$BF$1:$BP$353,5,FALSE))/2,IF(P14="Mist mit Jauchebindung",BX14/365*(365-CL14)/100*(100-VLOOKUP($BQ14,Stammdaten!$BF$1:$BP$353,5,FALSE))+BX14/365*(365-CL14)/100*(VLOOKUP($BQ14,Stammdaten!$BF$1:$BP$353,5,FALSE)),BX14/365*(365-CL14))))) ->  | BF14: =IF($AB14="","",IF(P14="Mist und Jauche",AG14/365*(365-CL14)/100*VLOOKUP(BQ14,Stammdaten!$BF$1:$BP$353,5,FALSE),IF(P14="Mist mit 1/2 Jauchebindung",AG14/365*(365-CL14)/100*VLOOKUP(BQ14,Stammdaten!$BF$1:$BP$353,5,FALSE)/2,IF(P14="Mist mit Jauchebindung",0,AG14/365*(365-CL14))))) ->  | BG14: =IF($Y14="","",IF(P14="Mist und Jauche",AG14/365*(365-CL14)/100*(100-VLOOKUP($BQ14,Stammdaten!$BF$1:$BP$353,5,FALSE)),IF(P14="Mist mit 1/2 Jauchebindung",AG14/365*(365-CL14)/100*(100-VLOOKUP($BQ14,Stammdaten!$BF$1:$BP$353,5,FALSE))+AG14/365*(365-CL14)/100*(VLOOKUP($BQ14,Stammdaten!$BF$1:$BP$353,5,FALSE))/2,IF(P14="Mist mit Jauchebindung",AG14/365*(365-CL14)/100*(100-VLOOKUP($BQ14,Stammdaten!$BF$1:$BP$353,5,FALSE))+AG14/365*(365-CL14)/100*(VLOOKUP($BQ14,Stammdaten!$BF$1:$BP$353,5,FALSE)),AG14/365*(365-CL14))))) ->  | BH14: =IF(V14="","",IF(DI14=1,8*V14,IF(DJ14=1,2.4*V14,0))) ->  | BI14: =IF(V14="","",VLOOKUP($BQ14,Stammdaten!$BF$1:$BR$354,12,FALSE)) ->  | BJ14: =IF(OR(BI14="",AP14=""),"",AP14*BI14) ->  | BK14: =IF(V14="","",VLOOKUP($BQ14,Stammdaten!$BF$1:$BR$354,13,FALSE)) ->  | BL14: =IF(OR(BK14="",AQ14=""),"",AQ14*BK14) ->  | BM14: =IF(OR(BI14="",BD14=""),"",BD14*BI14) ->  | BN14: =IF(OR(BK14="",BE14=""),"",BE14*BK14) ->  | BO14: =IFERROR(IF(CM14<>"Festmist von Huf- und Klauentieren",1,""),"") ->  | BQ14: =IF(V14="","",VLOOKUP('170 N'!$E14,'Dd5'!$H$2:$X$66,15,FALSE)) ->  | BR14: =IF(V14="","",VLOOKUP('170 N'!$E14,'Dd5'!$H$2:$M$66,5,FALSE)*V14) ->  | BS14: =IFERROR(IF(OR(V14="",BZ14="ja"),"",CU14/365*CL14),"") ->  | BT14: =IF(BS14="","","t") ->  | BU14: =BW14/365*CL14+BX14/365*(365-CL14) -> 0 | BW14: =IF(V14="",0,(VLOOKUP('170 N'!$E14,'Dd5'!$H$2:$M$66,5,FALSE)*V14)/100*(100-VLOOKUP('170 N'!$E14,'Dd5'!$H$2:$X$66,17,FALSE))) -> 0 | BX14: =IF(V14="",0,IF(OR(C14="Milchviehhaltung",C14="Rindermast"),(VLOOKUP('170 N'!$E14,'Dd5'!$H$2:$M$66,5,FALSE)*V14)/100*70,BW14)) -> 0 | BY14: =IF(CM14="Gülle",1,0) ->  | BZ14: =IF(P14="Gülle","ja",IF(AND(P14="",V14<>"",CB14<>1),"X","")) ->  | CA14: =IF(P14="Mist mit 1/2 Jauchebindung","1/2 Jauche-bindung",IF(P14="Mist mit Jauchebindung","Jauche-bindung","")) ->  | CB14: =IF(AND($C14<>"",'Dd5'!$D$3=""),1,"") ->  | CC14: =IF(AND($E14<>"",'Dd5'!$F$10=""),1,"") ->  | CD14: =IF(AND(C14="Geflügelmast",N14="N-/P-reduziert"),1,IF(AND($C14<>"",'Dd5'!$D$17=""),1,IF(AND(R14="",C14="Geflügelmast",VLOOKUP('170 N'!$E14,'Dd5'!$H$2:$X$66,16,FALSE)="N"),1,""))) ->  | CE14: =IF(R14="Stall- haltung",1,IF(CD14=1,1,IF(AND($C14<>"",'Dd5'!$D$17=""),1,""))) ->  | CF14: =IF(AND(OR(R14="halb- tags",R14="ganz- tags"),T14=""),1,"") ->  | CG14: =IF(OR(R14="ganz- tags",R14="halb- tags"),1,"") ->  | CH14: =IF(OR(R14="Stall- haltung",AND(V14<>"",R14="")),1,"") ->  | CJ14: =IF(C14="","",IF(AND(C14<>"",'Dd5'!$D$4="",C14<>"Schweinemast",C14<>"Jungrindermast"),"Mist/Tr.Kot/Jauche",IF(AND(OR(C14="Schweinemast",C14="Jungrindermast"),P14="",BZ14<>"X"),"Gülle",IF(BZ14="ja","Gülle",IF(BZ14="X","X","Mist/Tr.Kot/Jauche"))))) ->  | CK14: =IFERROR(IF(OR(CC14=1,AND(N14="",V14="")),VLOOKUP(C14,'Dd1'!$B$24:$D$36,2,FALSE),IF(AND(N14="",V14<>"",CC14<>1),"X",'170 N'!N14)),"") ->  | CL14: =IF(OR(R14="",R14="Stall- haltung",T14=""),365,365-T14+T14*IF(R14="halb- tags",0.5,0)) -> 365 | CM14: =VLOOKUP('170 N'!$E14,'Dd5'!$H$2:$M$66,4,FALSE) ->  | CN14: =IF(V14="","",VLOOKUP('170 N'!$E14,'Dd5'!$H$2:$M$66,3,FALSE)) ->  | CO14: =IF(V14="","",IF(OR(CA14="1/2 Jauche-bindung",CA14="Jauche-bindung"),0.9,VLOOKUP('170 N'!$E14,'Dd5'!$H$2:$V$66,14,FALSE))) ->  | CP14: =IF(V14="","",ROUND(IF(CN14="m³","",IF(OR(CA14="",CA14="Standard-verfahren"),IF(CW14<>0,CW14,CV14),IF(CA14="1/2 Jauche-bindung",CZ14,IF(CA14="Jauche-bindung",DC14,"")))),0)) ->  | CQ14: =IF(CP14="","",CP14/CO14) ->  | CR14: =IF(CN14="m³",CV14,IF(CN14="t",IF(CM14<>"Festmist von Huf- und Klauentieren",0,IF(CM14="Festmist von Huf- und Klauentieren",IF(OR(CA14="",CA14="Standard-verfahren"),CX14,IF(CA14="1/2 Jauche-bindung",DA14,0)))))) -> FALSE | CS14: =IF(V14="","",IF(OR($CA14="",CA14="Standard-verfahren"),CW14,IF($CA14="1/2 Jauche-bindung",CZ14,IF($CA14="Jauche-bindung",DC14,"")))) ->  | CT14: =IF(V14="","",IF(OR($CA14="",CA14="Standard-verfahren"),CX14,IF($CA14="1/2 Jauche-bindung",DA14,IF($CA14="Jauche-bindung",0,"")))) ->  | CU14: =IF(V14="","",IF(OR($CA14="",CA14="Standard-verfahren"),CY14,IF($CA14="1/2 Jauche-bindung",DB14,IF($CA14="Jauche-bindung",DD14,"")))) ->  | CV14: =IF(V14="","",VLOOKUP('170 N'!$E14,'Dd5'!$H$2:$M$66,2,FALSE)*V14) ->  | CW14: =VLOOKUP('170 N'!$E14,'Dd5'!$H$2:$S$66,7,FALSE)*V14 ->  | CX14: =VLOOKUP('170 N'!$E14,'Dd5'!$H$2:$S$66,8,FALSE)*V14 ->  | CY14: =VLOOKUP('170 N'!$E14,'Dd5'!$H$2:$T$66,10,FALSE)*V14/1000 ->  | CZ14: =CW14+DA14+DB14-CY14 ->  | DA14: =CX14/2 ->  | DB14: =VLOOKUP('170 N'!$E14,'Dd5'!$H$2:$T$66,12,FALSE)*365*V14/1000 ->  | DC14: =CW14+DD14+CX14-CY14 ->  | DD14: =VLOOKUP('170 N'!$E14,'Dd5'!$H$2:$T$66,13,FALSE)*V14*365/1000 ->  | DE14: =IF(ISERROR(FIND("Milchkuh",'170 N'!E14)>0),0,IF(N14="Ackerfutterbau",1,0)) -> 0 | DF14: =IF(ISERROR(FIND("Milchkuh",'170 N'!E14)>0),0,IF(N14="Grünland",1,0)) -> 0 | DG14: 0 | DH14: =IF(ISERROR(FIND("Milchkuh",'170 N'!E14)>0),0,1) -> 0 | DI14: =IF(ISERROR(FIND("Laufstall",'170 N'!E14)>0),0,IF(DH14=1,1,"")) -> 0 | DJ14: =IF(ISERROR(FIND("Anbindehaltung",'170 N'!E14)>0),0,IF(DH14=1,1,"")) -> 0 | DL14: =365-CL14 -> 0 | DM14: =DL14*V14 -> 0 | DO14: =IF(DR14="",0,1) -> 0 | DP14: =DO14+DP12 -> 0 | DQ14: =IF(DP14=DP12,"",DP14) ->  | DR14: =IF(DL14>0,E14,"") ->  | DS14: =IF(DL14>0,V14,0) -> 0 | DT14: =IF(DL14>0,T14,0) -> 0 | DU14: =IF(DO14=1,R14,"") ->  | DV14: =DS14*DT14 -> 0
W15: =IFERROR(IF(W14="","",CQ14),"") ->  | X15: =IF(W15="","","m³") ->  | DE15: =IF(ISERROR(FIND("Milchkuh",'170 N'!E15)>0),0,IF(N15="Ackerfutterbau",1,0)) -> 0 | DF15: =IF(ISERROR(FIND("Milchkuh",'170 N'!E15)>0),0,IF(N15="Grünland",1,0)) -> 0 | DG15: 0 | DH15: =IF(ISERROR(FIND("Milchkuh",'170 N'!E15)>0),0,1) -> 0 | DI15: =IF(ISERROR(FIND("Laufstall",'170 N'!E15)>0),0,IF(DH15=1,1,"")) -> 0 | DJ15: =IF(ISERROR(FIND("Anbindehaltung",'170 N'!E15)>0),0,IF(DH15=1,1,"")) -> 0
B16: 6 | W16: =IFERROR(IF(V16="","",IF(CN16<>"t","",CP16))," ") ->  | X16: =IFERROR(IF(CN16="t","t",""),"") ->  | Y16: =IFERROR(IF(W16="","",IF(CM16="Festmist von Huf- und Klauentieren","Mist",IF(OR(CM16="Puten Elterntiermist",CM16="Puten Elterntieraufzuchtmist",CM16="Flugentenmist",CM16="Pekingentenmist",CM16="Gänse Elterntiermist",CM16="Gänse Mittelmastmist",CM16="Gänse Spätmastmist",CM16="Gänse Schnellmastmist",CM16="Hähnchenmastmist",CM16="Putenaufzuchtmist",CM16="Putenmist",CM16="Mist aus der Laufvogelhaltung"),"Geflügelmist",IF(OR(CM16="Junghennenaufzuchtkot",CM16="Legehennenkot",CM16="Hähnchenmast Elterntierkot"),"Geflügelkot",IF(CM16="Kaninchenmist","Mist",CM16)))))," Fehler in") ->  | AB16: =IFERROR(IF(V16="","",IF(AND(CR16=0,DI16+DJ16=0),"",CR16+BH16)),"dieser") ->  | AC16: =IFERROR(IF(AB16="","",IF(CM16="Festmist von Huf- und Klauentieren","m³"&" Jauche","m³ "&CM16)),"Zeile!") ->  | AD16: =IFERROR(IF(BU16=0,"",BU16),"") ->  | AF16: =IF(AD16="","","kg") ->  | AG16: =IFERROR(IF(V16="","",ROUND(VLOOKUP('170 N'!$E16,'Dd6'!$H$2:$M$66,6,FALSE)*V16,0)),"") ->  | AI16: =IF(AG16="","","kg") ->  | AJ16: =IFERROR(IF(V16="","",VLOOKUP('170 N'!$E16,'Dd6'!$H$2:$V$66,11,FALSE)*V16),"") ->  | AN16: =IF(V16="","",IF(AND(CR16=0,DI16+DJ16=0),"",CR16/365*CL16+BH16)) ->  | AO16: =IF(W16="","",W16/365*CL16) ->  | AP16: =IF($AB16="","",IF(P16="Mist und Jauche",BW16/365*CL16/100*VLOOKUP(BQ16,Stammdaten!$BF$1:$BP$353,5,FALSE),IF(P16="Mist mit 1/2 Jauchebindung",BW16/365*CL16/100*VLOOKUP(BQ16,Stammdaten!$BF$1:$BP$353,5,FALSE)/2,IF(P16="Mist mit Jauchebindung",0,BW16/365*CL16)))) ->  | AQ16: =IF($Y16="","",IF(P16="Mist und Jauche",BW16/365*CL16/100*(100-VLOOKUP($BQ16,Stammdaten!$BF$1:$BP$353,5,FALSE)),IF(P16="Mist mit 1/2 Jauchebindung",BW16/365*CL16/100*(100-VLOOKUP($BQ16,Stammdaten!$BF$1:$BP$353,5,FALSE))+BW16/365*CL16/100*(VLOOKUP($BQ16,Stammdaten!$BF$1:$BP$353,5,FALSE))/2,IF(P16="Mist mit Jauchebindung",BW16/365*CL16/100*(100-VLOOKUP($BQ16,Stammdaten!$BF$1:$BP$353,5,FALSE))+BW16/365*CL16/100*(VLOOKUP($BQ16,Stammdaten!$BF$1:$BP$353,5,FALSE)),BW16/365*CL16)))) ->  | AR16: =IF($AB16="","",IF(P16="Mist und Jauche",AG16/365*CL16/100*VLOOKUP(BQ16,Stammdaten!$BF$1:$BP$353,5,FALSE),IF(P16="Mist mit 1/2 Jauchebindung",AG16/365*CL16/100*VLOOKUP(BQ16,Stammdaten!$BF$1:$BP$353,5,FALSE)/2,IF(P16="Mist mit Jauchebindung",0,AG16/365*CL16)))) ->  | AS16: =IF($Y16="","",IF(P16="Mist und Jauche",AG16/365*CL16/100*(100-VLOOKUP($BQ16,Stammdaten!$BF$1:$BP$353,5,FALSE)),IF(P16="Mist mit 1/2 Jauchebindung",AG16/365*CL16/100*(100-VLOOKUP($BQ16,Stammdaten!$BF$1:$BP$353,5,FALSE))+AG16/365*CL16/100*(VLOOKUP($BQ16,Stammdaten!$BF$1:$BP$353,5,FALSE))/2,IF(P16="Mist mit Jauchebindung",AG16/365*CL16/100*(100-VLOOKUP($BQ16,Stammdaten!$BF$1:$BP$353,5,FALSE))+AG16/365*CL16/100*(VLOOKUP($BQ16,Stammdaten!$BF$1:$BP$353,5,FALSE)),AG16/365*CL16)))) ->  | AT16: =IF(V16="","",VLOOKUP($BQ16,Stammdaten!$BF$1:$BP$354,8,FALSE)) ->  | AU16: =IF(AP16="","",AT16*AP16) ->  | AV16: =IF(V16="","",VLOOKUP(BQ16,Stammdaten!$BF$1:$BP$354,9,FALSE)) ->  | AW16: =IF(AP16="","",AV16*AP16) ->  | AX16: =IF(V16="","",VLOOKUP($BQ16,Stammdaten!$BF$1:$BP$354,10,FALSE)) ->  | AY16: =IF(AQ16="","",AX16*AQ16) ->  | AZ16: =IF(V16="","",VLOOKUP($BQ16,Stammdaten!$BF$1:$BP$354,11,FALSE)) ->  | BA16: =IF(AQ16="","",AZ16*AQ16) ->  | BB16: =IF(V16="","",IF(AND(CR16=0,DI16+DJ16=0),"",CR16/365*(365-CL16))) ->  | BC16: =IF(W16="","",W16/365*(365-CL16)) ->  | BD16: =IF($AB16="","",IF(P16="Mist und Jauche",BX16/365*(365-CL16)/100*VLOOKUP(BQ16,Stammdaten!$BF$1:$BP$353,5,FALSE),IF(P16="Mist mit 1/2 Jauchebindung",BX16/365*(365-CL16)/100*VLOOKUP(BQ16,Stammdaten!$BF$1:$BP$353,5,FALSE)/2,IF(P16="Mist mit Jauchebindung",0,BX16/365*(365-CL16))))) ->  | BE16: =IF($Y16="","",IF(P16="Mist und Jauche",BX16/365*(365-CL16)/100*(100-VLOOKUP($BQ16,Stammdaten!$BF$1:$BP$353,5,FALSE)),IF(P16="Mist mit 1/2 Jauchebindung",BX16/365*(365-CL16)/100*(100-VLOOKUP($BQ16,Stammdaten!$BF$1:$BP$353,5,FALSE))+BX16/365*(365-CL16)/100*(VLOOKUP($BQ16,Stammdaten!$BF$1:$BP$353,5,FALSE))/2,IF(P16="Mist mit Jauchebindung",BX16/365*(365-CL16)/100*(100-VLOOKUP($BQ16,Stammdaten!$BF$1:$BP$353,5,FALSE))+BX16/365*(365-CL16)/100*(VLOOKUP($BQ16,Stammdaten!$BF$1:$BP$353,5,FALSE)),BX16/365*(365-CL16))))) ->  | BF16: =IF($AB16="","",IF(P16="Mist und Jauche",AG16/365*(365-CL16)/100*VLOOKUP(BQ16,Stammdaten!$BF$1:$BP$353,5,FALSE),IF(P16="Mist mit 1/2 Jauchebindung",AG16/365*(365-CL16)/100*VLOOKUP(BQ16,Stammdaten!$BF$1:$BP$353,5,FALSE)/2,IF(P16="Mist mit Jauchebindung",0,AG16/365*(365-CL16))))) ->  | BG16: =IF($Y16="","",IF(P16="Mist und Jauche",AG16/365*(365-CL16)/100*(100-VLOOKUP($BQ16,Stammdaten!$BF$1:$BP$353,5,FALSE)),IF(P16="Mist mit 1/2 Jauchebindung",AG16/365*(365-CL16)/100*(100-VLOOKUP($BQ16,Stammdaten!$BF$1:$BP$353,5,FALSE))+AG16/365*(365-CL16)/100*(VLOOKUP($BQ16,Stammdaten!$BF$1:$BP$353,5,FALSE))/2,IF(P16="Mist mit Jauchebindung",AG16/365*(365-CL16)/100*(100-VLOOKUP($BQ16,Stammdaten!$BF$1:$BP$353,5,FALSE))+AG16/365*(365-CL16)/100*(VLOOKUP($BQ16,Stammdaten!$BF$1:$BP$353,5,FALSE)),AG16/365*(365-CL16))))) ->  | BH16: =IF(V16="","",IF(DI16=1,8*V16,IF(DJ16=1,2.4*V16,0))) ->  | BI16: =IF(V16="","",VLOOKUP($BQ16,Stammdaten!$BF$1:$BR$354,12,FALSE)) ->  | BJ16: =IF(OR(BI16="",AP16=""),"",AP16*BI16) ->  | BK16: =IF(V16="","",VLOOKUP($BQ16,Stammdaten!$BF$1:$BR$354,13,FALSE)) ->  | BL16: =IF(OR(BK16="",AQ16=""),"",AQ16*BK16) ->  | BM16: =IF(OR(BI16="",BD16=""),"",BD16*BI16) ->  | BN16: =IF(OR(BK16="",BE16=""),"",BE16*BK16) ->  | BO16: =IFERROR(IF(CM16<>"Festmist von Huf- und Klauentieren",1,""),"") ->  | BQ16: =IF(V16="","",VLOOKUP('170 N'!$E16,'Dd6'!$H$2:$X$66,15,FALSE)) ->  | BR16: =IF(V16="","",VLOOKUP('170 N'!$E16,'Dd6'!$H$2:$M$66,5,FALSE)*V16) ->  | BS16: =IFERROR(IF(OR(V16="",BZ16="ja"),"",CU16/365*CL16),"") ->  | BT16: =IF(BS16="","","t") ->  | BU16: =BW16/365*CL16+BX16/365*(365-CL16) -> 0 | BW16: =IF(V16="",0,(VLOOKUP('170 N'!$E16,'Dd6'!$H$2:$M$66,5,FALSE)*V16)/100*(100-VLOOKUP('170 N'!$E16,'Dd6'!$H$2:$X$66,17,FALSE))) -> 0 | BX16: =IF(V16="",0,IF(OR(C16="Milchviehhaltung",C16="Rindermast"),(VLOOKUP('170 N'!$E16,'Dd6'!$H$2:$M$66,5,FALSE)*V16)/100*70,BW16)) -> 0 | BY16: =IF(CM16="Gülle",1,0) ->  | BZ16: =IF(P16="Gülle","ja",IF(AND(P16="",V16<>"",CB16<>1),"X","")) ->  | CA16: =IF(P16="Mist mit 1/2 Jauchebindung","1/2 Jauche-bindung",IF(P16="Mist mit Jauchebindung","Jauche-bindung","")) ->  | CB16: =IF(AND($C16<>"",'Dd6'!$D$3=""),1,"") ->  | CC16: =IF(AND($E16<>"",'Dd6'!$F$10=""),1,"") ->  | CD16: =IF(AND(C16="Geflügelmast",N16="N-/P-reduziert"),1,IF(AND($C16<>"",'Dd6'!$D$17=""),1,IF(AND(R16="",C16="Geflügelmast",VLOOKUP('170 N'!$E16,'Dd6'!$H$2:$X$66,16,FALSE)="N"),1,""))) ->  | CE16: =IF(R16="Stall- haltung",1,IF(CD16=1,1,IF(AND($C16<>"",'Dd6'!$D$17=""),1,""))) ->  | CF16: =IF(AND(OR(R16="halb- tags",R16="ganz- tags"),T16=""),1,"") ->  | CG16: =IF(OR(R16="ganz- tags",R16="halb- tags"),1,"") ->  | CH16: =IF(OR(R16="Stall- haltung",AND(V16<>"",R16="")),1,"") ->  | CJ16: =IF(C16="","",IF(AND(C16<>"",'Dd6'!$D$4="",C16<>"Schweinemast",C16<>"Jungrindermast"),"Mist/Tr.Kot/Jauche",IF(AND(OR(C16="Schweinemast",C16="Jungrindermast"),P16="",BZ16<>"X"),"Gülle",IF(BZ16="ja","Gülle",IF(BZ16="X","X","Mist/Tr.Kot/Jauche"))))) ->  | CK16: =IFERROR(IF(OR(CC16=1,AND(N16="",V16="")),VLOOKUP(C16,'Dd1'!$B$24:$D$36,2,FALSE),IF(AND(N16="",V16<>"",CC16<>1),"X",'170 N'!N16)),"") ->  | CL16: =IF(OR(R16="",R16="Stall- haltung",T16=""),365,365-T16+T16*IF(R16="halb- tags",0.5,0)) -> 365 | CM16: =VLOOKUP('170 N'!$E16,'Dd6'!$H$2:$M$66,4,FALSE) ->  | CN16: =IF(V16="","",VLOOKUP('170 N'!$E16,'Dd6'!$H$2:$M$66,3,FALSE)) ->  | CO16: =IF(V16="","",IF(OR(CA16="1/2 Jauche-bindung",CA16="Jauche-bindung"),0.9,VLOOKUP('170 N'!$E16,'Dd6'!$H$2:$V$66,14,FALSE))) ->  | CP16: =IF(V16="","",ROUND(IF(CN16="m³","",IF(OR(CA16="",CA16="Standard-verfahren"),IF(CW16<>0,CW16,CV16),IF(CA16="1/2 Jauche-bindung",CZ16,IF(CA16="Jauche-bindung",DC16,"")))),0)) ->  | CQ16: =IF(CP16="","",CP16/CO16) ->  | CR16: =IF(CN16="m³",CV16,IF(CN16="t",IF(CM16<>"Festmist von Huf- und Klauentieren",0,IF(CM16="Festmist von Huf- und Klauentieren",IF(OR(CA16="",CA16="Standard-verfahren"),CX16,IF(CA16="1/2 Jauche-bindung",DA16,0)))))) -> FALSE | CS16: =IF(V16="","",IF(OR($CA16="",CA16="Standard-verfahren"),CW16,IF($CA16="1/2 Jauche-bindung",CZ16,IF($CA16="Jauche-bindung",DC16,"")))) ->  | CT16: =IF(V16="","",IF(OR($CA16="",CA16="Standard-verfahren"),CX16,IF($CA16="1/2 Jauche-bindung",DA16,IF($CA16="Jauche-bindung",0,"")))) ->  | CU16: =IF(V16="","",IF(OR($CA16="",CA16="Standard-verfahren"),CY16,IF($CA16="1/2 Jauche-bindung",DB16,IF($CA16="Jauche-bindung",DD16,"")))) ->  | CV16: =IF(V16="","",VLOOKUP('170 N'!$E16,'Dd6'!$H$2:$M$66,2,FALSE)*V16) ->  | CW16: =VLOOKUP('170 N'!$E16,'Dd6'!$H$2:$S$66,7,FALSE)*V16 ->  | CX16: =VLOOKUP('170 N'!$E16,'Dd6'!$H$2:$S$66,8,FALSE)*V16 ->  | CY16: =VLOOKUP('170 N'!$E16,'Dd6'!$H$2:$T$66,10,FALSE)*V16/1000 ->  | CZ16: =CW16+DA16+DB16-CY16 ->  | DA16: =CX16/2 ->  | DB16: =VLOOKUP('170 N'!$E16,'Dd6'!$H$2:$T$66,12,FALSE)*365*V16/1000 ->  | DC16: =CW16+DD16+CX16-CY16 ->  | DD16: =VLOOKUP('170 N'!$E16,'Dd6'!$H$2:$T$66,13,FALSE)*V16*365/1000 ->  | DE16: =IF(ISERROR(FIND("Milchkuh",'170 N'!E16)>0),0,IF(N16="Ackerfutterbau",1,0)) -> 0 | DF16: =IF(ISERROR(FIND("Milchkuh",'170 N'!E16)>0),0,IF(N16="Grünland",1,0)) -> 0 | DG16: 0 | DH16: =IF(ISERROR(FIND("Milchkuh",'170 N'!E16)>0),0,1) -> 0 | DI16: =IF(ISERROR(FIND("Laufstall",'170 N'!E16)>0),0,IF(DH16=1,1,"")) -> 0 | DJ16: =IF(ISERROR(FIND("Anbindehaltung",'170 N'!E16)>0),0,IF(DH16=1,1,"")) -> 0 | DL16: =365-CL16 -> 0 | DM16: =DL16*V16 -> 0 | DO16: =IF(DR16="",0,1) -> 0 | DP16: =DO16+DP14 -> 0 | DQ16: =IF(DP16=DP14,"",DP16) ->  | DR16: =IF(DL16>0,E16,"") ->  | DS16: =IF(DL16>0,V16,0) -> 0 | DT16: =IF(DL16>0,T16,0) -> 0 | DU16: =IF(DO16=1,R16,"") ->  | DV16: =DS16*DT16 -> 0
W17: =IFERROR(IF(W16="","",CQ16),"") ->  | X17: =IF(W17="","","m³") ->  | DE17: =IF(ISERROR(FIND("Milchkuh",'170 N'!E17)>0),0,IF(N17="Ackerfutterbau",1,0)) -> 0 | DF17: =IF(ISERROR(FIND("Milchkuh",'170 N'!E17)>0),0,IF(N17="Grünland",1,0)) -> 0 | DG17: 0 | DH17: =IF(ISERROR(FIND("Milchkuh",'170 N'!E17)>0),0,1) -> 0 | DI17: =IF(ISERROR(FIND("Laufstall",'170 N'!E17)>0),0,IF(DH17=1,1,"")) -> 0 | DJ17: =IF(ISERROR(FIND("Anbindehaltung",'170 N'!E17)>0),0,IF(DH17=1,1,"")) -> 0
B18: 7 | W18: =IFERROR(IF(V18="","",IF(CN18<>"t","",CP18))," ") ->  | X18: =IFERROR(IF(CN18="t","t",""),"") ->  | Y18: =IFERROR(IF(W18="","",IF(CM18="Festmist von Huf- und Klauentieren","Mist",IF(OR(CM18="Puten Elterntiermist",CM18="Puten Elterntieraufzuchtmist",CM18="Flugentenmist",CM18="Pekingentenmist",CM18="Gänse Elterntiermist",CM18="Gänse Mittelmastmist",CM18="Gänse Spätmastmist",CM18="Gänse Schnellmastmist",CM18="Hähnchenmastmist",CM18="Putenaufzuchtmist",CM18="Putenmist",CM18="Mist aus der Laufvogelhaltung"),"Geflügelmist",IF(OR(CM18="Junghennenaufzuchtkot",CM18="Legehennenkot",CM18="Hähnchenmast Elterntierkot"),"Geflügelkot",IF(CM18="Kaninchenmist","Mist",CM18)))))," Fehler in") ->  | AB18: =IFERROR(IF(V18="","",IF(AND(CR18=0,DI18+DJ18=0),"",CR18+BH18)),"dieser") ->  | AC18: =IFERROR(IF(AB18="","",IF(CM18="Festmist von Huf- und Klauentieren","m³"&" Jauche","m³ "&CM18)),"Zeile!") ->  | AD18: =IFERROR(IF(BU18=0,"",BU18),"") ->  | AF18: =IF(AD18="","","kg") ->  | AG18: =IFERROR(IF(V18="","",ROUND(VLOOKUP('170 N'!$E18,'Dd7'!$H$2:$M$66,6,FALSE)*V18,0)),"") ->  | AI18: =IF(AG18="","","kg") ->  | AJ18: =IFERROR(IF(V18="","",VLOOKUP('170 N'!$E18,'Dd7'!$H$2:$V$66,11,FALSE)*V18),"") ->  | AN18: =IF(V18="","",IF(AND(CR18=0,DI18+DJ18=0),"",CR18/365*CL18+BH18)) ->  | AO18: =IF(W18="","",W18/365*CL18) ->  | AP18: =IF($AB18="","",IF(P18="Mist und Jauche",BW18/365*CL18/100*VLOOKUP(BQ18,Stammdaten!$BF$1:$BP$353,5,FALSE),IF(P18="Mist mit 1/2 Jauchebindung",BW18/365*CL18/100*VLOOKUP(BQ18,Stammdaten!$BF$1:$BP$353,5,FALSE)/2,IF(P18="Mist mit Jauchebindung",0,BW18/365*CL18)))) ->  | AQ18: =IF($Y18="","",IF(P18="Mist und Jauche",BW18/365*CL18/100*(100-VLOOKUP($BQ18,Stammdaten!$BF$1:$BP$353,5,FALSE)),IF(P18="Mist mit 1/2 Jauchebindung",BW18/365*CL18/100*(100-VLOOKUP($BQ18,Stammdaten!$BF$1:$BP$353,5,FALSE))+BW18/365*CL18/100*(VLOOKUP($BQ18,Stammdaten!$BF$1:$BP$353,5,FALSE))/2,IF(P18="Mist mit Jauchebindung",BW18/365*CL18/100*(100-VLOOKUP($BQ18,Stammdaten!$BF$1:$BP$353,5,FALSE))+BW18/365*CL18/100*(VLOOKUP($BQ18,Stammdaten!$BF$1:$BP$353,5,FALSE)),BW18/365*CL18)))) ->  | AR18: =IF($AB18="","",IF(P18="Mist und Jauche",AG18/365*CL18/100*VLOOKUP(BQ18,Stammdaten!$BF$1:$BP$353,5,FALSE),IF(P18="Mist mit 1/2 Jauchebindung",AG18/365*CL18/100*VLOOKUP(BQ18,Stammdaten!$BF$1:$BP$353,5,FALSE)/2,IF(P18="Mist mit Jauchebindung",0,AG18/365*CL18)))) ->  | AS18: =IF($Y18="","",IF(P18="Mist und Jauche",AG18/365*CL18/100*(100-VLOOKUP($BQ18,Stammdaten!$BF$1:$BP$353,5,FALSE)),IF(P18="Mist mit 1/2 Jauchebindung",AG18/365*CL18/100*(100-VLOOKUP($BQ18,Stammdaten!$BF$1:$BP$353,5,FALSE))+AG18/365*CL18/100*(VLOOKUP($BQ18,Stammdaten!$BF$1:$BP$353,5,FALSE))/2,IF(P18="Mist mit Jauchebindung",AG18/365*CL18/100*(100-VLOOKUP($BQ18,Stammdaten!$BF$1:$BP$353,5,FALSE))+AG18/365*CL18/100*(VLOOKUP($BQ18,Stammdaten!$BF$1:$BP$353,5,FALSE)),AG18/365*CL18)))) ->  | AT18: =IF(V18="","",VLOOKUP($BQ18,Stammdaten!$BF$1:$BP$354,8,FALSE)) ->  | AU18: =IF(AP18="","",AT18*AP18) ->  | AV18: =IF(V18="","",VLOOKUP(BQ18,Stammdaten!$BF$1:$BP$354,9,FALSE)) ->  | AW18: =IF(AP18="","",AV18*AP18) ->  | AX18: =IF(V18="","",VLOOKUP($BQ18,Stammdaten!$BF$1:$BP$354,10,FALSE)) ->  | AY18: =IF(AQ18="","",AX18*AQ18) ->  | AZ18: =IF(V18="","",VLOOKUP($BQ18,Stammdaten!$BF$1:$BP$354,11,FALSE)) ->  | BA18: =IF(AQ18="","",AZ18*AQ18) ->  | BB18: =IF(V18="","",IF(AND(CR18=0,DI18+DJ18=0),"",CR18/365*(365-CL18))) ->  | BC18: =IF(W18="","",W18/365*(365-CL18)) ->  | BD18: =IF($AB18="","",IF(P18="Mist und Jauche",BX18/365*(365-CL18)/100*VLOOKUP(BQ18,Stammdaten!$BF$1:$BP$353,5,FALSE),IF(P18="Mist mit 1/2 Jauchebindung",BX18/365*(365-CL18)/100*VLOOKUP(BQ18,Stammdaten!$BF$1:$BP$353,5,FALSE)/2,IF(P18="Mist mit Jauchebindung",0,BX18/365*(365-CL18))))) ->  | BE18: =IF($Y18="","",IF(P18="Mist und Jauche",BX18/365*(365-CL18)/100*(100-VLOOKUP($BQ18,Stammdaten!$BF$1:$BP$353,5,FALSE)),IF(P18="Mist mit 1/2 Jauchebindung",BX18/365*(365-CL18)/100*(100-VLOOKUP($BQ18,Stammdaten!$BF$1:$BP$353,5,FALSE))+BX18/365*(365-CL18)/100*(VLOOKUP($BQ18,Stammdaten!$BF$1:$BP$353,5,FALSE))/2,IF(P18="Mist mit Jauchebindung",BX18/365*(365-CL18)/100*(100-VLOOKUP($BQ18,Stammdaten!$BF$1:$BP$353,5,FALSE))+BX18/365*(365-CL18)/100*(VLOOKUP($BQ18,Stammdaten!$BF$1:$BP$353,5,FALSE)),BX18/365*(365-CL18))))) ->  | BF18: =IF($AB18="","",IF(P18="Mist und Jauche",AG18/365*(365-CL18)/100*VLOOKUP(BQ18,Stammdaten!$BF$1:$BP$353,5,FALSE),IF(P18="Mist mit 1/2 Jauchebindung",AG18/365*(365-CL18)/100*VLOOKUP(BQ18,Stammdaten!$BF$1:$BP$353,5,FALSE)/2,IF(P18="Mist mit Jauchebindung",0,AG18/365*(365-CL18))))) ->  | BG18: =IF($Y18="","",IF(P18="Mist und Jauche",AG18/365*(365-CL18)/100*(100-VLOOKUP($BQ18,Stammdaten!$BF$1:$BP$353,5,FALSE)),IF(P18="Mist mit 1/2 Jauchebindung",AG18/365*(365-CL18)/100*(100-VLOOKUP($BQ18,Stammdaten!$BF$1:$BP$353,5,FALSE))+AG18/365*(365-CL18)/100*(VLOOKUP($BQ18,Stammdaten!$BF$1:$BP$353,5,FALSE))/2,IF(P18="Mist mit Jauchebindung",AG18/365*(365-CL18)/100*(100-VLOOKUP($BQ18,Stammdaten!$BF$1:$BP$353,5,FALSE))+AG18/365*(365-CL18)/100*(VLOOKUP($BQ18,Stammdaten!$BF$1:$BP$353,5,FALSE)),AG18/365*(365-CL18))))) ->  | BH18: =IF(V18="","",IF(DI18=1,8*V18,IF(DJ18=1,2.4*V18,0))) ->  | BI18: =IF(V18="","",VLOOKUP($BQ18,Stammdaten!$BF$1:$BR$354,12,FALSE)) ->  | BJ18: =IF(OR(BI18="",AP18=""),"",AP18*BI18) ->  | BK18: =IF(V18="","",VLOOKUP($BQ18,Stammdaten!$BF$1:$BR$354,13,FALSE)) ->  | BL18: =IF(OR(BK18="",AQ18=""),"",AQ18*BK18) ->  | BM18: =IF(OR(BI18="",BD18=""),"",BD18*BI18) ->  | BN18: =IF(OR(BK18="",BE18=""),"",BE18*BK18) ->  | BO18: =IFERROR(IF(CM18<>"Festmist von Huf- und Klauentieren",1,""),"") ->  | BQ18: =IF(V18="","",VLOOKUP('170 N'!$E18,'Dd7'!$H$2:$X$66,15,FALSE)) ->  | BR18: =IF(V18="","",VLOOKUP('170 N'!$E18,'Dd7'!$H$2:$M$66,5,FALSE)*V18) ->  | BS18: =IFERROR(IF(OR(V18="",BZ18="ja"),"",CU18/365*CL18),"") ->  | BT18: =IF(BS18="","","t") ->  | BU18: =BW18/365*CL18+BX18/365*(365-CL18) -> 0 | BW18: =IF(V18="",0,(VLOOKUP('170 N'!$E18,'Dd7'!$H$2:$M$66,5,FALSE)*V18)/100*(100-VLOOKUP('170 N'!$E18,'Dd7'!$H$2:$X$66,17,FALSE))) -> 0 | BX18: =IF(V18="",0,IF(OR(C18="Milchviehhaltung",C18="Rindermast"),(VLOOKUP('170 N'!$E18,'Dd7'!$H$2:$M$66,5,FALSE)*V18)/100*70,BW18)) -> 0 | BY18: =IF(CM18="Gülle",1,0) ->  | BZ18: =IF(P18="Gülle","ja",IF(AND(P18="",V18<>"",CB18<>1),"X","")) ->  | CA18: =IF(P18="Mist mit 1/2 Jauchebindung","1/2 Jauche-bindung",IF(P18="Mist mit Jauchebindung","Jauche-bindung","")) ->  | CB18: =IF(AND($C18<>"",'Dd7'!$D$3=""),1,"") ->  | CC18: =IF(AND($E18<>"",'Dd7'!$F$10=""),1,"") ->  | CD18: =IF(AND(C18="Geflügelmast",N18="N-/P-reduziert"),1,IF(AND($C18<>"",'Dd7'!$D$17=""),1,IF(AND(R18="",C18="Geflügelmast",VLOOKUP('170 N'!$E18,'Dd7'!$H$2:$X$66,16,FALSE)="N"),1,""))) ->  | CE18: =IF(R18="Stall- haltung",1,IF(CD18=1,1,IF(AND($C18<>"",'Dd7'!$D$17=""),1,""))) ->  | CF18: =IF(AND(OR(R18="halb- tags",R18="ganz- tags"),T18=""),1,"") ->  | CG18: =IF(OR(R18="ganz- tags",R18="halb- tags"),1,"") ->  | CH18: =IF(OR(R18="Stall- haltung",AND(V18<>"",R18="")),1,"") ->  | CJ18: =IF(C18="","",IF(AND(C18<>"",'Dd7'!$D$4="",C18<>"Schweinemast",C18<>"Jungrindermast"),"Mist/Tr.Kot/Jauche",IF(AND(OR(C18="Schweinemast",C18="Jungrindermast"),P18="",BZ18<>"X"),"Gülle",IF(BZ18="ja","Gülle",IF(BZ18="X","X","Mist/Tr.Kot/Jauche"))))) ->  | CK18: =IFERROR(IF(OR(CC18=1,AND(N18="",V18="")),VLOOKUP(C18,'Dd1'!$B$24:$D$36,2,FALSE),IF(AND(N18="",V18<>"",CC18<>1),"X",'170 N'!N18)),"") ->  | CL18: =IF(OR(R18="",R18="Stall- haltung",T18=""),365,365-T18+T18*IF(R18="halb- tags",0.5,0)) -> 365 | CM18: =VLOOKUP('170 N'!$E18,'Dd7'!$H$2:$M$66,4,FALSE) ->  | CN18: =IF(V18="","",VLOOKUP('170 N'!$E18,'Dd7'!$H$2:$M$66,3,FALSE)) ->  | CO18: =IF(V18="","",IF(OR(CA18="1/2 Jauche-bindung",CA18="Jauche-bindung"),0.9,VLOOKUP('170 N'!$E18,'Dd7'!$H$2:$V$66,14,FALSE))) ->  | CP18: =IF(V18="","",ROUND(IF(CN18="m³","",IF(OR(CA18="",CA18="Standard-verfahren"),IF(CW18<>0,CW18,CV18),IF(CA18="1/2 Jauche-bindung",CZ18,IF(CA18="Jauche-bindung",DC18,"")))),0)) ->  | CQ18: =IF(CP18="","",CP18/CO18) ->  | CR18: =IF(CN18="m³",CV18,IF(CN18="t",IF(CM18<>"Festmist von Huf- und Klauentieren",0,IF(CM18="Festmist von Huf- und Klauentieren",IF(OR(CA18="",CA18="Standard-verfahren"),CX18,IF(CA18="1/2 Jauche-bindung",DA18,0)))))) -> FALSE | CS18: =IF(V18="","",IF(OR($CA18="",CA18="Standard-verfahren"),CW18,IF($CA18="1/2 Jauche-bindung",CZ18,IF($CA18="Jauche-bindung",DC18,"")))) ->  | CT18: =IF(V18="","",IF(OR($CA18="",CA18="Standard-verfahren"),CX18,IF($CA18="1/2 Jauche-bindung",DA18,IF($CA18="Jauche-bindung",0,"")))) ->  | CU18: =IF(V18="","",IF(OR($CA18="",CA18="Standard-verfahren"),CY18,IF($CA18="1/2 Jauche-bindung",DB18,IF($CA18="Jauche-bindung",DD18,"")))) ->  | CV18: =IF(V18="","",VLOOKUP('170 N'!$E18,'Dd7'!$H$2:$M$66,2,FALSE)*V18) ->  | CW18: =VLOOKUP('170 N'!$E18,'Dd7'!$H$2:$S$66,7,FALSE)*V18 ->  | CX18: =VLOOKUP('170 N'!$E18,'Dd7'!$H$2:$S$66,8,FALSE)*V18 ->  | CY18: =VLOOKUP('170 N'!$E18,'Dd7'!$H$2:$T$66,10,FALSE)*V18/1000 ->  | CZ18: =CW18+DA18+DB18-CY18 ->  | DA18: =CX18/2 ->  | DB18: =VLOOKUP('170 N'!$E18,'Dd7'!$H$2:$T$66,12,FALSE)*365*V18/1000 ->  | DC18: =CW18+DD18+CX18-CY18 ->  | DD18: =VLOOKUP('170 N'!$E18,'Dd7'!$H$2:$T$66,13,FALSE)*V18*365/1000 ->  | DE18: =IF(ISERROR(FIND("Milchkuh",'170 N'!E18)>0),0,IF(N18="Ackerfutterbau",1,0)) -> 0 | DF18: =IF(ISERROR(FIND("Milchkuh",'170 N'!E18)>0),0,IF(N18="Grünland",1,0)) -> 0 | DG18: 0 | DH18: =IF(ISERROR(FIND("Milchkuh",'170 N'!E18)>0),0,1) -> 0 | DI18: =IF(ISERROR(FIND("Laufstall",'170 N'!E18)>0),0,IF(DH18=1,1,"")) -> 0 | DJ18: =IF(ISERROR(FIND("Anbindehaltung",'170 N'!E18)>0),0,IF(DH18=1,1,"")) -> 0 | DL18: =365-CL18 -> 0 | DM18: =DL18*V18 -> 0 | DO18: =IF(DR18="",0,1) -> 0 | DP18: =DO18+DP16 -> 0 | DQ18: =IF(DP18=DP16,"",DP18) ->  | DR18: =IF(DL18>0,E18,"") ->  | DS18: =IF(DL18>0,V18,0) -> 0 | DT18: =IF(DL18>0,T18,0) -> 0 | DU18: =IF(DO18=1,R18,"") ->  | DV18: =DS18*DT18 -> 0
W19: =IFERROR(IF(W18="","",CQ18),"") ->  | X19: =IF(W19="","","m³") ->  | DE19: =IF(ISERROR(FIND("Milchkuh",'170 N'!E19)>0),0,IF(N19="Ackerfutterbau",1,0)) -> 0 | DF19: =IF(ISERROR(FIND("Milchkuh",'170 N'!E19)>0),0,IF(N19="Grünland",1,0)) -> 0 | DG19: 0 | DH19: =IF(ISERROR(FIND("Milchkuh",'170 N'!E19)>0),0,1) -> 0 | DI19: =IF(ISERROR(FIND("Laufstall",'170 N'!E19)>0),0,IF(DH19=1,1,"")) -> 0 | DJ19: =IF(ISERROR(FIND("Anbindehaltung",'170 N'!E19)>0),0,IF(DH19=1,1,"")) -> 0
B20: 8 | W20: =IFERROR(IF(V20="","",IF(CN20<>"t","",CP20))," ") ->  | X20: =IFERROR(IF(CN20="t","t",""),"") ->  | Y20: =IFERROR(IF(W20="","",IF(CM20="Festmist von Huf- und Klauentieren","Mist",IF(OR(CM20="Puten Elterntiermist",CM20="Puten Elterntieraufzuchtmist",CM20="Flugentenmist",CM20="Pekingentenmist",CM20="Gänse Elterntiermist",CM20="Gänse Mittelmastmist",CM20="Gänse Spätmastmist",CM20="Gänse Schnellmastmist",CM20="Hähnchenmastmist",CM20="Putenaufzuchtmist",CM20="Putenmist",CM20="Mist aus der Laufvogelhaltung"),"Geflügelmist",IF(OR(CM20="Junghennenaufzuchtkot",CM20="Legehennenkot",CM20="Hähnchenmast Elterntierkot"),"Geflügelkot",IF(CM20="Kaninchenmist","Mist",CM20)))))," Fehler in") ->  | AB20: =IFERROR(IF(V20="","",IF(AND(CR20=0,DI20+DJ20=0),"",CR20+BH20)),"dieser") ->  | AC20: =IFERROR(IF(AB20="","",IF(CM20="Festmist von Huf- und Klauentieren","m³"&" Jauche","m³ "&CM20)),"Zeile!") ->  | AD20: =IFERROR(IF(BU20=0,"",BU20),"") ->  | AF20: =IF(AD20="","","kg") ->  | AG20: =IFERROR(IF(V20="","",ROUND(VLOOKUP('170 N'!$E20,'Dd8'!$H$2:$M$66,6,FALSE)*V20,0)),"") ->  | AI20: =IF(AG20="","","kg") ->  | AJ20: =IFERROR(IF(V20="","",VLOOKUP('170 N'!$E20,'Dd8'!$H$2:$V$66,11,FALSE)*V20),"") ->  | AN20: =IF(V20="","",IF(AND(CR20=0,DI20+DJ20=0),"",CR20/365*CL20+BH20)) ->  | AO20: =IF(W20="","",W20/365*CL20) ->  | AP20: =IF($AB20="","",IF(P20="Mist und Jauche",BW20/365*CL20/100*VLOOKUP(BQ20,Stammdaten!$BF$1:$BP$353,5,FALSE),IF(P20="Mist mit 1/2 Jauchebindung",BW20/365*CL20/100*VLOOKUP(BQ20,Stammdaten!$BF$1:$BP$353,5,FALSE)/2,IF(P20="Mist mit Jauchebindung",0,BW20/365*CL20)))) ->  | AQ20: =IF($Y20="","",IF(P20="Mist und Jauche",BW20/365*CL20/100*(100-VLOOKUP($BQ20,Stammdaten!$BF$1:$BP$353,5,FALSE)),IF(P20="Mist mit 1/2 Jauchebindung",BW20/365*CL20/100*(100-VLOOKUP($BQ20,Stammdaten!$BF$1:$BP$353,5,FALSE))+BW20/365*CL20/100*(VLOOKUP($BQ20,Stammdaten!$BF$1:$BP$353,5,FALSE))/2,IF(P20="Mist mit Jauchebindung",BW20/365*CL20/100*(100-VLOOKUP($BQ20,Stammdaten!$BF$1:$BP$353,5,FALSE))+BW20/365*CL20/100*(VLOOKUP($BQ20,Stammdaten!$BF$1:$BP$353,5,FALSE)),BW20/365*CL20)))) ->  | AR20: =IF($AB20="","",IF(P20="Mist und Jauche",AG20/365*CL20/100*VLOOKUP(BQ20,Stammdaten!$BF$1:$BP$353,5,FALSE),IF(P20="Mist mit 1/2 Jauchebindung",AG20/365*CL20/100*VLOOKUP(BQ20,Stammdaten!$BF$1:$BP$353,5,FALSE)/2,IF(P20="Mist mit Jauchebindung",0,AG20/365*CL20)))) ->  | AS20: =IF($Y20="","",IF(P20="Mist und Jauche",AG20/365*CL20/100*(100-VLOOKUP($BQ20,Stammdaten!$BF$1:$BP$353,5,FALSE)),IF(P20="Mist mit 1/2 Jauchebindung",AG20/365*CL20/100*(100-VLOOKUP($BQ20,Stammdaten!$BF$1:$BP$353,5,FALSE))+AG20/365*CL20/100*(VLOOKUP($BQ20,Stammdaten!$BF$1:$BP$353,5,FALSE))/2,IF(P20="Mist mit Jauchebindung",AG20/365*CL20/100*(100-VLOOKUP($BQ20,Stammdaten!$BF$1:$BP$353,5,FALSE))+AG20/365*CL20/100*(VLOOKUP($BQ20,Stammdaten!$BF$1:$BP$353,5,FALSE)),AG20/365*CL20)))) ->  | AT20: =IF(V20="","",VLOOKUP($BQ20,Stammdaten!$BF$1:$BP$354,8,FALSE)) ->  | AU20: =IF(AP20="","",AT20*AP20) ->  | AV20: =IF(V20="","",VLOOKUP(BQ20,Stammdaten!$BF$1:$BP$354,9,FALSE)) ->  | AW20: =IF(AP20="","",AV20*AP20) ->  | AX20: =IF(V20="","",VLOOKUP($BQ20,Stammdaten!$BF$1:$BP$354,10,FALSE)) ->  | AY20: =IF(AQ20="","",AX20*AQ20) ->  | AZ20: =IF(V20="","",VLOOKUP($BQ20,Stammdaten!$BF$1:$BP$354,11,FALSE)) ->  | BA20: =IF(AQ20="","",AZ20*AQ20) ->  | BB20: =IF(V20="","",IF(AND(CR20=0,DI20+DJ20=0),"",CR20/365*(365-CL20))) ->  | BC20: =IF(W20="","",W20/365*(365-CL20)) ->  | BD20: =IF($AB20="","",IF(P20="Mist und Jauche",BX20/365*(365-CL20)/100*VLOOKUP(BQ20,Stammdaten!$BF$1:$BP$353,5,FALSE),IF(P20="Mist mit 1/2 Jauchebindung",BX20/365*(365-CL20)/100*VLOOKUP(BQ20,Stammdaten!$BF$1:$BP$353,5,FALSE)/2,IF(P20="Mist mit Jauchebindung",0,BX20/365*(365-CL20))))) ->  | BE20: =IF($Y20="","",IF(P20="Mist und Jauche",BX20/365*(365-CL20)/100*(100-VLOOKUP($BQ20,Stammdaten!$BF$1:$BP$353,5,FALSE)),IF(P20="Mist mit 1/2 Jauchebindung",BX20/365*(365-CL20)/100*(100-VLOOKUP($BQ20,Stammdaten!$BF$1:$BP$353,5,FALSE))+BX20/365*(365-CL20)/100*(VLOOKUP($BQ20,Stammdaten!$BF$1:$BP$353,5,FALSE))/2,IF(P20="Mist mit Jauchebindung",BX20/365*(365-CL20)/100*(100-VLOOKUP($BQ20,Stammdaten!$BF$1:$BP$353,5,FALSE))+BX20/365*(365-CL20)/100*(VLOOKUP($BQ20,Stammdaten!$BF$1:$BP$353,5,FALSE)),BX20/365*(365-CL20))))) ->  | BF20: =IF($AB20="","",IF(P20="Mist und Jauche",AG20/365*(365-CL20)/100*VLOOKUP(BQ20,Stammdaten!$BF$1:$BP$353,5,FALSE),IF(P20="Mist mit 1/2 Jauchebindung",AG20/365*(365-CL20)/100*VLOOKUP(BQ20,Stammdaten!$BF$1:$BP$353,5,FALSE)/2,IF(P20="Mist mit Jauchebindung",0,AG20/365*(365-CL20))))) ->  | BG20: =IF($Y20="","",IF(P20="Mist und Jauche",AG20/365*(365-CL20)/100*(100-VLOOKUP($BQ20,Stammdaten!$BF$1:$BP$353,5,FALSE)),IF(P20="Mist mit 1/2 Jauchebindung",AG20/365*(365-CL20)/100*(100-VLOOKUP($BQ20,Stammdaten!$BF$1:$BP$353,5,FALSE))+AG20/365*(365-CL20)/100*(VLOOKUP($BQ20,Stammdaten!$BF$1:$BP$353,5,FALSE))/2,IF(P20="Mist mit Jauchebindung",AG20/365*(365-CL20)/100*(100-VLOOKUP($BQ20,Stammdaten!$BF$1:$BP$353,5,FALSE))+AG20/365*(365-CL20)/100*(VLOOKUP($BQ20,Stammdaten!$BF$1:$BP$353,5,FALSE)),AG20/365*(365-CL20))))) ->  | BH20: =IF(V20="","",IF(DI20=1,8*V20,IF(DJ20=1,2.4*V20,0))) ->  | BI20: =IF(V20="","",VLOOKUP($BQ20,Stammdaten!$BF$1:$BR$354,12,FALSE)) ->  | BJ20: =IF(OR(BI20="",AP20=""),"",AP20*BI20) ->  | BK20: =IF(V20="","",VLOOKUP($BQ20,Stammdaten!$BF$1:$BR$354,13,FALSE)) ->  | BL20: =IF(OR(BK20="",AQ20=""),"",AQ20*BK20) ->  | BM20: =IF(OR(BI20="",BD20=""),"",BD20*BI20) ->  | BN20: =IF(OR(BK20="",BE20=""),"",BE20*BK20) ->  | BO20: =IFERROR(IF(CM20<>"Festmist von Huf- und Klauentieren",1,""),"") ->  | BQ20: =IF(V20="","",VLOOKUP('170 N'!$E20,'Dd8'!$H$2:$X$66,15,FALSE)) ->  | BR20: =IF(V20="","",VLOOKUP('170 N'!$E20,'Dd8'!$H$2:$M$66,5,FALSE)*V20) ->  | BS20: =IFERROR(IF(OR(V20="",BZ20="ja"),"",CU20/365*CL20),"") ->  | BT20: =IF(BS20="","","t") ->  | BU20: =BW20/365*CL20+BX20/365*(365-CL20) -> 0 | BW20: =IF(V20="",0,(VLOOKUP('170 N'!$E20,'Dd8'!$H$2:$M$66,5,FALSE)*V20)/100*(100-VLOOKUP('170 N'!$E20,'Dd8'!$H$2:$X$66,17,FALSE))) -> 0 | BX20: =IF(V20="",0,IF(OR(C20="Milchviehhaltung",C20="Rindermast"),(VLOOKUP('170 N'!$E20,'Dd8'!$H$2:$M$66,5,FALSE)*V20)/100*70,BW20)) -> 0 | BY20: =IF(CM20="Gülle",1,0) ->  | BZ20: =IF(P20="Gülle","ja",IF(AND(P20="",V20<>"",CB20<>1),"X","")) ->  | CA20: =IF(P20="Mist mit 1/2 Jauchebindung","1/2 Jauche-bindung",IF(P20="Mist mit Jauchebindung","Jauche-bindung","")) ->  | CB20: =IF(AND($C20<>"",'Dd8'!$D$3=""),1,"") ->  | CC20: =IF(AND($E20<>"",'Dd8'!$F$10=""),1,"") ->  | CD20: =IF(AND(C20="Geflügelmast",N20="N-/P-reduziert"),1,IF(AND($C20<>"",'Dd8'!$D$17=""),1,IF(AND(R20="",C20="Geflügelmast",VLOOKUP('170 N'!$E20,'Dd8'!$H$2:$X$66,16,FALSE)="N"),1,""))) ->  | CE20: =IF(R20="Stall- haltung",1,IF(CD20=1,1,IF(AND($C20<>"",'Dd8'!$D$17=""),1,""))) ->  | CF20: =IF(AND(OR(R20="halb- tags",R20="ganz- tags"),T20=""),1,"") ->  | CG20: =IF(OR(R20="ganz- tags",R20="halb- tags"),1,"") ->  | CH20: =IF(OR(R20="Stall- haltung",AND(V20<>"",R20="")),1,"") ->  | CJ20: =IF(C20="","",IF(AND(C20<>"",'Dd8'!$D$4="",C20<>"Schweinemast",C20<>"Jungrindermast"),"Mist/Tr.Kot/Jauche",IF(AND(OR(C20="Schweinemast",C20="Jungrindermast"),P20="",BZ20<>"X"),"Gülle",IF(BZ20="ja","Gülle",IF(BZ20="X","X","Mist/Tr.Kot/Jauche"))))) ->  | CK20: =IFERROR(IF(OR(CC20=1,AND(N20="",V20="")),VLOOKUP(C20,'Dd1'!$B$24:$D$36,2,FALSE),IF(AND(N20="",V20<>"",CC20<>1),"X",'170 N'!N20)),"") ->  | CL20: =IF(OR(R20="",R20="Stall- haltung",T20=""),365,365-T20+T20*IF(R20="halb- tags",0.5,0)) -> 365 | CM20: =VLOOKUP('170 N'!$E20,'Dd8'!$H$2:$M$66,4,FALSE) ->  | CN20: =IF(V20="","",VLOOKUP('170 N'!$E20,'Dd8'!$H$2:$M$66,3,FALSE)) ->  | CO20: =IF(V20="","",IF(OR(CA20="1/2 Jauche-bindung",CA20="Jauche-bindung"),0.9,VLOOKUP('170 N'!$E20,'Dd8'!$H$2:$V$66,14,FALSE))) ->  | CP20: =IF(V20="","",ROUND(IF(CN20="m³","",IF(OR(CA20="",CA20="Standard-verfahren"),IF(CW20<>0,CW20,CV20),IF(CA20="1/2 Jauche-bindung",CZ20,IF(CA20="Jauche-bindung",DC20,"")))),0)) ->  | CQ20: =IF(CP20="","",CP20/CO20) ->  | CR20: =IF(CN20="m³",CV20,IF(CN20="t",IF(CM20<>"Festmist von Huf- und Klauentieren",0,IF(CM20="Festmist von Huf- und Klauentieren",IF(OR(CA20="",CA20="Standard-verfahren"),CX20,IF(CA20="1/2 Jauche-bindung",DA20,0)))))) -> FALSE | CS20: =IF(V20="","",IF(OR($CA20="",CA20="Standard-verfahren"),CW20,IF($CA20="1/2 Jauche-bindung",CZ20,IF($CA20="Jauche-bindung",DC20,"")))) ->  | CT20: =IF(V20="","",IF(OR($CA20="",CA20="Standard-verfahren"),CX20,IF($CA20="1/2 Jauche-bindung",DA20,IF($CA20="Jauche-bindung",0,"")))) ->  | CU20: =IF(V20="","",IF(OR($CA20="",CA20="Standard-verfahren"),CY20,IF($CA20="1/2 Jauche-bindung",DB20,IF($CA20="Jauche-bindung",DD20,"")))) ->  | CV20: =IF(V20="","",VLOOKUP('170 N'!$E20,'Dd8'!$H$2:$M$66,2,FALSE)*V20) ->  | CW20: =VLOOKUP('170 N'!$E20,'Dd8'!$H$2:$S$66,7,FALSE)*V20 ->  | CX20: =VLOOKUP('170 N'!$E20,'Dd8'!$H$2:$S$66,8,FALSE)*V20 ->  | CY20: =VLOOKUP('170 N'!$E20,'Dd8'!$H$2:$T$66,10,FALSE)*V20/1000 ->  | CZ20: =CW20+DA20+DB20-CY20 ->  | DA20: =CX20/2 ->  | DB20: =VLOOKUP('170 N'!$E20,'Dd8'!$H$2:$T$66,12,FALSE)*365*V20/1000 ->  | DC20: =CW20+DD20+CX20-CY20 ->  | DD20: =VLOOKUP('170 N'!$E20,'Dd8'!$H$2:$T$66,13,FALSE)*V20*365/1000 ->  | DE20: =IF(ISERROR(FIND("Milchkuh",'170 N'!E20)>0),0,IF(N20="Ackerfutterbau",1,0)) -> 0 | DF20: =IF(ISERROR(FIND("Milchkuh",'170 N'!E20)>0),0,IF(N20="Grünland",1,0)) -> 0 | DG20: 0 | DH20: =IF(ISERROR(FIND("Milchkuh",'170 N'!E20)>0),0,1) -> 0 | DI20: =IF(ISERROR(FIND("Laufstall",'170 N'!E20)>0),0,IF(DH20=1,1,"")) -> 0 | DJ20: =IF(ISERROR(FIND("Anbindehaltung",'170 N'!E20)>0),0,IF(DH20=1,1,"")) -> 0 | DL20: =365-CL20 -> 0 | DM20: =DL20*V20 -> 0 | DO20: =IF(DR20="",0,1) -> 0 | DP20: =DO20+DP18 -> 0 | DQ20: =IF(DP20=DP18,"",DP20) ->  | DR20: =IF(DL20>0,E20,"") ->  | DS20: =IF(DL20>0,V20,0) -> 0 | DT20: =IF(DL20>0,T20,0) -> 0 | DU20: =IF(DO20=1,R20,"") ->  | DV20: =DS20*DT20 -> 0
W21: =IFERROR(IF(W20="","",CQ20),"") ->  | X21: =IF(W21="","","m³") ->  | DE21: =IF(ISERROR(FIND("Milchkuh",'170 N'!E21)>0),0,IF(N21="Ackerfutterbau",1,0)) -> 0 | DF21: =IF(ISERROR(FIND("Milchkuh",'170 N'!E21)>0),0,IF(N21="Grünland",1,0)) -> 0 | DG21: 0 | DH21: =IF(ISERROR(FIND("Milchkuh",'170 N'!E21)>0),0,1) -> 0 | DI21: =IF(ISERROR(FIND("Laufstall",'170 N'!E21)>0),0,IF(DH21=1,1,"")) -> 0 | DJ21: =IF(ISERROR(FIND("Anbindehaltung",'170 N'!E21)>0),0,IF(DH21=1,1,"")) -> 0
B22: 9 | W22: =IFERROR(IF(V22="","",IF(CN22<>"t","",CP22))," ") ->  | X22: =IFERROR(IF(CN22="t","t",""),"") ->  | Y22: =IFERROR(IF(W22="","",IF(CM22="Festmist von Huf- und Klauentieren","Mist",IF(OR(CM22="Puten Elterntiermist",CM22="Puten Elterntieraufzuchtmist",CM22="Flugentenmist",CM22="Pekingentenmist",CM22="Gänse Elterntiermist",CM22="Gänse Mittelmastmist",CM22="Gänse Spätmastmist",CM22="Gänse Schnellmastmist",CM22="Hähnchenmastmist",CM22="Putenaufzuchtmist",CM22="Putenmist",CM22="Mist aus der Laufvogelhaltung"),"Geflügelmist",IF(OR(CM22="Junghennenaufzuchtkot",CM22="Legehennenkot",CM22="Hähnchenmast Elterntierkot"),"Geflügelkot",IF(CM22="Kaninchenmist","Mist",CM22)))))," Fehler in") ->  | AB22: =IFERROR(IF(V22="","",IF(AND(CR22=0,DI22+DJ22=0),"",CR22+BH22)),"dieser") ->  | AC22: =IFERROR(IF(AB22="","",IF(CM22="Festmist von Huf- und Klauentieren","m³"&" Jauche","m³ "&CM22)),"Zeile!") ->  | AD22: =IFERROR(IF(BU22=0,"",BU22),"") ->  | AF22: =IF(AD22="","","kg") ->  | AG22: =IFERROR(IF(V22="","",ROUND(VLOOKUP('170 N'!$E22,'Dd9'!$H$2:$M$66,6,FALSE)*V22,0)),"") ->  | AI22: =IF(AG22="","","kg") ->  | AJ22: =IFERROR(IF(V22="","",VLOOKUP('170 N'!$E22,'Dd9'!$H$2:$V$66,11,FALSE)*V22),"") ->  | AN22: =IF(V22="","",IF(AND(CR22=0,DI22+DJ22=0),"",CR22/365*CL22+BH22)) ->  | AO22: =IF(W22="","",W22/365*CL22) ->  | AP22: =IF($AB22="","",IF(P22="Mist und Jauche",BW22/365*CL22/100*VLOOKUP(BQ22,Stammdaten!$BF$1:$BP$353,5,FALSE),IF(P22="Mist mit 1/2 Jauchebindung",BW22/365*CL22/100*VLOOKUP(BQ22,Stammdaten!$BF$1:$BP$353,5,FALSE)/2,IF(P22="Mist mit Jauchebindung",0,BW22/365*CL22)))) ->  | AQ22: =IF($Y22="","",IF(P22="Mist und Jauche",BW22/365*CL22/100*(100-VLOOKUP($BQ22,Stammdaten!$BF$1:$BP$353,5,FALSE)),IF(P22="Mist mit 1/2 Jauchebindung",BW22/365*CL22/100*(100-VLOOKUP($BQ22,Stammdaten!$BF$1:$BP$353,5,FALSE))+BW22/365*CL22/100*(VLOOKUP($BQ22,Stammdaten!$BF$1:$BP$353,5,FALSE))/2,IF(P22="Mist mit Jauchebindung",BW22/365*CL22/100*(100-VLOOKUP($BQ22,Stammdaten!$BF$1:$BP$353,5,FALSE))+BW22/365*CL22/100*(VLOOKUP($BQ22,Stammdaten!$BF$1:$BP$353,5,FALSE)),BW22/365*CL22)))) ->  | AR22: =IF($AB22="","",IF(P22="Mist und Jauche",AG22/365*CL22/100*VLOOKUP(BQ22,Stammdaten!$BF$1:$BP$353,5,FALSE),IF(P22="Mist mit 1/2 Jauchebindung",AG22/365*CL22/100*VLOOKUP(BQ22,Stammdaten!$BF$1:$BP$353,5,FALSE)/2,IF(P22="Mist mit Jauchebindung",0,AG22/365*CL22)))) ->  | AS22: =IF($Y22="","",IF(P22="Mist und Jauche",AG22/365*CL22/100*(100-VLOOKUP($BQ22,Stammdaten!$BF$1:$BP$353,5,FALSE)),IF(P22="Mist mit 1/2 Jauchebindung",AG22/365*CL22/100*(100-VLOOKUP($BQ22,Stammdaten!$BF$1:$BP$353,5,FALSE))+AG22/365*CL22/100*(VLOOKUP($BQ22,Stammdaten!$BF$1:$BP$353,5,FALSE))/2,IF(P22="Mist mit Jauchebindung",AG22/365*CL22/100*(100-VLOOKUP($BQ22,Stammdaten!$BF$1:$BP$353,5,FALSE))+AG22/365*CL22/100*(VLOOKUP($BQ22,Stammdaten!$BF$1:$BP$353,5,FALSE)),AG22/365*CL22)))) ->  | AT22: =IF(V22="","",VLOOKUP($BQ22,Stammdaten!$BF$1:$BP$354,8,FALSE)) ->  | AU22: =IF(AP22="","",AT22*AP22) ->  | AV22: =IF(V22="","",VLOOKUP(BQ22,Stammdaten!$BF$1:$BP$354,9,FALSE)) ->  | AW22: =IF(AP22="","",AV22*AP22) ->  | AX22: =IF(V22="","",VLOOKUP($BQ22,Stammdaten!$BF$1:$BP$354,10,FALSE)) ->  | AY22: =IF(AQ22="","",AX22*AQ22) ->  | AZ22: =IF(V22="","",VLOOKUP($BQ22,Stammdaten!$BF$1:$BP$354,11,FALSE)) ->  | BA22: =IF(AQ22="","",AZ22*AQ22) ->  | BB22: =IF(V22="","",IF(AND(CR22=0,DI22+DJ22=0),"",CR22/365*(365-CL22))) ->  | BC22: =IF(W22="","",W22/365*(365-CL22)) ->  | BD22: =IF($AB22="","",IF(P22="Mist und Jauche",BX22/365*(365-CL22)/100*VLOOKUP(BQ22,Stammdaten!$BF$1:$BP$353,5,FALSE),IF(P22="Mist mit 1/2 Jauchebindung",BX22/365*(365-CL22)/100*VLOOKUP(BQ22,Stammdaten!$BF$1:$BP$353,5,FALSE)/2,IF(P22="Mist mit Jauchebindung",0,BX22/365*(365-CL22))))) ->  | BE22: =IF($Y22="","",IF(P22="Mist und Jauche",BX22/365*(365-CL22)/100*(100-VLOOKUP($BQ22,Stammdaten!$BF$1:$BP$353,5,FALSE)),IF(P22="Mist mit 1/2 Jauchebindung",BX22/365*(365-CL22)/100*(100-VLOOKUP($BQ22,Stammdaten!$BF$1:$BP$353,5,FALSE))+BX22/365*(365-CL22)/100*(VLOOKUP($BQ22,Stammdaten!$BF$1:$BP$353,5,FALSE))/2,IF(P22="Mist mit Jauchebindung",BX22/365*(365-CL22)/100*(100-VLOOKUP($BQ22,Stammdaten!$BF$1:$BP$353,5,FALSE))+BX22/365*(365-CL22)/100*(VLOOKUP($BQ22,Stammdaten!$BF$1:$BP$353,5,FALSE)),BX22/365*(365-CL22))))) ->  | BF22: =IF($AB22="","",IF(P22="Mist und Jauche",AG22/365*(365-CL22)/100*VLOOKUP(BQ22,Stammdaten!$BF$1:$BP$353,5,FALSE),IF(P22="Mist mit 1/2 Jauchebindung",AG22/365*(365-CL22)/100*VLOOKUP(BQ22,Stammdaten!$BF$1:$BP$353,5,FALSE)/2,IF(P22="Mist mit Jauchebindung",0,AG22/365*(365-CL22))))) ->  | BG22: =IF($Y22="","",IF(P22="Mist und Jauche",AG22/365*(365-CL22)/100*(100-VLOOKUP($BQ22,Stammdaten!$BF$1:$BP$353,5,FALSE)),IF(P22="Mist mit 1/2 Jauchebindung",AG22/365*(365-CL22)/100*(100-VLOOKUP($BQ22,Stammdaten!$BF$1:$BP$353,5,FALSE))+AG22/365*(365-CL22)/100*(VLOOKUP($BQ22,Stammdaten!$BF$1:$BP$353,5,FALSE))/2,IF(P22="Mist mit Jauchebindung",AG22/365*(365-CL22)/100*(100-VLOOKUP($BQ22,Stammdaten!$BF$1:$BP$353,5,FALSE))+AG22/365*(365-CL22)/100*(VLOOKUP($BQ22,Stammdaten!$BF$1:$BP$353,5,FALSE)),AG22/365*(365-CL22))))) ->  | BH22: =IF(V22="","",IF(DI22=1,8*V22,IF(DJ22=1,2.4*V22,0))) ->  | BI22: =IF(V22="","",VLOOKUP($BQ22,Stammdaten!$BF$1:$BR$354,12,FALSE)) ->  | BJ22: =IF(OR(BI22="",AP22=""),"",AP22*BI22) ->  | BK22: =IF(V22="","",VLOOKUP($BQ22,Stammdaten!$BF$1:$BR$354,13,FALSE)) ->  | BL22: =IF(OR(BK22="",AQ22=""),"",AQ22*BK22) ->  | BM22: =IF(OR(BI22="",BD22=""),"",BD22*BI22) ->  | BN22: =IF(OR(BK22="",BE22=""),"",BE22*BK22) ->  | BO22: =IFERROR(IF(CM22<>"Festmist von Huf- und Klauentieren",1,""),"") ->  | BQ22: =IF(V22="","",VLOOKUP('170 N'!$E22,'Dd9'!$H$2:$X$66,15,FALSE)) ->  | BR22: =IF(V22="","",VLOOKUP('170 N'!$E22,'Dd9'!$H$2:$M$66,5,FALSE)*V22) ->  | BS22: =IFERROR(IF(OR(V22="",BZ22="ja"),"",CU22/365*CL22),"") ->  | BT22: =IF(BS22="","","t") ->  | BU22: =BW22/365*CL22+BX22/365*(365-CL22) -> 0 | BW22: =IF(V22="",0,(VLOOKUP('170 N'!$E22,'Dd9'!$H$2:$M$66,5,FALSE)*V22)/100*(100-VLOOKUP('170 N'!$E22,'Dd9'!$H$2:$X$66,17,FALSE))) -> 0 | BX22: =IF(V22="",0,IF(OR(C22="Milchviehhaltung",C22="Rindermast"),(VLOOKUP('170 N'!$E22,'Dd9'!$H$2:$M$66,5,FALSE)*V22)/100*70,BW22)) -> 0 | BY22: =IF(CM22="Gülle",1,0) ->  | BZ22: =IF(P22="Gülle","ja",IF(AND(P22="",V22<>"",CB22<>1),"X","")) ->  | CA22: =IF(P22="Mist mit 1/2 Jauchebindung","1/2 Jauche-bindung",IF(P22="Mist mit Jauchebindung","Jauche-bindung","")) ->  | CB22: =IF(AND($C22<>"",'Dd9'!$D$3=""),1,"") ->  | CC22: =IF(AND($E22<>"",'Dd9'!$F$10=""),1,"") ->  | CD22: =IF(AND(C22="Geflügelmast",N22="N-/P-reduziert"),1,IF(AND($C22<>"",'Dd9'!$D$17=""),1,IF(AND(R22="",C22="Geflügelmast",VLOOKUP('170 N'!$E22,'Dd9'!$H$2:$X$66,16,FALSE)="N"),1,""))) ->  | CE22: =IF(R22="Stall- haltung",1,IF(CD22=1,1,IF(AND($C22<>"",'Dd9'!$D$17=""),1,""))) ->  | CF22: =IF(AND(OR(R22="halb- tags",R22="ganz- tags"),T22=""),1,"") ->  | CG22: =IF(OR(R22="ganz- tags",R22="halb- tags"),1,"") ->  | CH22: =IF(OR(R22="Stall- haltung",AND(V22<>"",R22="")),1,"") ->  | CJ22: =IF(C22="","",IF(AND(C22<>"",'Dd9'!$D$4="",C22<>"Schweinemast",C22<>"Jungrindermast"),"Mist/Tr.Kot/Jauche",IF(AND(OR(C22="Schweinemast",C22="Jungrindermast"),P22="",BZ22<>"X"),"Gülle",IF(BZ22="ja","Gülle",IF(BZ22="X","X","Mist/Tr.Kot/Jauche"))))) ->  | CK22: =IFERROR(IF(OR(CC22=1,AND(N22="",V22="")),VLOOKUP(C22,'Dd1'!$B$24:$D$36,2,FALSE),IF(AND(N22="",V22<>"",CC22<>1),"X",'170 N'!N22)),"") ->  | CL22: =IF(OR(R22="",R22="Stall- haltung",T22=""),365,365-T22+T22*IF(R22="halb- tags",0.5,0)) -> 365 | CM22: =VLOOKUP('170 N'!$E22,'Dd9'!$H$2:$M$66,4,FALSE) ->  | CN22: =IF(V22="","",VLOOKUP('170 N'!$E22,'Dd9'!$H$2:$M$66,3,FALSE)) ->  | CO22: =IF(V22="","",IF(OR(CA22="1/2 Jauche-bindung",CA22="Jauche-bindung"),0.9,VLOOKUP('170 N'!$E22,'Dd9'!$H$2:$V$66,14,FALSE))) ->  | CP22: =IF(V22="","",ROUND(IF(CN22="m³","",IF(OR(CA22="",CA22="Standard-verfahren"),IF(CW22<>0,CW22,CV22),IF(CA22="1/2 Jauche-bindung",CZ22,IF(CA22="Jauche-bindung",DC22,"")))),0)) ->  | CQ22: =IF(CP22="","",CP22/CO22) ->  | CR22: =IF(CN22="m³",CV22,IF(CN22="t",IF(CM22<>"Festmist von Huf- und Klauentieren",0,IF(CM22="Festmist von Huf- und Klauentieren",IF(OR(CA22="",CA22="Standard-verfahren"),CX22,IF(CA22="1/2 Jauche-bindung",DA22,0)))))) -> FALSE | CS22: =IF(V22="","",IF(OR($CA22="",CA22="Standard-verfahren"),CW22,IF($CA22="1/2 Jauche-bindung",CZ22,IF($CA22="Jauche-bindung",DC22,"")))) ->  | CT22: =IF(V22="","",IF(OR($CA22="",CA22="Standard-verfahren"),CX22,IF($CA22="1/2 Jauche-bindung",DA22,IF($CA22="Jauche-bindung",0,"")))) ->  | CU22: =IF(V22="","",IF(OR($CA22="",CA22="Standard-verfahren"),CY22,IF($CA22="1/2 Jauche-bindung",DB22,IF($CA22="Jauche-bindung",DD22,"")))) ->  | CV22: =IF(V22="","",VLOOKUP('170 N'!$E22,'Dd9'!$H$2:$M$66,2,FALSE)*V22) ->  | CW22: =VLOOKUP('170 N'!$E22,'Dd9'!$H$2:$S$66,7,FALSE)*V22 ->  | CX22: =VLOOKUP('170 N'!$E22,'Dd9'!$H$2:$S$66,8,FALSE)*V22 ->  | CY22: =VLOOKUP('170 N'!$E22,'Dd9'!$H$2:$T$66,10,FALSE)*V22/1000 ->  | CZ22: =CW22+DA22+DB22-CY22 ->  | DA22: =CX22/2 ->  | DB22: =VLOOKUP('170 N'!$E22,'Dd9'!$H$2:$T$66,12,FALSE)*365*V22/1000 ->  | DC22: =CW22+DD22+CX22-CY22 ->  | DD22: =VLOOKUP('170 N'!$E22,'Dd9'!$H$2:$T$66,13,FALSE)*V22*365/1000 ->  | DE22: =IF(ISERROR(FIND("Milchkuh",'170 N'!E22)>0),0,IF(N22="Ackerfutterbau",1,0)) -> 0 | DF22: =IF(ISERROR(FIND("Milchkuh",'170 N'!E22)>0),0,IF(N22="Grünland",1,0)) -> 0 | DG22: 0 | DH22: =IF(ISERROR(FIND("Milchkuh",'170 N'!E22)>0),0,1) -> 0 | DI22: =IF(ISERROR(FIND("Laufstall",'170 N'!E22)>0),0,IF(DH22=1,1,"")) -> 0 | DJ22: =IF(ISERROR(FIND("Anbindehaltung",'170 N'!E22)>0),0,IF(DH22=1,1,"")) -> 0 | DL22: =365-CL22 -> 0 | DM22: =DL22*V22 -> 0 | DO22: =IF(DR22="",0,1) -> 0 | DP22: =DO22+DP20 -> 0 | DQ22: =IF(DP22=DP20,"",DP22) ->  | DR22: =IF(DL22>0,E22,"") ->  | DS22: =IF(DL22>0,V22,0) -> 0 | DT22: =IF(DL22>0,T22,0) -> 0 | DU22: =IF(DO22=1,R22,"") ->  | DV22: =DS22*DT22 -> 0
W23: =IFERROR(IF(W22="","",CQ22),"") ->  | X23: =IF(W23="","","m³") ->  | DE23: =IF(ISERROR(FIND("Milchkuh",'170 N'!E23)>0),0,IF(N23="Ackerfutterbau",1,0)) -> 0 | DF23: =IF(ISERROR(FIND("Milchkuh",'170 N'!E23)>0),0,IF(N23="Grünland",1,0)) -> 0 | DG23: 0 | DH23: =IF(ISERROR(FIND("Milchkuh",'170 N'!E23)>0),0,1) -> 0 | DI23: =IF(ISERROR(FIND("Laufstall",'170 N'!E23)>0),0,IF(DH23=1,1,"")) -> 0 | DJ23: =IF(ISERROR(FIND("Anbindehaltung",'170 N'!E23)>0),0,IF(DH23=1,1,"")) -> 0
B24: 10 | W24: =IFERROR(IF(V24="","",IF(CN24<>"t","",CP24))," ") ->  | X24: =IFERROR(IF(CN24="t","t",""),"") ->  | Y24: =IFERROR(IF(W24="","",IF(CM24="Festmist von Huf- und Klauentieren","Mist",IF(OR(CM24="Puten Elterntiermist",CM24="Puten Elterntieraufzuchtmist",CM24="Flugentenmist",CM24="Pekingentenmist",CM24="Gänse Elterntiermist",CM24="Gänse Mittelmastmist",CM24="Gänse Spätmastmist",CM24="Gänse Schnellmastmist",CM24="Hähnchenmastmist",CM24="Putenaufzuchtmist",CM24="Putenmist",CM24="Mist aus der Laufvogelhaltung"),"Geflügelmist",IF(OR(CM24="Junghennenaufzuchtkot",CM24="Legehennenkot",CM24="Hähnchenmast Elterntierkot"),"Geflügelkot",IF(CM24="Kaninchenmist","Mist",CM24)))))," Fehler in") ->  | AB24: =IFERROR(IF(V24="","",IF(AND(CR24=0,DI24+DJ24=0),"",CR24+BH24)),"dieser") ->  | AC24: =IFERROR(IF(AB24="","",IF(CM24="Festmist von Huf- und Klauentieren","m³"&" Jauche","m³ "&CM24)),"Zeile!") ->  | AD24: =IFERROR(IF(BU24=0,"",BU24),"") ->  | AF24: =IF(AD24="","","kg") ->  | AG24: =IFERROR(IF(V24="","",ROUND(VLOOKUP('170 N'!$E24,'Dd10'!$H$2:$M$66,6,FALSE)*V24,0)),"") ->  | AI24: =IF(AG24="","","kg") ->  | AJ24: =IFERROR(IF(V24="","",VLOOKUP('170 N'!$E24,'Dd10'!$H$2:$V$66,11,FALSE)*V24),"") ->  | AN24: =IF(V24="","",IF(AND(CR24=0,DI24+DJ24=0),"",CR24/365*CL24+BH24)) ->  | AO24: =IF(W24="","",W24/365*CL24) ->  | AP24: =IF($AB24="","",IF(P24="Mist und Jauche",BW24/365*CL24/100*VLOOKUP(BQ24,Stammdaten!$BF$1:$BP$353,5,FALSE),IF(P24="Mist mit 1/2 Jauchebindung",BW24/365*CL24/100*VLOOKUP(BQ24,Stammdaten!$BF$1:$BP$353,5,FALSE)/2,IF(P24="Mist mit Jauchebindung",0,BW24/365*CL24)))) ->  | AQ24: =IF($Y24="","",IF(P24="Mist und Jauche",BW24/365*CL24/100*(100-VLOOKUP($BQ24,Stammdaten!$BF$1:$BP$353,5,FALSE)),IF(P24="Mist mit 1/2 Jauchebindung",BW24/365*CL24/100*(100-VLOOKUP($BQ24,Stammdaten!$BF$1:$BP$353,5,FALSE))+BW24/365*CL24/100*(VLOOKUP($BQ24,Stammdaten!$BF$1:$BP$353,5,FALSE))/2,IF(P24="Mist mit Jauchebindung",BW24/365*CL24/100*(100-VLOOKUP($BQ24,Stammdaten!$BF$1:$BP$353,5,FALSE))+BW24/365*CL24/100*(VLOOKUP($BQ24,Stammdaten!$BF$1:$BP$353,5,FALSE)),BW24/365*CL24)))) ->  | AR24: =IF($AB24="","",IF(P24="Mist und Jauche",AG24/365*CL24/100*VLOOKUP(BQ24,Stammdaten!$BF$1:$BP$353,5,FALSE),IF(P24="Mist mit 1/2 Jauchebindung",AG24/365*CL24/100*VLOOKUP(BQ24,Stammdaten!$BF$1:$BP$353,5,FALSE)/2,IF(P24="Mist mit Jauchebindung",0,AG24/365*CL24)))) ->  | AS24: =IF($Y24="","",IF(P24="Mist und Jauche",AG24/365*CL24/100*(100-VLOOKUP($BQ24,Stammdaten!$BF$1:$BP$353,5,FALSE)),IF(P24="Mist mit 1/2 Jauchebindung",AG24/365*CL24/100*(100-VLOOKUP($BQ24,Stammdaten!$BF$1:$BP$353,5,FALSE))+AG24/365*CL24/100*(VLOOKUP($BQ24,Stammdaten!$BF$1:$BP$353,5,FALSE))/2,IF(P24="Mist mit Jauchebindung",AG24/365*CL24/100*(100-VLOOKUP($BQ24,Stammdaten!$BF$1:$BP$353,5,FALSE))+AG24/365*CL24/100*(VLOOKUP($BQ24,Stammdaten!$BF$1:$BP$353,5,FALSE)),AG24/365*CL24)))) ->  | AT24: =IF(V24="","",VLOOKUP($BQ24,Stammdaten!$BF$1:$BP$354,8,FALSE)) ->  | AU24: =IF(AP24="","",AT24*AP24) ->  | AV24: =IF(V24="","",VLOOKUP(BQ24,Stammdaten!$BF$1:$BP$354,9,FALSE)) ->  | AW24: =IF(AP24="","",AV24*AP24) ->  | AX24: =IF(V24="","",VLOOKUP($BQ24,Stammdaten!$BF$1:$BP$354,10,FALSE)) ->  | AY24: =IF(AQ24="","",AX24*AQ24) ->  | AZ24: =IF(V24="","",VLOOKUP($BQ24,Stammdaten!$BF$1:$BP$354,11,FALSE)) ->  | BA24: =IF(AQ24="","",AZ24*AQ24) ->  | BB24: =IF(V24="","",IF(AND(CR24=0,DI24+DJ24=0),"",CR24/365*(365-CL24))) ->  | BC24: =IF(W24="","",W24/365*(365-CL24)) ->  | BD24: =IF($AB24="","",IF(P24="Mist und Jauche",BX24/365*(365-CL24)/100*VLOOKUP(BQ24,Stammdaten!$BF$1:$BP$353,5,FALSE),IF(P24="Mist mit 1/2 Jauchebindung",BX24/365*(365-CL24)/100*VLOOKUP(BQ24,Stammdaten!$BF$1:$BP$353,5,FALSE)/2,IF(P24="Mist mit Jauchebindung",0,BX24/365*(365-CL24))))) ->  | BE24: =IF($Y24="","",IF(P24="Mist und Jauche",BX24/365*(365-CL24)/100*(100-VLOOKUP($BQ24,Stammdaten!$BF$1:$BP$353,5,FALSE)),IF(P24="Mist mit 1/2 Jauchebindung",BX24/365*(365-CL24)/100*(100-VLOOKUP($BQ24,Stammdaten!$BF$1:$BP$353,5,FALSE))+BX24/365*(365-CL24)/100*(VLOOKUP($BQ24,Stammdaten!$BF$1:$BP$353,5,FALSE))/2,IF(P24="Mist mit Jauchebindung",BX24/365*(365-CL24)/100*(100-VLOOKUP($BQ24,Stammdaten!$BF$1:$BP$353,5,FALSE))+BX24/365*(365-CL24)/100*(VLOOKUP($BQ24,Stammdaten!$BF$1:$BP$353,5,FALSE)),BX24/365*(365-CL24))))) ->  | BF24: =IF($AB24="","",IF(P24="Mist und Jauche",AG24/365*(365-CL24)/100*VLOOKUP(BQ24,Stammdaten!$BF$1:$BP$353,5,FALSE),IF(P24="Mist mit 1/2 Jauchebindung",AG24/365*(365-CL24)/100*VLOOKUP(BQ24,Stammdaten!$BF$1:$BP$353,5,FALSE)/2,IF(P24="Mist mit Jauchebindung",0,AG24/365*(365-CL24))))) ->  | BG24: =IF($Y24="","",IF(P24="Mist und Jauche",AG24/365*(365-CL24)/100*(100-VLOOKUP($BQ24,Stammdaten!$BF$1:$BP$353,5,FALSE)),IF(P24="Mist mit 1/2 Jauchebindung",AG24/365*(365-CL24)/100*(100-VLOOKUP($BQ24,Stammdaten!$BF$1:$BP$353,5,FALSE))+AG24/365*(365-CL24)/100*(VLOOKUP($BQ24,Stammdaten!$BF$1:$BP$353,5,FALSE))/2,IF(P24="Mist mit Jauchebindung",AG24/365*(365-CL24)/100*(100-VLOOKUP($BQ24,Stammdaten!$BF$1:$BP$353,5,FALSE))+AG24/365*(365-CL24)/100*(VLOOKUP($BQ24,Stammdaten!$BF$1:$BP$353,5,FALSE)),AG24/365*(365-CL24))))) ->  | BH24: =IF(V24="","",IF(DI24=1,8*V24,IF(DJ24=1,2.4*V24,0))) ->  | BI24: =IF(V24="","",VLOOKUP($BQ24,Stammdaten!$BF$1:$BR$354,12,FALSE)) ->  | BJ24: =IF(OR(BI24="",AP24=""),"",AP24*BI24) ->  | BK24: =IF(V24="","",VLOOKUP($BQ24,Stammdaten!$BF$1:$BR$354,13,FALSE)) ->  | BL24: =IF(OR(BK24="",AQ24=""),"",AQ24*BK24) ->  | BM24: =IF(OR(BI24="",BD24=""),"",BD24*BI24) ->  | BN24: =IF(OR(BK24="",BE24=""),"",BE24*BK24) ->  | BO24: =IFERROR(IF(CM24<>"Festmist von Huf- und Klauentieren",1,""),"") ->  | BQ24: =IF(V24="","",VLOOKUP('170 N'!$E24,'Dd10'!$H$2:$X$66,15,FALSE)) ->  | BR24: =IF(V24="","",VLOOKUP('170 N'!$E24,'Dd10'!$H$2:$M$66,5,FALSE)*V24) ->  | BS24: =IFERROR(IF(OR(V24="",BZ24="ja"),"",CU24/365*CL24),"") ->  | BT24: =IF(BS24="","","t") ->  | BU24: =BW24/365*CL24+BX24/365*(365-CL24) -> 0 | BW24: =IF(V24="",0,(VLOOKUP('170 N'!$E24,'Dd10'!$H$2:$M$66,5,FALSE)*V24)/100*(100-VLOOKUP('170 N'!$E24,'Dd10'!$H$2:$X$66,17,FALSE))) -> 0 | BX24: =IF(V24="",0,IF(OR(C24="Milchviehhaltung",C24="Rindermast"),(VLOOKUP('170 N'!$E24,'Dd10'!$H$2:$M$66,5,FALSE)*V24)/100*70,BW24)) -> 0 | BY24: =IF(CM24="Gülle",1,0) ->  | BZ24: =IF(P24="Gülle","ja",IF(AND(P24="",V24<>"",CB24<>1),"X","")) ->  | CA24: =IF(P24="Mist mit 1/2 Jauchebindung","1/2 Jauche-bindung",IF(P24="Mist mit Jauchebindung","Jauche-bindung","")) ->  | CB24: =IF(AND($C24<>"",'Dd10'!$D$3=""),1,"") ->  | CC24: =IF(AND($E24<>"",'Dd10'!$F$10=""),1,"") ->  | CD24: =IF(AND(C24="Geflügelmast",N24="N-/P-reduziert"),1,IF(AND($C24<>"",'Dd10'!$D$17=""),1,IF(AND(R24="",C24="Geflügelmast",VLOOKUP('170 N'!$E24,'Dd10'!$H$2:$X$66,16,FALSE)="N"),1,""))) ->  | CE24: =IF(R24="Stall- haltung",1,IF(CD24=1,1,IF(AND($C24<>"",'Dd10'!$D$17=""),1,""))) ->  | CF24: =IF(AND(OR(R24="halb- tags",R24="ganz- tags"),T24=""),1,"") ->  | CG24: =IF(OR(R24="ganz- tags",R24="halb- tags"),1,"") ->  | CH24: =IF(OR(R24="Stall- haltung",AND(V24<>"",R24="")),1,"") ->  | CJ24: =IF(C24="","",IF(AND(C24<>"",'Dd10'!$D$4="",C24<>"Schweinemast",C24<>"Jungrindermast"),"Mist/Tr.Kot/Jauche",IF(AND(OR(C24="Schweinemast",C24="Jungrindermast"),P24="",BZ24<>"X"),"Gülle",IF(BZ24="ja","Gülle",IF(BZ24="X","X","Mist/Tr.Kot/Jauche"))))) ->  | CK24: =IFERROR(IF(OR(CC24=1,AND(N24="",V24="")),VLOOKUP(C24,'Dd1'!$B$24:$D$36,2,FALSE),IF(AND(N24="",V24<>"",CC24<>1),"X",'170 N'!N24)),"") ->  | CL24: =IF(OR(R24="",R24="Stall- haltung",T24=""),365,365-T24+T24*IF(R24="halb- tags",0.5,0)) -> 365 | CM24: =VLOOKUP('170 N'!$E24,'Dd10'!$H$2:$M$66,4,FALSE) ->  | CN24: =IF(V24="","",VLOOKUP('170 N'!$E24,'Dd10'!$H$2:$M$66,3,FALSE)) ->  | CO24: =IF(V24="","",IF(OR(CA24="1/2 Jauche-bindung",CA24="Jauche-bindung"),0.9,VLOOKUP('170 N'!$E24,'Dd10'!$H$2:$V$66,14,FALSE))) ->  | CP24: =IF(V24="","",ROUND(IF(CN24="m³","",IF(OR(CA24="",CA24="Standard-verfahren"),IF(CW24<>0,CW24,CV24),IF(CA24="1/2 Jauche-bindung",CZ24,IF(CA24="Jauche-bindung",DC24,"")))),0)) ->  | CQ24: =IF(CP24="","",CP24/CO24) ->  | CR24: =IF(CN24="m³",CV24,IF(CN24="t",IF(CM24<>"Festmist von Huf- und Klauentieren",0,IF(CM24="Festmist von Huf- und Klauentieren",IF(OR(CA24="",CA24="Standard-verfahren"),CX24,IF(CA24="1/2 Jauche-bindung",DA24,0)))))) -> FALSE | CS24: =IF(V24="","",IF(OR($CA24="",CA24="Standard-verfahren"),CW24,IF($CA24="1/2 Jauche-bindung",CZ24,IF($CA24="Jauche-bindung",DC24,"")))) ->  | CT24: =IF(V24="","",IF(OR($CA24="",CA24="Standard-verfahren"),CX24,IF($CA24="1/2 Jauche-bindung",DA24,IF($CA24="Jauche-bindung",0,"")))) ->  | CU24: =IF(V24="","",IF(OR($CA24="",CA24="Standard-verfahren"),CY24,IF($CA24="1/2 Jauche-bindung",DB24,IF($CA24="Jauche-bindung",DD24,"")))) ->  | CV24: =IF(V24="","",VLOOKUP('170 N'!$E24,'Dd10'!$H$2:$M$66,2,FALSE)*V24) ->  | CW24: =VLOOKUP('170 N'!$E24,'Dd10'!$H$2:$S$66,7,FALSE)*V24 ->  | CX24: =VLOOKUP('170 N'!$E24,'Dd10'!$H$2:$S$66,8,FALSE)*V24 ->  | CY24: =VLOOKUP('170 N'!$E24,'Dd10'!$H$2:$T$66,10,FALSE)*V24/1000 ->  | CZ24: =CW24+DA24+DB24-CY24 ->  | DA24: =CX24/2 ->  | DB24: =VLOOKUP('170 N'!$E24,'Dd10'!$H$2:$T$66,12,FALSE)*365*V24/1000 ->  | DC24: =CW24+DD24+CX24-CY24 ->  | DD24: =VLOOKUP('170 N'!$E24,'Dd10'!$H$2:$T$66,13,FALSE)*V24*365/1000 ->  | DE24: =IF(ISERROR(FIND("Milchkuh",'170 N'!E24)>0),0,IF(N24="Ackerfutterbau",1,0)) -> 0 | DF24: =IF(ISERROR(FIND("Milchkuh",'170 N'!E24)>0),0,IF(N24="Grünland",1,0)) -> 0 | DG24: 0 | DH24: =IF(ISERROR(FIND("Milchkuh",'170 N'!E24)>0),0,1) -> 0 | DI24: =IF(ISERROR(FIND("Laufstall",'170 N'!E24)>0),0,IF(DH24=1,1,"")) -> 0 | DJ24: =IF(ISERROR(FIND("Anbindehaltung",'170 N'!E24)>0),0,IF(DH24=1,1,"")) -> 0 | DL24: =365-CL24 -> 0 | DM24: =DL24*V24 -> 0 | DO24: =IF(DR24="",0,1) -> 0 | DP24: =DO24+DP22 -> 0 | DQ24: =IF(DP24=DP22,"",DP24) ->  | DR24: =IF(DL24>0,E24,"") ->  | DS24: =IF(DL24>0,V24,0) -> 0 | DT24: =IF(DL24>0,T24,0) -> 0 | DU24: =IF(DO24=1,R24,"") ->  | DV24: =DS24*DT24 -> 0
W25: =IFERROR(IF(W24="","",CQ24),"") ->  | X25: =IF(W25="","","m³") ->  | DE25: =IF(ISERROR(FIND("Milchkuh",'170 N'!E25)>0),0,IF(N25="Ackerfutterbau",1,0)) -> 0 | DF25: =IF(ISERROR(FIND("Milchkuh",'170 N'!E25)>0),0,IF(N25="Grünland",1,0)) -> 0 | DG25: 0 | DH25: =IF(ISERROR(FIND("Milchkuh",'170 N'!E25)>0),0,1) -> 0 | DI25: =IF(ISERROR(FIND("Laufstall",'170 N'!E25)>0),0,IF(DH25=1,1,"")) -> 0 | DJ25: =IF(ISERROR(FIND("Anbindehaltung",'170 N'!E25)>0),0,IF(DH25=1,1,"")) -> 0
B26: 11 | W26: =IFERROR(IF(V26="","",IF(CN26<>"t","",CP26))," ") ->  | X26: =IFERROR(IF(CN26="t","t",""),"") ->  | Y26: =IFERROR(IF(W26="","",IF(CM26="Festmist von Huf- und Klauentieren","Mist",IF(OR(CM26="Puten Elterntiermist",CM26="Puten Elterntieraufzuchtmist",CM26="Flugentenmist",CM26="Pekingentenmist",CM26="Gänse Elterntiermist",CM26="Gänse Mittelmastmist",CM26="Gänse Spätmastmist",CM26="Gänse Schnellmastmist",CM26="Hähnchenmastmist",CM26="Putenaufzuchtmist",CM26="Putenmist",CM26="Mist aus der Laufvogelhaltung"),"Geflügelmist",IF(OR(CM26="Junghennenaufzuchtkot",CM26="Legehennenkot",CM26="Hähnchenmast Elterntierkot"),"Geflügelkot",IF(CM26="Kaninchenmist","Mist",CM26)))))," Fehler in") ->  | AB26: =IFERROR(IF(V26="","",IF(AND(CR26=0,DI26+DJ26=0),"",CR26+BH26)),"dieser") ->  | AC26: =IFERROR(IF(AB26="","",IF(CM26="Festmist von Huf- und Klauentieren","m³"&" Jauche","m³ "&CM26)),"Zeile!") ->  | AD26: =IFERROR(IF(BU26=0,"",BU26),"") ->  | AF26: =IF(AD26="","","kg") ->  | AG26: =IFERROR(IF(V26="","",ROUND(VLOOKUP('170 N'!$E26,'Dd11'!$H$2:$M$66,6,FALSE)*V26,0)),"") ->  | AI26: =IF(AG26="","","kg") ->  | AJ26: =IFERROR(IF(V26="","",VLOOKUP('170 N'!$E26,'Dd11'!$H$2:$V$66,11,FALSE)*V26),"") ->  | AN26: =IF(V26="","",IF(AND(CR26=0,DI26+DJ26=0),"",CR26/365*CL26+BH26)) ->  | AO26: =IF(W26="","",W26/365*CL26) ->  | AP26: =IF($AB26="","",IF(P26="Mist und Jauche",BW26/365*CL26/100*VLOOKUP(BQ26,Stammdaten!$BF$1:$BP$353,5,FALSE),IF(P26="Mist mit 1/2 Jauchebindung",BW26/365*CL26/100*VLOOKUP(BQ26,Stammdaten!$BF$1:$BP$353,5,FALSE)/2,IF(P26="Mist mit Jauchebindung",0,BW26/365*CL26)))) ->  | AQ26: =IF($Y26="","",IF(P26="Mist und Jauche",BW26/365*CL26/100*(100-VLOOKUP($BQ26,Stammdaten!$BF$1:$BP$353,5,FALSE)),IF(P26="Mist mit 1/2 Jauchebindung",BW26/365*CL26/100*(100-VLOOKUP($BQ26,Stammdaten!$BF$1:$BP$353,5,FALSE))+BW26/365*CL26/100*(VLOOKUP($BQ26,Stammdaten!$BF$1:$BP$353,5,FALSE))/2,IF(P26="Mist mit Jauchebindung",BW26/365*CL26/100*(100-VLOOKUP($BQ26,Stammdaten!$BF$1:$BP$353,5,FALSE))+BW26/365*CL26/100*(VLOOKUP($BQ26,Stammdaten!$BF$1:$BP$353,5,FALSE)),BW26/365*CL26)))) ->  | AR26: =IF($AB26="","",IF(P26="Mist und Jauche",AG26/365*CL26/100*VLOOKUP(BQ26,Stammdaten!$BF$1:$BP$353,5,FALSE),IF(P26="Mist mit 1/2 Jauchebindung",AG26/365*CL26/100*VLOOKUP(BQ26,Stammdaten!$BF$1:$BP$353,5,FALSE)/2,IF(P26="Mist mit Jauchebindung",0,AG26/365*CL26)))) ->  | AS26: =IF($Y26="","",IF(P26="Mist und Jauche",AG26/365*CL26/100*(100-VLOOKUP($BQ26,Stammdaten!$BF$1:$BP$353,5,FALSE)),IF(P26="Mist mit 1/2 Jauchebindung",AG26/365*CL26/100*(100-VLOOKUP($BQ26,Stammdaten!$BF$1:$BP$353,5,FALSE))+AG26/365*CL26/100*(VLOOKUP($BQ26,Stammdaten!$BF$1:$BP$353,5,FALSE))/2,IF(P26="Mist mit Jauchebindung",AG26/365*CL26/100*(100-VLOOKUP($BQ26,Stammdaten!$BF$1:$BP$353,5,FALSE))+AG26/365*CL26/100*(VLOOKUP($BQ26,Stammdaten!$BF$1:$BP$353,5,FALSE)),AG26/365*CL26)))) ->  | AT26: =IF(V26="","",VLOOKUP($BQ26,Stammdaten!$BF$1:$BP$354,8,FALSE)) ->  | AU26: =IF(AP26="","",AT26*AP26) ->  | AV26: =IF(V26="","",VLOOKUP(BQ26,Stammdaten!$BF$1:$BP$354,9,FALSE)) ->  | AW26: =IF(AP26="","",AV26*AP26) ->  | AX26: =IF(V26="","",VLOOKUP($BQ26,Stammdaten!$BF$1:$BP$354,10,FALSE)) ->  | AY26: =IF(AQ26="","",AX26*AQ26) ->  | AZ26: =IF(V26="","",VLOOKUP($BQ26,Stammdaten!$BF$1:$BP$354,11,FALSE)) ->  | BA26: =IF(AQ26="","",AZ26*AQ26) ->  | BB26: =IF(V26="","",IF(AND(CR26=0,DI26+DJ26=0),"",CR26/365*(365-CL26))) ->  | BC26: =IF(W26="","",W26/365*(365-CL26)) ->  | BD26: =IF($AB26="","",IF(P26="Mist und Jauche",BX26/365*(365-CL26)/100*VLOOKUP(BQ26,Stammdaten!$BF$1:$BP$353,5,FALSE),IF(P26="Mist mit 1/2 Jauchebindung",BX26/365*(365-CL26)/100*VLOOKUP(BQ26,Stammdaten!$BF$1:$BP$353,5,FALSE)/2,IF(P26="Mist mit Jauchebindung",0,BX26/365*(365-CL26))))) ->  | BE26: =IF($Y26="","",IF(P26="Mist und Jauche",BX26/365*(365-CL26)/100*(100-VLOOKUP($BQ26,Stammdaten!$BF$1:$BP$353,5,FALSE)),IF(P26="Mist mit 1/2 Jauchebindung",BX26/365*(365-CL26)/100*(100-VLOOKUP($BQ26,Stammdaten!$BF$1:$BP$353,5,FALSE))+BX26/365*(365-CL26)/100*(VLOOKUP($BQ26,Stammdaten!$BF$1:$BP$353,5,FALSE))/2,IF(P26="Mist mit Jauchebindung",BX26/365*(365-CL26)/100*(100-VLOOKUP($BQ26,Stammdaten!$BF$1:$BP$353,5,FALSE))+BX26/365*(365-CL26)/100*(VLOOKUP($BQ26,Stammdaten!$BF$1:$BP$353,5,FALSE)),BX26/365*(365-CL26))))) ->  | BF26: =IF($AB26="","",IF(P26="Mist und Jauche",AG26/365*(365-CL26)/100*VLOOKUP(BQ26,Stammdaten!$BF$1:$BP$353,5,FALSE),IF(P26="Mist mit 1/2 Jauchebindung",AG26/365*(365-CL26)/100*VLOOKUP(BQ26,Stammdaten!$BF$1:$BP$353,5,FALSE)/2,IF(P26="Mist mit Jauchebindung",0,AG26/365*(365-CL26))))) ->  | BG26: =IF($Y26="","",IF(P26="Mist und Jauche",AG26/365*(365-CL26)/100*(100-VLOOKUP($BQ26,Stammdaten!$BF$1:$BP$353,5,FALSE)),IF(P26="Mist mit 1/2 Jauchebindung",AG26/365*(365-CL26)/100*(100-VLOOKUP($BQ26,Stammdaten!$BF$1:$BP$353,5,FALSE))+AG26/365*(365-CL26)/100*(VLOOKUP($BQ26,Stammdaten!$BF$1:$BP$353,5,FALSE))/2,IF(P26="Mist mit Jauchebindung",AG26/365*(365-CL26)/100*(100-VLOOKUP($BQ26,Stammdaten!$BF$1:$BP$353,5,FALSE))+AG26/365*(365-CL26)/100*(VLOOKUP($BQ26,Stammdaten!$BF$1:$BP$353,5,FALSE)),AG26/365*(365-CL26))))) ->  | BH26: =IF(V26="","",IF(DI26=1,8*V26,IF(DJ26=1,2.4*V26,0))) ->  | BI26: =IF(V26="","",VLOOKUP($BQ26,Stammdaten!$BF$1:$BR$354,12,FALSE)) ->  | BJ26: =IF(OR(BI26="",AP26=""),"",AP26*BI26) ->  | BK26: =IF(V26="","",VLOOKUP($BQ26,Stammdaten!$BF$1:$BR$354,13,FALSE)) ->  | BL26: =IF(OR(BK26="",AQ26=""),"",AQ26*BK26) ->  | BM26: =IF(OR(BI26="",BD26=""),"",BD26*BI26) ->  | BN26: =IF(OR(BK26="",BE26=""),"",BE26*BK26) ->  | BO26: =IFERROR(IF(CM26<>"Festmist von Huf- und Klauentieren",1,""),"") ->  | BQ26: =IF(V26="","",VLOOKUP('170 N'!$E26,'Dd11'!$H$2:$X$66,15,FALSE)) ->  | BR26: =IF(V26="","",VLOOKUP('170 N'!$E26,'Dd11'!$H$2:$M$66,5,FALSE)*V26) ->  | BS26: =IFERROR(IF(OR(V26="",BZ26="ja"),"",CU26/365*CL26),"") ->  | BT26: =IF(BS26="","","t") ->  | BU26: =BW26/365*CL26+BX26/365*(365-CL26) -> 0 | BW26: =IF(V26="",0,(VLOOKUP('170 N'!$E26,'Dd11'!$H$2:$M$66,5,FALSE)*V26)/100*(100-VLOOKUP('170 N'!$E26,'Dd11'!$H$2:$X$66,17,FALSE))) -> 0 | BX26: =IF(V26="",0,IF(OR(C26="Milchviehhaltung",C26="Rindermast"),(VLOOKUP('170 N'!$E26,'Dd11'!$H$2:$M$66,5,FALSE)*V26)/100*70,BW26)) -> 0 | BY26: =IF(CM26="Gülle",1,0) ->  | BZ26: =IF(P26="Gülle","ja",IF(AND(P26="",V26<>"",CB26<>1),"X","")) ->  | CA26: =IF(P26="Mist mit 1/2 Jauchebindung","1/2 Jauche-bindung",IF(P26="Mist mit Jauchebindung","Jauche-bindung","")) ->  | CB26: =IF(AND($C26<>"",'Dd11'!$D$3=""),1,"") ->  | CC26: =IF(AND($E26<>"",'Dd11'!$F$10=""),1,"") ->  | CD26: =IF(AND(C26="Geflügelmast",N26="N-/P-reduziert"),1,IF(AND($C26<>"",'Dd11'!$D$17=""),1,IF(AND(R26="",C26="Geflügelmast",VLOOKUP('170 N'!$E26,'Dd11'!$H$2:$X$66,16,FALSE)="N"),1,""))) ->  | CE26: =IF(R26="Stall- haltung",1,IF(CD26=1,1,IF(AND($C26<>"",'Dd11'!$D$17=""),1,""))) ->  | CF26: =IF(AND(OR(R26="halb- tags",R26="ganz- tags"),T26=""),1,"") ->  | CG26: =IF(OR(R26="ganz- tags",R26="halb- tags"),1,"") ->  | CH26: =IF(OR(R26="Stall- haltung",AND(V26<>"",R26="")),1,"") ->  | CJ26: =IF(C26="","",IF(AND(C26<>"",'Dd11'!$D$4="",C26<>"Schweinemast",C26<>"Jungrindermast"),"Mist/Tr.Kot/Jauche",IF(AND(OR(C26="Schweinemast",C26="Jungrindermast"),P26="",BZ26<>"X"),"Gülle",IF(BZ26="ja","Gülle",IF(BZ26="X","X","Mist/Tr.Kot/Jauche"))))) ->  | CK26: =IFERROR(IF(OR(CC26=1,AND(N26="",V26="")),VLOOKUP(C26,'Dd1'!$B$24:$D$36,2,FALSE),IF(AND(N26="",V26<>"",CC26<>1),"X",'170 N'!N26)),"") ->  | CL26: =IF(OR(R26="",R26="Stall- haltung",T26=""),365,365-T26+T26*IF(R26="halb- tags",0.5,0)) -> 365 | CM26: =VLOOKUP('170 N'!$E26,'Dd11'!$H$2:$M$66,4,FALSE) ->  | CN26: =IF(V26="","",VLOOKUP('170 N'!$E26,'Dd11'!$H$2:$M$66,3,FALSE)) ->  | CO26: =IF(V26="","",IF(OR(CA26="1/2 Jauche-bindung",CA26="Jauche-bindung"),0.9,VLOOKUP('170 N'!$E26,'Dd11'!$H$2:$V$66,14,FALSE))) ->  | CP26: =IF(V26="","",ROUND(IF(CN26="m³","",IF(OR(CA26="",CA26="Standard-verfahren"),IF(CW26<>0,CW26,CV26),IF(CA26="1/2 Jauche-bindung",CZ26,IF(CA26="Jauche-bindung",DC26,"")))),0)) ->  | CQ26: =IF(CP26="","",CP26/CO26) ->  | CR26: =IF(CN26="m³",CV26,IF(CN26="t",IF(CM26<>"Festmist von Huf- und Klauentieren",0,IF(CM26="Festmist von Huf- und Klauentieren",IF(OR(CA26="",CA26="Standard-verfahren"),CX26,IF(CA26="1/2 Jauche-bindung",DA26,0)))))) -> FALSE | CS26: =IF(V26="","",IF(OR($CA26="",CA26="Standard-verfahren"),CW26,IF($CA26="1/2 Jauche-bindung",CZ26,IF($CA26="Jauche-bindung",DC26,"")))) ->  | CT26: =IF(V26="","",IF(OR($CA26="",CA26="Standard-verfahren"),CX26,IF($CA26="1/2 Jauche-bindung",DA26,IF($CA26="Jauche-bindung",0,"")))) ->  | CU26: =IF(V26="","",IF(OR($CA26="",CA26="Standard-verfahren"),CY26,IF($CA26="1/2 Jauche-bindung",DB26,IF($CA26="Jauche-bindung",DD26,"")))) ->  | CV26: =IF(V26="","",VLOOKUP('170 N'!$E26,'Dd11'!$H$2:$M$66,2,FALSE)*V26) ->  | CW26: =VLOOKUP('170 N'!$E26,'Dd11'!$H$2:$S$66,7,FALSE)*V26 ->  | CX26: =VLOOKUP('170 N'!$E26,'Dd11'!$H$2:$S$66,8,FALSE)*V26 ->  | CY26: =VLOOKUP('170 N'!$E26,'Dd11'!$H$2:$T$66,10,FALSE)*V26/1000 ->  | CZ26: =CW26+DA26+DB26-CY26 ->  | DA26: =CX26/2 ->  | DB26: =VLOOKUP('170 N'!$E26,'Dd11'!$H$2:$T$66,12,FALSE)*365*V26/1000 ->  | DC26: =CW26+DD26+CX26-CY26 ->  | DD26: =VLOOKUP('170 N'!$E26,'Dd11'!$H$2:$T$66,13,FALSE)*V26*365/1000 ->  | DE26: =IF(ISERROR(FIND("Milchkuh",'170 N'!E26)>0),0,IF(N26="Ackerfutterbau",1,0)) -> 0 | DF26: =IF(ISERROR(FIND("Milchkuh",'170 N'!E26)>0),0,IF(N26="Grünland",1,0)) -> 0 | DG26: 0 | DH26: =IF(ISERROR(FIND("Milchkuh",'170 N'!E26)>0),0,1) -> 0 | DI26: =IF(ISERROR(FIND("Laufstall",'170 N'!E26)>0),0,IF(DH26=1,1,"")) -> 0 | DJ26: =IF(ISERROR(FIND("Anbindehaltung",'170 N'!E26)>0),0,IF(DH26=1,1,"")) -> 0 | DL26: =365-CL26 -> 0 | DM26: =DL26*V26 -> 0 | DO26: =IF(DR26="",0,1) -> 0 | DP26: =DO26+DP24 -> 0 | DQ26: =IF(DP26=DP24,"",DP26) ->  | DR26: =IF(DL26>0,E26,"") ->  | DS26: =IF(DL26>0,V26,0) -> 0 | DT26: =IF(DL26>0,T26,0) -> 0 | DU26: =IF(DO26=1,R26,"") ->  | DV26: =DS26*DT26 -> 0
W27: =IFERROR(IF(W26="","",CQ26),"") ->  | X27: =IF(W27="","","m³") ->  | DE27: =IF(ISERROR(FIND("Milchkuh",'170 N'!E27)>0),0,IF(N27="Ackerfutterbau",1,0)) -> 0 | DF27: =IF(ISERROR(FIND("Milchkuh",'170 N'!E27)>0),0,IF(N27="Grünland",1,0)) -> 0 | DG27: 0 | DH27: =IF(ISERROR(FIND("Milchkuh",'170 N'!E27)>0),0,1) -> 0 | DI27: =IF(ISERROR(FIND("Laufstall",'170 N'!E27)>0),0,IF(DH27=1,1,"")) -> 0 | DJ27: =IF(ISERROR(FIND("Anbindehaltung",'170 N'!E27)>0),0,IF(DH27=1,1,"")) -> 0
B28: 12 | W28: =IFERROR(IF(V28="","",IF(CN28<>"t","",CP28))," ") ->  | X28: =IFERROR(IF(CN28="t","t",""),"") ->  | Y28: =IFERROR(IF(W28="","",IF(CM28="Festmist von Huf- und Klauentieren","Mist",IF(OR(CM28="Puten Elterntiermist",CM28="Puten Elterntieraufzuchtmist",CM28="Flugentenmist",CM28="Pekingentenmist",CM28="Gänse Elterntiermist",CM28="Gänse Mittelmastmist",CM28="Gänse Spätmastmist",CM28="Gänse Schnellmastmist",CM28="Hähnchenmastmist",CM28="Putenaufzuchtmist",CM28="Putenmist",CM28="Mist aus der Laufvogelhaltung"),"Geflügelmist",IF(OR(CM28="Junghennenaufzuchtkot",CM28="Legehennenkot",CM28="Hähnchenmast Elterntierkot"),"Geflügelkot",IF(CM28="Kaninchenmist","Mist",CM28)))))," Fehler in") ->  | AB28: =IFERROR(IF(V28="","",IF(AND(CR28=0,DI28+DJ28=0),"",CR28+BH28)),"dieser") ->  | AC28: =IFERROR(IF(AB28="","",IF(CM28="Festmist von Huf- und Klauentieren","m³"&" Jauche","m³ "&CM28)),"Zeile!") ->  | AD28: =IFERROR(IF(BU28=0,"",BU28),"") ->  | AF28: =IF(AD28="","","kg") ->  | AG28: =IFERROR(IF(V28="","",ROUND(VLOOKUP('170 N'!$E28,'Dd12'!$H$2:$M$66,6,FALSE)*V28,0)),"") ->  | AI28: =IF(AG28="","","kg") ->  | AJ28: =IFERROR(IF(V28="","",VLOOKUP('170 N'!$E28,'Dd12'!$H$2:$V$66,11,FALSE)*V28),"") ->  | AN28: =IF(V28="","",IF(AND(CR28=0,DI28+DJ28=0),"",CR28/365*CL28+BH28)) ->  | AO28: =IF(W28="","",W28/365*CL28) ->  | AP28: =IF($AB28="","",IF(P28="Mist und Jauche",BW28/365*CL28/100*VLOOKUP(BQ28,Stammdaten!$BF$1:$BP$353,5,FALSE),IF(P28="Mist mit 1/2 Jauchebindung",BW28/365*CL28/100*VLOOKUP(BQ28,Stammdaten!$BF$1:$BP$353,5,FALSE)/2,IF(P28="Mist mit Jauchebindung",0,BW28/365*CL28)))) ->  | AQ28: =IF($Y28="","",IF(P28="Mist und Jauche",BW28/365*CL28/100*(100-VLOOKUP($BQ28,Stammdaten!$BF$1:$BP$353,5,FALSE)),IF(P28="Mist mit 1/2 Jauchebindung",BW28/365*CL28/100*(100-VLOOKUP($BQ28,Stammdaten!$BF$1:$BP$353,5,FALSE))+BW28/365*CL28/100*(VLOOKUP($BQ28,Stammdaten!$BF$1:$BP$353,5,FALSE))/2,IF(P28="Mist mit Jauchebindung",BW28/365*CL28/100*(100-VLOOKUP($BQ28,Stammdaten!$BF$1:$BP$353,5,FALSE))+BW28/365*CL28/100*(VLOOKUP($BQ28,Stammdaten!$BF$1:$BP$353,5,FALSE)),BW28/365*CL28)))) ->  | AR28: =IF($AB28="","",IF(P28="Mist und Jauche",AG28/365*CL28/100*VLOOKUP(BQ28,Stammdaten!$BF$1:$BP$353,5,FALSE),IF(P28="Mist mit 1/2 Jauchebindung",AG28/365*CL28/100*VLOOKUP(BQ28,Stammdaten!$BF$1:$BP$353,5,FALSE)/2,IF(P28="Mist mit Jauchebindung",0,AG28/365*CL28)))) ->  | AS28: =IF($Y28="","",IF(P28="Mist und Jauche",AG28/365*CL28/100*(100-VLOOKUP($BQ28,Stammdaten!$BF$1:$BP$353,5,FALSE)),IF(P28="Mist mit 1/2 Jauchebindung",AG28/365*CL28/100*(100-VLOOKUP($BQ28,Stammdaten!$BF$1:$BP$353,5,FALSE))+AG28/365*CL28/100*(VLOOKUP($BQ28,Stammdaten!$BF$1:$BP$353,5,FALSE))/2,IF(P28="Mist mit Jauchebindung",AG28/365*CL28/100*(100-VLOOKUP($BQ28,Stammdaten!$BF$1:$BP$353,5,FALSE))+AG28/365*CL28/100*(VLOOKUP($BQ28,Stammdaten!$BF$1:$BP$353,5,FALSE)),AG28/365*CL28)))) ->  | AT28: =IF(V28="","",VLOOKUP($BQ28,Stammdaten!$BF$1:$BP$354,8,FALSE)) ->  | AU28: =IF(AP28="","",AT28*AP28) ->  | AV28: =IF(V28="","",VLOOKUP(BQ28,Stammdaten!$BF$1:$BP$354,9,FALSE)) ->  | AW28: =IF(AP28="","",AV28*AP28) ->  | AX28: =IF(V28="","",VLOOKUP($BQ28,Stammdaten!$BF$1:$BP$354,10,FALSE)) ->  | AY28: =IF(AQ28="","",AX28*AQ28) ->  | AZ28: =IF(V28="","",VLOOKUP($BQ28,Stammdaten!$BF$1:$BP$354,11,FALSE)) ->  | BA28: =IF(AQ28="","",AZ28*AQ28) ->  | BB28: =IF(V28="","",IF(AND(CR28=0,DI28+DJ28=0),"",CR28/365*(365-CL28))) ->  | BC28: =IF(W28="","",W28/365*(365-CL28)) ->  | BD28: =IF($AB28="","",IF(P28="Mist und Jauche",BX28/365*(365-CL28)/100*VLOOKUP(BQ28,Stammdaten!$BF$1:$BP$353,5,FALSE),IF(P28="Mist mit 1/2 Jauchebindung",BX28/365*(365-CL28)/100*VLOOKUP(BQ28,Stammdaten!$BF$1:$BP$353,5,FALSE)/2,IF(P28="Mist mit Jauchebindung",0,BX28/365*(365-CL28))))) ->  | BE28: =IF($Y28="","",IF(P28="Mist und Jauche",BX28/365*(365-CL28)/100*(100-VLOOKUP($BQ28,Stammdaten!$BF$1:$BP$353,5,FALSE)),IF(P28="Mist mit 1/2 Jauchebindung",BX28/365*(365-CL28)/100*(100-VLOOKUP($BQ28,Stammdaten!$BF$1:$BP$353,5,FALSE))+BX28/365*(365-CL28)/100*(VLOOKUP($BQ28,Stammdaten!$BF$1:$BP$353,5,FALSE))/2,IF(P28="Mist mit Jauchebindung",BX28/365*(365-CL28)/100*(100-VLOOKUP($BQ28,Stammdaten!$BF$1:$BP$353,5,FALSE))+BX28/365*(365-CL28)/100*(VLOOKUP($BQ28,Stammdaten!$BF$1:$BP$353,5,FALSE)),BX28/365*(365-CL28))))) ->  | BF28: =IF($AB28="","",IF(P28="Mist und Jauche",AG28/365*(365-CL28)/100*VLOOKUP(BQ28,Stammdaten!$BF$1:$BP$353,5,FALSE),IF(P28="Mist mit 1/2 Jauchebindung",AG28/365*(365-CL28)/100*VLOOKUP(BQ28,Stammdaten!$BF$1:$BP$353,5,FALSE)/2,IF(P28="Mist mit Jauchebindung",0,AG28/365*(365-CL28))))) ->  | BG28: =IF($Y28="","",IF(P28="Mist und Jauche",AG28/365*(365-CL28)/100*(100-VLOOKUP($BQ28,Stammdaten!$BF$1:$BP$353,5,FALSE)),IF(P28="Mist mit 1/2 Jauchebindung",AG28/365*(365-CL28)/100*(100-VLOOKUP($BQ28,Stammdaten!$BF$1:$BP$353,5,FALSE))+AG28/365*(365-CL28)/100*(VLOOKUP($BQ28,Stammdaten!$BF$1:$BP$353,5,FALSE))/2,IF(P28="Mist mit Jauchebindung",AG28/365*(365-CL28)/100*(100-VLOOKUP($BQ28,Stammdaten!$BF$1:$BP$353,5,FALSE))+AG28/365*(365-CL28)/100*(VLOOKUP($BQ28,Stammdaten!$BF$1:$BP$353,5,FALSE)),AG28/365*(365-CL28))))) ->  | BH28: =IF(V28="","",IF(DI28=1,8*V28,IF(DJ28=1,2.4*V28,0))) ->  | BI28: =IF(V28="","",VLOOKUP($BQ28,Stammdaten!$BF$1:$BR$354,12,FALSE)) ->  | BJ28: =IF(OR(BI28="",AP28=""),"",AP28*BI28) ->  | BK28: =IF(V28="","",VLOOKUP($BQ28,Stammdaten!$BF$1:$BR$354,13,FALSE)) ->  | BL28: =IF(OR(BK28="",AQ28=""),"",AQ28*BK28) ->  | BM28: =IF(OR(BI28="",BD28=""),"",BD28*BI28) ->  | BN28: =IF(OR(BK28="",BE28=""),"",BE28*BK28) ->  | BO28: =IFERROR(IF(CM28<>"Festmist von Huf- und Klauentieren",1,""),"") ->  | BQ28: =IF(V28="","",VLOOKUP('170 N'!$E28,'Dd12'!$H$2:$X$66,15,FALSE)) ->  | BR28: =IF(V28="","",VLOOKUP('170 N'!$E28,'Dd12'!$H$2:$M$66,5,FALSE)*V28) ->  | BS28: =IFERROR(IF(OR(V28="",BZ28="ja"),"",CU28/365*CL28),"") ->  | BT28: =IF(BS28="","","t") ->  | BU28: =BW28/365*CL28+BX28/365*(365-CL28) -> 0 | BW28: =IF(V28="",0,(VLOOKUP('170 N'!$E28,'Dd12'!$H$2:$M$66,5,FALSE)*V28)/100*(100-VLOOKUP('170 N'!$E28,'Dd12'!$H$2:$X$66,17,FALSE))) -> 0 | BX28: =IF(V28="",0,IF(OR(C28="Milchviehhaltung",C28="Rindermast"),(VLOOKUP('170 N'!$E28,'Dd12'!$H$2:$M$66,5,FALSE)*V28)/100*70,BW28)) -> 0 | BY28: =IF(CM28="Gülle",1,0) ->  | BZ28: =IF(P28="Gülle","ja",IF(AND(P28="",V28<>"",CB28<>1),"X","")) ->  | CA28: =IF(P28="Mist mit 1/2 Jauchebindung","1/2 Jauche-bindung",IF(P28="Mist mit Jauchebindung","Jauche-bindung","")) ->  | CB28: =IF(AND($C28<>"",'Dd12'!$D$3=""),1,"") ->  | CC28: =IF(AND($E28<>"",'Dd12'!$F$10=""),1,"") ->  | CD28: =IF(AND(C28="Geflügelmast",N28="N-/P-reduziert"),1,IF(AND($C28<>"",'Dd12'!$D$17=""),1,IF(AND(R28="",C28="Geflügelmast",VLOOKUP('170 N'!$E28,'Dd12'!$H$2:$X$66,16,FALSE)="N"),1,""))) ->  | CE28: =IF(R28="Stall- haltung",1,IF(CD28=1,1,IF(AND($C28<>"",'Dd12'!$D$17=""),1,""))) ->  | CF28: =IF(AND(OR(R28="halb- tags",R28="ganz- tags"),T28=""),1,"") ->  | CG28: =IF(OR(R28="ganz- tags",R28="halb- tags"),1,"") ->  | CH28: =IF(OR(R28="Stall- haltung",AND(V28<>"",R28="")),1,"") ->  | CJ28: =IF(C28="","",IF(AND(C28<>"",'Dd12'!$D$4="",C28<>"Schweinemast",C28<>"Jungrindermast"),"Mist/Tr.Kot/Jauche",IF(AND(OR(C28="Schweinemast",C28="Jungrindermast"),P28="",BZ28<>"X"),"Gülle",IF(BZ28="ja","Gülle",IF(BZ28="X","X","Mist/Tr.Kot/Jauche"))))) ->  | CK28: =IFERROR(IF(OR(CC28=1,AND(N28="",V28="")),VLOOKUP(C28,'Dd1'!$B$24:$D$36,2,FALSE),IF(AND(N28="",V28<>"",CC28<>1),"X",'170 N'!N28)),"") ->  | CL28: =IF(OR(R28="",R28="Stall- haltung",T28=""),365,365-T28+T28*IF(R28="halb- tags",0.5,0)) -> 365 | CM28: =VLOOKUP('170 N'!$E28,'Dd12'!$H$2:$M$66,4,FALSE) ->  | CN28: =IF(V28="","",VLOOKUP('170 N'!$E28,'Dd12'!$H$2:$M$66,3,FALSE)) ->  | CO28: =IF(V28="","",IF(OR(CA28="1/2 Jauche-bindung",CA28="Jauche-bindung"),0.9,VLOOKUP('170 N'!$E28,'Dd12'!$H$2:$V$66,14,FALSE))) ->  | CP28: =IF(V28="","",ROUND(IF(CN28="m³","",IF(OR(CA28="",CA28="Standard-verfahren"),IF(CW28<>0,CW28,CV28),IF(CA28="1/2 Jauche-bindung",CZ28,IF(CA28="Jauche-bindung",DC28,"")))),0)) ->  | CQ28: =IF(CP28="","",CP28/CO28) ->  | CR28: =IF(CN28="m³",CV28,IF(CN28="t",IF(CM28<>"Festmist von Huf- und Klauentieren",0,IF(CM28="Festmist von Huf- und Klauentieren",IF(OR(CA28="",CA28="Standard-verfahren"),CX28,IF(CA28="1/2 Jauche-bindung",DA28,0)))))) -> FALSE | CS28: =IF(V28="","",IF(OR($CA28="",CA28="Standard-verfahren"),CW28,IF($CA28="1/2 Jauche-bindung",CZ28,IF($CA28="Jauche-bindung",DC28,"")))) ->  | CT28: =IF(V28="","",IF(OR($CA28="",CA28="Standard-verfahren"),CX28,IF($CA28="1/2 Jauche-bindung",DA28,IF($CA28="Jauche-bindung",0,"")))) ->  | CU28: =IF(V28="","",IF(OR($CA28="",CA28="Standard-verfahren"),CY28,IF($CA28="1/2 Jauche-bindung",DB28,IF($CA28="Jauche-bindung",DD28,"")))) ->  | CV28: =IF(V28="","",VLOOKUP('170 N'!$E28,'Dd12'!$H$2:$M$66,2,FALSE)*V28) ->  | CW28: =VLOOKUP('170 N'!$E28,'Dd12'!$H$2:$S$66,7,FALSE)*V28 ->  | CX28: =VLOOKUP('170 N'!$E28,'Dd12'!$H$2:$S$66,8,FALSE)*V28 ->  | CY28: =VLOOKUP('170 N'!$E28,'Dd12'!$H$2:$T$66,10,FALSE)*V28/1000 ->  | CZ28: =CW28+DA28+DB28-CY28 ->  | DA28: =CX28/2 ->  | DB28: =VLOOKUP('170 N'!$E28,'Dd12'!$H$2:$T$66,12,FALSE)*365*V28/1000 ->  | DC28: =CW28+DD28+CX28-CY28 ->  | DD28: =VLOOKUP('170 N'!$E28,'Dd12'!$H$2:$T$66,13,FALSE)*V28*365/1000 ->  | DE28: =IF(ISERROR(FIND("Milchkuh",'170 N'!E28)>0),0,IF(N28="Ackerfutterbau",1,0)) -> 0 | DF28: =IF(ISERROR(FIND("Milchkuh",'170 N'!E28)>0),0,IF(N28="Grünland",1,0)) -> 0 | DG28: 0 | DH28: =IF(ISERROR(FIND("Milchkuh",'170 N'!E28)>0),0,1) -> 0 | DI28: =IF(ISERROR(FIND("Laufstall",'170 N'!E28)>0),0,IF(DH28=1,1,"")) -> 0 | DJ28: =IF(ISERROR(FIND("Anbindehaltung",'170 N'!E28)>0),0,IF(DH28=1,1,"")) -> 0 | DL28: =365-CL28 -> 0 | DM28: =DL28*V28 -> 0 | DO28: =IF(DR28="",0,1) -> 0 | DP28: =DO28+DP26 -> 0 | DQ28: =IF(DP28=DP26,"",DP28) ->  | DR28: =IF(DL28>0,E28,"") ->  | DS28: =IF(DL28>0,V28,0) -> 0 | DT28: =IF(DL28>0,T28,0) -> 0 | DU28: =IF(DO28=1,R28,"") ->  | DV28: =DS28*DT28 -> 0
W29: =IFERROR(IF(W28="","",CQ28),"") ->  | X29: =IF(W29="","","m³") ->  | DE29: =IF(ISERROR(FIND("Milchkuh",'170 N'!E29)>0),0,IF(N29="Ackerfutterbau",1,0)) -> 0 | DF29: =IF(ISERROR(FIND("Milchkuh",'170 N'!E29)>0),0,IF(N29="Grünland",1,0)) -> 0 | DG29: 0 | DH29: =IF(ISERROR(FIND("Milchkuh",'170 N'!E29)>0),0,1) -> 0 | DI29: =IF(ISERROR(FIND("Laufstall",'170 N'!E29)>0),0,IF(DH29=1,1,"")) -> 0 | DJ29: =IF(ISERROR(FIND("Anbindehaltung",'170 N'!E29)>0),0,IF(DH29=1,1,"")) -> 0
B30: 13 | W30: =IFERROR(IF(V30="","",IF(CN30<>"t","",CP30))," ") ->  | X30: =IFERROR(IF(CN30="t","t",""),"") ->  | Y30: =IFERROR(IF(W30="","",IF(CM30="Festmist von Huf- und Klauentieren","Mist",IF(OR(CM30="Puten Elterntiermist",CM30="Puten Elterntieraufzuchtmist",CM30="Flugentenmist",CM30="Pekingentenmist",CM30="Gänse Elterntiermist",CM30="Gänse Mittelmastmist",CM30="Gänse Spätmastmist",CM30="Gänse Schnellmastmist",CM30="Hähnchenmastmist",CM30="Putenaufzuchtmist",CM30="Putenmist",CM30="Mist aus der Laufvogelhaltung"),"Geflügelmist",IF(OR(CM30="Junghennenaufzuchtkot",CM30="Legehennenkot",CM30="Hähnchenmast Elterntierkot"),"Geflügelkot",IF(CM30="Kaninchenmist","Mist",CM30)))))," Fehler in") ->  | AB30: =IFERROR(IF(V30="","",IF(AND(CR30=0,DI30+DJ30=0),"",CR30+BH30)),"dieser") ->  | AC30: =IFERROR(IF(AB30="","",IF(CM30="Festmist von Huf- und Klauentieren","m³"&" Jauche","m³ "&CM30)),"Zeile!") ->  | AD30: =IFERROR(IF(BU30=0,"",BU30),"") ->  | AF30: =IF(AD30="","","kg") ->  | AG30: =IFERROR(IF(V30="","",ROUND(VLOOKUP('170 N'!$E30,'Dd13'!$H$2:$M$66,6,FALSE)*V30,0)),"") ->  | AI30: =IF(AG30="","","kg") ->  | AJ30: =IFERROR(IF(V30="","",VLOOKUP('170 N'!$E30,'Dd13'!$H$2:$V$66,11,FALSE)*V30),"") ->  | AN30: =IF(V30="","",IF(AND(CR30=0,DI30+DJ30=0),"",CR30/365*CL30+BH30)) ->  | AO30: =IF(W30="","",W30/365*CL30) ->  | AP30: =IF($AB30="","",IF(P30="Mist und Jauche",BW30/365*CL30/100*VLOOKUP(BQ30,Stammdaten!$BF$1:$BP$353,5,FALSE),IF(P30="Mist mit 1/2 Jauchebindung",BW30/365*CL30/100*VLOOKUP(BQ30,Stammdaten!$BF$1:$BP$353,5,FALSE)/2,IF(P30="Mist mit Jauchebindung",0,BW30/365*CL30)))) ->  | AQ30: =IF($Y30="","",IF(P30="Mist und Jauche",BW30/365*CL30/100*(100-VLOOKUP($BQ30,Stammdaten!$BF$1:$BP$353,5,FALSE)),IF(P30="Mist mit 1/2 Jauchebindung",BW30/365*CL30/100*(100-VLOOKUP($BQ30,Stammdaten!$BF$1:$BP$353,5,FALSE))+BW30/365*CL30/100*(VLOOKUP($BQ30,Stammdaten!$BF$1:$BP$353,5,FALSE))/2,IF(P30="Mist mit Jauchebindung",BW30/365*CL30/100*(100-VLOOKUP($BQ30,Stammdaten!$BF$1:$BP$353,5,FALSE))+BW30/365*CL30/100*(VLOOKUP($BQ30,Stammdaten!$BF$1:$BP$353,5,FALSE)),BW30/365*CL30)))) ->  | AR30: =IF($AB30="","",IF(P30="Mist und Jauche",AG30/365*CL30/100*VLOOKUP(BQ30,Stammdaten!$BF$1:$BP$353,5,FALSE),IF(P30="Mist mit 1/2 Jauchebindung",AG30/365*CL30/100*VLOOKUP(BQ30,Stammdaten!$BF$1:$BP$353,5,FALSE)/2,IF(P30="Mist mit Jauchebindung",0,AG30/365*CL30)))) ->  | AS30: =IF($Y30="","",IF(P30="Mist und Jauche",AG30/365*CL30/100*(100-VLOOKUP($BQ30,Stammdaten!$BF$1:$BP$353,5,FALSE)),IF(P30="Mist mit 1/2 Jauchebindung",AG30/365*CL30/100*(100-VLOOKUP($BQ30,Stammdaten!$BF$1:$BP$353,5,FALSE))+AG30/365*CL30/100*(VLOOKUP($BQ30,Stammdaten!$BF$1:$BP$353,5,FALSE))/2,IF(P30="Mist mit Jauchebindung",AG30/365*CL30/100*(100-VLOOKUP($BQ30,Stammdaten!$BF$1:$BP$353,5,FALSE))+AG30/365*CL30/100*(VLOOKUP($BQ30,Stammdaten!$BF$1:$BP$353,5,FALSE)),AG30/365*CL30)))) ->  | AT30: =IF(V30="","",VLOOKUP($BQ30,Stammdaten!$BF$1:$BP$354,8,FALSE)) ->  | AU30: =IF(AP30="","",AT30*AP30) ->  | AV30: =IF(V30="","",VLOOKUP(BQ30,Stammdaten!$BF$1:$BP$354,9,FALSE)) ->  | AW30: =IF(AP30="","",AV30*AP30) ->  | AX30: =IF(V30="","",VLOOKUP($BQ30,Stammdaten!$BF$1:$BP$354,10,FALSE)) ->  | AY30: =IF(AQ30="","",AX30*AQ30) ->  | AZ30: =IF(V30="","",VLOOKUP($BQ30,Stammdaten!$BF$1:$BP$354,11,FALSE)) ->  | BA30: =IF(AQ30="","",AZ30*AQ30) ->  | BB30: =IF(V30="","",IF(AND(CR30=0,DI30+DJ30=0),"",CR30/365*(365-CL30))) ->  | BC30: =IF(W30="","",W30/365*(365-CL30)) ->  | BD30: =IF($AB30="","",IF(P30="Mist und Jauche",BX30/365*(365-CL30)/100*VLOOKUP(BQ30,Stammdaten!$BF$1:$BP$353,5,FALSE),IF(P30="Mist mit 1/2 Jauchebindung",BX30/365*(365-CL30)/100*VLOOKUP(BQ30,Stammdaten!$BF$1:$BP$353,5,FALSE)/2,IF(P30="Mist mit Jauchebindung",0,BX30/365*(365-CL30))))) ->  | BE30: =IF($Y30="","",IF(P30="Mist und Jauche",BX30/365*(365-CL30)/100*(100-VLOOKUP($BQ30,Stammdaten!$BF$1:$BP$353,5,FALSE)),IF(P30="Mist mit 1/2 Jauchebindung",BX30/365*(365-CL30)/100*(100-VLOOKUP($BQ30,Stammdaten!$BF$1:$BP$353,5,FALSE))+BX30/365*(365-CL30)/100*(VLOOKUP($BQ30,Stammdaten!$BF$1:$BP$353,5,FALSE))/2,IF(P30="Mist mit Jauchebindung",BX30/365*(365-CL30)/100*(100-VLOOKUP($BQ30,Stammdaten!$BF$1:$BP$353,5,FALSE))+BX30/365*(365-CL30)/100*(VLOOKUP($BQ30,Stammdaten!$BF$1:$BP$353,5,FALSE)),BX30/365*(365-CL30))))) ->  | BF30: =IF($AB30="","",IF(P30="Mist und Jauche",AG30/365*(365-CL30)/100*VLOOKUP(BQ30,Stammdaten!$BF$1:$BP$353,5,FALSE),IF(P30="Mist mit 1/2 Jauchebindung",AG30/365*(365-CL30)/100*VLOOKUP(BQ30,Stammdaten!$BF$1:$BP$353,5,FALSE)/2,IF(P30="Mist mit Jauchebindung",0,AG30/365*(365-CL30))))) ->  | BG30: =IF($Y30="","",IF(P30="Mist und Jauche",AG30/365*(365-CL30)/100*(100-VLOOKUP($BQ30,Stammdaten!$BF$1:$BP$353,5,FALSE)),IF(P30="Mist mit 1/2 Jauchebindung",AG30/365*(365-CL30)/100*(100-VLOOKUP($BQ30,Stammdaten!$BF$1:$BP$353,5,FALSE))+AG30/365*(365-CL30)/100*(VLOOKUP($BQ30,Stammdaten!$BF$1:$BP$353,5,FALSE))/2,IF(P30="Mist mit Jauchebindung",AG30/365*(365-CL30)/100*(100-VLOOKUP($BQ30,Stammdaten!$BF$1:$BP$353,5,FALSE))+AG30/365*(365-CL30)/100*(VLOOKUP($BQ30,Stammdaten!$BF$1:$BP$353,5,FALSE)),AG30/365*(365-CL30))))) ->  | BH30: =IF(V30="","",IF(DI30=1,8*V30,IF(DJ30=1,2.4*V30,0))) ->  | BI30: =IF(V30="","",VLOOKUP($BQ30,Stammdaten!$BF$1:$BR$354,12,FALSE)) ->  | BJ30: =IF(OR(BI30="",AP30=""),"",AP30*BI30) ->  | BK30: =IF(V30="","",VLOOKUP($BQ30,Stammdaten!$BF$1:$BR$354,13,FALSE)) ->  | BL30: =IF(OR(BK30="",AQ30=""),"",AQ30*BK30) ->  | BM30: =IF(OR(BI30="",BD30=""),"",BD30*BI30) ->  | BN30: =IF(OR(BK30="",BE30=""),"",BE30*BK30) ->  | BO30: =IFERROR(IF(CM30<>"Festmist von Huf- und Klauentieren",1,""),"") ->  | BQ30: =IF(V30="","",VLOOKUP('170 N'!$E30,'Dd13'!$H$2:$X$66,15,FALSE)) ->  | BR30: =IF(V30="","",VLOOKUP('170 N'!$E30,'Dd13'!$H$2:$M$66,5,FALSE)*V30) ->  | BS30: =IFERROR(IF(OR(V30="",BZ30="ja"),"",CU30/365*CL30),"") ->  | BT30: =IF(BS30="","","t") ->  | BU30: =BW30/365*CL30+BX30/365*(365-CL30) -> 0 | BW30: =IF(V30="",0,(VLOOKUP('170 N'!$E30,'Dd13'!$H$2:$M$66,5,FALSE)*V30)/100*(100-VLOOKUP('170 N'!$E30,'Dd13'!$H$2:$X$66,17,FALSE))) -> 0 | BX30: =IF(V30="",0,IF(OR(C30="Milchviehhaltung",C30="Rindermast"),(VLOOKUP('170 N'!$E30,'Dd13'!$H$2:$M$66,5,FALSE)*V30)/100*70,BW30)) -> 0 | BY30: =IF(CM30="Gülle",1,0) ->  | BZ30: =IF(P30="Gülle","ja",IF(AND(P30="",V30<>"",CB30<>1),"X","")) ->  | CA30: =IF(P30="Mist mit 1/2 Jauchebindung","1/2 Jauche-bindung",IF(P30="Mist mit Jauchebindung","Jauche-bindung","")) ->  | CB30: =IF(AND($C30<>"",'Dd13'!$D$3=""),1,"") ->  | CC30: =IF(AND($E30<>"",'Dd13'!$F$10=""),1,"") ->  | CD30: =IF(AND(C30="Geflügelmast",N30="N-/P-reduziert"),1,IF(AND($C30<>"",'Dd13'!$D$17=""),1,IF(AND(R30="",C30="Geflügelmast",VLOOKUP('170 N'!$E30,'Dd13'!$H$2:$X$66,16,FALSE)="N"),1,""))) ->  | CE30: =IF(R30="Stall- haltung",1,IF(CD30=1,1,IF(AND($C30<>"",'Dd13'!$D$17=""),1,""))) ->  | CF30: =IF(AND(OR(R30="halb- tags",R30="ganz- tags"),T30=""),1,"") ->  | CG30: =IF(OR(R30="ganz- tags",R30="halb- tags"),1,"") ->  | CH30: =IF(OR(R30="Stall- haltung",AND(V30<>"",R30="")),1,"") ->  | CJ30: =IF(C30="","",IF(AND(C30<>"",'Dd13'!$D$4="",C30<>"Schweinemast",C30<>"Jungrindermast"),"Mist/Tr.Kot/Jauche",IF(AND(OR(C30="Schweinemast",C30="Jungrindermast"),P30="",BZ30<>"X"),"Gülle",IF(BZ30="ja","Gülle",IF(BZ30="X","X","Mist/Tr.Kot/Jauche"))))) ->  | CK30: =IFERROR(IF(OR(CC30=1,AND(N30="",V30="")),VLOOKUP(C30,'Dd1'!$B$24:$D$36,2,FALSE),IF(AND(N30="",V30<>"",CC30<>1),"X",'170 N'!N30)),"") ->  | CL30: =IF(OR(R30="",R30="Stall- haltung",T30=""),365,365-T30+T30*IF(R30="halb- tags",0.5,0)) -> 365 | CM30: =VLOOKUP('170 N'!$E30,'Dd13'!$H$2:$M$66,4,FALSE) ->  | CN30: =IF(V30="","",VLOOKUP('170 N'!$E30,'Dd13'!$H$2:$M$66,3,FALSE)) ->  | CO30: =IF(V30="","",IF(OR(CA30="1/2 Jauche-bindung",CA30="Jauche-bindung"),0.9,VLOOKUP('170 N'!$E30,'Dd13'!$H$2:$V$66,14,FALSE))) ->  | CP30: =IF(V30="","",ROUND(IF(CN30="m³","",IF(OR(CA30="",CA30="Standard-verfahren"),IF(CW30<>0,CW30,CV30),IF(CA30="1/2 Jauche-bindung",CZ30,IF(CA30="Jauche-bindung",DC30,"")))),0)) ->  | CQ30: =IF(CP30="","",CP30/CO30) ->  | CR30: =IF(CN30="m³",CV30,IF(CN30="t",IF(CM30<>"Festmist von Huf- und Klauentieren",0,IF(CM30="Festmist von Huf- und Klauentieren",IF(OR(CA30="",CA30="Standard-verfahren"),CX30,IF(CA30="1/2 Jauche-bindung",DA30,0)))))) -> FALSE | CS30: =IF(V30="","",IF(OR($CA30="",CA30="Standard-verfahren"),CW30,IF($CA30="1/2 Jauche-bindung",CZ30,IF($CA30="Jauche-bindung",DC30,"")))) ->  | CT30: =IF(V30="","",IF(OR($CA30="",CA30="Standard-verfahren"),CX30,IF($CA30="1/2 Jauche-bindung",DA30,IF($CA30="Jauche-bindung",0,"")))) ->  | CU30: =IF(V30="","",IF(OR($CA30="",CA30="Standard-verfahren"),CY30,IF($CA30="1/2 Jauche-bindung",DB30,IF($CA30="Jauche-bindung",DD30,"")))) ->  | CV30: =IF(V30="","",VLOOKUP('170 N'!$E30,'Dd13'!$H$2:$M$66,2,FALSE)*V30) ->  | CW30: =VLOOKUP('170 N'!$E30,'Dd13'!$H$2:$S$66,7,FALSE)*V30 ->  | CX30: =VLOOKUP('170 N'!$E30,'Dd13'!$H$2:$S$66,8,FALSE)*V30 ->  | CY30: =VLOOKUP('170 N'!$E30,'Dd13'!$H$2:$T$66,10,FALSE)*V30/1000 ->  | CZ30: =CW30+DA30+DB30-CY30 ->  | DA30: =CX30/2 ->  | DB30: =VLOOKUP('170 N'!$E30,'Dd13'!$H$2:$T$66,12,FALSE)*365*V30/1000 ->  | DC30: =CW30+DD30+CX30-CY30 ->  | DD30: =VLOOKUP('170 N'!$E30,'Dd13'!$H$2:$T$66,13,FALSE)*V30*365/1000 ->  | DE30: =IF(ISERROR(FIND("Milchkuh",'170 N'!E30)>0),0,IF(N30="Ackerfutterbau",1,0)) -> 0 | DF30: =IF(ISERROR(FIND("Milchkuh",'170 N'!E30)>0),0,IF(N30="Grünland",1,0)) -> 0 | DG30: 0 | DH30: =IF(ISERROR(FIND("Milchkuh",'170 N'!E30)>0),0,1) -> 0 | DI30: =IF(ISERROR(FIND("Laufstall",'170 N'!E30)>0),0,IF(DH30=1,1,"")) -> 0 | DJ30: =IF(ISERROR(FIND("Anbindehaltung",'170 N'!E30)>0),0,IF(DH30=1,1,"")) -> 0 | DL30: =365-CL30 -> 0 | DM30: =DL30*V30 -> 0 | DO30: =IF(DR30="",0,1) -> 0 | DP30: =DO30+DP28 -> 0 | DQ30: =IF(DP30=DP28,"",DP30) ->  | DR30: =IF(DL30>0,E30,"") ->  | DS30: =IF(DL30>0,V30,0) -> 0 | DT30: =IF(DL30>0,T30,0) -> 0 | DU30: =IF(DO30=1,R30,"") ->  | DV30: =DS30*DT30 -> 0
W31: =IFERROR(IF(W30="","",CQ30),"") ->  | X31: =IF(W31="","","m³") ->  | DE31: =IF(ISERROR(FIND("Milchkuh",'170 N'!E31)>0),0,IF(N31="Ackerfutterbau",1,0)) -> 0 | DF31: =IF(ISERROR(FIND("Milchkuh",'170 N'!E31)>0),0,IF(N31="Grünland",1,0)) -> 0 | DG31: 0 | DH31: =IF(ISERROR(FIND("Milchkuh",'170 N'!E31)>0),0,1) -> 0 | DI31: =IF(ISERROR(FIND("Laufstall",'170 N'!E31)>0),0,IF(DH31=1,1,"")) -> 0 | DJ31: =IF(ISERROR(FIND("Anbindehaltung",'170 N'!E31)>0),0,IF(DH31=1,1,"")) -> 0
B32: 14 | W32: =IFERROR(IF(V32="","",IF(CN32<>"t","",CP32))," ") ->  | X32: =IFERROR(IF(CN32="t","t",""),"") ->  | Y32: =IFERROR(IF(W32="","",IF(CM32="Festmist von Huf- und Klauentieren","Mist",IF(OR(CM32="Puten Elterntiermist",CM32="Puten Elterntieraufzuchtmist",CM32="Flugentenmist",CM32="Pekingentenmist",CM32="Gänse Elterntiermist",CM32="Gänse Mittelmastmist",CM32="Gänse Spätmastmist",CM32="Gänse Schnellmastmist",CM32="Hähnchenmastmist",CM32="Putenaufzuchtmist",CM32="Putenmist",CM32="Mist aus der Laufvogelhaltung"),"Geflügelmist",IF(OR(CM32="Junghennenaufzuchtkot",CM32="Legehennenkot",CM32="Hähnchenmast Elterntierkot"),"Geflügelkot",IF(CM32="Kaninchenmist","Mist",CM32)))))," Fehler in") ->  | AB32: =IFERROR(IF(V32="","",IF(AND(CR32=0,DI32+DJ32=0),"",CR32+BH32)),"dieser") ->  | AC32: =IFERROR(IF(AB32="","",IF(CM32="Festmist von Huf- und Klauentieren","m³"&" Jauche","m³ "&CM32)),"Zeile!") ->  | AD32: =IFERROR(IF(BU32=0,"",BU32),"") ->  | AF32: =IF(AD32="","","kg") ->  | AG32: =IFERROR(IF(V32="","",ROUND(VLOOKUP('170 N'!$E32,'Dd14'!$H$2:$M$66,6,FALSE)*V32,0)),"") ->  | AI32: =IF(AG32="","","kg") ->  | AJ32: =IFERROR(IF(V32="","",VLOOKUP('170 N'!$E32,'Dd14'!$H$2:$V$66,11,FALSE)*V32),"") ->  | AN32: =IF(V32="","",IF(AND(CR32=0,DI32+DJ32=0),"",CR32/365*CL32+BH32)) ->  | AO32: =IF(W32="","",W32/365*CL32) ->  | AP32: =IF($AB32="","",IF(P32="Mist und Jauche",BW32/365*CL32/100*VLOOKUP(BQ32,Stammdaten!$BF$1:$BP$353,5,FALSE),IF(P32="Mist mit 1/2 Jauchebindung",BW32/365*CL32/100*VLOOKUP(BQ32,Stammdaten!$BF$1:$BP$353,5,FALSE)/2,IF(P32="Mist mit Jauchebindung",0,BW32/365*CL32)))) ->  | AQ32: =IF($Y32="","",IF(P32="Mist und Jauche",BW32/365*CL32/100*(100-VLOOKUP($BQ32,Stammdaten!$BF$1:$BP$353,5,FALSE)),IF(P32="Mist mit 1/2 Jauchebindung",BW32/365*CL32/100*(100-VLOOKUP($BQ32,Stammdaten!$BF$1:$BP$353,5,FALSE))+BW32/365*CL32/100*(VLOOKUP($BQ32,Stammdaten!$BF$1:$BP$353,5,FALSE))/2,IF(P32="Mist mit Jauchebindung",BW32/365*CL32/100*(100-VLOOKUP($BQ32,Stammdaten!$BF$1:$BP$353,5,FALSE))+BW32/365*CL32/100*(VLOOKUP($BQ32,Stammdaten!$BF$1:$BP$353,5,FALSE)),BW32/365*CL32)))) ->  | AR32: =IF($AB32="","",IF(P32="Mist und Jauche",AG32/365*CL32/100*VLOOKUP(BQ32,Stammdaten!$BF$1:$BP$353,5,FALSE),IF(P32="Mist mit 1/2 Jauchebindung",AG32/365*CL32/100*VLOOKUP(BQ32,Stammdaten!$BF$1:$BP$353,5,FALSE)/2,IF(P32="Mist mit Jauchebindung",0,AG32/365*CL32)))) ->  | AS32: =IF($Y32="","",IF(P32="Mist und Jauche",AG32/365*CL32/100*(100-VLOOKUP($BQ32,Stammdaten!$BF$1:$BP$353,5,FALSE)),IF(P32="Mist mit 1/2 Jauchebindung",AG32/365*CL32/100*(100-VLOOKUP($BQ32,Stammdaten!$BF$1:$BP$353,5,FALSE))+AG32/365*CL32/100*(VLOOKUP($BQ32,Stammdaten!$BF$1:$BP$353,5,FALSE))/2,IF(P32="Mist mit Jauchebindung",AG32/365*CL32/100*(100-VLOOKUP($BQ32,Stammdaten!$BF$1:$BP$353,5,FALSE))+AG32/365*CL32/100*(VLOOKUP($BQ32,Stammdaten!$BF$1:$BP$353,5,FALSE)),AG32/365*CL32)))) ->  | AT32: =IF(V32="","",VLOOKUP($BQ32,Stammdaten!$BF$1:$BP$354,8,FALSE)) ->  | AU32: =IF(AP32="","",AT32*AP32) ->  | AV32: =IF(V32="","",VLOOKUP(BQ32,Stammdaten!$BF$1:$BP$354,9,FALSE)) ->  | AW32: =IF(AP32="","",AV32*AP32) ->  | AX32: =IF(V32="","",VLOOKUP($BQ32,Stammdaten!$BF$1:$BP$354,10,FALSE)) ->  | AY32: =IF(AQ32="","",AX32*AQ32) ->  | AZ32: =IF(V32="","",VLOOKUP($BQ32,Stammdaten!$BF$1:$BP$354,11,FALSE)) ->  | BA32: =IF(AQ32="","",AZ32*AQ32) ->  | BB32: =IF(V32="","",IF(AND(CR32=0,DI32+DJ32=0),"",CR32/365*(365-CL32))) ->  | BC32: =IF(W32="","",W32/365*(365-CL32)) ->  | BD32: =IF($AB32="","",IF(P32="Mist und Jauche",BX32/365*(365-CL32)/100*VLOOKUP(BQ32,Stammdaten!$BF$1:$BP$353,5,FALSE),IF(P32="Mist mit 1/2 Jauchebindung",BX32/365*(365-CL32)/100*VLOOKUP(BQ32,Stammdaten!$BF$1:$BP$353,5,FALSE)/2,IF(P32="Mist mit Jauchebindung",0,BX32/365*(365-CL32))))) ->  | BE32: =IF($Y32="","",IF(P32="Mist und Jauche",BX32/365*(365-CL32)/100*(100-VLOOKUP($BQ32,Stammdaten!$BF$1:$BP$353,5,FALSE)),IF(P32="Mist mit 1/2 Jauchebindung",BX32/365*(365-CL32)/100*(100-VLOOKUP($BQ32,Stammdaten!$BF$1:$BP$353,5,FALSE))+BX32/365*(365-CL32)/100*(VLOOKUP($BQ32,Stammdaten!$BF$1:$BP$353,5,FALSE))/2,IF(P32="Mist mit Jauchebindung",BX32/365*(365-CL32)/100*(100-VLOOKUP($BQ32,Stammdaten!$BF$1:$BP$353,5,FALSE))+BX32/365*(365-CL32)/100*(VLOOKUP($BQ32,Stammdaten!$BF$1:$BP$353,5,FALSE)),BX32/365*(365-CL32))))) ->  | BF32: =IF($AB32="","",IF(P32="Mist und Jauche",AG32/365*(365-CL32)/100*VLOOKUP(BQ32,Stammdaten!$BF$1:$BP$353,5,FALSE),IF(P32="Mist mit 1/2 Jauchebindung",AG32/365*(365-CL32)/100*VLOOKUP(BQ32,Stammdaten!$BF$1:$BP$353,5,FALSE)/2,IF(P32="Mist mit Jauchebindung",0,AG32/365*(365-CL32))))) ->  | BG32: =IF($Y32="","",IF(P32="Mist und Jauche",AG32/365*(365-CL32)/100*(100-VLOOKUP($BQ32,Stammdaten!$BF$1:$BP$353,5,FALSE)),IF(P32="Mist mit 1/2 Jauchebindung",AG32/365*(365-CL32)/100*(100-VLOOKUP($BQ32,Stammdaten!$BF$1:$BP$353,5,FALSE))+AG32/365*(365-CL32)/100*(VLOOKUP($BQ32,Stammdaten!$BF$1:$BP$353,5,FALSE))/2,IF(P32="Mist mit Jauchebindung",AG32/365*(365-CL32)/100*(100-VLOOKUP($BQ32,Stammdaten!$BF$1:$BP$353,5,FALSE))+AG32/365*(365-CL32)/100*(VLOOKUP($BQ32,Stammdaten!$BF$1:$BP$353,5,FALSE)),AG32/365*(365-CL32))))) ->  | BH32: =IF(V32="","",IF(DI32=1,8*V32,IF(DJ32=1,2.4*V32,0))) ->  | BI32: =IF(V32="","",VLOOKUP($BQ32,Stammdaten!$BF$1:$BR$354,12,FALSE)) ->  | BJ32: =IF(OR(BI32="",AP32=""),"",AP32*BI32) ->  | BK32: =IF(V32="","",VLOOKUP($BQ32,Stammdaten!$BF$1:$BR$354,13,FALSE)) ->  | BL32: =IF(OR(BK32="",AQ32=""),"",AQ32*BK32) ->  | BM32: =IF(OR(BI32="",BD32=""),"",BD32*BI32) ->  | BN32: =IF(OR(BK32="",BE32=""),"",BE32*BK32) ->  | BO32: =IFERROR(IF(CM32<>"Festmist von Huf- und Klauentieren",1,""),"") ->  | BQ32: =IF(V32="","",VLOOKUP('170 N'!$E32,'Dd14'!$H$2:$X$66,15,FALSE)) ->  | BR32: =IF(V32="","",VLOOKUP('170 N'!$E32,'Dd14'!$H$2:$M$66,5,FALSE)*V32) ->  | BS32: =IFERROR(IF(OR(V32="",BZ32="ja"),"",CU32/365*CL32),"") ->  | BT32: =IF(BS32="","","t") ->  | BU32: =BW32/365*CL32+BX32/365*(365-CL32) -> 0 | BW32: =IF(V32="",0,(VLOOKUP('170 N'!$E32,'Dd14'!$H$2:$M$66,5,FALSE)*V32)/100*(100-VLOOKUP('170 N'!$E32,'Dd14'!$H$2:$X$66,17,FALSE))) -> 0 | BX32: =IF(V32="",0,IF(OR(C32="Milchviehhaltung",C32="Rindermast"),(VLOOKUP('170 N'!$E32,'Dd14'!$H$2:$M$66,5,FALSE)*V32)/100*70,BW32)) -> 0 | BY32: =IF(CM32="Gülle",1,0) ->  | BZ32: =IF(P32="Gülle","ja",IF(AND(P32="",V32<>"",CB32<>1),"X","")) ->  | CA32: =IF(P32="Mist mit 1/2 Jauchebindung","1/2 Jauche-bindung",IF(P32="Mist mit Jauchebindung","Jauche-bindung","")) ->  | CB32: =IF(AND($C32<>"",'Dd14'!$D$3=""),1,"") ->  | CC32: =IF(AND($E32<>"",'Dd14'!$F$10=""),1,"") ->  | CD32: =IF(AND(C32="Geflügelmast",N32="N-/P-reduziert"),1,IF(AND($C32<>"",'Dd14'!$D$17=""),1,IF(AND(R32="",C32="Geflügelmast",VLOOKUP('170 N'!$E32,'Dd14'!$H$2:$X$66,16,FALSE)="N"),1,""))) ->  | CE32: =IF(R32="Stall- haltung",1,IF(CD32=1,1,IF(AND($C32<>"",'Dd14'!$D$17=""),1,""))) ->  | CF32: =IF(AND(OR(R32="halb- tags",R32="ganz- tags"),T32=""),1,"") ->  | CG32: =IF(OR(R32="ganz- tags",R32="halb- tags"),1,"") ->  | CH32: =IF(OR(R32="Stall- haltung",AND(V32<>"",R32="")),1,"") ->  | CJ32: =IF(C32="","",IF(AND(C32<>"",'Dd14'!$D$4="",C32<>"Schweinemast",C32<>"Jungrindermast"),"Mist/Tr.Kot/Jauche",IF(AND(OR(C32="Schweinemast",C32="Jungrindermast"),P32="",BZ32<>"X"),"Gülle",IF(BZ32="ja","Gülle",IF(BZ32="X","X","Mist/Tr.Kot/Jauche"))))) ->  | CK32: =IFERROR(IF(OR(CC32=1,AND(N32="",V32="")),VLOOKUP(C32,'Dd1'!$B$24:$D$36,2,FALSE),IF(AND(N32="",V32<>"",CC32<>1),"X",'170 N'!N32)),"") ->  | CL32: =IF(OR(R32="",R32="Stall- haltung",T32=""),365,365-T32+T32*IF(R32="halb- tags",0.5,0)) -> 365 | CM32: =VLOOKUP('170 N'!$E32,'Dd14'!$H$2:$M$66,4,FALSE) ->  | CN32: =IF(V32="","",VLOOKUP('170 N'!$E32,'Dd14'!$H$2:$M$66,3,FALSE)) ->  | CO32: =IF(V32="","",IF(OR(CA32="1/2 Jauche-bindung",CA32="Jauche-bindung"),0.9,VLOOKUP('170 N'!$E32,'Dd14'!$H$2:$V$66,14,FALSE))) ->  | CP32: =IF(V32="","",ROUND(IF(CN32="m³","",IF(OR(CA32="",CA32="Standard-verfahren"),IF(CW32<>0,CW32,CV32),IF(CA32="1/2 Jauche-bindung",CZ32,IF(CA32="Jauche-bindung",DC32,"")))),0)) ->  | CQ32: =IF(CP32="","",CP32/CO32) ->  | CR32: =IF(CN32="m³",CV32,IF(CN32="t",IF(CM32<>"Festmist von Huf- und Klauentieren",0,IF(CM32="Festmist von Huf- und Klauentieren",IF(OR(CA32="",CA32="Standard-verfahren"),CX32,IF(CA32="1/2 Jauche-bindung",DA32,0)))))) -> FALSE | CS32: =IF(V32="","",IF(OR($CA32="",CA32="Standard-verfahren"),CW32,IF($CA32="1/2 Jauche-bindung",CZ32,IF($CA32="Jauche-bindung",DC32,"")))) ->  | CT32: =IF(V32="","",IF(OR($CA32="",CA32="Standard-verfahren"),CX32,IF($CA32="1/2 Jauche-bindung",DA32,IF($CA32="Jauche-bindung",0,"")))) ->  | CU32: =IF(V32="","",IF(OR($CA32="",CA32="Standard-verfahren"),CY32,IF($CA32="1/2 Jauche-bindung",DB32,IF($CA32="Jauche-bindung",DD32,"")))) ->  | CV32: =IF(V32="","",VLOOKUP('170 N'!$E32,'Dd14'!$H$2:$M$66,2,FALSE)*V32) ->  | CW32: =VLOOKUP('170 N'!$E32,'Dd14'!$H$2:$S$66,7,FALSE)*V32 ->  | CX32: =VLOOKUP('170 N'!$E32,'Dd14'!$H$2:$S$66,8,FALSE)*V32 ->  | CY32: =VLOOKUP('170 N'!$E32,'Dd14'!$H$2:$T$66,10,FALSE)*V32/1000 ->  | CZ32: =CW32+DA32+DB32-CY32 ->  | DA32: =CX32/2 ->  | DB32: =VLOOKUP('170 N'!$E32,'Dd14'!$H$2:$T$66,12,FALSE)*365*V32/1000 ->  | DC32: =CW32+DD32+CX32-CY32 ->  | DD32: =VLOOKUP('170 N'!$E32,'Dd14'!$H$2:$T$66,13,FALSE)*V32*365/1000 ->  | DE32: =IF(ISERROR(FIND("Milchkuh",'170 N'!E32)>0),0,IF(N32="Ackerfutterbau",1,0)) -> 0 | DF32: =IF(ISERROR(FIND("Milchkuh",'170 N'!E32)>0),0,IF(N32="Grünland",1,0)) -> 0 | DG32: 0 | DH32: =IF(ISERROR(FIND("Milchkuh",'170 N'!E32)>0),0,1) -> 0 | DI32: =IF(ISERROR(FIND("Laufstall",'170 N'!E32)>0),0,IF(DH32=1,1,"")) -> 0 | DJ32: =IF(ISERROR(FIND("Anbindehaltung",'170 N'!E32)>0),0,IF(DH32=1,1,"")) -> 0 | DL32: =365-CL32 -> 0 | DM32: =DL32*V32 -> 0 | DO32: =IF(DR32="",0,1) -> 0 | DP32: =DO32+DP30 -> 0 | DQ32: =IF(DP32=DP30,"",DP32) ->  | DR32: =IF(DL32>0,E32,"") ->  | DS32: =IF(DL32>0,V32,0) -> 0 | DT32: =IF(DL32>0,T32,0) -> 0 | DU32: =IF(DO32=1,R32,"") ->  | DV32: =DS32*DT32 -> 0
W33: =IFERROR(IF(W32="","",CQ32),"") ->  | X33: =IF(W33="","","m³") ->  | DE33: =IF(ISERROR(FIND("Milchkuh",'170 N'!E33)>0),0,IF(N33="Ackerfutterbau",1,0)) -> 0 | DF33: =IF(ISERROR(FIND("Milchkuh",'170 N'!E33)>0),0,IF(N33="Grünland",1,0)) -> 0 | DG33: 0 | DH33: =IF(ISERROR(FIND("Milchkuh",'170 N'!E33)>0),0,1) -> 0 | DI33: =IF(ISERROR(FIND("Laufstall",'170 N'!E33)>0),0,IF(DH33=1,1,"")) -> 0 | DJ33: =IF(ISERROR(FIND("Anbindehaltung",'170 N'!E33)>0),0,IF(DH33=1,1,"")) -> 0
B34: 15 | W34: =IFERROR(IF(V34="","",IF(CN34<>"t","",CP34))," ") ->  | X34: =IFERROR(IF(CN34="t","t",""),"") ->  | Y34: =IFERROR(IF(W34="","",IF(CM34="Festmist von Huf- und Klauentieren","Mist",IF(OR(CM34="Puten Elterntiermist",CM34="Puten Elterntieraufzuchtmist",CM34="Flugentenmist",CM34="Pekingentenmist",CM34="Gänse Elterntiermist",CM34="Gänse Mittelmastmist",CM34="Gänse Spätmastmist",CM34="Gänse Schnellmastmist",CM34="Hähnchenmastmist",CM34="Putenaufzuchtmist",CM34="Putenmist",CM34="Mist aus der Laufvogelhaltung"),"Geflügelmist",IF(OR(CM34="Junghennenaufzuchtkot",CM34="Legehennenkot",CM34="Hähnchenmast Elterntierkot"),"Geflügelkot",IF(CM34="Kaninchenmist","Mist",CM34)))))," Fehler in") ->  | AB34: =IFERROR(IF(V34="","",IF(AND(CR34=0,DI34+DJ34=0),"",CR34+BH34)),"dieser") ->  | AC34: =IFERROR(IF(AB34="","",IF(CM34="Festmist von Huf- und Klauentieren","m³"&" Jauche","m³ "&CM34)),"Zeile!") ->  | AD34: =IFERROR(IF(BU34=0,"",BU34),"") ->  | AF34: =IF(AD34="","","kg") ->  | AG34: =IFERROR(IF(V34="","",ROUND(VLOOKUP('170 N'!$E34,'Dd15'!$H$2:$M$66,6,FALSE)*V34,0)),"") ->  | AI34: =IF(AG34="","","kg") ->  | AJ34: =IFERROR(IF(V34="","",VLOOKUP('170 N'!$E34,'Dd15'!$H$2:$V$66,11,FALSE)*V34),"") ->  | AN34: =IF(V34="","",IF(AND(CR34=0,DI34+DJ34=0),"",CR34/365*CL34+BH34)) ->  | AO34: =IF(W34="","",W34/365*CL34) ->  | AP34: =IF($AB34="","",IF(P34="Mist und Jauche",BW34/365*CL34/100*VLOOKUP(BQ34,Stammdaten!$BF$1:$BP$353,5,FALSE),IF(P34="Mist mit 1/2 Jauchebindung",BW34/365*CL34/100*VLOOKUP(BQ34,Stammdaten!$BF$1:$BP$353,5,FALSE)/2,IF(P34="Mist mit Jauchebindung",0,BW34/365*CL34)))) ->  | AQ34: =IF($Y34="","",IF(P34="Mist und Jauche",BW34/365*CL34/100*(100-VLOOKUP($BQ34,Stammdaten!$BF$1:$BP$353,5,FALSE)),IF(P34="Mist mit 1/2 Jauchebindung",BW34/365*CL34/100*(100-VLOOKUP($BQ34,Stammdaten!$BF$1:$BP$353,5,FALSE))+BW34/365*CL34/100*(VLOOKUP($BQ34,Stammdaten!$BF$1:$BP$353,5,FALSE))/2,IF(P34="Mist mit Jauchebindung",BW34/365*CL34/100*(100-VLOOKUP($BQ34,Stammdaten!$BF$1:$BP$353,5,FALSE))+BW34/365*CL34/100*(VLOOKUP($BQ34,Stammdaten!$BF$1:$BP$353,5,FALSE)),BW34/365*CL34)))) ->  | AR34: =IF($AB34="","",IF(P34="Mist und Jauche",AG34/365*CL34/100*VLOOKUP(BQ34,Stammdaten!$BF$1:$BP$353,5,FALSE),IF(P34="Mist mit 1/2 Jauchebindung",AG34/365*CL34/100*VLOOKUP(BQ34,Stammdaten!$BF$1:$BP$353,5,FALSE)/2,IF(P34="Mist mit Jauchebindung",0,AG34/365*CL34)))) ->  | AS34: =IF($Y34="","",IF(P34="Mist und Jauche",AG34/365*CL34/100*(100-VLOOKUP($BQ34,Stammdaten!$BF$1:$BP$353,5,FALSE)),IF(P34="Mist mit 1/2 Jauchebindung",AG34/365*CL34/100*(100-VLOOKUP($BQ34,Stammdaten!$BF$1:$BP$353,5,FALSE))+AG34/365*CL34/100*(VLOOKUP($BQ34,Stammdaten!$BF$1:$BP$353,5,FALSE))/2,IF(P34="Mist mit Jauchebindung",AG34/365*CL34/100*(100-VLOOKUP($BQ34,Stammdaten!$BF$1:$BP$353,5,FALSE))+AG34/365*CL34/100*(VLOOKUP($BQ34,Stammdaten!$BF$1:$BP$353,5,FALSE)),AG34/365*CL34)))) ->  | AT34: =IF(V34="","",VLOOKUP($BQ34,Stammdaten!$BF$1:$BP$354,8,FALSE)) ->  | AU34: =IF(AP34="","",AT34*AP34) ->  | AV34: =IF(V34="","",VLOOKUP(BQ34,Stammdaten!$BF$1:$BP$354,9,FALSE)) ->  | AW34: =IF(AP34="","",AV34*AP34) ->  | AX34: =IF(V34="","",VLOOKUP($BQ34,Stammdaten!$BF$1:$BP$354,10,FALSE)) ->  | AY34: =IF(AQ34="","",AX34*AQ34) ->  | AZ34: =IF(V34="","",VLOOKUP($BQ34,Stammdaten!$BF$1:$BP$354,11,FALSE)) ->  | BA34: =IF(AQ34="","",AZ34*AQ34) ->  | BB34: =IF(V34="","",IF(AND(CR34=0,DI34+DJ34=0),"",CR34/365*(365-CL34))) ->  | BC34: =IF(W34="","",W34/365*(365-CL34)) ->  | BD34: =IF($AB34="","",IF(P34="Mist und Jauche",BX34/365*(365-CL34)/100*VLOOKUP(BQ34,Stammdaten!$BF$1:$BP$353,5,FALSE),IF(P34="Mist mit 1/2 Jauchebindung",BX34/365*(365-CL34)/100*VLOOKUP(BQ34,Stammdaten!$BF$1:$BP$353,5,FALSE)/2,IF(P34="Mist mit Jauchebindung",0,BX34/365*(365-CL34))))) ->  | BE34: =IF($Y34="","",IF(P34="Mist und Jauche",BX34/365*(365-CL34)/100*(100-VLOOKUP($BQ34,Stammdaten!$BF$1:$BP$353,5,FALSE)),IF(P34="Mist mit 1/2 Jauchebindung",BX34/365*(365-CL34)/100*(100-VLOOKUP($BQ34,Stammdaten!$BF$1:$BP$353,5,FALSE))+BX34/365*(365-CL34)/100*(VLOOKUP($BQ34,Stammdaten!$BF$1:$BP$353,5,FALSE))/2,IF(P34="Mist mit Jauchebindung",BX34/365*(365-CL34)/100*(100-VLOOKUP($BQ34,Stammdaten!$BF$1:$BP$353,5,FALSE))+BX34/365*(365-CL34)/100*(VLOOKUP($BQ34,Stammdaten!$BF$1:$BP$353,5,FALSE)),BX34/365*(365-CL34))))) ->  | BF34: =IF($AB34="","",IF(P34="Mist und Jauche",AG34/365*(365-CL34)/100*VLOOKUP(BQ34,Stammdaten!$BF$1:$BP$353,5,FALSE),IF(P34="Mist mit 1/2 Jauchebindung",AG34/365*(365-CL34)/100*VLOOKUP(BQ34,Stammdaten!$BF$1:$BP$353,5,FALSE)/2,IF(P34="Mist mit Jauchebindung",0,AG34/365*(365-CL34))))) ->  | BG34: =IF($Y34="","",IF(P34="Mist und Jauche",AG34/365*(365-CL34)/100*(100-VLOOKUP($BQ34,Stammdaten!$BF$1:$BP$353,5,FALSE)),IF(P34="Mist mit 1/2 Jauchebindung",AG34/365*(365-CL34)/100*(100-VLOOKUP($BQ34,Stammdaten!$BF$1:$BP$353,5,FALSE))+AG34/365*(365-CL34)/100*(VLOOKUP($BQ34,Stammdaten!$BF$1:$BP$353,5,FALSE))/2,IF(P34="Mist mit Jauchebindung",AG34/365*(365-CL34)/100*(100-VLOOKUP($BQ34,Stammdaten!$BF$1:$BP$353,5,FALSE))+AG34/365*(365-CL34)/100*(VLOOKUP($BQ34,Stammdaten!$BF$1:$BP$353,5,FALSE)),AG34/365*(365-CL34))))) ->  | BH34: =IF(V34="","",IF(DI34=1,8*V34,IF(DJ34=1,2.4*V34,0))) ->  | BI34: =IF(V34="","",VLOOKUP($BQ34,Stammdaten!$BF$1:$BR$354,12,FALSE)) ->  | BJ34: =IF(OR(BI34="",AP34=""),"",AP34*BI34) ->  | BK34: =IF(V34="","",VLOOKUP($BQ34,Stammdaten!$BF$1:$BR$354,13,FALSE)) ->  | BL34: =IF(OR(BK34="",AQ34=""),"",AQ34*BK34) ->  | BM34: =IF(OR(BI34="",BD34=""),"",BD34*BI34) ->  | BN34: =IF(OR(BK34="",BE34=""),"",BE34*BK34) ->  | BO34: =IFERROR(IF(CM34<>"Festmist von Huf- und Klauentieren",1,""),"") ->  | BQ34: =IF(V34="","",VLOOKUP('170 N'!$E34,'Dd15'!$H$2:$X$66,15,FALSE)) ->  | BR34: =IF(V34="","",VLOOKUP('170 N'!$E34,'Dd15'!$H$2:$M$66,5,FALSE)*V34) ->  | BS34: =IFERROR(IF(OR(V34="",BZ34="ja"),"",CU34/365*CL34),"") ->  | BT34: =IF(BS34="","","t") ->  | BU34: =BW34/365*CL34+BX34/365*(365-CL34) -> 0 | BW34: =IF(V34="",0,(VLOOKUP('170 N'!$E34,'Dd15'!$H$2:$M$66,5,FALSE)*V34)/100*(100-VLOOKUP('170 N'!$E34,'Dd15'!$H$2:$X$66,17,FALSE))) -> 0 | BX34: =IF(V34="",0,IF(OR(C34="Milchviehhaltung",C34="Rindermast"),(VLOOKUP('170 N'!$E34,'Dd15'!$H$2:$M$66,5,FALSE)*V34)/100*70,BW34)) -> 0 | BY34: =IF(CM34="Gülle",1,0) ->  | BZ34: =IF(P34="Gülle","ja",IF(AND(P34="",V34<>"",CB34<>1),"X","")) ->  | CA34: =IF(P34="Mist mit 1/2 Jauchebindung","1/2 Jauche-bindung",IF(P34="Mist mit Jauchebindung","Jauche-bindung","")) ->  | CB34: =IF(AND($C34<>"",'Dd15'!$D$3=""),1,"") ->  | CC34: =IF(AND($E34<>"",'Dd15'!$F$10=""),1,"") ->  | CD34: =IF(AND(C34="Geflügelmast",N34="N-/P-reduziert"),1,IF(AND($C34<>"",'Dd15'!$D$17=""),1,IF(AND(R34="",C34="Geflügelmast",VLOOKUP('170 N'!$E34,'Dd15'!$H$2:$X$66,16,FALSE)="N"),1,""))) ->  | CE34: =IF(R34="Stall- haltung",1,IF(CD34=1,1,IF(AND($C34<>"",'Dd15'!$D$17=""),1,""))) ->  | CF34: =IF(AND(OR(R34="halb- tags",R34="ganz- tags"),T34=""),1,"") ->  | CG34: =IF(OR(R34="ganz- tags",R34="halb- tags"),1,"") ->  | CH34: =IF(OR(R34="Stall- haltung",AND(V34<>"",R34="")),1,"") ->  | CJ34: =IF(C34="","",IF(AND(C34<>"",'Dd15'!$D$4="",C34<>"Schweinemast",C34<>"Jungrindermast"),"Mist/Tr.Kot/Jauche",IF(AND(OR(C34="Schweinemast",C34="Jungrindermast"),P34="",BZ34<>"X"),"Gülle",IF(BZ34="ja","Gülle",IF(BZ34="X","X","Mist/Tr.Kot/Jauche"))))) ->  | CK34: =IFERROR(IF(OR(CC34=1,AND(N34="",V34="")),VLOOKUP(C34,'Dd1'!$B$24:$D$36,2,FALSE),IF(AND(N34="",V34<>"",CC34<>1),"X",'170 N'!N34)),"") ->  | CL34: =IF(OR(R34="",R34="Stall- haltung",T34=""),365,365-T34+T34*IF(R34="halb- tags",0.5,0)) -> 365 | CM34: =VLOOKUP('170 N'!$E34,'Dd15'!$H$2:$M$66,4,FALSE) ->  | CN34: =IF(V34="","",VLOOKUP('170 N'!$E34,'Dd15'!$H$2:$M$66,3,FALSE)) ->  | CO34: =IF(V34="","",IF(OR(CA34="1/2 Jauche-bindung",CA34="Jauche-bindung"),0.9,VLOOKUP('170 N'!$E34,'Dd15'!$H$2:$V$66,14,FALSE))) ->  | CP34: =IF(V34="","",ROUND(IF(CN34="m³","",IF(OR(CA34="",CA34="Standard-verfahren"),IF(CW34<>0,CW34,CV34),IF(CA34="1/2 Jauche-bindung",CZ34,IF(CA34="Jauche-bindung",DC34,"")))),0)) ->  | CQ34: =IF(CP34="","",CP34/CO34) ->  | CR34: =IF(CN34="m³",CV34,IF(CN34="t",IF(CM34<>"Festmist von Huf- und Klauentieren",0,IF(CM34="Festmist von Huf- und Klauentieren",IF(OR(CA34="",CA34="Standard-verfahren"),CX34,IF(CA34="1/2 Jauche-bindung",DA34,0)))))) -> FALSE | CS34: =IF(V34="","",IF(OR($CA34="",CA34="Standard-verfahren"),CW34,IF($CA34="1/2 Jauche-bindung",CZ34,IF($CA34="Jauche-bindung",DC34,"")))) ->  | CT34: =IF(V34="","",IF(OR($CA34="",CA34="Standard-verfahren"),CX34,IF($CA34="1/2 Jauche-bindung",DA34,IF($CA34="Jauche-bindung",0,"")))) ->  | CU34: =IF(V34="","",IF(OR($CA34="",CA34="Standard-verfahren"),CY34,IF($CA34="1/2 Jauche-bindung",DB34,IF($CA34="Jauche-bindung",DD34,"")))) ->  | CV34: =IF(V34="","",VLOOKUP('170 N'!$E34,'Dd15'!$H$2:$M$66,2,FALSE)*V34) ->  | CW34: =VLOOKUP('170 N'!$E34,'Dd15'!$H$2:$S$66,7,FALSE)*V34 ->  | CX34: =VLOOKUP('170 N'!$E34,'Dd15'!$H$2:$S$66,8,FALSE)*V34 ->  | CY34: =VLOOKUP('170 N'!$E34,'Dd15'!$H$2:$T$66,10,FALSE)*V34/1000 ->  | CZ34: =CW34+DA34+DB34-CY34 ->  | DA34: =CX34/2 ->  | DB34: =VLOOKUP('170 N'!$E34,'Dd15'!$H$2:$T$66,12,FALSE)*365*V34/1000 ->  | DC34: =CW34+DD34+CX34-CY34 ->  | DD34: =VLOOKUP('170 N'!$E34,'Dd15'!$H$2:$T$66,13,FALSE)*V34*365/1000 ->  | DE34: =IF(ISERROR(FIND("Milchkuh",'170 N'!E34)>0),0,IF(N34="Ackerfutterbau",1,0)) -> 0 | DF34: =IF(ISERROR(FIND("Milchkuh",'170 N'!E34)>0),0,IF(N34="Grünland",1,0)) -> 0 | DG34: 0 | DH34: =IF(ISERROR(FIND("Milchkuh",'170 N'!E34)>0),0,1) -> 0 | DI34: =IF(ISERROR(FIND("Laufstall",'170 N'!E34)>0),0,IF(DH34=1,1,"")) -> 0 | DJ34: =IF(ISERROR(FIND("Anbindehaltung",'170 N'!E34)>0),0,IF(DH34=1,1,"")) -> 0 | DL34: =365-CL34 -> 0 | DM34: =DL34*V34 -> 0 | DO34: =IF(DR34="",0,1) -> 0 | DP34: =DO34+DP32 -> 0 | DQ34: =IF(DP34=DP32,"",DP34) ->  | DR34: =IF(DL34>0,E34,"") ->  | DS34: =IF(DL34>0,V34,0) -> 0 | DT34: =IF(DL34>0,T34,0) -> 0 | DU34: =IF(DO34=1,R34,"") ->  | DV34: =DS34*DT34 -> 0
W35: =IFERROR(IF(W34="","",CQ34),"") ->  | X35: =IF(W35="","","m³") ->  | DE35: =IF(ISERROR(FIND("Milchkuh",'170 N'!E35)>0),0,IF(N35="Ackerfutterbau",1,0)) -> 0 | DF35: =IF(ISERROR(FIND("Milchkuh",'170 N'!E35)>0),0,IF(N35="Grünland",1,0)) -> 0 | DG35: 0 | DH35: =IF(ISERROR(FIND("Milchkuh",'170 N'!E35)>0),0,1) -> 0 | DI35: =IF(ISERROR(FIND("Laufstall",'170 N'!E35)>0),0,IF(DH35=1,1,"")) -> 0 | DJ35: =IF(ISERROR(FIND("Anbindehaltung",'170 N'!E35)>0),0,IF(DH35=1,1,"")) -> 0
B37: Angaben zur Flächenbewirtschaftung | J37: Nährstoffe pro Jahr | Y37: Gesamtanfall Wirtschaftsdünger pro Jahr | BH37: Summe | BQ37: nicht kontinuierl. abgegeb. Gülle, wenn VWK | BR37: kontin. Abgabe BGA wenn VWK | BS37: Summe Einstr. | BU37: nicht berücks.fähige Fläche | BW37: Bezugszeitraum | BX37: Stoffstrom ab 23 | BY37: Düngej?
F38: bewirtschaftete Fläche: | H38: ha | U38: N-Ausscheidungen eigene Tierhaltung: | V38: =IFERROR(SUM(BR6:BR35),"") -> 0 | W38: =IF(V38="","","kg") -> kg | Y38: (ohne Berücksichtigung von Weidehaltung) | BH38: Prozessw. | BS38: =IF(V38="",0,ROUND(SUM(BS6:BS35),1)) -> 0 | BY38: =IF(ISERROR(FIND("Düngej.",W2)>0),"nein","ja") -> nein | CD38: Anwendungsgebiet: | CE38: Einhaltung Düngerecht
C39: davon Grünland oder mehrjähriger Feldfutterbau: | U39: =IF(AND(CE38="Verwertungskonzept",BQ45>0),"P₂O₅ aus eig. Tierh. und Einstreu:","P₂O₅ aus eig. Tierh.:") -> P₂O₅ aus eig. Tierh.: | V39: =IFERROR(IF(V38="","",SUM(AG6:AG35))+IF(CE38="Verwertungskonzept",BQ45*3,0),"") -> 0 | W39: =IF(V39="","","kg") -> kg | AD39: Summe Gülle und Jauche: | AE39: =IF(V38="","",IF(SUM(AB6:AB35)>0.4,ROUND(SUM(AB6:AB35),0),0)) -> 0 | AH39: =IF(AE39="","","m³") -> m³ | BH39: =SUM(BH6:BH35) -> 0 | BU39: =IF(G41="nein",0,IF(D46=0,E46+G46,0)+IF(D47=0,E47+G47,0)+IF(D48=0,E48+G48,0)+IF(D49=0,E49+G49,0)) -> 0 | BW39: Kalenderjahr 2020
H40: ha | U40: Gesamtstickstoff (Gesamt-Norg) aus eig. Tierh.: | V40: =IFERROR(IF(SUM(V6:V35)=0,0,SUM(BU6:BU35)),"") -> 0 | W40: =IF(V40="","","kg") -> kg | AD40: mit Gülle/Jauche gelagertes Wasser: | AH40: m³ | BU40: Acker | BW40: Kalenderjahr 2021
F41: Restriktionsflächen vorhanden?: | G41: nein | U41: ggf. Abgabe Gesamt-Norg: | W41: kg | AD41: =IF(AE41="","","nötige Lagerdauer:") ->  | AE41: =IF(AE39="","",IF(AI39<>"","",IF(AE39+AE40=0,"",IF(OR((G38-BU39)<0.001,F51>2.99),(((AE39+AE40)-BR41)*9+BR41*1)/(AE39+AE40),((((G38-BU39)-(G40-BU43))*9+(G40-BU43)*6)/(G38-BU39)*((AE39+AE40)-(BQ41+BR41))+BQ41*9+BR41*1)/(AE39+AE40))))) ->  | AH41: =IF(AE41="","","Monate") ->  | BQ41: =IF(CE38="Einhaltung Düngerecht",0,IF(CE38="Verwertungskonzept",#REF!-BR41,x)) -> 0 | BR41: =IF(CE38="Verwertungskonzept",#REF!,0) -> 0 | BU41: =IF(G41="nein",0,IF(D46=0,E46,0)+IF(D47=0,E47,0)+IF(D48=0,E48,0)+IF(D49=0,E49,0)) -> 0 | BW41: Kalenderjahr 2022
B42: =IF(G41="ja"," davon Flächen mit Verbot/Einschränkung der organischen/organisch-mineralischen N-Düngung","") ->  | U42: ggf. Aufnahme Gesamt-Norg: | W42: kg | AD42: =IF(AE42="","","nötiger Lagerraum:") ->  | AE42: =IFERROR(IF(AE41="","",(AE39+AE40)/12*AE41),"") ->  | AH42: =IF(AE42="","",AH39) ->  | BQ42: Strohbedarf für P205 Berechnung | BU42: Grünl./Feldgr | BW42: Kalenderjahr 2023 | BX42: x
U43: aufgebrachte Menge an Gesamtstickstoff aus organischer Düngung: | V43: =IFERROR(V40-V41+V42,"") -> 0 | W43: =IF(V43="","","kg") -> kg | BU43: =IF(G41="nein",0,IF(D46=0,G46,0)+IF(D47=0,G47,0)+IF(D48=0,G48,0)+IF(D49=0,G49,0)) -> 0 | BW43: Wirtschaftsjahr 19/20
C44: =IF(B42="","","Nr.") ->  | D44: =IF(B42="","","max. kg Gesamt-Norg.") ->  | E44: =IF(B42="","","Fläche (ha)") ->  | U44: =IF(OR(G38<0.001,G41="nein"),"","berücksichtigungsfähige Fläche:") ->  | V44: =IF(U44="","",IF(G38-(IF(D46=0,E46+G46,0)+IF(D47=0,E47+G47,0)+IF(D48=0,E48+G48,0)+IF(D49=0,E49+G49,0))<0,0,G38-(IF(D46=0,E46+G46,0)+IF(D47=0,E47+G47,0)+IF(D48=0,E48+G48,0)+IF(D49=0,E49+G49,0)))) ->  | W44: =IF(U44="","","ha") ->  | BS44: Mögl. N-Düngung auf Restriktionsfl. | BU44: Fläche mit Restriktion >0 | BW44: Wirtschaftsjahr 20/21
E45: =IF(B42="","","Acker") ->  | G45: =IF(B42="","","Grünland") ->  | H45: =IF(AND(G41="ja",OR(SUM(E46:G49)>G38,SUM(E46:F49)>(G38-G40),SUM(G46:G49)>G40)),"mehr als vorhan-den!","") ->  | U45: =IF(G38>0.01,"im Betriebsdurchschnitt aufgebrachte Menge Gesamt-N aus org. Düngung:","") ->  | V45: =IFERROR(IF(G38<0.001,"",ROUND((V40-V41+V42)/IF(V44="",G38,V44),0)),"") ->  | W45: =IF(V45="","","kg/ha") ->  | Y45: =IF(Y46="","","feste Wirtschaftsdünger") ->  | AE45: =IF(Y46="","","t/Jahr") ->  | AH45: =IF(Y46="","","m³/Monat") ->  | BQ45: =SUM(BS6:BS35) -> 0 | BW45: Wirtschaftsjahr 21/22 | CJ45: Festmist Huf-u.Klauentiere
C46: =IF($B$42="","","1") ->  | U46: =IF(G38<0.001,"",IF(G41="ja","im Betriebsdurchschnitt zulässig unter Berücks. von Restriktionsflächen:","im Betriebsdurchschnitt zulässig:")) ->  | V46: =IF(G38<0.001,"",IF(G38-BU39<0.001,0,IF(G41="ja",ROUND(((G38-BU39-SUM(BU47:BU50))*170+SUM(BS47:BS50))/(G38-BU39),0),170))) ->  | W46: =IF(V46="","","kg/ha") ->  | Y46: =IF(V38="","",IF(SUM($BY$54:$BY$70)<CB54,"",VLOOKUP(CB54,$CA$54:$CM$70,3,FALSE))) ->  | AE46: =IF(V38="","",IF(SUM($BY$54:$BY$70)<CB54,"",VLOOKUP(CB54,$CA$54:$CM$70,8,FALSE))) ->  | AH46: =IF(V38="","",IF(SUM($BY$54:$BY$70)<CB54,"",VLOOKUP(CB54,$CA$54:$CM$70,10,FALSE))) ->  | BW46: Wirtschaftsjahr 22/23 | CK46: Festmist | CL46: Legehennenkot
C47: =IF($B$42="","","2") ->  | J47: =IF(OR(V45=0,V45=""),"",IF(V45<=V46,"Nach den hier zugrundeliegenden Daten wird die betriebliche N-Obergrenze gemäß § 6 Absatz 4 DüV eingehalten.","Nach den hier zugrundeliegenden Daten wird die betriebliche N-Obergrenze gemäß § 6 Absatz 4 DüV nicht eingehalten.")) ->  | Y47: =IF(V38="","",IF(SUM($BY$54:$BY$70)<CB55,"",VLOOKUP(CB55,$CA$54:$CM$70,3,FALSE))) ->  | AE47: =IF(V38="","",IF(SUM($BY$54:$BY$70)<CB55,"",VLOOKUP(CB55,$CA$54:$CM$70,8,FALSE))) ->  | AH47: =IF(V38="","",IF(SUM($BY$54:$BY$70)<CB55,"",VLOOKUP(CB55,$CA$54:$CM$70,10,FALSE))) ->  | BQ47: Strohbedarf | BS47: =D46*E46+D46*G46 -> 0 | BU47: =IF(D46>0,E46+G46,0) -> 0 | BW47: Wirtschaftsjahr 23/24 | BX47: x | CJ47: ja | CK47: =IF($CH$54>0.001,"nein","") ->  | CL47: mit Kotband
C48: =IF($B$42="","","3") ->  | Y48: =IF(V38="","",IF(SUM($BY$54:$BY$70)<CB56,"",VLOOKUP(CB56,$CA$54:$CM$70,3,FALSE))) ->  | AE48: =IF(V38="","",IF(SUM($BY$54:$BY$70)<CB56,"",VLOOKUP(CB56,$CA$54:$CM$70,8,FALSE))) ->  | AH48: =IF(V38="","",IF(SUM($BY$54:$BY$70)<CB56,"",VLOOKUP(CB56,$CA$54:$CM$70,10,FALSE))) ->  | BS48: =D47*E47+D47*G47 -> 0 | BU48: =IF(D47>0,E47+G47,0) -> 0 | BW48: Düngej. 19/20, Beginn am: | CJ48: nein | CK48: =IF($CH$54>0.001,"ja","") ->  | CL48: ohne Kotband
C49: =IF($B$42="","","4") ->  | Y49: =IF(V38="","",IF(SUM($BY$54:$BY$70)<CB57,"",VLOOKUP(CB57,$CA$54:$CM$70,3,FALSE))) ->  | AE49: =IF(V38="","",IF(SUM($BY$54:$BY$70)<CB57,"",VLOOKUP(CB57,$CA$54:$CM$70,8,FALSE))) ->  | AH49: =IF(V38="","",IF(SUM($BY$54:$BY$70)<CB57,"",VLOOKUP(CB57,$CA$54:$CM$70,10,FALSE))) ->  | BQ49: =IF(AND(CE38="Verwertungskonzept",V38>0.001),ROUND(SUM(BS6:BS35),1),"x") -> x | BS49: =D48*E48+D48*G48 -> 0 | BU49: =IF(D48>0,E48+G48,0) -> 0 | BW49: Düngej. 20/21, Beginn am:
B50: Großvieheinheiten (GV) | Y50: =IF(V38="","",IF(SUM(BY54:BY70)>5,"Liste nicht vollständig!",IF(SUM($BY$54:$BY$70)<CB58,"",VLOOKUP(CB58,$CA$54:$CM$70,3,FALSE)))) ->  | AE50: =IF(V38="","",IF(SUM(BY54:BY70)>5,"",IF(SUM($BY$54:$BY$70)<CB58,"",VLOOKUP(CB58,$CA$54:$CM$70,8,FALSE)))) ->  | AH50: =IF(V38="","",IF(SUM(BY54:BY70)>5,"",IF(SUM($BY$54:$BY$70)<CB58,"",VLOOKUP(CB58,$CA$54:$CM$70,10,FALSE)))) ->  | BS50: =D49*E49+D49*G49 -> 0 | BU50: =IF(D49>0,E49+G49,0) -> 0 | BW50: Düngej. 21/22, Beginn am:
C51: GV: | D51: =IF(V38="","",SUM(AJ6:AJ35)) -> 0 | E51: =IF(F51="","","GV/ha:") ->  | F51: =IF(OR(D51="",G38<0.001),"",D51/G38) ->  | X51: =IF(Y46="","","Lagerraumbedarf: lwk-niedersachsen.de Webcode: 01036049 ") ->  | BW51: Düngej. 22/23, Beginn am:
BW52: Düngej. 23/24, Beginn am: | BX52: x
CC53: Festmist | CH53: t | CI53: m³ | CJ53: m³/Monat | CK53: nötige Lagerdauer außerhalb des Stalles | CL53: Lagervolumen
BY54: =IF(CH54>0.01,1,0) -> 0 | BZ54: =BY54 -> 0 | CA54: =BZ54 -> 0 | CB54: 1 | CC54: Festmist von Huf- und Klauentieren | CH54: =SUMIFS($CP$6:$CP$35,$CM$6:$CM$35,CC54) -> 0 | CI54: =SUMIFS($CQ$6:$CQ$35,$CM$6:$CM$35,CC54) -> 0 | CJ54: =ROUND(CI54/12,1) -> 0 | CL54: =ROUND(CJ54*2-IF(#REF!="ja",#REF!,0),1) -> 
BY55: 0 | BZ55: =BY55+BZ54 -> 0 | CA55: =IF(BZ55=BZ54,"",BZ55) ->  | CB55: 2 | CC55: Legehennenkot | CH55: 0 | CI55: 0 | CJ55: 0 | CK55: 5 | CL55: =IF(OR(CK55<0.1,CK55=""),"",ROUND(CI55/12*CK55,1)) -> 0 | CM55: =IF(AND(#REF!=CC55,#REF!<>""),IF(#REF!="ohne Kotband","Sofern nur jährlich zum Bestandswechsel ausgemistet wird, ist keine Lagerstätte für den Legehennenkot außerhalb des Stalls/der Ställe vorgeschrieben",IF(#REF!="mit Kotband","Es gilt eine Mindestlagerdauer von 5 Monaten. Außerhalb des Stalls/der Ställe muss ein Mindestlagerraum von "&CL55&" m³ vorgehalten werden.","")),"") -> 
BY56: 0 | BZ56: =BY56+BZ55 -> 0 | CA56: =IF(BZ56=BZ55,"",BZ56) ->  | CB56: 3 | CC56: Junghennenaufzuchtkot | CH56: 0 | CI56: 0 | CJ56: 0 | CM56: Ob ein eine Lagermöglichkeit außerhalb des Stalls/der Ställe nötig ist, muss im Einzelfall anhand der Bauart und der Bewirtschaftung des Stalls/der Stallungen bewertet werden.
BY57: 0 | BZ57: 0 | CB57: 4 | CC57: Hähnchenmastmist | CH57: 0 | CI57: 0 | CJ57: 0 | CK57: 4 | CL57: 0 | CM57: ="Es gilt eine Mindestlagerdauer von 5 Monaten. Die Stallagerung wird mit einem Monat berücksichtigt. Außerhalb des Stalls/der Ställe muss somit eine Mindestlagerkapazität von "&CL57&" m³ vorgehalten werden." -> Es gilt eine Mindestlagerdauer von 5 Monaten. Die Stallagerung wird mit einem Monat berücksichtigt. Außerhalb des Stalls/der Ställe muss somit eine Mindestlagerkapazität von 0 m³ vorgehalten werden.
BY58: 0 | BZ58: 0 | CB58: 5 | CC58: Hähnchenmast Elterntierkot | CH58: 0 | CI58: 0 | CJ58: 0 | CM58: Ob ein eine Lagermöglichkeit außerhalb des Stalls/der Ställe nötig ist, muss im Einzelfall anhand der Bauart und der Bewirtschaftung des Stalls/der Stallungen bewertet werden.
BY59: 0 | BZ59: 0 | CB59: 6 | CC59: Putenmist | CH59: 0 | CI59: 0 | CJ59: 0 | CK59: 1 | CL59: 0 | CM59: ="Es gilt eine Mindestlagerdauer von 5 Monaten. Die Stallagerung wird mit "&5-CK59&" Monaten berücksichtigt. Außerhalb des Stalls/der Ställe muss somit eine Mindestlagerkapazität von "&CL59&" m³ vorgehalten werden." -> Es gilt eine Mindestlagerdauer von 5 Monaten. Die Stallagerung wird mit 4 Monaten berücksichtigt. Außerhalb des Stalls/der Ställe muss somit eine Mindestlagerkapazität von 0 m³ vorgehalten werden.
BY60: 0 | BZ60: 0 | CB60: 7 | CC60: Putenaufzuchtmist | CH60: 0 | CI60: 0 | CJ60: 0 | CM60: Ob ein eine Lagermöglichkeit außerhalb des Stalls/der Ställe nötig ist, muss im Einzelfall anhand der Bauart und der Bewirtschaftung des Stalls/der Stallungen bewertet werden.
BY61: 0 | BZ61: 0 | CB61: 8 | CC61: Puten Elterntiermist | CH61: 0 | CI61: 0 | CJ61: 0 | CK61: 1 | CL61: 0 | CM61: Ob ein eine Lagermöglichkeit außerhalb des Stalls/der Ställe nötig ist, muss im Einzelfall anhand der Bauart und der Bewirtschaftung des Stalls/der Stallungen bewertet werden.
BY62: 0 | BZ62: 0 | CB62: 9 | CC62: Puten Elterntieraufzuchtmist | CH62: 0 | CI62: 0 | CJ62: 0 | CM62: Ob ein eine Lagermöglichkeit außerhalb des Stalls/der Ställe nötig ist, muss im Einzelfall anhand der Bauart und der Bewirtschaftung des Stalls/der Stallungen bewertet werden.
BY63: 0 | BZ63: 0 | CB63: 10 | CC63: Flugentenmist | CH63: 0 | CI63: 0 | CJ63: 0 | CK63: 2 | CL63: 0 | CM63: ="Es gilt eine Mindestlagerdauer von 5 Monaten. Die Stallagerung wird mit "&5-CK63&" Monaten berücksichtigt. Außerhalb des Stalls/der Ställe muss somit eine Mindestlagerkapazität von "&CL63&" m³ vorgehalten werden." -> Es gilt eine Mindestlagerdauer von 5 Monaten. Die Stallagerung wird mit 3 Monaten berücksichtigt. Außerhalb des Stalls/der Ställe muss somit eine Mindestlagerkapazität von 0 m³ vorgehalten werden.
BY64: 0 | BZ64: 0 | CB64: 11 | CC64: Pekingentenmist | CH64: 0 | CI64: 0 | CJ64: 0 | CK64: 3 | CL64: 0 | CM64: ="Es gilt eine Mindestlagerdauer von 5 Monaten. Die Stallagerung wird mit "&5-CK64&" Monaten berücksichtigt. Außerhalb des Stalls/der Ställe muss somit eine Mindestlagerkapazität von "&CL64&" m³ vorgehalten werden." -> Es gilt eine Mindestlagerdauer von 5 Monaten. Die Stallagerung wird mit 2 Monaten berücksichtigt. Außerhalb des Stalls/der Ställe muss somit eine Mindestlagerkapazität von 0 m³ vorgehalten werden.
BY65: 0 | BZ65: 0 | CB65: 12 | CC65: Gänse Elterntiermist | CH65: 0 | CI65: 0 | CJ65: 0 | CM65: Ob ein eine Lagermöglichkeit außerhalb des Stalls/der Ställe nötig ist, muss im Einzelfall anhand der Bauart und der Bewirtschaftung des Stalls/der Stallungen bewertet werden.
BY66: 0 | BZ66: 0 | CB66: 13 | CC66: Gänse Schnellmastmist | CH66: 0 | CI66: 0 | CJ66: 0 | CM66: Ob ein eine Lagermöglichkeit außerhalb des Stalls/der Ställe nötig ist, muss im Einzelfall anhand der Bauart und der Bewirtschaftung des Stalls/der Stallungen bewertet werden.
BY67: 0 | BZ67: 0 | CB67: 14 | CC67: Gänse Mittelmastmist | CH67: 0 | CI67: 0 | CJ67: 0 | CK67: 1 | CL67: 0 | CM67: ="Es gilt eine Mindestlagerdauer von 5 Monaten. Die Stallagerung wird mit "&5-CK67&" Monaten berücksichtigt. Außerhalb des Stalls/der Ställe muss somit eine Mindestlagerkapazität von "&CL67&" m³ vorgehalten werden." -> Es gilt eine Mindestlagerdauer von 5 Monaten. Die Stallagerung wird mit 4 Monaten berücksichtigt. Außerhalb des Stalls/der Ställe muss somit eine Mindestlagerkapazität von 0 m³ vorgehalten werden.
BY68: 0 | BZ68: 0 | CB68: 15 | CC68: Gänse Spätmastmist | CH68: 0 | CI68: 0 | CJ68: 0 | CK68: 0 | CM68: ="Es gilt eine Mindestlagerdauer von 5 Monaten. Die Stallagerung wird mit 7,5 Monaten berücksichtigt. Außerhalb des Stalls/der Ställe muss somit keine Mistlagerkapazität vorgehalten werden." -> Es gilt eine Mindestlagerdauer von 5 Monaten. Die Stallagerung wird mit 7,5 Monaten berücksichtigt. Außerhalb des Stalls/der Ställe muss somit keine Mistlagerkapazität vorgehalten werden.
BY69: 0 | BZ69: 0 | CB69: 16 | CC69: Kaninchenmist | CH69: 0 | CI69: 0 | CJ69: 0 | CM69: Ob ein eine Lagermöglichkeit außerhalb des Stalls/der Ställe nötig ist, muss im Einzelfall anhand der Bauart und der Bewirtschaftung des Stalls/der Stallungen bewertet werden.
BY70: 0 | BZ70: 0 | CB70: 17 | CC70: Mist aus der Laufvogelhaltung | CH70: 0 | CI70: 0 | CJ70: 0 | CM70: Ob ein eine Lagermöglichkeit außerhalb des Stalls/der Ställe nötig ist, muss im Einzelfall anhand der Bauart und der Bewirtschaftung des Stalls/der Stallungen bewertet werden.

Sheet Stammdaten (hidden)
A1: für Auswahl Weide | B1: F1 | C1: Erz.NR | D1: Erzeugung | F1: Gülle/Mist | H1: Futter | J1: Erfüllt | K1: Nr1 | L1: Nr2 | N1: Tierart + Produktionsverfahren | O1: Dunganfall | P1: Einheit | Q1: Dungart (Mist differenziert) | R1: NBrutto | S1: P2O5 | T1: Mist | U1: Jauche | V1: FM Stroh/Tier/Tag Standard (kg) | W1: FM Stroh/Tier/Jahr Standard (kg) | X1: GV/Tier | Y1: FM/Tier/Tag leicht erhöhte Einstreu | Z1: FM/Tier/Tag ehöhte Einstreu | AA1: Weidehaltung | AB1: Lagerungsdichte | AC1: Fugatfaktor | AD1: Hilfsspalte Weidehaltung | AE1: TierartID_LWK | AF1: Verfahren für Dropdown | AG1: StallLagerverluste | AH1: Nanrechenbar | AI1: Numerierung für Dropdown | AJ1: Dungart | AK1: leer | AL1: NBrutto | AM1: Ausbringverluste | AN1: NZufuhranrechenbar | AO1: Kaliumzuschlag incl. Einstreu | AP1: K2O | AR1: MgO | AS1: CaO | AT1: GVE | AU1: N-max. anrechenbar | AV1: Grobfutter Kennzeichen | AW1: Grobfutter N | AX1: Grobfutter P2O5 | AY1: Grobfutter K2O | BA1: Bearbeiter | BB1: Bearbeiter 05-20 | BC1: Bezeichnung | BD1: Produktionsverfahren | BE1: TierartID | BF1: TierartID_LWK | BG1: Dunganfall Jauche | BH1: % | BI1: Nbrutto Fracht Jauche | BJ1: % | BK1: P2O5 Jauche | BL1: % | BM1: Min.wirksamk. flüssig Acker | BN1: Min.wirksamk. flüssig Grünl. | BO1: Min.wirksamk. fest Acker | BP1: Min.wirksamk. fest Acker | BQ1: Anteil NH4 flüssig | BR1: Anteil NH4 fest | BS1: Kommentar NH4
A2: =IF(AD2=1,1,IF(AND(OR('170 N'!$R$6="halb- tags",'170 N'!$R$6="ganz- tags"),AA2="N"),0,IF(AND(OR('170 N'!$C$6="Milchviehhaltung",'170 N'!$C$6="Pferdehaltung"),OR('170 N'!$R$6="Stall- haltung",'170 N'!$R$6=""),AA2="J"),0,1))) -> 1 | B2: =IF('170 N'!$E$6=Stammdaten!AF2,H2,0) -> 0 | C2: =IF(D2="Eiererzeugung",1,IF(D2="Ferkelerzeugung",2,IF(D2="Geflügelmast",3,IF(D2="Gehegewild",4,IF(D2="Jungrindermast",5,IF(D2="Kaninchenhaltung",6,IF(D2="Lammfleischerzeugung",7,IF(D2="Milchviehhaltung",8,IF(D2="Pferdehaltung",9,IF(D2="Rindermast",10,IF(D2="Schweinemast",11,IF(D2="Ziegenmilcherzeugung",12,"")))))))))))) -> 1 | D2: Eiererzeugung | E2: =IF('170 N'!$C$6=Stammdaten!D2,1,0) -> 0 | F2: Mist/Tr.Kot/Jauche | G2: =IF('170 N'!$CJ$6=Stammdaten!F2,1,0) -> 0 | H2: Standardfutter | I2: =IF(AF2="Kalb Aufzucht, 0-4 Mon,45-135 kg LM, 3 Durchgänge",1,IF('170 N'!$CK$6=Stammdaten!H2,1,0)) -> 0 | J2: =IF(E2+G2+I2+A2=4,1,0) -> 0 | K2: =J2 -> 0 | L2: =K2 -> 0 | M2: 1 | N2: Junghennenaufzuchtplatz Standardfutter, 3,5 kg Zuwachs/Platz | O2: 0.007 | P2: t | Q2: Junghennenaufzuchtkot | R2: 0.269 | S2: 0.176 | V2: =0.71/365 -> 0.001945205479 | W2: =V2*365 -> 0.71 | X2: 0.004 | AA2: N | AB2: 0.5 | AC2: 0.76 | AE2: =BF2 -> Gefluegel_111_T | AF2: Junghennenaufzuchtplatz, 3,5 kg Zuwachs/Platz | AG2: 40 | AH2: 60 | AI2: 1 | AJ2: Geflügelkot | AL2: 0.269 | AM2: 17 | AN2: 50 | AP2: 0.125 | AQ2: =IF(T2="",0,ROUND(T2+U2-O2,4)) -> 0 | BA2: DB_SYS | BB2: DB_SYS | BC2: Junghennenaufzuchtplatz, Konv., Tr.kot | BD2: Standardfutter, 3,5 kg Zuwachs/Platz | BE2: Gefluegel_111 | BF2: Gefluegel_111_T | BO2: 60 | BP2: 60 | BR2: 0.2117117117
A3: =IF(AD3=1,1,IF(AND(OR('170 N'!$R$6="halb- tags",'170 N'!$R$6="ganz- tags"),AA3="N"),0,IF(AND(OR('170 N'!$C$6="Milchviehhaltung",'170 N'!$C$6="Pferdehaltung"),OR('170 N'!$R$6="Stall- haltung",'170 N'!$R$6=""),AA3="J"),0,1))) -> 1 | B3: =IF('170 N'!$E$6=Stammdaten!AF3,H3,0) -> 0 | C3: 1 | D3: Eiererzeugung | E3: =IF('170 N'!$C$6=Stammdaten!D3,1,0) -> 0 | F3: Mist/Tr.Kot/Jauche | G3: =IF('170 N'!$CJ$6=Stammdaten!F3,1,0) -> 0 | H3: N-/P-reduziert | I3: =IF(AF3="Kalb Aufzucht, 0-4 Mon,45-135 kg LM, 3 Durchgänge",1,IF('170 N'!$CK$6=Stammdaten!H3,1,0)) -> 0 | J3: 0 | K3: =J3+K2 -> 0 | L3: =IF(K3=K2,"",K3) ->  | M3: 2 | N3: Junghennenaufzuchtplatz N-/ P-reduziert, 3,5 kg Zuwachs/Platz | O3: 0.007 | P3: t | Q3: Junghennenaufzuchtkot | R3: 0.252 | S3: 0.151 | V3: =0.71/365 -> 0.001945205479 | W3: 0.71 | X3: 0.004 | AA3: N | AB3: 0.5 | AC3: 0.76 | AE3: Gefluegel_112_T | AF3: Junghennenaufzuchtplatz, 3,5 kg Zuwachs/Platz | AG3: 40 | AH3: 60 | AI3: 2 | AJ3: Geflügelkot | AL3: 0.252 | AM3: 17 | AN3: 50 | AP3: 0.125 | AQ3: =IF(T3="",0,ROUND(T3+U3-O3,4)) -> 0 | BA3: DB_SYS | BB3: QFN_ZENTRALE | BC3: Junghennenaufzuchtplatz, N-/P- reduziert, Tr.kot | BD3: N-/ P-reduziert, 3,5 kg Zuwachs/Platz | BE3: Gefluegel_112 | BF3: Gefluegel_112_T | BO3: 60 | BP3: 60 | BR3: 0.2095238095
A4: =IF(AD4=1,1,IF(AND(OR('170 N'!$R$6="halb- tags",'170 N'!$R$6="ganz- tags"),AA4="N"),0,IF(AND(OR('170 N'!$C$6="Milchviehhaltung",'170 N'!$C$6="Pferdehaltung"),OR('170 N'!$R$6="Stall- haltung",'170 N'!$R$6=""),AA4="J"),0,1))) -> 1 | B4: =IF('170 N'!$E$6=Stammdaten!AF4,H4,0) -> 0 | C4: 1 | D4: Eiererzeugung | E4: =IF('170 N'!$C$6=Stammdaten!D4,1,0) -> 0 | F4: Mist/Tr.Kot/Jauche | G4: =IF('170 N'!$CJ$6=Stammdaten!F4,1,0) -> 0 | H4: Standardfutter | I4: =IF(AF4="Kalb Aufzucht, 0-4 Mon,45-135 kg LM, 3 Durchgänge",1,IF('170 N'!$CK$6=Stammdaten!H4,1,0)) -> 0 | J4: 0 | K4: 0 | M4: 3 | N4: Legehennenplatz Standardfutter, 17,6 kg Eimasse | O4: 0.022 | P4: t | Q4: Legehennenkot | R4: 0.764 | S4: 0.396 | V4: =1.22/365 -> 0.003342465753 | W4: 1.22 | X4: 0.004 | AA4: N | AB4: 0.5 | AC4: 0.76 | AE4: Gefluegel_113_T | AF4: Legehennenplatz, 17,6 kg Eimasse | AG4: 40 | AH4: 60 | AI4: 3 | AJ4: Geflügelkot | AL4: 0.764 | AM4: 17 | AN4: 50 | AP4: 0.345 | AQ4: =IF(T4="",0,ROUND(T4+U4-O4,4)) -> 0 | BA4: DB_SYS | BB4: DB_SYS | BC4: Legehennenplatz, Konv., Tr.kot | BD4: Standardfutter, 17,6 kg Eimasse | BE4: Gefluegel_113 | BF4: Gefluegel_113_T | BO4: 60 | BP4: 60 | BR4: 0.2117117117
A5: =IF(AD5=1,1,IF(AND(OR('170 N'!$R$6="halb- tags",'170 N'!$R$6="ganz- tags"),AA5="N"),0,IF(AND(OR('170 N'!$C$6="Milchviehhaltung",'170 N'!$C$6="Pferdehaltung"),OR('170 N'!$R$6="Stall- haltung",'170 N'!$R$6=""),AA5="J"),0,1))) -> 1 | B5: =IF('170 N'!$E$6=Stammdaten!AF5,H5,0) -> 0 | C5: 1 | D5: Eiererzeugung | E5: =IF('170 N'!$C$6=Stammdaten!D5,1,0) -> 0 | F5: Mist/Tr.Kot/Jauche | G5: =IF('170 N'!$CJ$6=Stammdaten!F5,1,0) -> 0 | H5: N-/P-reduziert | I5: =IF(AF5="Kalb Aufzucht, 0-4 Mon,45-135 kg LM, 3 Durchgänge",1,IF('170 N'!$CK$6=Stammdaten!H5,1,0)) -> 0 | J5: 0 | K5: 0 | M5: 4 | N5: Legehennenplatz N-/ P-reduziert, 17,6 kg Eimasse | O5: 0.022 | P5: t | Q5: Legehennenkot | R5: 0.731 | S5: 0.346 | V5: =1.22/365 -> 0.003342465753 | W5: 1.22 | X5: 0.004 | AA5: N | AB5: 0.5 | AC5: 0.76 | AE5: Gefluegel_114_T | AF5: Legehennenplatz, 17,6 kg Eimasse | AG5: 40 | AH5: 60 | AI5: 4 | AJ5: Geflügelkot | AL5: 0.731 | AM5: 17 | AN5: 50 | AP5: 0.345 | AQ5: =IF(T5="",0,ROUND(T5+U5-O5,4)) -> 0 | BA5: DB_SYS | BB5: DB_SYS | BC5: Legehennenplatz, N-/P- reduziert, Tr.kot | BD5: N-/ P-reduziert, 17,6 kg Eimasse | BE5: Gefluegel_114 | BF5: Gefluegel_114_T | BO5: 60 | BP5: 60 | BR5: 0.2095238095
A6: =IF(AD6=1,1,IF(AND(OR('170 N'!$R$6="halb- tags",'170 N'!$R$6="ganz- tags"),AA6="N"),0,IF(AND(OR('170 N'!$C$6="Milchviehhaltung",'170 N'!$C$6="Pferdehaltung"),OR('170 N'!$R$6="Stall- haltung",'170 N'!$R$6=""),AA6="J"),0,1))) -> 1 | B6: =IF('170 N'!$E$6=Stammdaten!AF6,H6,0) -> 0 | C6: 2 | D6: Ferkelerzeugung | E6: =IF('170 N'!$C$6=Stammdaten!D6,1,0) -> 0 | F6: Gülle | G6: =IF('170 N'!$CJ$6=Stammdaten!F6,1,0) -> 0 | H6: Universalfutter | I6: =IF(AF6="Kalb Aufzucht, 0-4 Mon,45-135 kg LM, 3 Durchgänge",1,IF('170 N'!$CK$6=Stammdaten!H6,1,0)) -> 0 | J6: 0 | K6: 0 | M6: 5 | N6: Eberhaltung 60 kg Zuwachs/ Platz /Jahr | O6: 3.72 | P6: m³ | Q6: Gülle | R6: 22.1 | S6: 9.6 | W6: 0 | X6: 0.3 | Y6: =X6*7 -> 2.1 | Z6: =X6*11 -> 3.3 | AA6: N | AB6: 0.9 | AC6: 0.99 | AE6: Schwein_057_G | AF6: Eberhaltung 60 kg Zuwachs/ Platz /Jahr | AG6: 20 | AH6: 60 | AI6: 5 | AJ6: Schweine-gülle | AL6: 22.1 | AM6: 13 | AN6: 70 | AP6: 8.8 | BA6: DB_SYS | BB6: QFN_ZENTRALE | BC6: Eberhaltung, Konv., Gülle | BD6: 60 kg Zuwachs/ Platz /Jahr | BE6: Schwein_057 | BF6: Schwein_057_G | BM6: 70 | BN6: 60 | BQ6: 0.6 | BS6: Werte Mastschweinegülle Durchschnitt
A7: =IF(AD7=1,1,IF(AND(OR('170 N'!$R$6="halb- tags",'170 N'!$R$6="ganz- tags"),AA7="N"),0,IF(AND(OR('170 N'!$C$6="Milchviehhaltung",'170 N'!$C$6="Pferdehaltung"),OR('170 N'!$R$6="Stall- haltung",'170 N'!$R$6=""),AA7="J"),0,1))) -> 1 | B7: =IF('170 N'!$E$6=Stammdaten!AF7,H7,0) -> 0 | C7: 2 | D7: Ferkelerzeugung | E7: =IF('170 N'!$C$6=Stammdaten!D7,1,0) -> 0 | F7: Mist/Tr.Kot/Jauche | G7: =IF('170 N'!$CJ$6=Stammdaten!F7,1,0) -> 0 | H7: Universalfutter | I7: =IF(AF7="Kalb Aufzucht, 0-4 Mon,45-135 kg LM, 3 Durchgänge",1,IF('170 N'!$CK$6=Stammdaten!H7,1,0)) -> 0 | J7: 0 | K7: 0 | M7: 6 | N7: Eberhaltung 60 kg Zuwachs/ Platz /Jahr | O7: 4.08 | P7: t | Q7: Festmist von Huf- und Klauentieren | R7: 22.1 | S7: 9.6 | T7: 2.46 | U7: 1.62 | V7: 1 | W7: 365 | X7: 0.3 | Y7: =X7*7 -> 2.1 | Z7: =X7*11 -> 3.3 | AA7: N | AB7: 0.9 | AC7: 0.93 | AE7: Schwein_057MJ | AF7: Eberhaltung 60 kg Zuwachs/ Platz /Jahr | AG7: 30 | AH7: 63 | AI7: 6 | AJ7: Mist+Jauche | AL7: 22.1 | AM7: 14 | AN7: 60 | AO7: 5 | AP7: 8.8 | AQ7: =IF(T7="",0,ROUND(T7+U7-O7,4)) -> 0 | BA7: QFN_ZENTRALE | BB7: DB_SYS | BC7: Eberhaltung, Konv., Mist+Jauche | BD7: 60 kg Zuwachs/ Platz /Jahr | BE7: Schwein_057 | BF7: Schwein_057MJ | BG7: =U7 -> 1.62 | BH7: =BG7*100/O7 -> 39.70588235 | BI7: 13.2 | BJ7: =BI7*100/R7 -> 59.72850679 | BK7: 1.7 | BL7: =BK7*100/S7 -> 17.70833333 | BM7: 90 | BN7: 90 | BO7: 30 | BP7: 30 | BQ7: 0.8 | BR7: 0.08333333333
A8: =IF(AD8=1,1,IF(AND(OR('170 N'!$R$6="halb- tags",'170 N'!$R$6="ganz- tags"),AA8="N"),0,IF(AND(OR('170 N'!$C$6="Milchviehhaltung",'170 N'!$C$6="Pferdehaltung"),OR('170 N'!$R$6="Stall- haltung",'170 N'!$R$6=""),AA8="J"),0,1))) -> 1 | B8: =IF('170 N'!$E$6=Stammdaten!AF8,H8,0) -> 0 | C8: 2 | D8: Ferkelerzeugung | E8: =IF('170 N'!$C$6=Stammdaten!D8,1,0) -> 0 | F8: Gülle | G8: =IF('170 N'!$CJ$6=Stammdaten!F8,1,0) -> 0 | H8: Universalfutter | I8: =IF(AF8="Kalb Aufzucht, 0-4 Mon,45-135 kg LM, 3 Durchgänge",1,IF('170 N'!$CK$6=Stammdaten!H8,1,0)) -> 0 | J8: 0 | K8: 0 | M8: 7 | N8: Jungsauenaufzucht, 28 bis 115 kg LM Universalfutter, 180 kg Zuwachs je Jahr | O8: 1.92 | P8: m³ | Q8: Gülle | R8: 10.8 | S8: 5.5 | W8: 0 | X8: 0.17 | Y8: =X8*7 -> 1.19 | Z8: =X8*11 -> 1.87 | AA8: N | AB8: 0.9 | AC8: 0.99 | AE8: Schwein_126_G | AF8: Jungsauenaufzucht, 28 bis 115 kg LM, 180 kg Zuwachs je Jahr | AG8: 20 | AH8: 60 | AI8: 7 | AJ8: Schweine-gülle | AL8: 10.8 | AM8: 13 | AN8: 70 | AP8: 4.9 | BA8: DB_SYS | BB8: DB_SYS | BC8: Jungsauenaufzucht, 28 bis 115 kg LM, Konv., Gülle | BD8: Universalfutter, 180 kg Zuwachs je Jahr | BE8: Schwein_126 | BF8: Schwein_126_G | BM8: 70 | BN8: 60 | BQ8: 0.6 | BS8: Werte Mastschweinegülle Durchschnitt
A9: =IF(AD9=1,1,IF(AND(OR('170 N'!$R$6="halb- tags",'170 N'!$R$6="ganz- tags"),AA9="N"),0,IF(AND(OR('170 N'!$C$6="Milchviehhaltung",'170 N'!$C$6="Pferdehaltung"),OR('170 N'!$R$6="Stall- haltung",'170 N'!$R$6=""),AA9="J"),0,1))) -> 1 | B9: =IF('170 N'!$E$6=Stammdaten!AF9,H9,0) -> 0 | C9: 2 | D9: Ferkelerzeugung | E9: =IF('170 N'!$C$6=Stammdaten!D9,1,0) -> 0 | F9: Mist/Tr.Kot/Jauche | G9: =IF('170 N'!$CJ$6=Stammdaten!F9,1,0) -> 0 | H9: Universalfutter | I9: =IF(AF9="Kalb Aufzucht, 0-4 Mon,45-135 kg LM, 3 Durchgänge",1,IF('170 N'!$CK$6=Stammdaten!H9,1,0)) -> 0 | J9: 0 | K9: 0 | M9: 8 | N9: Jungsauenaufzucht, 28 bis 115 kg LM Universalfutter, 180 kg Zuwachs je Jahr | O9: 2.1 | P9: t | Q9: Festmist von Huf- und Klauentieren | R9: 10.8 | S9: 5.5 | T9: 1.38 | U9: 0.72 | V9: 0.5 | W9: 182.5 | X9: 0.17 | Y9: =X9*7 -> 1.19 | Z9: =X9*11 -> 1.87 | AA9: N | AB9: 0.9 | AC9: 0.93 | AE9: Schwein_126MJ | AF9: Jungsauenaufzucht, 28 bis 115 kg LM, 180 kg Zuwachs je Jahr | AG9: 30 | AH9: 58 | AI9: 8 | AJ9: Mist+Jauche | AL9: 10.8 | AM9: 14 | AN9: 60 | AO9: 3 | AP9: 4.9 | AQ9: =IF(T9="",0,ROUND(T9+U9-O9,4)) -> 0 | BA9: QFN_ZENTRALE | BB9: DB_SYS | BC9: Jungsauenaufzucht, 28 bis 115 kg LM, Konv., Mist+Jauche | BD9: Universalfutter, 180 kg Zuwachs je Jahr | BE9: Schwein_126 | BF9: Schwein_126MJ | BG9: =U9 -> 0.72 | BH9: =BG9*100/O9 -> 34.28571429 | BI9: 5.4 | BJ9: =BI9*100/R9 -> 50 | BK9: 0.4 | BL9: =BK9*100/S9 -> 7.272727273 | BM9: 90 | BN9: 90 | BO9: 30 | BP9: 30 | BQ9: 0.8 | BR9: 0.08333333333
A10: =IF(AD10=1,1,IF(AND(OR('170 N'!$R$6="halb- tags",'170 N'!$R$6="ganz- tags"),AA10="N"),0,IF(AND(OR('170 N'!$C$6="Milchviehhaltung",'170 N'!$C$6="Pferdehaltung"),OR('170 N'!$R$6="Stall- haltung",'170 N'!$R$6=""),AA10="J"),0,1))) -> 1 | B10: =IF('170 N'!$E$6=Stammdaten!AF10,H10,0) -> 0 | C10: 2 | D10: Ferkelerzeugung | E10: =IF('170 N'!$C$6=Stammdaten!D10,1,0) -> 0 | F10: Gülle | G10: =IF('170 N'!$CJ$6=Stammdaten!F10,1,0) -> 0 | H10: N-/P-reduziert | I10: =IF(AF10="Kalb Aufzucht, 0-4 Mon,45-135 kg LM, 3 Durchgänge",1,IF('170 N'!$CK$6=Stammdaten!H10,1,0)) -> 0 | J10: 0 | K10: 0 | M10: 9 | N10: Jungsauenaufzucht, 28 bis 115 kg LM N-/ P-reduziert, 180 kg Zuwachs je Jahr | O10: 1.92 | P10: m³ | Q10: Gülle | R10: 9 | S10: 4.6 | W10: 0 | X10: 0.17 | AA10: N | AB10: 0.9 | AC10: 0.99 | AE10: Schwein_127_G | AF10: Jungsauenaufzucht, 28 bis 115 kg LM, 180 kg Zuwachs je Jahr | AG10: 20 | AH10: 60 | AI10: 9 | AJ10: Schweine-gülle | AL10: 9 | AM10: 13 | AN10: 70 | AP10: 4.4 | BA10: DB_SYS | BB10: DB_SYS | BC10: Jungsauenaufzucht, 28 bis 115 kg LM, N-/P- reduziert, Gülle | BD10: N-/ P-reduziert, 180 kg Zuwachs je Jahr | BE10: Schwein_127 | BF10: Schwein_127_G | BM10: 70 | BN10: 60 | BQ10: 0.6 | BS10: Werte Mastschweinegülle Durchschnitt
A11: =IF(AD11=1,1,IF(AND(OR('170 N'!$R$6="halb- tags",'170 N'!$R$6="ganz- tags"),AA11="N"),0,IF(AND(OR('170 N'!$C$6="Milchviehhaltung",'170 N'!$C$6="Pferdehaltung"),OR('170 N'!$R$6="Stall- haltung",'170 N'!$R$6=""),AA11="J"),0,1))) -> 1 | B11: =IF('170 N'!$E$6=Stammdaten!AF11,H11,0) -> 0 | C11: 2 | D11: Ferkelerzeugung | E11: =IF('170 N'!$C$6=Stammdaten!D11,1,0) -> 0 | F11: Mist/Tr.Kot/Jauche | G11: =IF('170 N'!$CJ$6=Stammdaten!F11,1,0) -> 0 | H11: N-/P-reduziert | I11: =IF(AF11="Kalb Aufzucht, 0-4 Mon,45-135 kg LM, 3 Durchgänge",1,IF('170 N'!$CK$6=Stammdaten!H11,1,0)) -> 0 | J11: 0 | K11: 0 | M11: 10 | N11: Jungsauenaufzucht, 28 bis 115 kg LM N-/ P-reduziert, 180 kg Zuwachs je Jahr | O11: 2.1 | P11: t | Q11: Festmist von Huf- und Klauentieren | R11: 9 | S11: 4.6 | T11: 1.38 | U11: 0.72 | V11: 0.5 | W11: 182.5 | X11: 0.17 | Y11: =X11*7 -> 1.19 | Z11: =X11*11 -> 1.87 | AA11: N | AB11: 0.9 | AC11: 0.93 | AE11: Schwein_127MJ | AF11: Jungsauenaufzucht, 28 bis 115 kg LM, 180 kg Zuwachs je Jahr | AG11: 30 | AH11: 57 | AI11: 10 | AJ11: Mist+Jauche | AL11: 9 | AM11: 14 | AN11: 60 | AO11: 3 | AP11: 4.4 | AQ11: =IF(T11="",0,ROUND(T11+U11-O11,4)) -> 0 | BA11: QFN_ZENTRALE | BB11: DB_SYS | BC11: Jungsauenaufzucht, 28 bis 115 kg LM, N-/P- reduziert, Mist+Jauche | BD11: N-/ P-reduziert, 180 kg Zuwachs je Jahr | BE11: Schwein_127 | BF11: Schwein_127MJ | BG11: =U11 -> 0.72 | BH11: =BG11*100/O11 -> 34.28571429 | BI11: 4.5 | BJ11: =BI11*100/R11 -> 50 | BK11: 0.4 | BL11: =BK11*100/S11 -> 8.695652174 | BM11: 90 | BN11: 90 | BO11: 30 | BP11: 30 | BQ11: 0.8 | BR11: 0.08333333333
A12: =IF(AD12=1,1,IF(AND(OR('170 N'!$R$6="halb- tags",'170 N'!$R$6="ganz- tags"),AA12="N"),0,IF(AND(OR('170 N'!$C$6="Milchviehhaltung",'170 N'!$C$6="Pferdehaltung"),OR('170 N'!$R$6="Stall- haltung",'170 N'!$R$6=""),AA12="J"),0,1))) -> 1 | B12: =IF('170 N'!$E$6=Stammdaten!AF12,H12,0) -> 0 | C12: 2 | D12: Ferkelerzeugung | E12: =IF('170 N'!$C$6=Stammdaten!D12,1,0) -> 0 | F12: Gülle | G12: =IF('170 N'!$CJ$6=Stammdaten!F12,1,0) -> 0 | H12: Universalfutter | I12: =IF(AF12="Kalb Aufzucht, 0-4 Mon,45-135 kg LM, 3 Durchgänge",1,IF('170 N'!$CK$6=Stammdaten!H12,1,0)) -> 0 | J12: 0 | K12: 0 | M12: 11 | N12: Jungsaueneingliederung, 95 bis 135 kg LM Universalfutter, 264 kg Zuwachs je Jahr | O12: 2.62 | P12: m³ | Q12: Gülle | R12: 15.4 | S12: 8.5 | W12: 0 | X12: 0.3 | AA12: N | AB12: 0.9 | AC12: 0.99 | AE12: Schwein_128_G | AF12: Jungsaueneingliederung, 95 bis 135 kg LM, 264 kg Zuwachs je Jahr | AG12: 20 | AH12: 60 | AI12: 11 | AJ12: Schweine-gülle | AL12: 15.4 | AM12: 13 | AN12: 70 | AP12: 7.6 | BA12: DB_SYS | BB12: DB_SYS | BC12: Jungsaueneingliederung, 95 bis 135 kg LM, Konv., Gülle | BD12: Universalfutter, 264 kg Zuwachs je Jahr | BE12: Schwein_128 | BF12: Schwein_128_G | BM12: 70 | BN12: 60 | BQ12: 0.6 | BS12: Werte Mastschweinegülle Durchschnitt
A13: =IF(AD13=1,1,IF(AND(OR('170 N'!$R$6="halb- tags",'170 N'!$R$6="ganz- tags"),AA13="N"),0,IF(AND(OR('170 N'!$C$6="Milchviehhaltung",'170 N'!$C$6="Pferdehaltung"),OR('170 N'!$R$6="Stall- haltung",'170 N'!$R$6=""),AA13="J"),0,1))) -> 1 | B13: =IF('170 N'!$E$6=Stammdaten!AF13,H13,0) -> 0 | C13: 2 | D13: Ferkelerzeugung | E13: =IF('170 N'!$C$6=Stammdaten!D13,1,0) -> 0 | F13: Mist/Tr.Kot/Jauche | G13: =IF('170 N'!$CJ$6=Stammdaten!F13,1,0) -> 0 | H13: Universalfutter | I13: =IF(AF13="Kalb Aufzucht, 0-4 Mon,45-135 kg LM, 3 Durchgänge",1,IF('170 N'!$CK$6=Stammdaten!H13,1,0)) -> 0 | J13: 0 | K13: 0 | M13: 12 | N13: Jungsaueneingliederung, 95 bis 135 kg LM Universalfutter, 264 kg Zuwachs je Jahr | O13: 2.98 | P13: t | Q13: Festmist von Huf- und Klauentieren | R13: 15.4 | S13: 8.5 | T13: 1.86 | U13: 1.12 | V13: 1 | W13: 365 | X13: 0.3 | Y13: =X13*7 -> 2.1 | Z13: =X13*11 -> 3.3 | AA13: N | AB13: 0.9 | AC13: 0.93 | AE13: Schwein_128MJ | AF13: Jungsaueneingliederung, 95 bis 135 kg LM, 264 kg Zuwachs je Jahr | AG13: 30 | AH13: 69 | AI13: 12 | AJ13: Mist+Jauche | AL13: 15.4 | AM13: 14 | AN13: 60 | AO13: 5 | AP13: 7.6 | AQ13: =IF(T13="",0,ROUND(T13+U13-O13,4)) -> 0 | BA13: QFN_ZENTRALE | BB13: DB_SYS | BC13: Jungsaueneingliederung, 95 bis 135 kg LM, Konv., Mist+Jauche | BD13: Universalfutter, 264 kg Zuwachs je Jahr | BE13: Schwein_128 | BF13: Schwein_128MJ | BG13: =U13 -> 1.12 | BH13: =BG13*100/O13 -> 37.58389262 | BI13: 11.2 | BJ13: =BI13*100/R13 -> 72.72727273 | BK13: 0.6 | BL13: =BK13*100/S13 -> 7.058823529 | BM13: 90 | BN13: 90 | BO13: 30 | BP13: 30 | BQ13: 0.8 | BR13: 0.08333333333
A14: =IF(AD14=1,1,IF(AND(OR('170 N'!$R$6="halb- tags",'170 N'!$R$6="ganz- tags"),AA14="N"),0,IF(AND(OR('170 N'!$C$6="Milchviehhaltung",'170 N'!$C$6="Pferdehaltung"),OR('170 N'!$R$6="Stall- haltung",'170 N'!$R$6=""),AA14="J"),0,1))) -> 1 | B14: =IF('170 N'!$E$6=Stammdaten!AF14,H14,0) -> 0 | C14: 2 | D14: Ferkelerzeugung | E14: =IF('170 N'!$C$6=Stammdaten!D14,1,0) -> 0 | F14: Gülle | G14: =IF('170 N'!$CJ$6=Stammdaten!F14,1,0) -> 0 | H14: N-/P-reduziert | I14: =IF(AF14="Kalb Aufzucht, 0-4 Mon,45-135 kg LM, 3 Durchgänge",1,IF('170 N'!$CK$6=Stammdaten!H14,1,0)) -> 0 | J14: 0 | K14: 0 | M14: 13 | N14: Jungsaueneingliederung, 95 bis 135 kg LM N-/ P-reduziert, 264 kg Zuwachs je Jahr | O14: 2.62 | P14: m³ | Q14: Gülle | R14: 13.3 | S14: 7.5 | W14: 0 | X14: 0.3 | AA14: N | AB14: 0.9 | AC14: 0.99 | AE14: Schwein_129_G | AF14: Jungsaueneingliederung, 95 bis 135 kg LM, 264 kg Zuwachs je Jahr | AG14: 20 | AH14: 60 | AI14: 13 | AJ14: Schweine-gülle | AL14: 13.3 | AM14: 13 | AN14: 70 | AP14: 6.5 | BA14: DB_SYS | BB14: DB_SYS | BC14: Jungsaueneingliederung, 95 bis 135 kg LM, N-/P- reduziert, Gülle | BD14: N-/ P-reduziert, 264 kg Zuwachs je Jahr | BE14: Schwein_129 | BF14: Schwein_129_G | BM14: 70 | BN14: 60 | BQ14: 0.6 | BS14: Werte Mastschweinegülle Durchschnitt
A15: =IF(AD15=1,1,IF(AND(OR('170 N'!$R$6="halb- tags",'170 N'!$R$6="ganz- tags"),AA15="N"),0,IF(AND(OR('170 N'!$C$6="Milchviehhaltung",'170 N'!$C$6="Pferdehaltung"),OR('170 N'!$R$6="Stall- haltung",'170 N'!$R$6=""),AA15="J"),0,1))) -> 1 | B15: =IF('170 N'!$E$6=Stammdaten!AF15,H15,0) -> 0 | C15: 2 | D15: Ferkelerzeugung | E15: =IF('170 N'!$C$6=Stammdaten!D15,1,0) -> 0 | F15: Mist/Tr.Kot/Jauche | G15: =IF('170 N'!$CJ$6=Stammdaten!F15,1,0) -> 0 | H15: N-/P-reduziert | I15: =IF(AF15="Kalb Aufzucht, 0-4 Mon,45-135 kg LM, 3 Durchgänge",1,IF('170 N'!$CK$6=Stammdaten!H15,1,0)) -> 0 | J15: 0 | K15: 0 | M15: 14 | N15: Jungsaueneingliederung, 95 bis 135 kg LM N-/ P-reduziert, 264 kg Zuwachs je Jahr | O15: 2.98 | P15: t | Q15: Festmist von Huf- und Klauentieren | R15: 13.3 | S15: 7.5 | T15: 1.86 | U15: 1.12 | V15: 1 | W15: 365 | X15: 0.3 | Y15: =X15*7 -> 2.1 | Z15: =X15*11 -> 3.3 | AA15: N | AB15: 0.9 | AC15: 0.93 | AE15: Schwein_129MJ | AF15: Jungsaueneingliederung, 95 bis 135 kg LM, 264 kg Zuwachs je Jahr | AG15: 30 | AH15: 69 | AI15: 14 | AJ15: Mist+Jauche | AL15: 13.3 | AM15: 14 | AN15: 60 | AO15: 5 | AP15: 6.5 | AQ15: =IF(T15="",0,ROUND(T15+U15-O15,4)) -> 0 | BA15: QFN_ZENTRALE | BB15: DB_SYS | BC15: Jungsaueneingliederung, 95 bis 135 kg LM, N-/P- reduziert, Mist+Jauche | BD15: N-/ P-reduziert, 264 kg Zuwachs je Jahr | BE15: Schwein_129 | BF15: Schwein_129MJ | BG15: =U15 -> 1.12 | BH15: =BG15*100/O15 -> 37.58389262 | BI15: 9.7 | BJ15: =BI15*100/R15 -> 72.93233083 | BK15: 0.6 | BL15: =BK15*100/S15 -> 8 | BM15: 90 | BN15: 90 | BO15: 30 | BP15: 30 | BQ15: 0.8 | BR15: 0.08333333333
A16: =IF(AD16=1,1,IF(AND(OR('170 N'!$R$6="halb- tags",'170 N'!$R$6="ganz- tags"),AA16="N"),0,IF(AND(OR('170 N'!$C$6="Milchviehhaltung",'170 N'!$C$6="Pferdehaltung"),OR('170 N'!$R$6="Stall- haltung",'170 N'!$R$6=""),AA16="J"),0,1))) -> 1 | B16: =IF('170 N'!$E$6=Stammdaten!AF16,H16,0) -> 0 | C16: 2 | D16: Ferkelerzeugung | E16: =IF('170 N'!$C$6=Stammdaten!D16,1,0) -> 0 | F16: Gülle | G16: =IF('170 N'!$CJ$6=Stammdaten!F16,1,0) -> 0 | H16: Universalfutter | I16: =IF(AF16="Kalb Aufzucht, 0-4 Mon,45-135 kg LM, 3 Durchgänge",1,IF('170 N'!$CK$6=Stammdaten!H16,1,0)) -> 0 | J16: 0 | K16: 0 | M16: 15 | N16: Sau mit Ferkelaufzucht bis 28kg Universalfutter, 22 Ferkel | O16: 7 | P16: m³ | Q16: Gülle | R16: 39.2 | S16: 17.2 | W16: 0 | X16: 0.36 | AA16: N | AB16: 0.9 | AC16: 0.99 | AE16: Schwein_067_G | AF16: Sau mit Ferkelaufzucht bis 28kg, 22 Ferkel | AG16: 20 | AH16: 60 | AI16: 15 | AJ16: Schweine-gülle | AL16: 39.2 | AM16: 13 | AN16: 70 | AP16: 19.9 | BA16: DB_SYS | BB16: DB_SYS | BC16: Sau mit Ferkelaufzucht bis 28kg, Konv., Gülle | BD16: Universalfutter, 22 Ferkel | BE16: Schwein_067 | BF16: Schwein_067_G | BM16: 70 | BN16: 60 | BQ16: 0.6
A17: =IF(AD17=1,1,IF(AND(OR('170 N'!$R$6="halb- tags",'170 N'!$R$6="ganz- tags"),AA17="N"),0,IF(AND(OR('170 N'!$C$6="Milchviehhaltung",'170 N'!$C$6="Pferdehaltung"),OR('170 N'!$R$6="Stall- haltung",'170 N'!$R$6=""),AA17="J"),0,1))) -> 1 | B17: =IF('170 N'!$E$6=Stammdaten!AF17,H17,0) -> 0 | C17: 2 | D17: Ferkelerzeugung | E17: =IF('170 N'!$C$6=Stammdaten!D17,1,0) -> 0 | F17: Gülle | G17: =IF('170 N'!$CJ$6=Stammdaten!F17,1,0) -> 0 | H17: Universalfutter | I17: =IF(AF17="Kalb Aufzucht, 0-4 Mon,45-135 kg LM, 3 Durchgänge",1,IF('170 N'!$CK$6=Stammdaten!H17,1,0)) -> 0 | J17: 0 | K17: 0 | M17: 16 | N17: Sau mit Ferkelaufzucht bis 28kg Universalfutter, 25 Ferkel | O17: 7.6 | P17: m³ | Q17: Gülle | R17: 41.1 | S17: 17.9 | W17: 0 | X17: 0.36 | AA17: N | AB17: 0.9 | AC17: 0.99 | AE17: Schwein_070_G | AF17: Sau mit Ferkelaufzucht bis 28kg, 25 Ferkel | AG17: 20 | AH17: 60 | AI17: 16 | AJ17: Schweine-gülle | AL17: 41.1 | AM17: 13 | AN17: 70 | AP17: 21.1 | BA17: DB_SYS | BB17: DB_SYS | BC17: Sau mit Ferkelaufzucht bis 28kg, Konv., Gülle | BD17: Universalfutter, 25 Ferkel | BE17: Schwein_070 | BF17: Schwein_070_G | BM17: 70 | BN17: 60 | BQ17: 0.6
A18: =IF(AD18=1,1,IF(AND(OR('170 N'!$R$6="halb- tags",'170 N'!$R$6="ganz- tags"),AA18="N"),0,IF(AND(OR('170 N'!$C$6="Milchviehhaltung",'170 N'!$C$6="Pferdehaltung"),OR('170 N'!$R$6="Stall- haltung",'170 N'!$R$6=""),AA18="J"),0,1))) -> 1 | B18: =IF('170 N'!$E$6=Stammdaten!AF18,H18,0) -> 0 | C18: 2 | D18: Ferkelerzeugung | E18: =IF('170 N'!$C$6=Stammdaten!D18,1,0) -> 0 | F18: Gülle | G18: =IF('170 N'!$CJ$6=Stammdaten!F18,1,0) -> 0 | H18: Universalfutter | I18: =IF(AF18="Kalb Aufzucht, 0-4 Mon,45-135 kg LM, 3 Durchgänge",1,IF('170 N'!$CK$6=Stammdaten!H18,1,0)) -> 0 | J18: 0 | K18: 0 | M18: 17 | N18: Sau mit Ferkelaufzucht bis 28kg Universalfutter, 28 Ferkel | O18: 8.2 | P18: m³ | Q18: Gülle | R18: 42.9 | S18: 18.6 | W18: 0 | X18: 0.37 | AA18: N | AB18: 0.9 | AC18: 0.99 | AE18: Schwein_073_G | AF18: Sau mit Ferkelaufzucht bis 28kg, 28 Ferkel | AG18: 20 | AH18: 60 | AI18: 17 | AJ18: Schweine-gülle | AL18: 42.9 | AM18: 13 | AN18: 70 | AP18: 21.3 | BA18: DB_SYS | BB18: DB_SYS | BC18: Sau mit Ferkelaufzucht bis 28kg, Konv., Gülle | BD18: Universalfutter, 28 Ferkel | BE18: Schwein_073 | BF18: Schwein_073_G | BM18: 70 | BN18: 60 | BQ18: 0.6
A19: =IF(AD19=1,1,IF(AND(OR('170 N'!$R$6="halb- tags",'170 N'!$R$6="ganz- tags"),AA19="N"),0,IF(AND(OR('170 N'!$C$6="Milchviehhaltung",'170 N'!$C$6="Pferdehaltung"),OR('170 N'!$R$6="Stall- haltung",'170 N'!$R$6=""),AA19="J"),0,1))) -> 1 | B19: =IF('170 N'!$E$6=Stammdaten!AF19,H19,0) -> 0 | C19: 2 | D19: Ferkelerzeugung | E19: =IF('170 N'!$C$6=Stammdaten!D19,1,0) -> 0 | F19: Mist/Tr.Kot/Jauche | G19: =IF('170 N'!$CJ$6=Stammdaten!F19,1,0) -> 0 | H19: Universalfutter | I19: =IF(AF19="Kalb Aufzucht, 0-4 Mon,45-135 kg LM, 3 Durchgänge",1,IF('170 N'!$CK$6=Stammdaten!H19,1,0)) -> 0 | J19: 0 | K19: 0 | M19: 18 | N19: Sau mit Ferkelaufzucht bis 28kg Universalfutter, 22 Ferkel | O19: 8 | P19: t | Q19: Festmist von Huf- und Klauentieren | R19: 39.2 | S19: 17.2 | T19: 4.8 | U19: 3.2 | V19: 3 | W19: 1095 | X19: 0.36 | Y19: =X19*7 -> 2.52 | Z19: =X19*11 -> 3.96 | AA19: N | AB19: 0.9 | AC19: 0.93 | AE19: Schwein_067MJ | AF19: Sau mit Ferkelaufzucht bis 28kg, 22 Ferkel | AG19: 30 | AH19: 58 | AI19: 18 | AJ19: Mist+Jauche | AL19: 39.2 | AM19: 14 | AN19: 60 | AO19: 15 | AP19: 19.9 | AQ19: =IF(T19="",0,ROUND(T19+U19-O19,4)) -> 0 | BA19: QFN_ZENTRALE | BB19: QFN_ZENTRALE | BC19: Sau mit Ferkelaufzucht bis 28kg, Konv., Mist+Jauche | BD19: Universalfutter, 22 Ferkel | BE19: Schwein_067 | BF19: Schwein_067MJ | BG19: =U19 -> 3.2 | BH19: =BG19*100/O19 -> 40 | BI19: 21 | BJ19: =BI19*100/R19 -> 53.57142857 | BK19: 2 | BL19: =BK19*100/S19 -> 11.62790698 | BM19: 90 | BN19: 90 | BO19: 30 | BP19: 30 | BQ19: 0.8 | BR19: 0.08333333333
A20: =IF(AD20=1,1,IF(AND(OR('170 N'!$R$6="halb- tags",'170 N'!$R$6="ganz- tags"),AA20="N"),0,IF(AND(OR('170 N'!$C$6="Milchviehhaltung",'170 N'!$C$6="Pferdehaltung"),OR('170 N'!$R$6="Stall- haltung",'170 N'!$R$6=""),AA20="J"),0,1))) -> 1 | B20: =IF('170 N'!$E$6=Stammdaten!AF20,H20,0) -> 0 | C20: 2 | D20: Ferkelerzeugung | E20: =IF('170 N'!$C$6=Stammdaten!D20,1,0) -> 0 | F20: Mist/Tr.Kot/Jauche | G20: =IF('170 N'!$CJ$6=Stammdaten!F20,1,0) -> 0 | H20: Universalfutter | I20: =IF(AF20="Kalb Aufzucht, 0-4 Mon,45-135 kg LM, 3 Durchgänge",1,IF('170 N'!$CK$6=Stammdaten!H20,1,0)) -> 0 | J20: 0 | K20: 0 | M20: 19 | N20: Sau mit Ferkelaufzucht bis 28kg Universalfutter, 25 Ferkel | O20: 8.7 | P20: t | Q20: Festmist von Huf- und Klauentieren | R20: 41.1 | S20: 17.9 | T20: 5.2 | U20: 3.5 | V20: 3 | W20: 1095 | X20: 0.36 | Y20: =X20*7 -> 2.52 | Z20: =X20*11 -> 3.96 | AA20: N | AB20: 0.9 | AC20: 0.93 | AE20: Schwein_070MJ | AF20: Sau mit Ferkelaufzucht bis 28kg, 25 Ferkel | AG20: 30 | AH20: 59 | AI20: 19 | AJ20: Mist+Jauche | AL20: 41.1 | AM20: 14 | AN20: 60 | AO20: 15 | AP20: 21.1 | AQ20: =IF(T20="",0,ROUND(T20+U20-O20,4)) -> 0 | BA20: QFN_ZENTRALE | BB20: DB_SYS | BC20: Sau mit Ferkelaufzucht bis 28kg, Konv., Mist+Jauche | BD20: Universalfutter, 25 Ferkel | BE20: Schwein_070 | BF20: Schwein_070MJ | BG20: =U20 -> 3.5 | BH20: =BG20*100/O20 -> 40.22988506 | BI20: 22.9 | BJ20: =BI20*100/R20 -> 55.71776156 | BK20: 2.2 | BL20: =BK20*100/S20 -> 12.29050279 | BM20: 90 | BN20: 90 | BO20: 30 | BP20: 30 | BQ20: 0.8 | BR20: 0.08333333333
A21: =IF(AD21=1,1,IF(AND(OR('170 N'!$R$6="halb- tags",'170 N'!$R$6="ganz- tags"),AA21="N"),0,IF(AND(OR('170 N'!$C$6="Milchviehhaltung",'170 N'!$C$6="Pferdehaltung"),OR('170 N'!$R$6="Stall- haltung",'170 N'!$R$6=""),AA21="J"),0,1))) -> 1 | B21: =IF('170 N'!$E$6=Stammdaten!AF21,H21,0) -> 0 | C21: 2 | D21: Ferkelerzeugung | E21: =IF('170 N'!$C$6=Stammdaten!D21,1,0) -> 0 | F21: Mist/Tr.Kot/Jauche | G21: =IF('170 N'!$CJ$6=Stammdaten!F21,1,0) -> 0 | H21: Universalfutter | I21: =IF(AF21="Kalb Aufzucht, 0-4 Mon,45-135 kg LM, 3 Durchgänge",1,IF('170 N'!$CK$6=Stammdaten!H21,1,0)) -> 0 | J21: 0 | K21: 0 | M21: 20 | N21: Sau mit Ferkelaufzucht bis 28kg Universalfutter, 28 Ferkel | O21: 9.3 | P21: t | Q21: Festmist von Huf- und Klauentieren | R21: 42.9 | S21: 18.6 | T21: 5.5 | U21: 3.8 | V21: 3 | W21: 1095 | X21: 0.37 | Y21: =X21*7 -> 2.59 | Z21: =X21*11 -> 4.07 | AA21: N | AB21: 0.9 | AC21: 0.93 | AE21: Schwein_073MJ | AF21: Sau mit Ferkelaufzucht bis 28kg, 28 Ferkel | AG21: 30 | AH21: 61 | AI21: 20 | AJ21: Mist+Jauche | AL21: 42.9 | AM21: 14 | AN21: 60 | AO21: 15 | AP21: 21.3 | AQ21: =IF(T21="",0,ROUND(T21+U21-O21,4)) -> 0 | BA21: QFN_ZENTRALE | BB21: QFN_ZENTRALE | BC21: Sau mit Ferkelaufzucht bis 28kg, Konv., Mist+Jauche | BD21: Universalfutter, 28 Ferkel | BE21: Schwein_073 | BF21: Schwein_073MJ | BG21: =U21 -> 3.8 | BH21: =BG21*100/O21 -> 40.86021505 | BI21: 24.8 | BJ21: =BI21*100/R21 -> 57.80885781 | BK21: 2.3 | BL21: =BK21*100/S21 -> 12.3655914 | BM21: 90 | BN21: 90 | BO21: 30 | BP21: 30 | BQ21: 0.8 | BR21: 0.08333333333
A22: =IF(AD22=1,1,IF(AND(OR('170 N'!$R$6="halb- tags",'170 N'!$R$6="ganz- tags"),AA22="N"),0,IF(AND(OR('170 N'!$C$6="Milchviehhaltung",'170 N'!$C$6="Pferdehaltung"),OR('170 N'!$R$6="Stall- haltung",'170 N'!$R$6=""),AA22="J"),0,1))) -> 1 | B22: =IF('170 N'!$E$6=Stammdaten!AF22,H22,0) -> 0 | C22: 2 | D22: Ferkelerzeugung | E22: =IF('170 N'!$C$6=Stammdaten!D22,1,0) -> 0 | F22: Gülle | G22: =IF('170 N'!$CJ$6=Stammdaten!F22,1,0) -> 0 | H22: N-/P-reduziert | I22: =IF(AF22="Kalb Aufzucht, 0-4 Mon,45-135 kg LM, 3 Durchgänge",1,IF('170 N'!$CK$6=Stammdaten!H22,1,0)) -> 0 | J22: 0 | K22: 0 | M22: 21 | N22: Sau mit Ferkelaufzucht bis 28kg N-/ P-reduziert, 22 Ferkel | O22: 7 | P22: m³ | Q22: Gülle | R22: 35.1 | S22: 15.3 | W22: 0 | X22: 0.36 | AA22: N | AB22: 0.9 | AC22: 0.99 | AE22: Schwein_068_G | AF22: Sau mit Ferkelaufzucht bis 28kg, 22 Ferkel | AG22: 20 | AH22: 60 | AI22: 21 | AJ22: Schweine-gülle | AL22: 35.1 | AM22: 13 | AN22: 70 | AP22: 18.3 | BA22: DB_SYS | BB22: QFN_ZENTRALE | BC22: Sau mit Ferkelaufzucht bis 28kg, N-/P- reduziert, Gülle | BD22: N-/ P-reduziert, 22 Ferkel | BE22: Schwein_068 | BF22: Schwein_068_G | BM22: 70 | BN22: 60 | BQ22: 0.6153846154
A23: =IF(AD23=1,1,IF(AND(OR('170 N'!$R$6="halb- tags",'170 N'!$R$6="ganz- tags"),AA23="N"),0,IF(AND(OR('170 N'!$C$6="Milchviehhaltung",'170 N'!$C$6="Pferdehaltung"),OR('170 N'!$R$6="Stall- haltung",'170 N'!$R$6=""),AA23="J"),0,1))) -> 1 | B23: =IF('170 N'!$E$6=Stammdaten!AF23,H23,0) -> 0 | C23: 2 | D23: Ferkelerzeugung | E23: =IF('170 N'!$C$6=Stammdaten!D23,1,0) -> 0 | F23: Gülle | G23: =IF('170 N'!$CJ$6=Stammdaten!F23,1,0) -> 0 | H23: N-/P-reduziert | I23: =IF(AF23="Kalb Aufzucht, 0-4 Mon,45-135 kg LM, 3 Durchgänge",1,IF('170 N'!$CK$6=Stammdaten!H23,1,0)) -> 0 | J23: 0 | K23: 0 | M23: 22 | N23: Sau mit Ferkelaufzucht bis 28kg N-/ P-reduziert, 25 Ferkel | O23: 7.6 | P23: m³ | Q23: Gülle | R23: 36.8 | S23: 16 | W23: 0 | X23: 0.36 | AA23: N | AB23: 0.9 | AC23: 0.99 | AE23: Schwein_071_G | AF23: Sau mit Ferkelaufzucht bis 28kg, 25 Ferkel | AG23: 20 | AH23: 60 | AI23: 22 | AJ23: Schweine-gülle | AL23: 36.8 | AM23: 13 | AN23: 70 | AP23: 19.5 | BA23: DB_SYS | BB23: QFN_ZENTRALE | BC23: Sau mit Ferkelaufzucht bis 28kg, N-/P- reduziert, Gülle | BD23: N-/ P-reduziert, 25 Ferkel | BE23: Schwein_071 | BF23: Schwein_071_G | BM23: 70 | BN23: 60 | BQ23: 0.6153846154
A24: =IF(AD24=1,1,IF(AND(OR('170 N'!$R$6="halb- tags",'170 N'!$R$6="ganz- tags"),AA24="N"),0,IF(AND(OR('170 N'!$C$6="Milchviehhaltung",'170 N'!$C$6="Pferdehaltung"),OR('170 N'!$R$6="Stall- haltung",'170 N'!$R$6=""),AA24="J"),0,1))) -> 1 | B24: =IF('170 N'!$E$6=Stammdaten!AF24,H24,0) -> 0 | C24: 2 | D24: Ferkelerzeugung | E24: =IF('170 N'!$C$6=Stammdaten!D24,1,0) -> 0 | F24: Gülle | G24: =IF('170 N'!$CJ$6=Stammdaten!F24,1,0) -> 0 | H24: N-/P-reduziert | I24: =IF(AF24="Kalb Aufzucht, 0-4 Mon,45-135 kg LM, 3 Durchgänge",1,IF('170 N'!$CK$6=Stammdaten!H24,1,0)) -> 0 | J24: 0 | K24: 0 | M24: 23 | N24: Sau mit Ferkelaufzucht bis 28kg N-/ P-reduziert, 28 Ferkel | O24: 8.2 | P24: m³ | Q24: Gülle | R24: 38.4 | S24: 16.7 | W24: 0 | X24: 0.37 | AA24: N | AB24: 0.9 | AC24: 0.99 | AE24: Schwein_074_G | AF24: Sau mit Ferkelaufzucht bis 28kg, 28 Ferkel | AG24: 20 | AH24: 60 | AI24: 23 | AJ24: Schweine-gülle | AL24: 38.4 | AM24: 13 | AN24: 70 | AP24: 20.7 | BA24: DB_SYS | BB24: QFN_ZENTRALE | BC24: Sau mit Ferkelaufzucht bis 28kg, N-/P- reduziert, Gülle | BD24: N-/ P-reduziert, 28 Ferkel | BE24: Schwein_074 | BF24: Schwein_074_G | BM24: 70 | BN24: 60 | BQ24: 0.6153846154
A25: =IF(AD25=1,1,IF(AND(OR('170 N'!$R$6="halb- tags",'170 N'!$R$6="ganz- tags"),AA25="N"),0,IF(AND(OR('170 N'!$C$6="Milchviehhaltung",'170 N'!$C$6="Pferdehaltung"),OR('170 N'!$R$6="Stall- haltung",'170 N'!$R$6=""),AA25="J"),0,1))) -> 1 | B25: =IF('170 N'!$E$6=Stammdaten!AF25,H25,0) -> 0 | C25: 2 | D25: Ferkelerzeugung | E25: =IF('170 N'!$C$6=Stammdaten!D25,1,0) -> 0 | F25: Mist/Tr.Kot/Jauche | G25: =IF('170 N'!$CJ$6=Stammdaten!F25,1,0) -> 0 | H25: N-/P-reduziert | I25: =IF(AF25="Kalb Aufzucht, 0-4 Mon,45-135 kg LM, 3 Durchgänge",1,IF('170 N'!$CK$6=Stammdaten!H25,1,0)) -> 0 | J25: 0 | K25: 0 | M25: 24 | N25: Sau mit Ferkelaufzucht bis 28kg N-/ P-reduziert, 22 Ferkel | O25: 8 | P25: t | Q25: Festmist von Huf- und Klauentieren | R25: 35.1 | S25: 15.3 | T25: 4.8 | U25: 3.2 | V25: 3 | W25: 1095 | X25: 0.36 | Y25: =X25*7 -> 2.52 | Z25: =X25*11 -> 3.96 | AA25: N | AB25: 0.9 | AC25: 0.93 | AE25: Schwein_068MJ | AF25: Sau mit Ferkelaufzucht bis 28kg, 22 Ferkel | AG25: 30 | AH25: 59 | AI25: 24 | AJ25: Mist+Jauche | AL25: 35.1 | AM25: 14 | AN25: 60 | AO25: 15 | AP25: 18.3 | AQ25: =IF(T25="",0,ROUND(T25+U25-O25,4)) -> 0 | BA25: QFN_ZENTRALE | BB25: QFN_ZENTRALE | BC25: Sau mit Ferkelaufzucht bis 28kg, N-/P- reduziert, Mist+Jauche | BD25: N-/ P-reduziert, 22 Ferkel | BE25: Schwein_068 | BF25: Schwein_068MJ | BG25: =U25 -> 3.2 | BH25: =BG25*100/O25 -> 40 | BI25: 19.3 | BJ25: =BI25*100/R25 -> 54.98575499 | BK25: 1.8 | BL25: =BK25*100/S25 -> 11.76470588 | BM25: 90 | BN25: 90 | BO25: 30 | BP25: 30 | BQ25: 0.8 | BR25: 0.08333333333
A26: =IF(AD26=1,1,IF(AND(OR('170 N'!$R$6="halb- tags",'170 N'!$R$6="ganz- tags"),AA26="N"),0,IF(AND(OR('170 N'!$C$6="Milchviehhaltung",'170 N'!$C$6="Pferdehaltung"),OR('170 N'!$R$6="Stall- haltung",'170 N'!$R$6=""),AA26="J"),0,1))) -> 1 | B26: =IF('170 N'!$E$6=Stammdaten!AF26,H26,0) -> 0 | C26: 2 | D26: Ferkelerzeugung | E26: =IF('170 N'!$C$6=Stammdaten!D26,1,0) -> 0 | F26: Mist/Tr.Kot/Jauche | G26: =IF('170 N'!$CJ$6=Stammdaten!F26,1,0) -> 0 | H26: N-/P-reduziert | I26: =IF(AF26="Kalb Aufzucht, 0-4 Mon,45-135 kg LM, 3 Durchgänge",1,IF('170 N'!$CK$6=Stammdaten!H26,1,0)) -> 0 | J26: 0 | K26: 0 | M26: 25 | N26: Sau mit Ferkelaufzucht bis 28kg N-/ P-reduziert, 25 Ferkel | O26: 8.7 | P26: t | Q26: Festmist von Huf- und Klauentieren | R26: 36.8 | S26: 16 | T26: 5.2 | U26: 3.5 | V26: 3 | W26: 1095 | X26: 0.36 | Y26: =X26*7 -> 2.52 | Z26: =X26*11 -> 3.96 | AA26: N | AB26: 0.9 | AC26: 0.93 | AE26: Schwein_071MJ | AF26: Sau mit Ferkelaufzucht bis 28kg, 25 Ferkel | AG26: 30 | AH26: 61 | AI26: 25 | AJ26: Mist+Jauche | AL26: 36.8 | AM26: 14 | AN26: 60 | AO26: 15 | AP26: 19.5 | AQ26: =IF(T26="",0,ROUND(T26+U26-O26,4)) -> 0 | BA26: QFN_ZENTRALE | BB26: QFN_ZENTRALE | BC26: Sau mit Ferkelaufzucht bis 28kg, N-/P- reduziert, Mist+Jauche | BD26: N-/ P-reduziert, 25 Ferkel | BE26: Schwein_071 | BF26: Schwein_071MJ | BG26: =U26 -> 3.5 | BH26: =BG26*100/O26 -> 40.22988506 | BI26: 21.8 | BJ26: =BI26*100/R26 -> 59.23913043 | BK26: 1.9 | BL26: =BK26*100/S26 -> 11.875 | BM26: 90 | BN26: 90 | BO26: 30 | BP26: 30 | BQ26: 0.8 | BR26: 0.08333333333
A27: =IF(AD27=1,1,IF(AND(OR('170 N'!$R$6="halb- tags",'170 N'!$R$6="ganz- tags"),AA27="N"),0,IF(AND(OR('170 N'!$C$6="Milchviehhaltung",'170 N'!$C$6="Pferdehaltung"),OR('170 N'!$R$6="Stall- haltung",'170 N'!$R$6=""),AA27="J"),0,1))) -> 1 | B27: =IF('170 N'!$E$6=Stammdaten!AF27,H27,0) -> 0 | C27: 2 | D27: Ferkelerzeugung | E27: =IF('170 N'!$C$6=Stammdaten!D27,1,0) -> 0 | F27: Mist/Tr.Kot/Jauche | G27: =IF('170 N'!$CJ$6=Stammdaten!F27,1,0) -> 0 | H27: N-/P-reduziert | I27: =IF(AF27="Kalb Aufzucht, 0-4 Mon,45-135 kg LM, 3 Durchgänge",1,IF('170 N'!$CK$6=Stammdaten!H27,1,0)) -> 0 | J27: 0 | K27: 0 | M27: 26 | N27: Sau mit Ferkelaufzucht bis 28kg N-/ P-reduziert, 28 Ferkel | O27: 9.3 | P27: t | Q27: Festmist von Huf- und Klauentieren | R27: 38.4 | S27: 16.7 | T27: 5.5 | U27: 3.8 | V27: 3 | W27: 1095 | X27: 0.37 | Y27: =X27*7 -> 2.59 | Z27: =X27*11 -> 4.07 | AA27: N | AB27: 0.9 | AC27: 0.93 | AE27: Schwein_074MJ | AF27: Sau mit Ferkelaufzucht bis 28kg, 28 Ferkel | AG27: 30 | AH27: 62 | AI27: 26 | AJ27: Mist+Jauche | AL27: 38.4 | AM27: 14 | AN27: 60 | AO27: 15 | AP27: 20.7 | AQ27: =IF(T27="",0,ROUND(T27+U27-O27,4)) -> 0 | BA27: QFN_ZENTRALE | BB27: QFN_ZENTRALE | BC27: Sau mit Ferkelaufzucht bis 28kg, N-/P- reduziert, Mist+Jauche | BD27: N-/ P-reduziert, 28 Ferkel | BE27: Schwein_074 | BF27: Schwein_074MJ | BG27: =U27 -> 3.8 | BH27: =BG27*100/O27 -> 40.86021505 | BI27: 23.6 | BJ27: =BI27*100/R27 -> 61.45833333 | BK27: 2.1 | BL27: =BK27*100/S27 -> 12.5748503 | BM27: 90 | BN27: 90 | BO27: 30 | BP27: 30 | BQ27: 0.8 | BR27: 0.08333333333
A28: =IF(AD28=1,1,IF(AND(OR('170 N'!$R$6="halb- tags",'170 N'!$R$6="ganz- tags"),AA28="N"),0,IF(AND(OR('170 N'!$C$6="Milchviehhaltung",'170 N'!$C$6="Pferdehaltung"),OR('170 N'!$R$6="Stall- haltung",'170 N'!$R$6=""),AA28="J"),0,1))) -> 1 | B28: =IF('170 N'!$E$6=Stammdaten!AF28,H28,0) -> 0 | C28: 2 | D28: Ferkelerzeugung | E28: =IF('170 N'!$C$6=Stammdaten!D28,1,0) -> 0 | F28: Gülle | G28: =IF('170 N'!$CJ$6=Stammdaten!F28,1,0) -> 0 | H28: stark N-/P-reduziert | I28: =IF(AF28="Kalb Aufzucht, 0-4 Mon,45-135 kg LM, 3 Durchgänge",1,IF('170 N'!$CK$6=Stammdaten!H28,1,0)) -> 0 | J28: 0 | K28: 0 | M28: 27 | N28: Sau mit Ferkelaufzucht bis 28kg stark N-/ P-reduziert, 22 Ferkel | O28: 7 | P28: m³ | Q28: Gülle | R28: 33.5 | S28: 14 | W28: 0 | X28: 0.36 | AA28: N | AB28: 0.9 | AC28: 0.99 | AE28: Schwein_069_G | AF28: Sau mit Ferkelaufzucht bis 28kg, 22 Ferkel | AG28: 20 | AH28: 60 | AI28: 27 | AJ28: Schweine-gülle | AL28: 33.5 | AM28: 13 | AN28: 70 | AP28: 18.3 | BA28: DB_SYS | BB28: DB_SYS | BC28: Sau mit Ferkelaufzucht bis 28kg, stark N-/P- reduziert, Gülle | BD28: stark N-/ P-reduziert, 22 Ferkel | BE28: Schwein_069 | BF28: Schwein_069_G | BM28: 70 | BN28: 60 | BQ28: 0.6216216216
A29: =IF(AD29=1,1,IF(AND(OR('170 N'!$R$6="halb- tags",'170 N'!$R$6="ganz- tags"),AA29="N"),0,IF(AND(OR('170 N'!$C$6="Milchviehhaltung",'170 N'!$C$6="Pferdehaltung"),OR('170 N'!$R$6="Stall- haltung",'170 N'!$R$6=""),AA29="J"),0,1))) -> 1 | B29: =IF('170 N'!$E$6=Stammdaten!AF29,H29,0) -> 0 | C29: 2 | D29: Ferkelerzeugung | E29: =IF('170 N'!$C$6=Stammdaten!D29,1,0) -> 0 | F29: Gülle | G29: =IF('170 N'!$CJ$6=Stammdaten!F29,1,0) -> 0 | H29: stark N-/P-reduziert | I29: =IF(AF29="Kalb Aufzucht, 0-4 Mon,45-135 kg LM, 3 Durchgänge",1,IF('170 N'!$CK$6=Stammdaten!H29,1,0)) -> 0 | J29: 0 | K29: 0 | M29: 28 | N29: Sau mit Ferkelaufzucht bis 28kg stark N-/ P-reduziert, 25 Ferkel | O29: 7.6 | P29: m³ | Q29: Gülle | R29: 35 | S29: 14.7 | W29: 0 | X29: 0.36 | AA29: N | AB29: 0.9 | AC29: 0.99 | AE29: Schwein_072_G | AF29: Sau mit Ferkelaufzucht bis 28kg, 25 Ferkel | AG29: 20 | AH29: 60 | AI29: 28 | AJ29: Schweine-gülle | AL29: 35 | AM29: 13 | AN29: 70 | AP29: 19.5 | BA29: DB_SYS | BB29: DB_SYS | BC29: Sau mit Ferkelaufzucht bis 28kg, stark N-/P- reduziert, Gülle | BD29: stark N-/ P-reduziert, 25 Ferkel | BE29: Schwein_072 | BF29: Schwein_072_G | BM29: 70 | BN29: 60 | BQ29: 0.6216216216
A30: =IF(AD30=1,1,IF(AND(OR('170 N'!$R$6="halb- tags",'170 N'!$R$6="ganz- tags"),AA30="N"),0,IF(AND(OR('170 N'!$C$6="Milchviehhaltung",'170 N'!$C$6="Pferdehaltung"),OR('170 N'!$R$6="Stall- haltung",'170 N'!$R$6=""),AA30="J"),0,1))) -> 1 | B30: =IF('170 N'!$E$6=Stammdaten!AF30,H30,0) -> 0 | C30: 2 | D30: Ferkelerzeugung | E30: =IF('170 N'!$C$6=Stammdaten!D30,1,0) -> 0 | F30: Gülle | G30: =IF('170 N'!$CJ$6=Stammdaten!F30,1,0) -> 0 | H30: stark N-/P-reduziert | I30: =IF(AF30="Kalb Aufzucht, 0-4 Mon,45-135 kg LM, 3 Durchgänge",1,IF('170 N'!$CK$6=Stammdaten!H30,1,0)) -> 0 | J30: 0 | K30: 0 | M30: 29 | N30: Sau mit Ferkelaufzucht bis 28kg stark N-/ P-reduziert, 28 Ferkel | O30: 8.2 | P30: m³ | Q30: Gülle | R30: 36.6 | S30: 15.1 | W30: 0 | X30: 0.37 | AA30: N | AB30: 0.9 | AC30: 0.99 | AE30: Schwein_075_G | AF30: Sau mit Ferkelaufzucht bis 28kg, 28 Ferkel | AG30: 20 | AH30: 60 | AI30: 29 | AJ30: Schweine-gülle | AL30: 36.6 | AM30: 13 | AN30: 70 | AP30: 20.7 | BA30: DB_SYS | BB30: DB_SYS | BC30: Sau mit Ferkelaufzucht bis 28kg, stark N-/P- reduziert, Gülle | BD30: stark N-/ P-reduziert, 28 Ferkel | BE30: Schwein_075 | BF30: Schwein_075_G | BM30: 70 | BN30: 60 | BQ30: 0.6216216216
A31: =IF(AD31=1,1,IF(AND(OR('170 N'!$R$6="halb- tags",'170 N'!$R$6="ganz- tags"),AA31="N"),0,IF(AND(OR('170 N'!$C$6="Milchviehhaltung",'170 N'!$C$6="Pferdehaltung"),OR('170 N'!$R$6="Stall- haltung",'170 N'!$R$6=""),AA31="J"),0,1))) -> 1 | B31: =IF('170 N'!$E$6=Stammdaten!AF31,H31,0) -> 0 | C31: 2 | D31: Ferkelerzeugung | E31: =IF('170 N'!$C$6=Stammdaten!D31,1,0) -> 0 | F31: Mist/Tr.Kot/Jauche | G31: =IF('170 N'!$CJ$6=Stammdaten!F31,1,0) -> 0 | H31: stark N-/P-reduziert | I31: =IF(AF31="Kalb Aufzucht, 0-4 Mon,45-135 kg LM, 3 Durchgänge",1,IF('170 N'!$CK$6=Stammdaten!H31,1,0)) -> 0 | J31: 0 | K31: 0 | M31: 30 | N31: Sau mit Ferkelaufzucht bis 28kg stark N-/ P-reduziert, 22 Ferkel | O31: 8 | P31: t | Q31: Festmist von Huf- und Klauentieren | R31: 33.5 | S31: 14 | T31: 4.8 | U31: 3.2 | V31: 3 | W31: 1095 | X31: 0.36 | Y31: =X31*7 -> 2.52 | Z31: =X31*11 -> 3.96 | AA31: N | AB31: 0.9 | AC31: 0.93 | AE31: Schwein_069MJ | AF31: Sau mit Ferkelaufzucht bis 28kg, 22 Ferkel | AG31: 30 | AH31: 60 | AI31: 30 | AJ31: Mist+Jauche | AL31: 33.5 | AM31: 14 | AN31: 60 | AO31: 15 | AP31: 18.3 | AQ31: =IF(T31="",0,ROUND(T31+U31-O31,4)) -> 0 | BA31: QFN_ZENTRALE | BB31: QFN_ZENTRALE | BC31: Sau mit Ferkelaufzucht bis 28kg, stark N-/P- reduziert, Mist+Jauche | BD31: stark N-/ P-reduziert, 22 Ferkel | BE31: Schwein_069 | BF31: Schwein_069MJ | BG31: =U31 -> 3.2 | BH31: =BG31*100/O31 -> 40 | BI31: 19.3 | BJ31: =BI31*100/R31 -> 57.6119403 | BK31: 1.8 | BL31: =BK31*100/S31 -> 12.85714286 | BM31: 90 | BN31: 90 | BO31: 30 | BP31: 30 | BQ31: 0.8 | BR31: 0.08333333333
A32: =IF(AD32=1,1,IF(AND(OR('170 N'!$R$6="halb- tags",'170 N'!$R$6="ganz- tags"),AA32="N"),0,IF(AND(OR('170 N'!$C$6="Milchviehhaltung",'170 N'!$C$6="Pferdehaltung"),OR('170 N'!$R$6="Stall- haltung",'170 N'!$R$6=""),AA32="J"),0,1))) -> 1 | B32: =IF('170 N'!$E$6=Stammdaten!AF32,H32,0) -> 0 | C32: 2 | D32: Ferkelerzeugung | E32: =IF('170 N'!$C$6=Stammdaten!D32,1,0) -> 0 | F32: Mist/Tr.Kot/Jauche | G32: =IF('170 N'!$CJ$6=Stammdaten!F32,1,0) -> 0 | H32: stark N-/P-reduziert | I32: =IF(AF32="Kalb Aufzucht, 0-4 Mon,45-135 kg LM, 3 Durchgänge",1,IF('170 N'!$CK$6=Stammdaten!H32,1,0)) -> 0 | J32: 0 | K32: 0 | M32: 31 | N32: Sau mit Ferkelaufzucht bis 28kg stark N-/ P-reduziert, 25 Ferkel | O32: 8.7 | P32: t | Q32: Festmist von Huf- und Klauentieren | R32: 35 | S32: 14.7 | T32: 5.2 | U32: 3.5 | V32: 3 | W32: 1095 | X32: 0.36 | Y32: =X32*7 -> 2.52 | Z32: =X32*11 -> 3.96 | AA32: N | AB32: 0.9 | AC32: 0.93 | AE32: Schwein_072MJ | AF32: Sau mit Ferkelaufzucht bis 28kg, 25 Ferkel | AG32: 30 | AH32: 62 | AI32: 31 | AJ32: Mist+Jauche | AL32: 35 | AM32: 14 | AN32: 60 | AO32: 15 | AP32: 19.5 | AQ32: =IF(T32="",0,ROUND(T32+U32-O32,4)) -> 0 | BA32: QFN_ZENTRALE | BB32: DB_SYS | BC32: Sau mit Ferkelaufzucht bis 28kg, stark N-/P- reduziert, Mist+Jauche | BD32: stark N-/ P-reduziert, 25 Ferkel | BE32: Schwein_072 | BF32: Schwein_072MJ | BG32: =U32 -> 3.5 | BH32: =BG32*100/O32 -> 40.22988506 | BI32: 21.8 | BJ32: =BI32*100/R32 -> 62.28571429 | BK32: 1.9 | BL32: =BK32*100/S32 -> 12.92517007 | BM32: 90 | BN32: 90 | BO32: 30 | BP32: 30 | BQ32: 0.8 | BR32: 0.08333333333
A33: =IF(AD33=1,1,IF(AND(OR('170 N'!$R$6="halb- tags",'170 N'!$R$6="ganz- tags"),AA33="N"),0,IF(AND(OR('170 N'!$C$6="Milchviehhaltung",'170 N'!$C$6="Pferdehaltung"),OR('170 N'!$R$6="Stall- haltung",'170 N'!$R$6=""),AA33="J"),0,1))) -> 1 | B33: =IF('170 N'!$E$6=Stammdaten!AF33,H33,0) -> 0 | C33: 2 | D33: Ferkelerzeugung | E33: =IF('170 N'!$C$6=Stammdaten!D33,1,0) -> 0 | F33: Mist/Tr.Kot/Jauche | G33: =IF('170 N'!$CJ$6=Stammdaten!F33,1,0) -> 0 | H33: stark N-/P-reduziert | I33: =IF(AF33="Kalb Aufzucht, 0-4 Mon,45-135 kg LM, 3 Durchgänge",1,IF('170 N'!$CK$6=Stammdaten!H33,1,0)) -> 0 | J33: 0 | K33: 0 | M33: 32 | N33: Sau mit Ferkelaufzucht bis 28kg stark N-/ P-reduziert, 28 Ferkel | O33: 9.3 | P33: t | Q33: Festmist von Huf- und Klauentieren | R33: 36.6 | S33: 15.1 | T33: 5.5 | U33: 3.8 | V33: 3 | W33: 1095 | X33: 0.37 | Y33: =X33*7 -> 2.59 | Z33: =X33*11 -> 4.07 | AA33: N | AB33: 0.9 | AC33: 0.93 | AE33: Schwein_075MJ | AF33: Sau mit Ferkelaufzucht bis 28kg, 28 Ferkel | AG33: 30 | AH33: 64 | AI33: 32 | AJ33: Mist+Jauche | AL33: 36.6 | AM33: 14 | AN33: 60 | AO33: 15 | AP33: 20.7 | AQ33: =IF(T33="",0,ROUND(T33+U33-O33,4)) -> 0 | BA33: QFN_ZENTRALE | BB33: DB_SYS | BC33: Sau mit Ferkelaufzucht bis 28kg, stark N-/P- reduziert, Mist+Jauche | BD33: stark N-/ P-reduziert, 28 Ferkel | BE33: Schwein_075 | BF33: Schwein_075MJ | BG33: =U33 -> 3.8 | BH33: =BG33*100/O33 -> 40.86021505 | BI33: 23.6 | BJ33: =BI33*100/R33 -> 64.48087432 | BK33: 2.1 | BL33: =BK33*100/S33 -> 13.90728477 | BM33: 90 | BN33: 90 | BO33: 30 | BP33: 30 | BQ33: 0.8 | BR33: 0.08333333333
A34: =IF(AD34=1,1,IF(AND(OR('170 N'!$R$6="halb- tags",'170 N'!$R$6="ganz- tags"),AA34="N"),0,IF(AND(OR('170 N'!$C$6="Milchviehhaltung",'170 N'!$C$6="Pferdehaltung"),OR('170 N'!$R$6="Stall- haltung",'170 N'!$R$6=""),AA34="J"),0,1))) -> 1 | B34: =IF('170 N'!$E$6=Stammdaten!AF34,H34,0) -> 0 | C34: =IF(D34="Eiererzeugung",1,IF(D34="Ferkelerzeugung",2,IF(D34="Geflügelmast",3,IF(D34="Gehegewild",4,IF(D34="Jungrindermast",5,IF(D34="Kaninchenhaltung",6,IF(D34="Lammfleischerzeugung",7,IF(D34="Milchviehhaltung",8,IF(D34="Pferdehaltung",9,IF(D34="Rindermast",10,IF(D34="Schweinemast",11,IF(D34="Ziegenmilcherzeugung",12,"")))))))))))) -> 2 | D34: Ferkelerzeugung | E34: =IF('170 N'!$C$6=Stammdaten!D34,1,0) -> 0 | F34: Gülle | G34: =IF('170 N'!$CJ$6=Stammdaten!F34,1,0) -> 0 | H34: Universalfutter | I34: =IF(AF34="Kalb Aufzucht, 0-4 Mon,45-135 kg LM, 3 Durchgänge",1,IF('170 N'!$CK$6=Stammdaten!H34,1,0)) -> 0 | J34: 0 | K34: 0 | M34: 33 | N34: Sau mit Ferkelaufzucht bis 8kg Universalfutter, 22 Ferkel | O34: 4.75 | P34: m³ | Q34: Gülle | R34: 27.1 | S34: 12.6 | W34: =V34*365 -> 0 | X34: 0.3 | AA34: N | AB34: 0.9 | AC34: 0.99 | AE34: Schwein_058_G | AF34: Sau mit Ferkelaufzucht bis 8kg, 22 Ferkel | AG34: 20 | AH34: 60 | AI34: 33 | AJ34: Schweine-gülle | AL34: 27.1 | AM34: 13 | AN34: 70 | AP34: 12.8 | BA34: DB_SYS | BB34: QFN_ZENTRALE | BC34: Sau mit Ferkelaufzucht bis 8kg, Konv., Gülle | BD34: Universalfutter, 22 Ferkel | BE34: Schwein_058 | BF34: Schwein_058_G | BM34: 70 | BN34: 60 | BQ34: 0.6
A35: =IF(AD35=1,1,IF(AND(OR('170 N'!$R$6="halb- tags",'170 N'!$R$6="ganz- tags"),AA35="N"),0,IF(AND(OR('170 N'!$C$6="Milchviehhaltung",'170 N'!$C$6="Pferdehaltung"),OR('170 N'!$R$6="Stall- haltung",'170 N'!$R$6=""),AA35="J"),0,1))) -> 1 | B35: =IF('170 N'!$E$6=Stammdaten!AF35,H35,0) -> 0 | C35: 2 | D35: Ferkelerzeugung | E35: =IF('170 N'!$C$6=Stammdaten!D35,1,0) -> 0 | F35: Gülle | G35: =IF('170 N'!$CJ$6=Stammdaten!F35,1,0) -> 0 | H35: Universalfutter | I35: =IF(AF35="Kalb Aufzucht, 0-4 Mon,45-135 kg LM, 3 Durchgänge",1,IF('170 N'!$CK$6=Stammdaten!H35,1,0)) -> 0 | J35: 0 | K35: 0 | M35: 34 | N35: Sau mit Ferkelaufzucht bis 8kg Universalfutter, 25 Ferkel | O35: 4.95 | P35: m³ | Q35: Gülle | R35: 27.3 | S35: 12.6 | W35: 0 | X35: 0.3 | AA35: N | AB35: 0.9 | AC35: 0.99 | AE35: Schwein_061_G | AF35: Sau mit Ferkelaufzucht bis 8kg, 25 Ferkel | AG35: 20 | AH35: 60 | AI35: 34 | AJ35: Schweine-gülle | AL35: 27.3 | AM35: 13 | AN35: 70 | AP35: 12.8 | BA35: DB_SYS | BB35: QFN_ZENTRALE | BC35: Sau mit Ferkelaufzucht bis 8kg, Konv., Gülle | BD35: Universalfutter, 25 Ferkel | BE35: Schwein_061 | BF35: Schwein_061_G | BM35: 70 | BN35: 60 | BQ35: 0.6
A36: =IF(AD36=1,1,IF(AND(OR('170 N'!$R$6="halb- tags",'170 N'!$R$6="ganz- tags"),AA36="N"),0,IF(AND(OR('170 N'!$C$6="Milchviehhaltung",'170 N'!$C$6="Pferdehaltung"),OR('170 N'!$R$6="Stall- haltung",'170 N'!$R$6=""),AA36="J"),0,1))) -> 1 | B36: =IF('170 N'!$E$6=Stammdaten!AF36,H36,0) -> 0 | C36: 2 | D36: Ferkelerzeugung | E36: =IF('170 N'!$C$6=Stammdaten!D36,1,0) -> 0 | F36: Gülle | G36: =IF('170 N'!$CJ$6=Stammdaten!F36,1,0) -> 0 | H36: Universalfutter | I36: =IF(AF36="Kalb Aufzucht, 0-4 Mon,45-135 kg LM, 3 Durchgänge",1,IF('170 N'!$CK$6=Stammdaten!H36,1,0)) -> 0 | J36: 0 | K36: 0 | M36: 35 | N36: Sau mit Ferkelaufzucht bis 8kg Universalfutter, 28 Ferkel | O36: 5.15 | P36: m³ | Q36: Gülle | R36: 27.5 | S36: 12.8 | W36: 0 | X36: 0.3 | AA36: N | AB36: 0.9 | AC36: 0.99 | AE36: Schwein_064_G | AF36: Sau mit Ferkelaufzucht bis 8kg, 28 Ferkel | AG36: 20 | AH36: 60 | AI36: 35 | AJ36: Schweine-gülle | AL36: 27.5 | AM36: 13 | AN36: 70 | AP36: 13.1 | BA36: DB_SYS | BB36: DB_SYS | BC36: Sau mit Ferkelaufzucht bis 8kg, Konv., Gülle | BD36: Universalfutter, 28 Ferkel | BE36: Schwein_064 | BF36: Schwein_064_G | BM36: 70 | BN36: 60 | BQ36: 0.6
A37: =IF(AD37=1,1,IF(AND(OR('170 N'!$R$6="halb- tags",'170 N'!$R$6="ganz- tags"),AA37="N"),0,IF(AND(OR('170 N'!$C$6="Milchviehhaltung",'170 N'!$C$6="Pferdehaltung"),OR('170 N'!$R$6="Stall- haltung",'170 N'!$R$6=""),AA37="J"),0,1))) -> 1 | B37: =IF('170 N'!$E$6=Stammdaten!AF37,H37,0) -> 0 | C37: 2 | D37: Ferkelerzeugung | E37: =IF('170 N'!$C$6=Stammdaten!D37,1,0) -> 0 | F37: Mist/Tr.Kot/Jauche | G37: =IF('170 N'!$CJ$6=Stammdaten!F37,1,0) -> 0 | H37: Universalfutter | I37: =IF(AF37="Kalb Aufzucht, 0-4 Mon,45-135 kg LM, 3 Durchgänge",1,IF('170 N'!$CK$6=Stammdaten!H37,1,0)) -> 0 | J37: 0 | K37: 0 | M37: 36 | N37: Sau mit Ferkelaufzucht bis 8kg Universalfutter, 22 Ferkel | O37: 5.45 | P37: t | Q37: Festmist von Huf- und Klauentieren | R37: 27.1 | S37: 12.6 | T37: 3.5 | U37: 1.95 | V37: 2 | W37: 730 | X37: 0.3 | Y37: =X37*7 -> 2.1 | Z37: =X37*11 -> 3.3 | AA37: N | AB37: 0.9 | AC37: 0.93 | AE37: Schwein_058MJ | AF37: Sau mit Ferkelaufzucht bis 8kg, 22 Ferkel | AG37: 30 | AH37: 49 | AI37: 36 | AJ37: Mist+Jauche | AL37: 27.1 | AM37: 14 | AN37: 60 | AO37: 10 | AP37: 12.8 | AQ37: =IF(T37="",0,ROUND(T37+U37-O37,4)) -> 0 | BA37: QFN_ZENTRALE | BB37: QFN_ZENTRALE | BC37: Sau mit Ferkelaufzucht bis 8kg, Konv., Mist+Jauche | BD37: Universalfutter, 22 Ferkel | BE37: Schwein_058 | BF37: Schwein_058MJ | BG37: =U37 -> 1.95 | BH37: =BG37*100/O37 -> 35.77981651 | BI37: 10 | BJ37: =BI37*100/R37 -> 36.900369 | BK37: 1.1 | BL37: =BK37*100/S37 -> 8.73015873 | BM37: 90 | BN37: 90 | BO37: 30 | BP37: 30 | BQ37: 0.8 | BR37: 0.08333333333
A38: =IF(AD38=1,1,IF(AND(OR('170 N'!$R$6="halb- tags",'170 N'!$R$6="ganz- tags"),AA38="N"),0,IF(AND(OR('170 N'!$C$6="Milchviehhaltung",'170 N'!$C$6="Pferdehaltung"),OR('170 N'!$R$6="Stall- haltung",'170 N'!$R$6=""),AA38="J"),0,1))) -> 1 | B38: =IF('170 N'!$E$6=Stammdaten!AF38,H38,0) -> 0 | C38: 2 | D38: Ferkelerzeugung | E38: =IF('170 N'!$C$6=Stammdaten!D38,1,0) -> 0 | F38: Mist/Tr.Kot/Jauche | G38: =IF('170 N'!$CJ$6=Stammdaten!F38,1,0) -> 0 | H38: Universalfutter | I38: =IF(AF38="Kalb Aufzucht, 0-4 Mon,45-135 kg LM, 3 Durchgänge",1,IF('170 N'!$CK$6=Stammdaten!H38,1,0)) -> 0 | J38: 0 | K38: 0 | M38: 37 | N38: Sau mit Ferkelaufzucht bis 8kg Universalfutter, 25 Ferkel | O38: 5.65 | P38: t | Q38: Festmist von Huf- und Klauentieren | R38: 27.3 | S38: 12.6 | T38: 3.6 | U38: 2.05 | V38: 2 | W38: 730 | X38: 0.3 | Y38: =X38*7 -> 2.1 | Z38: =X38*11 -> 3.3 | AA38: N | AB38: 0.9 | AC38: 0.93 | AE38: Schwein_061MJ | AF38: Sau mit Ferkelaufzucht bis 8kg, 25 Ferkel | AG38: 30 | AH38: 51 | AI38: 37 | AJ38: Mist+Jauche | AL38: 27.3 | AM38: 14 | AN38: 60 | AO38: 10 | AP38: 12.8 | AQ38: =IF(T38="",0,ROUND(T38+U38-O38,4)) -> 0 | BA38: QFN_ZENTRALE | BB38: QFN_ZENTRALE | BC38: Sau mit Ferkelaufzucht bis 8kg, Konv., Mist+Jauche | BD38: Universalfutter, 25 Ferkel | BE38: Schwein_061 | BF38: Schwein_061MJ | BG38: =U38 -> 2.05 | BH38: =BG38*100/O38 -> 36.28318584 | BI38: 10.8 | BJ38: =BI38*100/R38 -> 39.56043956 | BK38: 1.2 | BL38: =BK38*100/S38 -> 9.523809524 | BM38: 90 | BN38: 90 | BO38: 30 | BP38: 30 | BQ38: 0.8 | BR38: 0.08333333333
A39: =IF(AD39=1,1,IF(AND(OR('170 N'!$R$6="halb- tags",'170 N'!$R$6="ganz- tags"),AA39="N"),0,IF(AND(OR('170 N'!$C$6="Milchviehhaltung",'170 N'!$C$6="Pferdehaltung"),OR('170 N'!$R$6="Stall- haltung",'170 N'!$R$6=""),AA39="J"),0,1))) -> 1 | B39: =IF('170 N'!$E$6=Stammdaten!AF39,H39,0) -> 0 | C39: 2 | D39: Ferkelerzeugung | E39: =IF('170 N'!$C$6=Stammdaten!D39,1,0) -> 0 | F39: Mist/Tr.Kot/Jauche | G39: =IF('170 N'!$CJ$6=Stammdaten!F39,1,0) -> 0 | H39: Universalfutter | I39: =IF(AF39="Kalb Aufzucht, 0-4 Mon,45-135 kg LM, 3 Durchgänge",1,IF('170 N'!$CK$6=Stammdaten!H39,1,0)) -> 0 | J39: 0 | K39: 0 | M39: 38 | N39: Sau mit Ferkelaufzucht bis 8kg Universalfutter, 28 Ferkel | O39: 5.85 | P39: t | Q39: Festmist von Huf- und Klauentieren | R39: 27.5 | S39: 12.8 | T39: 3.7 | U39: 2.15 | V39: 2 | W39: 730 | X39: 0.3 | Y39: =X39*7 -> 2.1 | Z39: =X39*11 -> 3.3 | AA39: N | AB39: 0.9 | AC39: 0.93 | AE39: Schwein_064MJ | AF39: Sau mit Ferkelaufzucht bis 8kg, 28 Ferkel | AG39: 30 | AH39: 52 | AI39: 38 | AJ39: Mist+Jauche | AL39: 27.5 | AM39: 14 | AN39: 60 | AO39: 10 | AP39: 13.1 | AQ39: =IF(T39="",0,ROUND(T39+U39-O39,4)) -> 0 | BA39: QFN_ZENTRALE | BB39: QFN_ZENTRALE | BC39: Sau mit Ferkelaufzucht bis 8kg, Konv., Mist+Jauche | BD39: Universalfutter, 28 Ferkel | BE39: Schwein_064 | BF39: Schwein_064MJ | BG39: =U39 -> 2.15 | BH39: =BG39*100/O39 -> 36.75213675 | BI39: 11.6 | BJ39: =BI39*100/R39 -> 42.18181818 | BK39: 1.3 | BL39: =BK39*100/S39 -> 10.15625 | BM39: 90 | BN39: 90 | BO39: 30 | BP39: 30 | BQ39: 0.8 | BR39: 0.08333333333
A40: =IF(AD40=1,1,IF(AND(OR('170 N'!$R$6="halb- tags",'170 N'!$R$6="ganz- tags"),AA40="N"),0,IF(AND(OR('170 N'!$C$6="Milchviehhaltung",'170 N'!$C$6="Pferdehaltung"),OR('170 N'!$R$6="Stall- haltung",'170 N'!$R$6=""),AA40="J"),0,1))) -> 1 | B40: =IF('170 N'!$E$6=Stammdaten!AF40,H40,0) -> 0 | C40: 2 | D40: Ferkelerzeugung | E40: =IF('170 N'!$C$6=Stammdaten!D40,1,0) -> 0 | F40: Gülle | G40: =IF('170 N'!$CJ$6=Stammdaten!F40,1,0) -> 0 | H40: N-/P-reduziert | I40: =IF(AF40="Kalb Aufzucht, 0-4 Mon,45-135 kg LM, 3 Durchgänge",1,IF('170 N'!$CK$6=Stammdaten!H40,1,0)) -> 0 | J40: 0 | K40: 0 | M40: 39 | N40: Sau mit Ferkelaufzucht bis 8kg N-/ P-reduziert, 22 Ferkel | O40: 4.75 | P40: m³ | Q40: Gülle | R40: 24 | S40: 11 | W40: 0 | X40: 0.3 | AA40: N | AB40: 0.9 | AC40: 0.99 | AE40: Schwein_059_G | AF40: Sau mit Ferkelaufzucht bis 8kg, 22 Ferkel | AG40: 20 | AH40: 60 | AI40: 39 | AJ40: Schweine-gülle | AL40: 24 | AM40: 13 | AN40: 70 | AP40: 11.6 | BA40: DB_SYS | BB40: QFN_ZENTRALE | BC40: Sau mit Ferkelaufzucht bis 8kg, N-/P- reduziert, Gülle | BD40: N-/ P-reduziert, 22 Ferkel | BE40: Schwein_059 | BF40: Schwein_059_G | BM40: 70 | BN40: 60 | BQ40: 0.6153846154
A41: =IF(AD41=1,1,IF(AND(OR('170 N'!$R$6="halb- tags",'170 N'!$R$6="ganz- tags"),AA41="N"),0,IF(AND(OR('170 N'!$C$6="Milchviehhaltung",'170 N'!$C$6="Pferdehaltung"),OR('170 N'!$R$6="Stall- haltung",'170 N'!$R$6=""),AA41="J"),0,1))) -> 1 | B41: =IF('170 N'!$E$6=Stammdaten!AF41,H41,0) -> 0 | C41: 2 | D41: Ferkelerzeugung | E41: =IF('170 N'!$C$6=Stammdaten!D41,1,0) -> 0 | F41: Gülle | G41: =IF('170 N'!$CJ$6=Stammdaten!F41,1,0) -> 0 | H41: N-/P-reduziert | I41: =IF(AF41="Kalb Aufzucht, 0-4 Mon,45-135 kg LM, 3 Durchgänge",1,IF('170 N'!$CK$6=Stammdaten!H41,1,0)) -> 0 | J41: 0 | K41: 0 | M41: 40 | N41: Sau mit Ferkelaufzucht bis 8kg N-/ P-reduziert, 25 Ferkel | O41: 4.95 | P41: m³ | Q41: Gülle | R41: 24.1 | S41: 11.2 | W41: 0 | X41: 0.3 | AA41: N | AB41: 0.9 | AC41: 0.99 | AE41: Schwein_062_G | AF41: Sau mit Ferkelaufzucht bis 8kg, 25 Ferkel | AG41: 20 | AH41: 60 | AI41: 40 | AJ41: Schweine-gülle | AL41: 24.1 | AM41: 13 | AN41: 70 | AP41: 11.6 | BA41: DB_SYS | BB41: QFN_ZENTRALE | BC41: Sau mit Ferkelaufzucht bis 8kg, N-/P- reduziert, Gülle | BD41: N-/ P-reduziert, 25 Ferkel | BE41: Schwein_062 | BF41: Schwein_062_G | BM41: 70 | BN41: 60 | BQ41: 0.6153846154
A42: =IF(AD42=1,1,IF(AND(OR('170 N'!$R$6="halb- tags",'170 N'!$R$6="ganz- tags"),AA42="N"),0,IF(AND(OR('170 N'!$C$6="Milchviehhaltung",'170 N'!$C$6="Pferdehaltung"),OR('170 N'!$R$6="Stall- haltung",'170 N'!$R$6=""),AA42="J"),0,1))) -> 1 | B42: =IF('170 N'!$E$6=Stammdaten!AF42,H42,0) -> 0 | C42: 2 | D42: Ferkelerzeugung | E42: =IF('170 N'!$C$6=Stammdaten!D42,1,0) -> 0 | F42: Gülle | G42: =IF('170 N'!$CJ$6=Stammdaten!F42,1,0) -> 0 | H42: N-/P-reduziert | I42: =IF(AF42="Kalb Aufzucht, 0-4 Mon,45-135 kg LM, 3 Durchgänge",1,IF('170 N'!$CK$6=Stammdaten!H42,1,0)) -> 0 | J42: 0 | K42: 0 | M42: 41 | N42: Sau mit Ferkelaufzucht bis 8kg N-/ P-reduziert, 28 Ferkel | O42: 5.15 | P42: m³ | Q42: Gülle | R42: 24.2 | S42: 11.2 | W42: 0 | X42: 0.3 | AA42: N | AB42: 0.9 | AC42: 0.99 | AE42: Schwein_065_G | AF42: Sau mit Ferkelaufzucht bis 8kg, 28 Ferkel | AG42: 20 | AH42: 60 | AI42: 41 | AJ42: Schweine-gülle | AL42: 24.2 | AM42: 13 | AN42: 70 | AP42: 11.8 | BA42: DB_SYS | BB42: QFN_ZENTRALE | BC42: Sau mit Ferkelaufzucht bis 8kg, N-/P- reduziert, Gülle | BD42: N-/ P-reduziert, 28 Ferkel | BE42: Schwein_065 | BF42: Schwein_065_G | BM42: 70 | BN42: 60 | BQ42: 0.6153846154
A43: =IF(AD43=1,1,IF(AND(OR('170 N'!$R$6="halb- tags",'170 N'!$R$6="ganz- tags"),AA43="N"),0,IF(AND(OR('170 N'!$C$6="Milchviehhaltung",'170 N'!$C$6="Pferdehaltung"),OR('170 N'!$R$6="Stall- haltung",'170 N'!$R$6=""),AA43="J"),0,1))) -> 1 | B43: =IF('170 N'!$E$6=Stammdaten!AF43,H43,0) -> 0 | C43: 2 | D43: Ferkelerzeugung | E43: =IF('170 N'!$C$6=Stammdaten!D43,1,0) -> 0 | F43: Mist/Tr.Kot/Jauche | G43: =IF('170 N'!$CJ$6=Stammdaten!F43,1,0) -> 0 | H43: N-/P-reduziert | I43: =IF(AF43="Kalb Aufzucht, 0-4 Mon,45-135 kg LM, 3 Durchgänge",1,IF('170 N'!$CK$6=Stammdaten!H43,1,0)) -> 0 | J43: 0 | K43: 0 | M43: 42 | N43: Sau mit Ferkelaufzucht bis 8kg N-/ P-reduziert, 22 Ferkel | O43: 5.45 | P43: t | Q43: Festmist von Huf- und Klauentieren | R43: 24 | S43: 11 | T43: 3.5 | U43: 1.95 | V43: 2 | W43: 730 | X43: 0.3 | Y43: =X43*7 -> 2.1 | Z43: =X43*11 -> 3.3 | AA43: N | AB43: 0.9 | AC43: 0.93 | AE43: Schwein_059MJ | AF43: Sau mit Ferkelaufzucht bis 8kg, 22 Ferkel | AG43: 30 | AH43: 50 | AI43: 42 | AJ43: Mist+Jauche | AL43: 24 | AM43: 14 | AN43: 60 | AO43: 10 | AP43: 11.6 | AQ43: =IF(T43="",0,ROUND(T43+U43-O43,4)) -> 0 | BA43: QFN_ZENTRALE | BB43: DB_SYS | BC43: Sau mit Ferkelaufzucht bis 8kg, N-/P- reduziert, Mist+Jauche | BD43: N-/ P-reduziert, 22 Ferkel | BE43: Schwein_059 | BF43: Schwein_059MJ | BG43: =U43 -> 1.95 | BH43: =BG43*100/O43 -> 35.77981651 | BI43: 9.2 | BJ43: =BI43*100/R43 -> 38.33333333 | BK43: 1.1 | BL43: =BK43*100/S43 -> 10 | BM43: 90 | BN43: 90 | BO43: 30 | BP43: 30 | BQ43: 0.8 | BR43: 0.08333333333
A44: =IF(AD44=1,1,IF(AND(OR('170 N'!$R$6="halb- tags",'170 N'!$R$6="ganz- tags"),AA44="N"),0,IF(AND(OR('170 N'!$C$6="Milchviehhaltung",'170 N'!$C$6="Pferdehaltung"),OR('170 N'!$R$6="Stall- haltung",'170 N'!$R$6=""),AA44="J"),0,1))) -> 1 | B44: =IF('170 N'!$E$6=Stammdaten!AF44,H44,0) -> 0 | C44: 2 | D44: Ferkelerzeugung | E44: =IF('170 N'!$C$6=Stammdaten!D44,1,0) -> 0 | F44: Mist/Tr.Kot/Jauche | G44: =IF('170 N'!$CJ$6=Stammdaten!F44,1,0) -> 0 | H44: N-/P-reduziert | I44: =IF(AF44="Kalb Aufzucht, 0-4 Mon,45-135 kg LM, 3 Durchgänge",1,IF('170 N'!$CK$6=Stammdaten!H44,1,0)) -> 0 | J44: 0 | K44: 0 | M44: 43 | N44: Sau mit Ferkelaufzucht bis 8kg N-/ P-reduziert, 25 Ferkel | O44: 5.65 | P44: t | Q44: Festmist von Huf- und Klauentieren | R44: 24.1 | S44: 11.2 | T44: 3.6 | U44: 2.05 | V44: 2 | W44: 730 | X44: 0.3 | Y44: =X44*7 -> 2.1 | Z44: =X44*11 -> 3.3 | AA44: N | AB44: 0.9 | AC44: 0.93 | AE44: Schwein_062MJ | AF44: Sau mit Ferkelaufzucht bis 8kg, 25 Ferkel | AG44: 30 | AH44: 50 | AI44: 43 | AJ44: Mist+Jauche | AL44: 24.1 | AM44: 14 | AN44: 60 | AO44: 10 | AP44: 11.6 | AQ44: =IF(T44="",0,ROUND(T44+U44-O44,4)) -> 0 | BA44: QFN_ZENTRALE | BB44: DB_SYS | BC44: Sau mit Ferkelaufzucht bis 8kg, N-/P- reduziert, Mist+Jauche | BD44: N-/ P-reduziert, 25 Ferkel | BE44: Schwein_062 | BF44: Schwein_062MJ | BG44: =U44 -> 2.05 | BH44: =BG44*100/O44 -> 36.28318584 | BI44: 9.2 | BJ44: =BI44*100/R44 -> 38.17427386 | BK44: 1 | BL44: =BK44*100/S44 -> 8.928571429 | BM44: 90 | BN44: 90 | BO44: 30 | BP44: 30 | BQ44: 0.8 | BR44: 0.08333333333
A45: =IF(AD45=1,1,IF(AND(OR('170 N'!$R$6="halb- tags",'170 N'!$R$6="ganz- tags"),AA45="N"),0,IF(AND(OR('170 N'!$C$6="Milchviehhaltung",'170 N'!$C$6="Pferdehaltung"),OR('170 N'!$R$6="Stall- haltung",'170 N'!$R$6=""),AA45="J"),0,1))) -> 1 | B45: =IF('170 N'!$E$6=Stammdaten!AF45,H45,0) -> 0 | C45: 2 | D45: Ferkelerzeugung | E45: =IF('170 N'!$C$6=Stammdaten!D45,1,0) -> 0 | F45: Mist/Tr.Kot/Jauche | G45: =IF('170 N'!$CJ$6=Stammdaten!F45,1,0) -> 0 | H45: N-/P-reduziert | I45: =IF(AF45="Kalb Aufzucht, 0-4 Mon,45-135 kg LM, 3 Durchgänge",1,IF('170 N'!$CK$6=Stammdaten!H45,1,0)) -> 0 | J45: 0 | K45: 0 | M45: 44 | N45: Sau mit Ferkelaufzucht bis 8kg N-/ P-reduziert, 28 Ferkel | O45: 5.85 | P45: t | Q45: Festmist von Huf- und Klauentieren | R45: 24.2 | S45: 11.2 | T45: 3.7 | U45: 2.15 | V45: 2 | W45: 730 | X45: 0.3 | Y45: =X45*7 -> 2.1 | Z45: =X45*11 -> 3.3 | AA45: N | AB45: 0.9 | AC45: 0.93 | AE45: Schwein_065MJ | AF45: Sau mit Ferkelaufzucht bis 8kg, 28 Ferkel | AG45: 30 | AH45: 51 | AI45: 44 | AJ45: Mist+Jauche | AL45: 24.2 | AM45: 14 | AN45: 60 | AO45: 10 | AP45: 11.8 | AQ45: =IF(T45="",0,ROUND(T45+U45-O45,4)) -> 0 | BA45: QFN_ZENTRALE | BB45: DB_SYS | BC45: Sau mit Ferkelaufzucht bis 8kg, N-/P- reduziert, Mist+Jauche | BD45: N-/ P-reduziert, 28 Ferkel | BE45: Schwein_065 | BF45: Schwein_065MJ | BG45: =U45 -> 2.15 | BH45: =BG45*100/O45 -> 36.75213675 | BI45: 9.9 | BJ45: =BI45*100/R45 -> 40.90909091 | BK45: 1.1 | BL45: =BK45*100/S45 -> 9.821428571 | BM45: 90 | BN45: 90 | BO45: 30 | BP45: 30 | BQ45: 0.8 | BR45: 0.08333333333
A46: =IF(AD46=1,1,IF(AND(OR('170 N'!$R$6="halb- tags",'170 N'!$R$6="ganz- tags"),AA46="N"),0,IF(AND(OR('170 N'!$C$6="Milchviehhaltung",'170 N'!$C$6="Pferdehaltung"),OR('170 N'!$R$6="Stall- haltung",'170 N'!$R$6=""),AA46="J"),0,1))) -> 1 | B46: =IF('170 N'!$E$6=Stammdaten!AF46,H46,0) -> 0 | C46: 2 | D46: Ferkelerzeugung | E46: =IF('170 N'!$C$6=Stammdaten!D46,1,0) -> 0 | F46: Gülle | G46: =IF('170 N'!$CJ$6=Stammdaten!F46,1,0) -> 0 | H46: stark N-/P-reduziert | I46: =IF(AF46="Kalb Aufzucht, 0-4 Mon,45-135 kg LM, 3 Durchgänge",1,IF('170 N'!$CK$6=Stammdaten!H46,1,0)) -> 0 | J46: 0 | K46: 0 | M46: 45 | N46: Sau mit Ferkelaufzucht bis 8kg stark N-/ P-reduziert, 22 Ferkel | O46: 4.75 | P46: m³ | Q46: Gülle | R46: 23 | S46: 10.3 | W46: 0 | X46: 0.3 | AA46: N | AB46: 0.9 | AC46: 0.99 | AE46: Schwein_060_G | AF46: Sau mit Ferkelaufzucht bis 8kg, 22 Ferkel | AG46: 20 | AH46: 60 | AI46: 45 | AJ46: Schweine-gülle | AL46: 23 | AM46: 13 | AN46: 70 | AP46: 11.6 | BA46: DB_SYS | BB46: DB_SYS | BC46: Sau mit Ferkelaufzucht bis 8kg, stark N-/P- reduziert, Gülle | BD46: stark N-/ P-reduziert, 22 Ferkel | BE46: Schwein_060 | BF46: Schwein_060_G | BM46: 70 | BN46: 60 | BQ46: 0.6216216216
A47: =IF(AD47=1,1,IF(AND(OR('170 N'!$R$6="halb- tags",'170 N'!$R$6="ganz- tags"),AA47="N"),0,IF(AND(OR('170 N'!$C$6="Milchviehhaltung",'170 N'!$C$6="Pferdehaltung"),OR('170 N'!$R$6="Stall- haltung",'170 N'!$R$6=""),AA47="J"),0,1))) -> 1 | B47: =IF('170 N'!$E$6=Stammdaten!AF47,H47,0) -> 0 | C47: 2 | D47: Ferkelerzeugung | E47: =IF('170 N'!$C$6=Stammdaten!D47,1,0) -> 0 | F47: Gülle | G47: =IF('170 N'!$CJ$6=Stammdaten!F47,1,0) -> 0 | H47: stark N-/P-reduziert | I47: =IF(AF47="Kalb Aufzucht, 0-4 Mon,45-135 kg LM, 3 Durchgänge",1,IF('170 N'!$CK$6=Stammdaten!H47,1,0)) -> 0 | J47: 0 | K47: 0 | M47: 46 | N47: Sau mit Ferkelaufzucht bis 8kg stark N-/ P-reduziert, 25 Ferkel | O47: 4.95 | P47: m³ | Q47: Gülle | R47: 23.1 | S47: 10.3 | W47: 0 | X47: 0.3 | AA47: N | AB47: 0.9 | AC47: 0.99 | AE47: Schwein_063_G | AF47: Sau mit Ferkelaufzucht bis 8kg, 25 Ferkel | AG47: 20 | AH47: 60 | AI47: 46 | AJ47: Schweine-gülle | AL47: 23.1 | AM47: 13 | AN47: 70 | AP47: 11.6 | BA47: DB_SYS | BB47: DB_SYS | BC47: Sau mit Ferkelaufzucht bis 8kg, stark N-/P- reduziert, Gülle | BD47: stark N-/ P-reduziert, 25 Ferkel | BE47: Schwein_063 | BF47: Schwein_063_G | BM47: 70 | BN47: 60 | BQ47: 0.6216216216
A48: =IF(AD48=1,1,IF(AND(OR('170 N'!$R$6="halb- tags",'170 N'!$R$6="ganz- tags"),AA48="N"),0,IF(AND(OR('170 N'!$C$6="Milchviehhaltung",'170 N'!$C$6="Pferdehaltung"),OR('170 N'!$R$6="Stall- haltung",'170 N'!$R$6=""),AA48="J"),0,1))) -> 1 | B48: =IF('170 N'!$E$6=Stammdaten!AF48,H48,0) -> 0 | C48: 2 | D48: Ferkelerzeugung | E48: =IF('170 N'!$C$6=Stammdaten!D48,1,0) -> 0 | F48: Gülle | G48: =IF('170 N'!$CJ$6=Stammdaten!F48,1,0) -> 0 | H48: stark N-/P-reduziert | I48: =IF(AF48="Kalb Aufzucht, 0-4 Mon,45-135 kg LM, 3 Durchgänge",1,IF('170 N'!$CK$6=Stammdaten!H48,1,0)) -> 0 | J48: 0 | K48: 0 | M48: 47 | N48: Sau mit Ferkelaufzucht bis 8kg stark N-/ P-reduziert, 28 Ferkel | O48: 5.15 | P48: m³ | Q48: Gülle | R48: 23.2 | S48: 10.3 | W48: 0 | X48: 0.3 | AA48: N | AB48: 0.9 | AC48: 0.99 | AE48: Schwein_066_G | AF48: Sau mit Ferkelaufzucht bis 8kg, 28 Ferkel | AG48: 20 | AH48: 60 | AI48: 47 | AJ48: Schweine-gülle | AL48: 23.2 | AM48: 13 | AN48: 70 | AP48: 11.8 | BA48: DB_SYS | BB48: DB_SYS | BC48: Sau mit Ferkelaufzucht bis 8kg, stark N-/P- reduziert, Gülle | BD48: stark N-/ P-reduziert, 28 Ferkel | BE48: Schwein_066 | BF48: Schwein_066_G | BM48: 70 | BN48: 60 | BQ48: 0.6216216216
A49: =IF(AD49=1,1,IF(AND(OR('170 N'!$R$6="halb- tags",'170 N'!$R$6="ganz- tags"),AA49="N"),0,IF(AND(OR('170 N'!$C$6="Milchviehhaltung",'170 N'!$C$6="Pferdehaltung"),OR('170 N'!$R$6="Stall- haltung",'170 N'!$R$6=""),AA49="J"),0,1))) -> 1 | B49: =IF('170 N'!$E$6=Stammdaten!AF49,H49,0) -> 0 | C49: 2 | D49: Ferkelerzeugung | E49: =IF('170 N'!$C$6=Stammdaten!D49,1,0) -> 0 | F49: Mist/Tr.Kot/Jauche | G49: =IF('170 N'!$CJ$6=Stammdaten!F49,1,0) -> 0 | H49: stark N-/P-reduziert | I49: =IF(AF49="Kalb Aufzucht, 0-4 Mon,45-135 kg LM, 3 Durchgänge",1,IF('170 N'!$CK$6=Stammdaten!H49,1,0)) -> 0 | J49: 0 | K49: 0 | M49: 48 | N49: Sau mit Ferkelaufzucht bis 8kg stark N-/ P-reduziert, 22 Ferkel | O49: 5.45 | P49: t | Q49: Festmist von Huf- und Klauentieren | R49: 23 | S49: 10.3 | T49: 3.5 | U49: 1.95 | V49: 2 | W49: 730 | X49: 0.3 | Y49: =X49*7 -> 2.1 | Z49: =X49*11 -> 3.3 | AA49: N | AB49: 0.9 | AC49: 0.93 | AE49: Schwein_060MJ | AF49: Sau mit Ferkelaufzucht bis 8kg, 22 Ferkel | AG49: 30 | AH49: 51 | AI49: 48 | AJ49: Mist+Jauche | AL49: 23 | AM49: 14 | AN49: 60 | AO49: 10 | AP49: 11.6 | AQ49: =IF(T49="",0,ROUND(T49+U49-O49,4)) -> 0 | BA49: QFN_ZENTRALE | BB49: QFN_ZENTRALE | BC49: Sau mit Ferkelaufzucht bis 8kg, stark N-/P- reduziert, Mist+Jauche | BD49: stark N-/ P-reduziert, 22 Ferkel | BE49: Schwein_060 | BF49: Schwein_060MJ | BG49: =U49 -> 1.95 | BH49: =BG49*100/O49 -> 35.77981651 | BI49: 9.4 | BJ49: =BI49*100/R49 -> 40.86956522 | BK49: 1.1 | BL49: =BK49*100/S49 -> 10.67961165 | BM49: 90 | BN49: 90 | BO49: 30 | BP49: 30 | BQ49: 0.8 | BR49: 0.08333333333
A50: =IF(AD50=1,1,IF(AND(OR('170 N'!$R$6="halb- tags",'170 N'!$R$6="ganz- tags"),AA50="N"),0,IF(AND(OR('170 N'!$C$6="Milchviehhaltung",'170 N'!$C$6="Pferdehaltung"),OR('170 N'!$R$6="Stall- haltung",'170 N'!$R$6=""),AA50="J"),0,1))) -> 1 | B50: =IF('170 N'!$E$6=Stammdaten!AF50,H50,0) -> 0 | C50: 2 | D50: Ferkelerzeugung | E50: =IF('170 N'!$C$6=Stammdaten!D50,1,0) -> 0 | F50: Mist/Tr.Kot/Jauche | G50: =IF('170 N'!$CJ$6=Stammdaten!F50,1,0) -> 0 | H50: stark N-/P-reduziert | I50: =IF(AF50="Kalb Aufzucht, 0-4 Mon,45-135 kg LM, 3 Durchgänge",1,IF('170 N'!$CK$6=Stammdaten!H50,1,0)) -> 0 | J50: 0 | K50: 0 | M50: 49 | N50: Sau mit Ferkelaufzucht bis 8kg stark N-/ P-reduziert, 25 Ferkel | O50: 5.65 | P50: t | Q50: Festmist von Huf- und Klauentieren | R50: 23.1 | S50: 10.3 | T50: 3.6 | U50: 2.05 | V50: 2 | W50: 730 | X50: 0.3 | Y50: =X50*7 -> 2.1 | Z50: =X50*11 -> 3.3 | AA50: N | AB50: 0.9 | AC50: 0.93 | AE50: Schwein_063MJ | AF50: Sau mit Ferkelaufzucht bis 8kg, 25 Ferkel | AG50: 30 | AH50: 51 | AI50: 49 | AJ50: Mist+Jauche | AL50: 23.1 | AM50: 14 | AN50: 60 | AO50: 10 | AP50: 11.6 | AQ50: =IF(T50="",0,ROUND(T50+U50-O50,4)) -> 0 | BA50: QFN_ZENTRALE | BB50: QFN_ZENTRALE | BC50: Sau mit Ferkelaufzucht bis 8kg, stark N-/P- reduziert, Mist+Jauche | BD50: stark N-/ P-reduziert, 25 Ferkel | BE50: Schwein_063 | BF50: Schwein_063MJ | BG50: =U50 -> 2.05 | BH50: =BG50*100/O50 -> 36.28318584 | BI50: 9.2 | BJ50: =BI50*100/R50 -> 39.82683983 | BK50: 1 | BL50: =BK50*100/S50 -> 9.708737864 | BM50: 90 | BN50: 90 | BO50: 30 | BP50: 30 | BQ50: 0.8 | BR50: 0.08333333333
A51: =IF(AD51=1,1,IF(AND(OR('170 N'!$R$6="halb- tags",'170 N'!$R$6="ganz- tags"),AA51="N"),0,IF(AND(OR('170 N'!$C$6="Milchviehhaltung",'170 N'!$C$6="Pferdehaltung"),OR('170 N'!$R$6="Stall- haltung",'170 N'!$R$6=""),AA51="J"),0,1))) -> 1 | B51: =IF('170 N'!$E$6=Stammdaten!AF51,H51,0) -> 0 | C51: 2 | D51: Ferkelerzeugung | E51: =IF('170 N'!$C$6=Stammdaten!D51,1,0) -> 0 | F51: Mist/Tr.Kot/Jauche | G51: =IF('170 N'!$CJ$6=Stammdaten!F51,1,0) -> 0 | H51: stark N-/P-reduziert | I51: =IF(AF51="Kalb Aufzucht, 0-4 Mon,45-135 kg LM, 3 Durchgänge",1,IF('170 N'!$CK$6=Stammdaten!H51,1,0)) -> 0 | J51: 0 | K51: 0 | M51: 50 | N51: Sau mit Ferkelaufzucht bis 8kg stark N-/ P-reduziert, 28 Ferkel | O51: 5.85 | P51: t | Q51: Festmist von Huf- und Klauentieren | R51: 23.2 | S51: 10.3 | T51: 3.7 | U51: 2.15 | V51: 2 | W51: 730 | X51: 0.3 | Y51: =X51*7 -> 2.1 | Z51: =X51*11 -> 3.3 | AA51: N | AB51: 0.9 | AC51: 0.93 | AE51: Schwein_066MJ | AF51: Sau mit Ferkelaufzucht bis 8kg, 28 Ferkel | AG51: 30 | AH51: 52 | AI51: 50 | AJ51: Mist+Jauche | AL51: 23.2 | AM51: 14 | AN51: 60 | AO51: 10 | AP51: 11.8 | AQ51: =IF(T51="",0,ROUND(T51+U51-O51,4)) -> 0 | BA51: QFN_ZENTRALE | BB51: QFN_ZENTRALE | BC51: Sau mit Ferkelaufzucht bis 8kg, stark N-/P- reduziert, Mist+Jauche | BD51: stark N-/ P-reduziert, 28 Ferkel | BE51: Schwein_066 | BF51: Schwein_066MJ | BG51: =U51 -> 2.15 | BH51: =BG51*100/O51 -> 36.75213675 | BI51: 9.9 | BJ51: =BI51*100/R51 -> 42.67241379 | BK51: 1.1 | BL51: =BK51*100/S51 -> 10.67961165 | BM51: 90 | BN51: 90 | BO51: 30 | BP51: 30 | BQ51: 0.8 | BR51: 0.08333333333
A52: =IF(AD52=1,1,IF(AND(OR('170 N'!$R$6="halb- tags",'170 N'!$R$6="ganz- tags"),AA52="N"),0,IF(AND(OR('170 N'!$C$6="Milchviehhaltung",'170 N'!$C$6="Pferdehaltung"),OR('170 N'!$R$6="Stall- haltung",'170 N'!$R$6=""),AA52="J"),0,1))) -> 1 | B52: =IF('170 N'!$E$6=Stammdaten!AF52,H52,0) -> 0 | C52: 2 | D52: Ferkelerzeugung | E52: =IF('170 N'!$C$6=Stammdaten!D52,1,0) -> 0 | F52: Gülle | G52: =IF('170 N'!$CJ$6=Stammdaten!F52,1,0) -> 0 | H52: Universalfutter | I52: =IF(AF52="Kalb Aufzucht, 0-4 Mon,45-135 kg LM, 3 Durchgänge",1,IF('170 N'!$CK$6=Stammdaten!H52,1,0)) -> 0 | J52: 0 | K52: 0 | M52: 51 | N52: spezial. Ferkelaufzucht, 450 TZ Universalfutter, 8 bis 28 kg LM | O52: 0.7 | P52: m³ | Q52: Gülle | R52: 3.8 | S52: 1.4 | W52: 0 | X52: 0.02 | AA52: N | AB52: 0.9 | AC52: 0.99 | AE52: Schwein_114_G | AF52: spezial. Ferkelaufzucht, 450 g TZ, 8 bis 28 kg LM | AG52: 20 | AH52: 60 | AI52: 51 | AJ52: Schweine-gülle | AL52: 3.8 | AM52: 13 | AN52: 70 | AP52: 2.3 | BA52: DB_SYS | BB52: QFN_ZENTRALE | BC52: spezial. Ferkelaufzucht, 450 TZ, Konv., Gülle | BD52: Universalfutter, 8 bis 28 kg LM | BE52: Schwein_114 | BF52: Schwein_114_G | BM52: 70 | BN52: 60 | BQ52: 0.5869565217
A53: =IF(AD53=1,1,IF(AND(OR('170 N'!$R$6="halb- tags",'170 N'!$R$6="ganz- tags"),AA53="N"),0,IF(AND(OR('170 N'!$C$6="Milchviehhaltung",'170 N'!$C$6="Pferdehaltung"),OR('170 N'!$R$6="Stall- haltung",'170 N'!$R$6=""),AA53="J"),0,1))) -> 1 | B53: =IF('170 N'!$E$6=Stammdaten!AF53,H53,0) -> 0 | C53: 2 | D53: Ferkelerzeugung | E53: =IF('170 N'!$C$6=Stammdaten!D53,1,0) -> 0 | F53: Mist/Tr.Kot/Jauche | G53: =IF('170 N'!$CJ$6=Stammdaten!F53,1,0) -> 0 | H53: Universalfutter | I53: =IF(AF53="Kalb Aufzucht, 0-4 Mon,45-135 kg LM, 3 Durchgänge",1,IF('170 N'!$CK$6=Stammdaten!H53,1,0)) -> 0 | J53: 0 | K53: 0 | M53: 52 | N53: spezial. Ferkelaufzucht, 450 TZ Universalfutter, 8 bis 28 kg LM | O53: 0.77 | P53: t | Q53: Festmist von Huf- und Klauentieren | R53: 3.8 | S53: 1.4 | T53: 0.37 | U53: 0.4 | V53: 0.2 | W53: 73 | X53: 0.02 | Y53: =X53*7 -> 0.14 | Z53: =X53*11 -> 0.22 | AA53: N | AB53: 0.9 | AC53: 0.93 | AE53: Schwein_114MJ | AF53: spezial. Ferkelaufzucht, 450 g TZ, 8 bis 28 kg LM | AG53: 30 | AH53: 74 | AI53: 52 | AJ53: Mist+Jauche | AL53: 3.8 | AM53: 14 | AN53: 60 | AO53: 1 | AP53: 2.3 | AQ53: =IF(T53="",0,ROUND(T53+U53-O53,4)) -> 0 | BA53: QFN_ZENTRALE | BB53: QFN_ZENTRALE | BC53: spezial. Ferkelaufzucht, 450 TZ, Konv., Mist+Jauche | BD53: Universalfutter, 8 bis 28 kg LM | BE53: Schwein_114 | BF53: Schwein_114MJ | BG53: =U53 -> 0.4 | BH53: =BG53*100/O53 -> 51.94805195 | BI53: 3.1 | BJ53: =BI53*100/R53 -> 81.57894737 | BK53: 0.3 | BL53: =BK53*100/S53 -> 21.42857143 | BM53: 90 | BN53: 90 | BO53: 30 | BP53: 30 | BQ53: 0.8 | BR53: 0.08333333333
A54: =IF(AD54=1,1,IF(AND(OR('170 N'!$R$6="halb- tags",'170 N'!$R$6="ganz- tags"),AA54="N"),0,IF(AND(OR('170 N'!$C$6="Milchviehhaltung",'170 N'!$C$6="Pferdehaltung"),OR('170 N'!$R$6="Stall- haltung",'170 N'!$R$6=""),AA54="J"),0,1))) -> 1 | B54: =IF('170 N'!$E$6=Stammdaten!AF54,H54,0) -> 0 | C54: 2 | D54: Ferkelerzeugung | E54: =IF('170 N'!$C$6=Stammdaten!D54,1,0) -> 0 | F54: Gülle | G54: =IF('170 N'!$CJ$6=Stammdaten!F54,1,0) -> 0 | H54: N-/P-reduziert | I54: =IF(AF54="Kalb Aufzucht, 0-4 Mon,45-135 kg LM, 3 Durchgänge",1,IF('170 N'!$CK$6=Stammdaten!H54,1,0)) -> 0 | J54: 0 | K54: 0 | M54: 53 | N54: spezial. Ferkelaufzucht, 450 TZ N-/ P-reduziert, 8 bis 28 kg LM | O54: 0.7 | P54: m³ | Q54: Gülle | R54: 3.6 | S54: 1.4 | W54: 0 | X54: 0.02 | AA54: N | AB54: 0.9 | AC54: 0.99 | AE54: Schwein_115_G | AF54: spezial. Ferkelaufzucht, 450 g TZ, 8 bis 28 kg LM | AG54: 20 | AH54: 60 | AI54: 53 | AJ54: Schweine-gülle | AL54: 3.6 | AM54: 13 | AN54: 70 | AP54: 2.2 | BA54: DB_SYS | BB54: QFN_ZENTRALE | BC54: spezial. Ferkelaufzucht, 450 TZ, N-/P- reduziert, Gülle | BD54: N-/ P-reduziert, 8 bis 28 kg LM | BE54: Schwein_115 | BF54: Schwein_115_G | BM54: 70 | BN54: 60 | BQ54: 0.5952380952
A55: =IF(AD55=1,1,IF(AND(OR('170 N'!$R$6="halb- tags",'170 N'!$R$6="ganz- tags"),AA55="N"),0,IF(AND(OR('170 N'!$C$6="Milchviehhaltung",'170 N'!$C$6="Pferdehaltung"),OR('170 N'!$R$6="Stall- haltung",'170 N'!$R$6=""),AA55="J"),0,1))) -> 1 | B55: =IF('170 N'!$E$6=Stammdaten!AF55,H55,0) -> 0 | C55: 2 | D55: Ferkelerzeugung | E55: =IF('170 N'!$C$6=Stammdaten!D55,1,0) -> 0 | F55: Mist/Tr.Kot/Jauche | G55: =IF('170 N'!$CJ$6=Stammdaten!F55,1,0) -> 0 | H55: N-/P-reduziert | I55: =IF(AF55="Kalb Aufzucht, 0-4 Mon,45-135 kg LM, 3 Durchgänge",1,IF('170 N'!$CK$6=Stammdaten!H55,1,0)) -> 0 | J55: 0 | K55: 0 | M55: 54 | N55: spezial. Ferkelaufzucht, 450 TZ N-/ P-reduziert, 8 bis 28 kg LM | O55: 0.77 | P55: t | Q55: Festmist von Huf- und Klauentieren | R55: 3.6 | S55: 1.4 | T55: 0.37 | U55: 0.4 | V55: 0.2 | W55: 73 | X55: 0.02 | Y55: =X55*7 -> 0.14 | Z55: =X55*11 -> 0.22 | AA55: N | AB55: 0.9 | AC55: 0.93 | AE55: Schwein_115MJ | AF55: spezial. Ferkelaufzucht, 450 g TZ, 8 bis 28 kg LM | AG55: 30 | AH55: 72 | AI55: 54 | AJ55: Mist+Jauche | AL55: 3.6 | AM55: 14 | AN55: 60 | AO55: 1 | AP55: 2.2 | AQ55: =IF(T55="",0,ROUND(T55+U55-O55,4)) -> 0 | BA55: QFN_ZENTRALE | BB55: QFN_ZENTRALE | BC55: spezial. Ferkelaufzucht, 450 TZ, N-/P- reduziert, Mist+Jauche | BD55: N-/ P-reduziert, 8 bis 28 kg LM | BE55: Schwein_115 | BF55: Schwein_115MJ | BG55: =U55 -> 0.4 | BH55: =BG55*100/O55 -> 51.94805195 | BI55: 2.8 | BJ55: =BI55*100/R55 -> 77.77777778 | BK55: 0.3 | BL55: =BK55*100/S55 -> 21.42857143 | BM55: 90 | BN55: 90 | BO55: 30 | BP55: 30 | BQ55: 0.8 | BR55: 0.08333333333
A56: =IF(AD56=1,1,IF(AND(OR('170 N'!$R$6="halb- tags",'170 N'!$R$6="ganz- tags"),AA56="N"),0,IF(AND(OR('170 N'!$C$6="Milchviehhaltung",'170 N'!$C$6="Pferdehaltung"),OR('170 N'!$R$6="Stall- haltung",'170 N'!$R$6=""),AA56="J"),0,1))) -> 1 | B56: =IF('170 N'!$E$6=Stammdaten!AF56,H56,0) -> 0 | C56: 2 | D56: Ferkelerzeugung | E56: =IF('170 N'!$C$6=Stammdaten!D56,1,0) -> 0 | F56: Gülle | G56: =IF('170 N'!$CJ$6=Stammdaten!F56,1,0) -> 0 | H56: stark N-/P-reduziert | I56: =IF(AF56="Kalb Aufzucht, 0-4 Mon,45-135 kg LM, 3 Durchgänge",1,IF('170 N'!$CK$6=Stammdaten!H56,1,0)) -> 0 | J56: 0 | K56: 0 | M56: 55 | N56: spezial. Ferkelaufzucht, 450 TZ stark N-/ P-reduziert, 8 bis 28 kg LM | O56: 0.7 | P56: m³ | Q56: Gülle | R56: 3.4 | S56: 1.1 | W56: 0 | X56: 0.02 | AA56: N | AB56: 0.9 | AC56: 0.99 | AE56: Schwein_116_G | AF56: spezial. Ferkelaufzucht, 450 g TZ, 8 bis 28 kg LM | AG56: 20 | AH56: 60 | AI56: 55 | AJ56: Schweine-gülle | AL56: 3.4 | AM56: 13 | AN56: 70 | AP56: 2.2 | BA56: DB_SYS | BB56: DB_SYS | BC56: spezial. Ferkelaufzucht, 450 TZ, stark N-/P- reduziert, Gülle | BD56: stark N-/ P-reduziert, 8 bis 28 kg LM | BE56: Schwein_116 | BF56: Schwein_116_G | BM56: 70 | BN56: 60 | BQ56: 0.6
A57: =IF(AD57=1,1,IF(AND(OR('170 N'!$R$6="halb- tags",'170 N'!$R$6="ganz- tags"),AA57="N"),0,IF(AND(OR('170 N'!$C$6="Milchviehhaltung",'170 N'!$C$6="Pferdehaltung"),OR('170 N'!$R$6="Stall- haltung",'170 N'!$R$6=""),AA57="J"),0,1))) -> 1 | B57: =IF('170 N'!$E$6=Stammdaten!AF57,H57,0) -> 0 | C57: 2 | D57: Ferkelerzeugung | E57: =IF('170 N'!$C$6=Stammdaten!D57,1,0) -> 0 | F57: Mist/Tr.Kot/Jauche | G57: =IF('170 N'!$CJ$6=Stammdaten!F57,1,0) -> 0 | H57: stark N-/P-reduziert | I57: =IF(AF57="Kalb Aufzucht, 0-4 Mon,45-135 kg LM, 3 Durchgänge",1,IF('170 N'!$CK$6=Stammdaten!H57,1,0)) -> 0 | J57: 0 | K57: 0 | M57: 56 | N57: spezial. Ferkelaufzucht, 450 TZ stark N-/ P-reduziert, 8 bis 28 kg LM | O57: 0.77 | P57: t | Q57: Festmist von Huf- und Klauentieren | R57: 3.4 | S57: 1.1 | T57: 0.37 | U57: 0.4 | V57: 0.2 | W57: 73 | X57: 0.02 | Y57: =X57*7 -> 0.14 | Z57: =X57*11 -> 0.22 | AA57: N | AB57: 0.9 | AC57: 0.93 | AE57: Schwein_116MJ | AF57: spezial. Ferkelaufzucht, 450 g TZ, 8 bis 28 kg LM | AG57: 30 | AH57: 74 | AI57: 56 | AJ57: Mist+Jauche | AL57: 3.4 | AM57: 14 | AN57: 60 | AO57: 1 | AP57: 2.2 | AQ57: =IF(T57="",0,ROUND(T57+U57-O57,4)) -> 0 | BA57: QFN_ZENTRALE | BB57: DB_SYS | BC57: spezial. Ferkelaufzucht, 450 TZ, stark N-/P- reduziert, Mist+Jauche | BD57: stark N-/ P-reduziert, 8 bis 28 kg LM | BE57: Schwein_116 | BF57: Schwein_116MJ | BG57: =U57 -> 0.4 | BH57: =BG57*100/O57 -> 51.94805195 | BI57: 2.8 | BJ57: =BI57*100/R57 -> 82.35294118 | BK57: 0.3 | BL57: =BK57*100/S57 -> 27.27272727 | BM57: 90 | BN57: 90 | BO57: 30 | BP57: 30 | BQ57: 0.8 | BR57: 0.08333333333
A58: =IF(AD58=1,1,IF(AND(OR('170 N'!$R$6="halb- tags",'170 N'!$R$6="ganz- tags"),AA58="N"),0,IF(AND(OR('170 N'!$C$6="Milchviehhaltung",'170 N'!$C$6="Pferdehaltung"),OR('170 N'!$R$6="Stall- haltung",'170 N'!$R$6=""),AA58="J"),0,1))) -> 1 | B58: =IF('170 N'!$E$6=Stammdaten!AF58,H58,0) -> 0 | C58: 2 | D58: Ferkelerzeugung | E58: =IF('170 N'!$C$6=Stammdaten!D58,1,0) -> 0 | F58: Gülle | G58: =IF('170 N'!$CJ$6=Stammdaten!F58,1,0) -> 0 | H58: Universalfutter | I58: =IF(AF58="Kalb Aufzucht, 0-4 Mon,45-135 kg LM, 3 Durchgänge",1,IF('170 N'!$CK$6=Stammdaten!H58,1,0)) -> 0 | J58: 0 | K58: 0 | M58: 57 | N58: spezial. Ferkelaufzucht, 500 TZ Universalfutter, 8 bis 28 kg LM | O58: 0.7 | P58: m³ | Q58: Gülle | R58: 4.2 | S58: 1.6 | W58: 0 | X58: 0.02 | AA58: N | AB58: 0.9 | AC58: 0.99 | AE58: Schwein_117_G | AF58: spezial. Ferkelaufzucht, 500 g TZ, 8 bis 28 kg LM | AG58: 20 | AH58: 60 | AI58: 57 | AJ58: Schweine-gülle | AL58: 4.2 | AM58: 13 | AN58: 70 | AP58: 2.6 | BA58: DB_SYS | BB58: DB_SYS | BC58: spezial. Ferkelaufzucht, 500 TZ, Konv., Gülle | BD58: Universalfutter, 8 bis 28 kg LM | BE58: Schwein_117 | BF58: Schwein_117_G | BM58: 70 | BN58: 60 | BQ58: 0.5869565217
A59: =IF(AD59=1,1,IF(AND(OR('170 N'!$R$6="halb- tags",'170 N'!$R$6="ganz- tags"),AA59="N"),0,IF(AND(OR('170 N'!$C$6="Milchviehhaltung",'170 N'!$C$6="Pferdehaltung"),OR('170 N'!$R$6="Stall- haltung",'170 N'!$R$6=""),AA59="J"),0,1))) -> 1 | B59: =IF('170 N'!$E$6=Stammdaten!AF59,H59,0) -> 0 | C59: 2 | D59: Ferkelerzeugung | E59: =IF('170 N'!$C$6=Stammdaten!D59,1,0) -> 0 | F59: Mist/Tr.Kot/Jauche | G59: =IF('170 N'!$CJ$6=Stammdaten!F59,1,0) -> 0 | H59: Universalfutter | I59: =IF(AF59="Kalb Aufzucht, 0-4 Mon,45-135 kg LM, 3 Durchgänge",1,IF('170 N'!$CK$6=Stammdaten!H59,1,0)) -> 0 | J59: 0 | K59: 0 | M59: 58 | N59: spezial. Ferkelaufzucht, 500 TZ Universalfutter, 8 bis 28 kg LM | O59: 0.77 | P59: t | Q59: Festmist von Huf- und Klauentieren | R59: 4.2 | S59: 1.6 | T59: 0.37 | U59: 0.4 | V59: 0.2 | W59: 73 | X59: 0.02 | Y59: =X59*7 -> 0.14 | Z59: =X59*11 -> 0.22 | AA59: N | AB59: 0.9 | AC59: 0.93 | AE59: Schwein_117MJ | AF59: spezial. Ferkelaufzucht, 500 g TZ, 8 bis 28 kg LM | AG59: 30 | AH59: 70 | AI59: 58 | AJ59: Mist+Jauche | AL59: 4.2 | AM59: 14 | AN59: 60 | AO59: 1 | AP59: 2.6 | AQ59: =IF(T59="",0,ROUND(T59+U59-O59,4)) -> 0 | BA59: QFN_ZENTRALE | BB59: DB_SYS | BC59: spezial. Ferkelaufzucht, 500 TZ, Konv., Mist+Jauche | BD59: Universalfutter, 8 bis 28 kg LM | BE59: Schwein_117 | BF59: Schwein_117MJ | BG59: =U59 -> 0.4 | BH59: =BG59*100/O59 -> 51.94805195 | BI59: 3.1 | BJ59: =BI59*100/R59 -> 73.80952381 | BK59: 0.3 | BL59: =BK59*100/S59 -> 18.75 | BM59: 90 | BN59: 90 | BO59: 30 | BP59: 30 | BQ59: 0.8 | BR59: 0.08333333333
A60: =IF(AD60=1,1,IF(AND(OR('170 N'!$R$6="halb- tags",'170 N'!$R$6="ganz- tags"),AA60="N"),0,IF(AND(OR('170 N'!$C$6="Milchviehhaltung",'170 N'!$C$6="Pferdehaltung"),OR('170 N'!$R$6="Stall- haltung",'170 N'!$R$6=""),AA60="J"),0,1))) -> 1 | B60: =IF('170 N'!$E$6=Stammdaten!AF60,H60,0) -> 0 | C60: 2 | D60: Ferkelerzeugung | E60: =IF('170 N'!$C$6=Stammdaten!D60,1,0) -> 0 | F60: Gülle | G60: =IF('170 N'!$CJ$6=Stammdaten!F60,1,0) -> 0 | H60: N-/P-reduziert | I60: =IF(AF60="Kalb Aufzucht, 0-4 Mon,45-135 kg LM, 3 Durchgänge",1,IF('170 N'!$CK$6=Stammdaten!H60,1,0)) -> 0 | J60: 0 | K60: 0 | M60: 59 | N60: spezial. Ferkelaufzucht, 500 TZ N-/ P-reduziert, 8 bis 28 kg LM | O60: 0.7 | P60: m³ | Q60: Gülle | R60: 3.8 | S60: 1.4 | W60: 0 | X60: 0.02 | AA60: N | AB60: 0.9 | AC60: 0.99 | AE60: Schwein_118_G | AF60: spezial. Ferkelaufzucht, 500 g TZ, 8 bis 28 kg LM | AG60: 20 | AH60: 60 | AI60: 59 | AJ60: Schweine-gülle | AL60: 3.8 | AM60: 13 | AN60: 70 | AP60: 2.5 | BA60: DB_SYS | BB60: QFN_ZENTRALE | BC60: spezial. Ferkelaufzucht, 500 TZ, N-/P- reduziert, Gülle | BD60: N-/ P-reduziert, 8 bis 28 kg LM | BE60: Schwein_118 | BF60: Schwein_118_G | BM60: 70 | BN60: 60 | BQ60: 0.5952380952
A61: =IF(AD61=1,1,IF(AND(OR('170 N'!$R$6="halb- tags",'170 N'!$R$6="ganz- tags"),AA61="N"),0,IF(AND(OR('170 N'!$C$6="Milchviehhaltung",'170 N'!$C$6="Pferdehaltung"),OR('170 N'!$R$6="Stall- haltung",'170 N'!$R$6=""),AA61="J"),0,1))) -> 1 | B61: =IF('170 N'!$E$6=Stammdaten!AF61,H61,0) -> 0 | C61: 2 | D61: Ferkelerzeugung | E61: =IF('170 N'!$C$6=Stammdaten!D61,1,0) -> 0 | F61: Mist/Tr.Kot/Jauche | G61: =IF('170 N'!$CJ$6=Stammdaten!F61,1,0) -> 0 | H61: N-/P-reduziert | I61: =IF(AF61="Kalb Aufzucht, 0-4 Mon,45-135 kg LM, 3 Durchgänge",1,IF('170 N'!$CK$6=Stammdaten!H61,1,0)) -> 0 | J61: 0 | K61: 0 | M61: 60 | N61: spezial. Ferkelaufzucht, 500 TZ N-/ P-reduziert, 8 bis 28 kg LM | O61: 0.77 | P61: t | Q61: Festmist von Huf- und Klauentieren | R61: 3.8 | S61: 1.4 | T61: 0.37 | U61: 0.4 | V61: 0.2 | W61: 73 | X61: 0.02 | Y61: =X61*7 -> 0.14 | Z61: =X61*11 -> 0.22 | AA61: N | AB61: 0.9 | AC61: 0.93 | AE61: Schwein_118MJ | AF61: spezial. Ferkelaufzucht, 500 g TZ, 8 bis 28 kg LM | AG61: 30 | AH61: 70 | AI61: 60 | AJ61: Mist+Jauche | AL61: 3.8 | AM61: 14 | AN61: 60 | AO61: 1 | AP61: 2.5 | AQ61: =IF(T61="",0,ROUND(T61+U61-O61,4)) -> 0 | BA61: QFN_ZENTRALE | BB61: DB_SYS | BC61: spezial. Ferkelaufzucht, 500 TZ, N-/P- reduziert, Mist+Jauche | BD61: N-/ P-reduziert, 8 bis 28 kg LM | BE61: Schwein_118 | BF61: Schwein_118MJ | BG61: =U61 -> 0.4 | BH61: =BG61*100/O61 -> 51.94805195 | BI61: 2.8 | BJ61: =BI61*100/R61 -> 73.68421053 | BK61: 0.3 | BL61: =BK61*100/S61 -> 21.42857143 | BM61: 90 | BN61: 90 | BO61: 30 | BP61: 30 | BQ61: 0.8 | BR61: 0.08333333333
A62: =IF(AD62=1,1,IF(AND(OR('170 N'!$R$6="halb- tags",'170 N'!$R$6="ganz- tags"),AA62="N"),0,IF(AND(OR('170 N'!$C$6="Milchviehhaltung",'170 N'!$C$6="Pferdehaltung"),OR('170 N'!$R$6="Stall- haltung",'170 N'!$R$6=""),AA62="J"),0,1))) -> 1 | B62: =IF('170 N'!$E$6=Stammdaten!AF62,H62,0) -> 0 | C62: 2 | D62: Ferkelerzeugung | E62: =IF('170 N'!$C$6=Stammdaten!D62,1,0) -> 0 | F62: Gülle | G62: =IF('170 N'!$CJ$6=Stammdaten!F62,1,0) -> 0 | H62: stark N-/P-reduziert | I62: =IF(AF62="Kalb Aufzucht, 0-4 Mon,45-135 kg LM, 3 Durchgänge",1,IF('170 N'!$CK$6=Stammdaten!H62,1,0)) -> 0 | J62: 0 | K62: 0 | M62: 61 | N62: spezial. Ferkelaufzucht, 500 TZ stark N-/ P-reduziert, 8 bis 28 kg LM | O62: 0.7 | P62: m³ | Q62: Gülle | R62: 3.6 | S62: 1.4 | W62: 0 | X62: 0.02 | AA62: N | AB62: 0.9 | AC62: 0.99 | AE62: Schwein_119_G | AF62: spezial. Ferkelaufzucht, 500 g TZ, 8 bis 28 kg LM | AG62: 20 | AH62: 60 | AI62: 61 | AJ62: Schweine-gülle | AL62: 3.6 | AM62: 13 | AN62: 70 | AP62: 2.5 | BA62: DB_SYS | BB62: DB_SYS | BC62: spezial. Ferkelaufzucht, 500 TZ, stark N-/P- reduziert, Gülle | BD62: stark N-/ P-reduziert, 8 bis 28 kg LM | BE62: Schwein_119 | BF62: Schwein_119_G | BM62: 70 | BN62: 60 | BQ62: 0.6
A63: =IF(AD63=1,1,IF(AND(OR('170 N'!$R$6="halb- tags",'170 N'!$R$6="ganz- tags"),AA63="N"),0,IF(AND(OR('170 N'!$C$6="Milchviehhaltung",'170 N'!$C$6="Pferdehaltung"),OR('170 N'!$R$6="Stall- haltung",'170 N'!$R$6=""),AA63="J"),0,1))) -> 1 | B63: =IF('170 N'!$E$6=Stammdaten!AF63,H63,0) -> 0 | C63: 2 | D63: Ferkelerzeugung | E63: =IF('170 N'!$C$6=Stammdaten!D63,1,0) -> 0 | F63: Mist/Tr.Kot/Jauche | G63: =IF('170 N'!$CJ$6=Stammdaten!F63,1,0) -> 0 | H63: stark N-/P-reduziert | I63: =IF(AF63="Kalb Aufzucht, 0-4 Mon,45-135 kg LM, 3 Durchgänge",1,IF('170 N'!$CK$6=Stammdaten!H63,1,0)) -> 0 | J63: 0 | K63: 0 | M63: 62 | N63: spezial. Ferkelaufzucht, 500 TZ stark N-/ P-reduziert, 8 bis 28 kg LM | O63: 0.77 | P63: t | Q63: Festmist von Huf- und Klauentieren | R63: 3.6 | S63: 1.4 | T63: 0.37 | U63: 0.4 | V63: 0.2 | W63: 73 | X63: 0.02 | Y63: =X63*7 -> 0.14 | Z63: =X63*11 -> 0.22 | AA63: N | AB63: 0.9 | AC63: 0.93 | AE63: Schwein_119MJ | AF63: spezial. Ferkelaufzucht, 500 g TZ, 8 bis 28 kg LM | AG63: 30 | AH63: 72 | AI63: 62 | AJ63: Mist+Jauche | AL63: 3.6 | AM63: 14 | AN63: 60 | AO63: 1 | AP63: 2.5 | AQ63: =IF(T63="",0,ROUND(T63+U63-O63,4)) -> 0 | BA63: QFN_ZENTRALE | BB63: QFN_ZENTRALE | BC63: spezial. Ferkelaufzucht, 500 TZ, stark N-/P- reduziert, Mist+Jauche | BD63: stark N-/ P-reduziert, 8 bis 28 kg LM | BE63: Schwein_119 | BF63: Schwein_119MJ | BG63: =U63 -> 0.4 | BH63: =BG63*100/O63 -> 51.94805195 | BI63: 2.8 | BJ63: =BI63*100/R63 -> 77.77777778 | BK63: 0.3 | BL63: =BK63*100/S63 -> 21.42857143 | BM63: 90 | BN63: 90 | BO63: 30 | BP63: 30 | BQ63: 0.8 | BR63: 0.08333333333
A64: =IF(AD64=1,1,IF(AND(OR('170 N'!$R$6="halb- tags",'170 N'!$R$6="ganz- tags"),AA64="N"),0,IF(AND(OR('170 N'!$C$6="Milchviehhaltung",'170 N'!$C$6="Pferdehaltung"),OR('170 N'!$R$6="Stall- haltung",'170 N'!$R$6=""),AA64="J"),0,1))) -> 1 | B64: =IF('170 N'!$E$6=Stammdaten!AF64,H64,0) -> 0 | C64: 3 | D64: Geflügelmast | E64: =IF('170 N'!$C$6=Stammdaten!D64,1,0) -> 0 | F64: Mist/Tr.Kot/Jauche | G64: =IF('170 N'!$CJ$6=Stammdaten!F64,1,0) -> 0 | H64: Standard-/ Universalfutter | I64: =IF(AF64="Kalb Aufzucht, 0-4 Mon,45-135 kg LM, 3 Durchgänge",1,IF('170 N'!$CK$6=Stammdaten!H64,1,0)) -> 0 | J64: 0 | K64: 0 | M64: 63 | N64: Hähnchenmastplatz Standardfutter, bis 29 Tage, 1,55kg Zuwachs/Tier | O64: 0.0093 | P64: t | Q64: Hähnchenmastmist | R64: 0.267 | S64: 0.142 | V64: =0.33/365 -> 0.000904109589 | W64: 0.33 | X64: 0.004 | Z64: 0.044 | AA64: N | AB64: 0.5 | AC64: 0.81 | AE64: Gefluegel_120_M | AF64: Hähnchenmastplatz, bis 29 Tage, 1,55kg Zuwachs/Tier | AG64: 40 | AH64: 30 | AI64: 63 | AJ64: Geflügelmist | AL64: 0.267 | AM64: 17 | AN64: 50 | AP64: 0.161 | AQ64: 0 | BA64: DB_SYS | BB64: DB_SYS | BC64: Hähnchenmastplatz, Konv., Mist | BD64: Standardfutter, bis 29 Tage, 1,55kg Zuwachs/Tier | BE64: Gefluegel_120 | BF64: Gefluegel_120_M | BO64: 30 | BP64: 30 | BR64: 0.2444444444
A65: =IF(AD65=1,1,IF(AND(OR('170 N'!$R$6="halb- tags",'170 N'!$R$6="ganz- tags"),AA65="N"),0,IF(AND(OR('170 N'!$C$6="Milchviehhaltung",'170 N'!$C$6="Pferdehaltung"),OR('170 N'!$R$6="Stall- haltung",'170 N'!$R$6=""),AA65="J"),0,1))) -> 1 | B65: =IF('170 N'!$E$6=Stammdaten!AF65,H65,0) -> 0 | C65: 3 | D65: Geflügelmast | E65: =IF('170 N'!$C$6=Stammdaten!D65,1,0) -> 0 | F65: Mist/Tr.Kot/Jauche | G65: =IF('170 N'!$CJ$6=Stammdaten!F65,1,0) -> 0 | H65: Standard-/ Universalfutter | I65: =IF(AF65="Kalb Aufzucht, 0-4 Mon,45-135 kg LM, 3 Durchgänge",1,IF('170 N'!$CK$6=Stammdaten!H65,1,0)) -> 0 | J65: 0 | K65: 0 | M65: 64 | N65: Hähnchenmastplatz Standardfutter, 30 bis 33 Tage, 1,85kg Zuwachs/Tie | O65: 0.01 | P65: t | Q65: Hähnchenmastmist | R65: 0.328 | S65: 0.174 | V65: =0.38/365 -> 0.00104109589 | W65: 0.38 | X65: 0.004 | Z65: 0.044 | AA65: N | AB65: 0.5 | AC65: 0.81 | AE65: Gefluegel_118_M | AF65: Hähnchenmastplatz, 30 bis 33 Tage, 1,85kg Zuwachs/Tier | AG65: 40 | AH65: 30 | AI65: 64 | AJ65: Geflügelmist | AL65: 0.328 | AM65: 17 | AN65: 50 | AP65: 0.193 | AQ65: 0 | BA65: DB_SYS | BB65: DB_SYS | BC65: Hähnchenmastplatz, Konv., Mist | BD65: Standardfutter, 30 bis 33 Tage, 1,85kg Zuwachs/Tie | BE65: Gefluegel_118 | BF65: Gefluegel_118_M | BO65: 30 | BP65: 30 | BR65: 0.2444444444
A66: =IF(AD66=1,1,IF(AND(OR('170 N'!$R$6="halb- tags",'170 N'!$R$6="ganz- tags"),AA66="N"),0,IF(AND(OR('170 N'!$C$6="Milchviehhaltung",'170 N'!$C$6="Pferdehaltung"),OR('170 N'!$R$6="Stall- haltung",'170 N'!$R$6=""),AA66="J"),0,1))) -> 1 | B66: =IF('170 N'!$E$6=Stammdaten!AF66,H66,0) -> 0 | C66: =IF(D66="Eiererzeugung",1,IF(D66="Ferkelerzeugung",2,IF(D66="Geflügelmast",3,IF(D66="Gehegewild",4,IF(D66="Jungrindermast",5,IF(D66="Kaninchenhaltung",6,IF(D66="Lammfleischerzeugung",7,IF(D66="Milchviehhaltung",8,IF(D66="Pferdehaltung",9,IF(D66="Rindermast",10,IF(D66="Schweinemast",11,IF(D66="Ziegenmilcherzeugung",12,"")))))))))))) -> 3 | D66: Geflügelmast | E66: =IF('170 N'!$C$6=Stammdaten!D66,1,0) -> 0 | F66: Mist/Tr.Kot/Jauche | G66: =IF('170 N'!$CJ$6=Stammdaten!F66,1,0) -> 0 | H66: Standard-/ Universalfutter | I66: =IF(AF66="Kalb Aufzucht, 0-4 Mon,45-135 kg LM, 3 Durchgänge",1,IF('170 N'!$CK$6=Stammdaten!H66,1,0)) -> 0 | J66: =IF(E66+G66+I66+A66=4,1,0) -> 0 | K66: 0 | M66: 65 | N66: Hähnchenmastplatz Standardfutter, 34 bis 38 Tage, 2,3kg Zuwachs/Tier | O66: 0.0111 | P66: t | Q66: Hähnchenmastmist | R66: 0.388 | S66: 0.19 | V66: =0.5/365 -> 0.001369863014 | W66: =V66*365 -> 0.5 | X66: 0.004 | Z66: 0.044 | AA66: N | AB66: 0.5 | AC66: 0.81 | AE66: =BF66 -> Gefluegel_119_M | AF66: Hähnchenmastplatz, 34 bis 38 Tage, 2,3kg Zuwachs/Tier | AG66: 40 | AH66: 30 | AI66: 65 | AJ66: Geflügelmist | AL66: 0.388 | AM66: 17 | AN66: 50 | AP66: 0.219 | AQ66: 0 | BA66: DB_SYS | BB66: DB_SYS | BC66: Hähnchenmastplatz, Konv., Mist | BD66: Standardfutter, 34 bis 38 Tage, 2,3kg Zuwachs/Tier | BE66: Gefluegel_119 | BF66: Gefluegel_119_M | BO66: 30 | BP66: 30 | BR66: 0.2444444444
A67: =IF(AD67=1,1,IF(AND(OR('170 N'!$R$6="halb- tags",'170 N'!$R$6="ganz- tags"),AA67="N"),0,IF(AND(OR('170 N'!$C$6="Milchviehhaltung",'170 N'!$C$6="Pferdehaltung"),OR('170 N'!$R$6="Stall- haltung",'170 N'!$R$6=""),AA67="J"),0,1))) -> 1 | B67: =IF('170 N'!$E$6=Stammdaten!AF67,H67,0) -> 0 | C67: 3 | D67: Geflügelmast | E67: =IF('170 N'!$C$6=Stammdaten!D67,1,0) -> 0 | F67: Mist/Tr.Kot/Jauche | G67: =IF('170 N'!$CJ$6=Stammdaten!F67,1,0) -> 0 | H67: Standard-/ Universalfutter | I67: =IF(AF67="Kalb Aufzucht, 0-4 Mon,45-135 kg LM, 3 Durchgänge",1,IF('170 N'!$CK$6=Stammdaten!H67,1,0)) -> 0 | J67: 0 | K67: =J67+K66 -> 0 | L67: =IF(K67=K66,"",K67) ->  | M67: 66 | N67: Hähnchenmastplatz Standardfutter, über 39 Tage, 2,6kg Zuwachs/Tier | O67: 0.0118 | P67: t | Q67: Hähnchenmastmist | R67: 0.413 | S67: 0.208 | V67: =0.57/365 -> 0.001561643836 | W67: 0.57 | X67: 0.004 | Z67: 0.044 | AA67: N | AB67: 0.5 | AC67: 0.81 | AE67: Gefluegel_121_M | AF67: Hähnchenmastplatz, über 39 Tage, 2,6kg Zuwachs/Tier | AG67: 40 | AH67: 30 | AI67: 66 | AJ67: Geflügelmist | AL67: 0.413 | AM67: 17 | AN67: 50 | AP67: 0.228 | AQ67: 0 | BA67: DB_SYS | BB67: DB_SYS | BC67: Hähnchenmastplatz, Konv., Mist | BD67: Standardfutter, über 39 Tage, 2,6kg Zuwachs/Tier | BE67: Gefluegel_121 | BF67: Gefluegel_121_M | BO67: 30 | BP67: 30 | BR67: 0.2444444444
A68: =IF(AD68=1,1,IF(AND(OR('170 N'!$R$6="halb- tags",'170 N'!$R$6="ganz- tags"),AA68="N"),0,IF(AND(OR('170 N'!$C$6="Milchviehhaltung",'170 N'!$C$6="Pferdehaltung"),OR('170 N'!$R$6="Stall- haltung",'170 N'!$R$6=""),AA68="J"),0,1))) -> 1 | B68: =IF('170 N'!$E$6=Stammdaten!AF68,H68,0) -> 0 | C68: 3 | D68: Geflügelmast | E68: =IF('170 N'!$C$6=Stammdaten!D68,1,0) -> 0 | F68: Mist/Tr.Kot/Jauche | G68: =IF('170 N'!$CJ$6=Stammdaten!F68,1,0) -> 0 | H68: N-/P-reduziert | I68: =IF(AF68="Kalb Aufzucht, 0-4 Mon,45-135 kg LM, 3 Durchgänge",1,IF('170 N'!$CK$6=Stammdaten!H68,1,0)) -> 0 | J68: 0 | K68: 0 | M68: 67 | N68: Hähnchenmastplatz N-/ P-reduziert, bis 29 Tage, 1,55kg Zuwachs/Tier | O68: 0.0093 | P68: t | Q68: Hähnchenmastmist | R68: 0.249 | S68: 0.121 | V68: =0.33/365 -> 0.000904109589 | W68: 0.33 | X68: 0.004 | Z68: 0.044 | AA68: N | AB68: 0.5 | AC68: 0.81 | AE68: Gefluegel_125_M | AF68: Hähnchenmastplatz, bis 29 Tage, 1,55kg Zuwachs/Tier | AG68: 40 | AH68: 30 | AI68: 67 | AJ68: Geflügelmist | AL68: 0.249 | AM68: 17 | AN68: 50 | AP68: 0.161 | AQ68: 0 | BA68: DB_SYS | BB68: DB_SYS | BC68: Hähnchenmastplatz, N-/P- reduziert, Mist | BD68: N-/ P-reduziert, bis 29 Tage, 1,55kg Zuwachs/Tier | BE68: Gefluegel_125 | BF68: Gefluegel_125_M | BO68: 30 | BP68: 30 | BR68: 0.244
A69: =IF(AD69=1,1,IF(AND(OR('170 N'!$R$6="halb- tags",'170 N'!$R$6="ganz- tags"),AA69="N"),0,IF(AND(OR('170 N'!$C$6="Milchviehhaltung",'170 N'!$C$6="Pferdehaltung"),OR('170 N'!$R$6="Stall- haltung",'170 N'!$R$6=""),AA69="J"),0,1))) -> 1 | B69: =IF('170 N'!$E$6=Stammdaten!AF69,H69,0) -> 0 | C69: 3 | D69: Geflügelmast | E69: =IF('170 N'!$C$6=Stammdaten!D69,1,0) -> 0 | F69: Mist/Tr.Kot/Jauche | G69: =IF('170 N'!$CJ$6=Stammdaten!F69,1,0) -> 0 | H69: N-/P-reduziert | I69: =IF(AF69="Kalb Aufzucht, 0-4 Mon,45-135 kg LM, 3 Durchgänge",1,IF('170 N'!$CK$6=Stammdaten!H69,1,0)) -> 0 | J69: 0 | K69: 0 | M69: 68 | N69: Hähnchenmastplatz N-/ P-reduziert, 30 bis 33 Tage, 1,85kg Zuwachs/Ti | O69: 0.01 | P69: t | Q69: Hähnchenmastmist | R69: 0.311 | S69: 0.153 | V69: =0.38/365 -> 0.00104109589 | W69: 0.38 | X69: 0.004 | Z69: 0.044 | AA69: N | AB69: 0.5 | AC69: 0.81 | AE69: Gefluegel_122_M | AF69: Hähnchenmastplatz, 30 bis 33 Tage, 1,85kg Zuwachs/Tier | AG69: 40 | AH69: 30 | AI69: 68 | AJ69: Geflügelmist | AL69: 0.311 | AM69: 17 | AN69: 50 | AP69: 0.193 | AQ69: 0 | BA69: DB_SYS | BB69: DB_SYS | BC69: Hähnchenmastplatz, N-/P- reduziert, Mist | BD69: N-/ P-reduziert, 30 bis 33 Tage, 1,85kg Zuwachs/Ti | BE69: Gefluegel_122 | BF69: Gefluegel_122_M | BO69: 30 | BP69: 30 | BR69: 0.244
A70: =IF(AD70=1,1,IF(AND(OR('170 N'!$R$6="halb- tags",'170 N'!$R$6="ganz- tags"),AA70="N"),0,IF(AND(OR('170 N'!$C$6="Milchviehhaltung",'170 N'!$C$6="Pferdehaltung"),OR('170 N'!$R$6="Stall- haltung",'170 N'!$R$6=""),AA70="J"),0,1))) -> 1 | B70: =IF('170 N'!$E$6=Stammdaten!AF70,H70,0) -> 0 | C70: 3 | D70: Geflügelmast | E70: =IF('170 N'!$C$6=Stammdaten!D70,1,0) -> 0 | F70: Mist/Tr.Kot/Jauche | G70: =IF('170 N'!$CJ$6=Stammdaten!F70,1,0) -> 0 | H70: N-/P-reduziert | I70: =IF(AF70="Kalb Aufzucht, 0-4 Mon,45-135 kg LM, 3 Durchgänge",1,IF('170 N'!$CK$6=Stammdaten!H70,1,0)) -> 0 | J70: 0 | K70: 0 | M70: 69 | N70: Hähnchenmastplatz N-/ P-reduziert, 34 bis 38 Tage, 2,3kg Zuwachs/Tie | O70: 0.0111 | P70: t | Q70: Hähnchenmastmist | R70: 0.357 | S70: 0.174 | V70: =0.5/365 -> 0.001369863014 | W70: 0.5 | X70: 0.004 | Z70: 0.044 | AA70: N | AB70: 0.5 | AC70: 0.81 | AE70: Gefluegel_123_M | AF70: Hähnchenmastplatz, 34 bis 38 Tage, 2,3kg Zuwachs/Tier | AG70: 40 | AH70: 30 | AI70: 69 | AJ70: Geflügelmist | AL70: 0.357 | AM70: 17 | AN70: 50 | AP70: 0.219 | AQ70: 0 | BA70: DB_SYS | BB70: DB_SYS | BC70: Hähnchenmastplatz, N-/P- reduziert, Mist | BD70: N-/ P-reduziert, 34 bis 38 Tage, 2,3kg Zuwachs/Tie | BE70: Gefluegel_123 | BF70: Gefluegel_123_M | BO70: 30 | BP70: 30 | BR70: 0.244
A71: =IF(AD71=1,1,IF(AND(OR('170 N'!$R$6="halb- tags",'170 N'!$R$6="ganz- tags"),AA71="N"),0,IF(AND(OR('170 N'!$C$6="Milchviehhaltung",'170 N'!$C$6="Pferdehaltung"),OR('170 N'!$R$6="Stall- haltung",'170 N'!$R$6=""),AA71="J"),0,1))) -> 1 | B71: =IF('170 N'!$E$6=Stammdaten!AF71,H71,0) -> 0 | C71: 3 | D71: Geflügelmast | E71: =IF('170 N'!$C$6=Stammdaten!D71,1,0) -> 0 | F71: Mist/Tr.Kot/Jauche | G71: =IF('170 N'!$CJ$6=Stammdaten!F71,1,0) -> 0 | H71: N-/P-reduziert | I71: =IF(AF71="Kalb Aufzucht, 0-4 Mon,45-135 kg LM, 3 Durchgänge",1,IF('170 N'!$CK$6=Stammdaten!H71,1,0)) -> 0 | J71: 0 | K71: 0 | M71: 70 | N71: Hähnchenmastplatz N-/ P-reduziert, über 39 Tage, 2,6kg Zuwachs/Tier | O71: 0.0118 | P71: t | Q71: Hähnchenmastmist | R71: 0.385 | S71: 0.176 | V71: =0.57/365 -> 0.001561643836 | W71: 0.57 | X71: 0.004 | Z71: 0.044 | AA71: N | AB71: 0.5 | AC71: 0.81 | AE71: Gefluegel_124_M | AF71: Hähnchenmastplatz, über 39 Tage, 2,6kg Zuwachs/Tier | AG71: 40 | AH71: 30 | AI71: 70 | AJ71: Geflügelmist | AL71: 0.385 | AM71: 17 | AN71: 50 | AP71: 0.228 | AQ71: 0 | BA71: DB_SYS | BB71: DB_SYS | BC71: Hähnchenmastplatz, N-/P- reduziert, Mist | BD71: N-/ P-reduziert, über 39 Tage, 2,6kg Zuwachs/Tier | BE71: Gefluegel_124 | BF71: Gefluegel_124_M | BO71: 30 | BP71: 30 | BR71: 0.244
A72: =IF(AD72=1,1,IF(AND(OR('170 N'!$R$6="halb- tags",'170 N'!$R$6="ganz- tags"),AA72="N"),0,IF(AND(OR('170 N'!$C$6="Milchviehhaltung",'170 N'!$C$6="Pferdehaltung"),OR('170 N'!$R$6="Stall- haltung",'170 N'!$R$6=""),AA72="J"),0,1))) -> 1 | B72: =IF('170 N'!$E$6=Stammdaten!AF72,H72,0) -> 0 | C72: 3 | D72: Geflügelmast | E72: =IF('170 N'!$C$6=Stammdaten!D72,1,0) -> 0 | F72: Mist/Tr.Kot/Jauche | G72: =IF('170 N'!$CJ$6=Stammdaten!F72,1,0) -> 0 | H72: Standard-/ Universalfutter | I72: =IF(AF72="Kalb Aufzucht, 0-4 Mon,45-135 kg LM, 3 Durchgänge",1,IF('170 N'!$CK$6=Stammdaten!H72,1,0)) -> 0 | J72: 0 | K72: 0 | M72: 71 | N72: Putenaufzucht bis 5 Wochen, 50% Hähne u. 50% Henne Standardfutter | O72: 0.0132 | P72: t | Q72: Putenaufzuchtmist | R72: 0.422 | S72: 0.289 | V72: =1*2.7/365 -> 0.007397260274 | W72: 2.7 | X72: 0.004 | Z72: 0.044 | AA72: N | AB72: 0.4 | AC72: 0.81 | AE72: Gefluegel_163_M | AF72: Putenaufzucht bis 5 Wochen, 50% Hähne u. 50% Henne | AG72: 40 | AH72: 30 | AI72: 71 | AJ72: Geflügelmist | AL72: 0.422 | AM72: 17 | AN72: 50 | AP72: 0.231 | AQ72: 0 | BA72: DB_SYS | BB72: DB_SYS | BC72: Putenaufzucht bis 5 Wochen, 50% Hähne u. 50% Hennen, Konv., Mist | BD72: Standardfutter | BE72: Gefluegel_163 | BF72: Gefluegel_163_M | BO72: 30 | BP72: 30 | BR72: 0.2009345794
A73: =IF(AD73=1,1,IF(AND(OR('170 N'!$R$6="halb- tags",'170 N'!$R$6="ganz- tags"),AA73="N"),0,IF(AND(OR('170 N'!$C$6="Milchviehhaltung",'170 N'!$C$6="Pferdehaltung"),OR('170 N'!$R$6="Stall- haltung",'170 N'!$R$6=""),AA73="J"),0,1))) -> 1 | B73: =IF('170 N'!$E$6=Stammdaten!AF73,H73,0) -> 0 | C73: 3 | D73: Geflügelmast | E73: =IF('170 N'!$C$6=Stammdaten!D73,1,0) -> 0 | F73: Mist/Tr.Kot/Jauche | G73: =IF('170 N'!$CJ$6=Stammdaten!F73,1,0) -> 0 | H73: Standard-/ Universalfutter | I73: =IF(AF73="Kalb Aufzucht, 0-4 Mon,45-135 kg LM, 3 Durchgänge",1,IF('170 N'!$CK$6=Stammdaten!H73,1,0)) -> 0 | J73: 0 | K73: 0 | M73: 72 | N73: Putenmastplatz, Hähne ab der 6. Woche Standardfutter, 6.-21. Woche, 2,7 Dg | O73: 0.061 | P73: t | Q73: Putenmist | R73: 2.468 | S73: 1.372 | V73: =6*2.7/365 -> 0.04438356164 | W73: 16.2 | X73: 0.004 | Z73: 0.044 | AA73: N | AB73: 0.4 | AC73: 0.81 | AE73: Gefluegel_128_M | AF73: Putenmastplatz, Hähne ab der 6. Woche, 6.-21. Woche, 2,7 Dg | AG73: 40 | AH73: 30 | AI73: 72 | AJ73: Geflügelmist | AL73: 2.468 | AM73: 17 | AN73: 50 | AP73: 1.123 | AQ73: 0 | BA73: DB_SYS | BB73: DB_SYS | BC73: Putenmastplatz, Hähne ab der 6. Woche, Konv., Mist | BD73: Standardfutter, 6.-21. Woche, 2,7 Dg | BE73: Gefluegel_128 | BF73: Gefluegel_128_M | BO73: 30 | BP73: 30 | BR73: 0.2009345794
A74: =IF(AD74=1,1,IF(AND(OR('170 N'!$R$6="halb- tags",'170 N'!$R$6="ganz- tags"),AA74="N"),0,IF(AND(OR('170 N'!$C$6="Milchviehhaltung",'170 N'!$C$6="Pferdehaltung"),OR('170 N'!$R$6="Stall- haltung",'170 N'!$R$6=""),AA74="J"),0,1))) -> 1 | B74: =IF('170 N'!$E$6=Stammdaten!AF74,H74,0) -> 0 | C74: 3 | D74: Geflügelmast | E74: =IF('170 N'!$C$6=Stammdaten!D74,1,0) -> 0 | F74: Mist/Tr.Kot/Jauche | G74: =IF('170 N'!$CJ$6=Stammdaten!F74,1,0) -> 0 | H74: N-/P-reduziert | I74: =IF(AF74="Kalb Aufzucht, 0-4 Mon,45-135 kg LM, 3 Durchgänge",1,IF('170 N'!$CK$6=Stammdaten!H74,1,0)) -> 0 | J74: 0 | K74: 0 | M74: 73 | N74: Putenmastplatz, Hähne ab der 6. Woche N-/ P-reduziert, 6.-21. Woche, 2,7 Dg | O74: 0.061 | P74: t | Q74: Putenmist | R74: 2.282 | S74: 1.044 | V74: =6*2.7/365 -> 0.04438356164 | W74: 16.2 | X74: 0.004 | Z74: 0.044 | AA74: N | AB74: 0.4 | AC74: 0.81 | AE74: Gefluegel_131_M | AF74: Putenmastplatz, Hähne ab der 6. Woche, 6.-21. Woche, 2,7 Dg | AG74: 40 | AH74: 30 | AI74: 73 | AJ74: Geflügelmist | AL74: 2.282 | AM74: 17 | AN74: 50 | AP74: 1.054 | AQ74: 0 | BA74: DB_SYS | BB74: DB_SYS | BC74: Putenmastplatz, Hähne ab der 6. Woche, N-/P- reduziert, Mist | BD74: N-/ P-reduziert, 6.-21. Woche, 2,7 Dg | BE74: Gefluegel_131 | BF74: Gefluegel_131_M | BO74: 30 | BP74: 30 | BR74: 0.1990049751
A75: =IF(AD75=1,1,IF(AND(OR('170 N'!$R$6="halb- tags",'170 N'!$R$6="ganz- tags"),AA75="N"),0,IF(AND(OR('170 N'!$C$6="Milchviehhaltung",'170 N'!$C$6="Pferdehaltung"),OR('170 N'!$R$6="Stall- haltung",'170 N'!$R$6=""),AA75="J"),0,1))) -> 1 | B75: =IF('170 N'!$E$6=Stammdaten!AF75,H75,0) -> 0 | C75: 3 | D75: Geflügelmast | E75: =IF('170 N'!$C$6=Stammdaten!D75,1,0) -> 0 | F75: Mist/Tr.Kot/Jauche | G75: =IF('170 N'!$CJ$6=Stammdaten!F75,1,0) -> 0 | H75: Standard-/ Universalfutter | I75: =IF(AF75="Kalb Aufzucht, 0-4 Mon,45-135 kg LM, 3 Durchgänge",1,IF('170 N'!$CK$6=Stammdaten!H75,1,0)) -> 0 | J75: 0 | K75: 0 | M75: 74 | N75: Putenmastplatz, Hähne Standardfutter, bis 21 Wochen | O75: 0.0484 | P75: t | Q75: Putenmist | R75: 2.145 | S75: 1.209 | V75: =7*2.2/365 -> 0.04219178082 | W75: 15.4 | X75: 0.004 | Z75: 0.044 | AA75: N | AB75: 0.4 | AC75: 0.81 | AE75: Gefluegel_126_M | AF75: Putenmastplatz, Hähne, bis 21 Wochen | AG75: 40 | AH75: 30 | AI75: 74 | AJ75: Geflügelmist | AL75: 2.145 | AM75: 17 | AN75: 50 | AP75: 0.989 | AQ75: 0 | BA75: DB_SYS | BB75: DB_SYS | BC75: Putenmastplatz, Hähne, Konv., Mist | BD75: Standardfutter, bis 21 Wochen | BE75: Gefluegel_126 | BF75: Gefluegel_126_M | BO75: 30 | BP75: 30 | BR75: 0.2009345794
A76: =IF(AD76=1,1,IF(AND(OR('170 N'!$R$6="halb- tags",'170 N'!$R$6="ganz- tags"),AA76="N"),0,IF(AND(OR('170 N'!$C$6="Milchviehhaltung",'170 N'!$C$6="Pferdehaltung"),OR('170 N'!$R$6="Stall- haltung",'170 N'!$R$6=""),AA76="J"),0,1))) -> 1 | B76: =IF('170 N'!$E$6=Stammdaten!AF76,H76,0) -> 0 | C76: 3 | D76: Geflügelmast | E76: =IF('170 N'!$C$6=Stammdaten!D76,1,0) -> 0 | F76: Mist/Tr.Kot/Jauche | G76: =IF('170 N'!$CJ$6=Stammdaten!F76,1,0) -> 0 | H76: N-/P-reduziert | I76: =IF(AF76="Kalb Aufzucht, 0-4 Mon,45-135 kg LM, 3 Durchgänge",1,IF('170 N'!$CK$6=Stammdaten!H76,1,0)) -> 0 | J76: 0 | K76: 0 | M76: 75 | N76: Putenmastplatz, Hähne N-/ P-reduziert, bis 21 Wochen | O76: 0.0484 | P76: t | Q76: Putenmist | R76: 1.991 | S76: 0.941 | V76: =7*2.2/365 -> 0.04219178082 | W76: 15.4 | X76: 0.004 | Z76: 0.044 | AA76: N | AB76: 0.4 | AC76: 0.81 | AE76: Gefluegel_129_M | AF76: Putenmastplatz, Hähne, bis 21 Wochen | AG76: 40 | AH76: 30 | AI76: 75 | AJ76: Geflügelmist | AL76: 1.991 | AM76: 17 | AN76: 50 | AP76: 0.933 | AQ76: 0 | BA76: DB_SYS | BB76: DB_SYS | BC76: Putenmastplatz, Hähne, N-/P- reduziert, Mist | BD76: N-/ P-reduziert, bis 21 Wochen | BE76: Gefluegel_129 | BF76: Gefluegel_129_M | BO76: 30 | BP76: 30 | BR76: 0.1990049751
A77: =IF(AD77=1,1,IF(AND(OR('170 N'!$R$6="halb- tags",'170 N'!$R$6="ganz- tags"),AA77="N"),0,IF(AND(OR('170 N'!$C$6="Milchviehhaltung",'170 N'!$C$6="Pferdehaltung"),OR('170 N'!$R$6="Stall- haltung",'170 N'!$R$6=""),AA77="J"),0,1))) -> 1 | B77: =IF('170 N'!$E$6=Stammdaten!AF77,H77,0) -> 0 | C77: 3 | D77: Geflügelmast | E77: =IF('170 N'!$C$6=Stammdaten!D77,1,0) -> 0 | F77: Mist/Tr.Kot/Jauche | G77: =IF('170 N'!$CJ$6=Stammdaten!F77,1,0) -> 0 | H77: Standard-/ Universalfutter | I77: =IF(AF77="Kalb Aufzucht, 0-4 Mon,45-135 kg LM, 3 Durchgänge",1,IF('170 N'!$CK$6=Stammdaten!H77,1,0)) -> 0 | J77: 0 | K77: 0 | M77: 76 | N77: Putenmastplatz, Hennen ab der 6. Woche Standardfutter, 6.-16. Woche, 3,3 Dg | O77: 0.06 | P77: t | Q77: Putenmist | R77: 1.652 | S77: 0.923 | V77: =4.25*3.3/365 -> 0.03842465753 | W77: 14.025 | X77: 0.004 | Z77: 0.044 | AA77: N | AB77: 0.4 | AC77: 0.81 | AE77: Gefluegel_137_M | AF77: Putenmastplatz, Hennen ab der 6. Woche, 6.-16. Woche, 3,3 Dg | AG77: 40 | AH77: 30 | AI77: 76 | AJ77: Geflügelmist | AL77: 1.652 | AM77: 17 | AN77: 50 | AP77: 0.752 | AQ77: 0 | BA77: DB_SYS | BB77: DB_SYS | BC77: Putenmastplatz, Hennen ab der 6. Woche, Konv., Mist | BD77: Standardfutter, 6.-16. Woche, 3,3 Dg | BE77: Gefluegel_137 | BF77: Gefluegel_137_M | BO77: 30 | BP77: 30 | BR77: 0.2009345794
A78: =IF(AD78=1,1,IF(AND(OR('170 N'!$R$6="halb- tags",'170 N'!$R$6="ganz- tags"),AA78="N"),0,IF(AND(OR('170 N'!$C$6="Milchviehhaltung",'170 N'!$C$6="Pferdehaltung"),OR('170 N'!$R$6="Stall- haltung",'170 N'!$R$6=""),AA78="J"),0,1))) -> 1 | B78: =IF('170 N'!$E$6=Stammdaten!AF78,H78,0) -> 0 | C78: 3 | D78: Geflügelmast | E78: =IF('170 N'!$C$6=Stammdaten!D78,1,0) -> 0 | F78: Mist/Tr.Kot/Jauche | G78: =IF('170 N'!$CJ$6=Stammdaten!F78,1,0) -> 0 | H78: N-/P-reduziert | I78: =IF(AF78="Kalb Aufzucht, 0-4 Mon,45-135 kg LM, 3 Durchgänge",1,IF('170 N'!$CK$6=Stammdaten!H78,1,0)) -> 0 | J78: 0 | K78: 0 | M78: 77 | N78: Putenmastplatz, Hennen ab der 6. Woche N-/ P-reduziert, 6.-16. Woche, 3,3 Dg | O78: 0.06 | P78: t | Q78: Putenmist | R78: 1.542 | S78: 0.726 | V78: =4.25*3.3/365 -> 0.03842465753 | W78: 14.025 | X78: 0.004 | Z78: 0.044 | AA78: N | AB78: 0.4 | AC78: 0.81 | AE78: Gefluegel_140_M | AF78: Putenmastplatz, Hennen ab der 6. Woche, 6.-16. Woche, 3,3 Dg | AG78: 40 | AH78: 30 | AI78: 77 | AJ78: Geflügelmist | AL78: 1.542 | AM78: 17 | AN78: 50 | AP78: 0.715 | AQ78: 0 | BA78: DB_SYS | BB78: DB_SYS | BC78: Putenmastplatz, Hennen ab der 6. Woche, N-/P- reduziert, Mist | BD78: N-/ P-reduziert, 6.-16. Woche, 3,3 Dg | BE78: Gefluegel_140 | BF78: Gefluegel_140_M | BO78: 30 | BP78: 30 | BR78: 0.1990049751
A79: =IF(AD79=1,1,IF(AND(OR('170 N'!$R$6="halb- tags",'170 N'!$R$6="ganz- tags"),AA79="N"),0,IF(AND(OR('170 N'!$C$6="Milchviehhaltung",'170 N'!$C$6="Pferdehaltung"),OR('170 N'!$R$6="Stall- haltung",'170 N'!$R$6=""),AA79="J"),0,1))) -> 1 | B79: =IF('170 N'!$E$6=Stammdaten!AF79,H79,0) -> 0 | C79: 3 | D79: Geflügelmast | E79: =IF('170 N'!$C$6=Stammdaten!D79,1,0) -> 0 | F79: Mist/Tr.Kot/Jauche | G79: =IF('170 N'!$CJ$6=Stammdaten!F79,1,0) -> 0 | H79: Standard-/ Universalfutter | I79: =IF(AF79="Kalb Aufzucht, 0-4 Mon,45-135 kg LM, 3 Durchgänge",1,IF('170 N'!$CK$6=Stammdaten!H79,1,0)) -> 0 | J79: 0 | K79: 0 | M79: 78 | N79: Putenmastplatz, Hennen Standardfutter, bis 16 Wochen | O79: 0.0504 | P79: t | Q79: Putenmist | R79: 1.42 | S79: 0.774 | V79: =5.25*2.695/365 -> 0.03876369863 | W79: 14.14875 | X79: 0.004 | Z79: 0.044 | AA79: N | AB79: 0.4 | AC79: 0.81 | AE79: Gefluegel_135_M | AF79: Putenmastplatz, Hennen, bis 16 Wochen | AG79: 40 | AH79: 30 | AI79: 78 | AJ79: Geflügelmist | AL79: 1.42 | AM79: 17 | AN79: 50 | AP79: 0.631 | AQ79: 0 | BA79: DB_SYS | BB79: QFN_ZENTRALE | BC79: Putenmastplatz, Hennen, Konv., Mist | BD79: Standardfutter, bis 16 Wochen | BE79: Gefluegel_135 | BF79: Gefluegel_135_M | BO79: 30 | BP79: 30 | BR79: 0.2009345794
A80: =IF(AD80=1,1,IF(AND(OR('170 N'!$R$6="halb- tags",'170 N'!$R$6="ganz- tags"),AA80="N"),0,IF(AND(OR('170 N'!$C$6="Milchviehhaltung",'170 N'!$C$6="Pferdehaltung"),OR('170 N'!$R$6="Stall- haltung",'170 N'!$R$6=""),AA80="J"),0,1))) -> 1 | B80: =IF('170 N'!$E$6=Stammdaten!AF80,H80,0) -> 0 | C80: 3 | D80: Geflügelmast | E80: =IF('170 N'!$C$6=Stammdaten!D80,1,0) -> 0 | F80: Mist/Tr.Kot/Jauche | G80: =IF('170 N'!$CJ$6=Stammdaten!F80,1,0) -> 0 | H80: N-/P-reduziert | I80: =IF(AF80="Kalb Aufzucht, 0-4 Mon,45-135 kg LM, 3 Durchgänge",1,IF('170 N'!$CK$6=Stammdaten!H80,1,0)) -> 0 | J80: 0 | K80: 0 | M80: 79 | N80: Putenmastplatz, Hennen N-/ P-reduziert, bis 16 Wochen | O80: 0.0504 | P80: t | Q80: Putenmist | R80: 1.342 | S80: 0.543 | V80: =5.25*2.695/365 -> 0.03876369863 | W80: 14.14875 | X80: 0.004 | Z80: 0.044 | AA80: N | AB80: 0.4 | AC80: 0.81 | AE80: Gefluegel_138_M | AF80: Putenmastplatz, Hennen, bis 16 Wochen | AG80: 40 | AH80: 30 | AI80: 79 | AJ80: Geflügelmist | AL80: 1.342 | AM80: 17 | AN80: 50 | AP80: 0.609 | AQ80: 0 | BA80: DB_SYS | BB80: DB_SYS | BC80: Putenmastplatz, Hennen, N-/P- reduziert, Mist | BD80: N-/ P-reduziert, bis 16 Wochen | BE80: Gefluegel_138 | BF80: Gefluegel_138_M | BO80: 30 | BP80: 30 | BR80: 0.1990049751
A81: =IF(AD81=1,1,IF(AND(OR('170 N'!$R$6="halb- tags",'170 N'!$R$6="ganz- tags"),AA81="N"),0,IF(AND(OR('170 N'!$C$6="Milchviehhaltung",'170 N'!$C$6="Pferdehaltung"),OR('170 N'!$R$6="Stall- haltung",'170 N'!$R$6=""),AA81="J"),0,1))) -> 1 | B81: =IF('170 N'!$E$6=Stammdaten!AF81,H81,0) -> 0 | C81: 3 | D81: Geflügelmast | E81: =IF('170 N'!$C$6=Stammdaten!D81,1,0) -> 0 | F81: Mist/Tr.Kot/Jauche | G81: =IF('170 N'!$CJ$6=Stammdaten!F81,1,0) -> 0 | H81: Standard-/ Universalfutter | I81: =IF(AF81="Kalb Aufzucht, 0-4 Mon,45-135 kg LM, 3 Durchgänge",1,IF('170 N'!$CK$6=Stammdaten!H81,1,0)) -> 0 | J81: 0 | K81: 0 | M81: 80 | N81: Putenmastplatz, Hennen und Hähne gemischt Standardfutter | O81: 0.0494 | P81: t | Q81: Putenmist | R81: 1.652 | S81: 0.923 | V81: =5*2.2/365 -> 0.0301369863 | W81: 11 | X81: 0.004 | Z81: 0.044 | AA81: N | AB81: 0.4 | AC81: 0.81 | AE81: Gefluegel_152_M | AF81: Putenmastplatz, Hennen und Hähne gemischt | AG81: 40 | AH81: 30 | AI81: 80 | AJ81: Geflügelmist | AL81: 1.652 | AM81: 17 | AN81: 50 | AP81: 0.752 | AQ81: 0 | BA81: DB_SYS | BB81: DB_SYS | BC81: Putenmastplatz, Hennen und Hähne gemischt, Konv., Mist | BD81: Standardfutter | BE81: Gefluegel_152 | BF81: Gefluegel_152_M | BO81: 30 | BP81: 30 | BR81: 0.2009345794
A82: =IF(AD82=1,1,IF(AND(OR('170 N'!$R$6="halb- tags",'170 N'!$R$6="ganz- tags"),AA82="N"),0,IF(AND(OR('170 N'!$C$6="Milchviehhaltung",'170 N'!$C$6="Pferdehaltung"),OR('170 N'!$R$6="Stall- haltung",'170 N'!$R$6=""),AA82="J"),0,1))) -> 1 | B82: =IF('170 N'!$E$6=Stammdaten!AF82,H82,0) -> 0 | C82: 3 | D82: Geflügelmast | E82: =IF('170 N'!$C$6=Stammdaten!D82,1,0) -> 0 | F82: Mist/Tr.Kot/Jauche | G82: =IF('170 N'!$CJ$6=Stammdaten!F82,1,0) -> 0 | H82: N-/P-reduziert | I82: =IF(AF82="Kalb Aufzucht, 0-4 Mon,45-135 kg LM, 3 Durchgänge",1,IF('170 N'!$CK$6=Stammdaten!H82,1,0)) -> 0 | J82: 0 | K82: 0 | M82: 81 | N82: Putenmastplatz, Hennen und Hähne gemischt N-/ P-reduziert | O82: 0.0494 | P82: t | Q82: Putenmist | R82: 1.542 | S82: 0.726 | V82: =5*2.2/365 -> 0.0301369863 | W82: 11 | X82: 0.004 | Z82: 0.044 | AA82: N | AB82: 0.4 | AC82: 0.81 | AE82: Gefluegel_147_M | AF82: Putenmastplatz, Hennen und Hähne gemischt | AG82: 40 | AH82: 30 | AI82: 81 | AJ82: Geflügelmist | AL82: 1.542 | AM82: 17 | AN82: 50 | AP82: 0.715 | AQ82: 0 | BA82: DB_SYS | BB82: DB_SYS | BC82: Putenmastplatz, Hennen und Hähne gemischt, N-/P- reduziert, Mist | BD82: N-/ P-reduziert | BE82: Gefluegel_147 | BF82: Gefluegel_147_M | BO82: 30 | BP82: 30 | BR82: 0.1990049751
A83: =IF(AD83=1,1,IF(AND(OR('170 N'!$R$6="halb- tags",'170 N'!$R$6="ganz- tags"),AA83="N"),0,IF(AND(OR('170 N'!$C$6="Milchviehhaltung",'170 N'!$C$6="Pferdehaltung"),OR('170 N'!$R$6="Stall- haltung",'170 N'!$R$6=""),AA83="J"),0,1))) -> 1 | B83: =IF('170 N'!$E$6=Stammdaten!AF83,H83,0) -> 0 | C83: 3 | D83: Geflügelmast | E83: =IF('170 N'!$C$6=Stammdaten!D83,1,0) -> 0 | F83: Mist/Tr.Kot/Jauche | G83: =IF('170 N'!$CJ$6=Stammdaten!F83,1,0) -> 0 | H83: Standard-/ Universalfutter | I83: =IF(AF83="Kalb Aufzucht, 0-4 Mon,45-135 kg LM, 3 Durchgänge",1,IF('170 N'!$CK$6=Stammdaten!H83,1,0)) -> 0 | J83: 0 | K83: 0 | M83: 82 | N83: Entenmastplatz Flugenten 15,4 kg Zuwachs/ Platz/ Jahr 4 Durchgänge | O83: 0.046 | P83: t | Q83: Flugentenmist | R83: 0.576 | S83: 0.367 | V83: =2/365 -> 0.005479452055 | W83: 2 | X83: 0.004 | Z83: 0.044 | AA83: N | AB83: 0.5 | AC83: 0.93 | AE83: Gefluegel_161_M | AF83: Entenmastplatz Flugenten 15,4 kg Zuwachs/ Platz/ Jahr 4 Durchgänge | AG83: 40 | AH83: 30 | AI83: 82 | AJ83: Geflügelmist | AL83: 0.576 | AM83: 17 | AN83: 50 | AP83: 0.234 | AQ83: 0 | BA83: DB_SYS | BB83: QFN_ZENTRALE | BC83: Entenmastplatz Flugenten, Konv., Mist | BD83: 15,4 kg Zuwachs/ Platz/ Jahr 4 DurchgÃ¤nge | BE83: Gefluegel_161 | BF83: Gefluegel_161_M | BO83: 30 | BP83: 30 | BR83: 0.2
A84: =IF(AD84=1,1,IF(AND(OR('170 N'!$R$6="halb- tags",'170 N'!$R$6="ganz- tags"),AA84="N"),0,IF(AND(OR('170 N'!$C$6="Milchviehhaltung",'170 N'!$C$6="Pferdehaltung"),OR('170 N'!$R$6="Stall- haltung",'170 N'!$R$6=""),AA84="J"),0,1))) -> 1 | B84: =IF('170 N'!$E$6=Stammdaten!AF84,H84,0) -> 0 | C84: 3 | D84: Geflügelmast | E84: =IF('170 N'!$C$6=Stammdaten!D84,1,0) -> 0 | F84: Mist/Tr.Kot/Jauche | G84: =IF('170 N'!$CJ$6=Stammdaten!F84,1,0) -> 0 | H84: Standard-/ Universalfutter | I84: =IF(AF84="Kalb Aufzucht, 0-4 Mon,45-135 kg LM, 3 Durchgänge",1,IF('170 N'!$CK$6=Stammdaten!H84,1,0)) -> 0 | J84: 0 | K84: 0 | M84: 83 | N84: Entenmastplatz Pekingenten 19,5 kg Zuwachs/ Platz/ Jahr 6,5 Durchgänge | O84: 0.0576 | P84: t | Q84: Pekingentenmist | R84: 0.605 | S84: 0.344 | V84: =2/365 -> 0.005479452055 | W84: 2 | X84: 0.004 | Z84: 0.044 | AA84: N | AB84: 0.5 | AC84: 0.93 | AE84: Gefluegel_153_M | AF84: Entenmastplatz Pekingenten 19,5 kg Zuwachs/ Platz/ Jahr 6,5 Durchgänge | AG84: 40 | AH84: 30 | AI84: 83 | AJ84: Geflügelmist | AL84: 0.605 | AM84: 17 | AN84: 50 | AP84: 0.313 | AQ84: 0 | BA84: DB_SYS | BB84: QFN_ZENTRALE | BC84: Entenmastplatz Pekingenten, Konv., Mist | BD84: 19,5 kg Zuwachs/ Platz/ Jahr 6,5 DurchgÃ¤nge | BE84: Gefluegel_153 | BF84: Gefluegel_153_M | BO84: 30 | BP84: 30 | BR84: 0.2
A85: =IF(AD85=1,1,IF(AND(OR('170 N'!$R$6="halb- tags",'170 N'!$R$6="ganz- tags"),AA85="N"),0,IF(AND(OR('170 N'!$C$6="Milchviehhaltung",'170 N'!$C$6="Pferdehaltung"),OR('170 N'!$R$6="Stall- haltung",'170 N'!$R$6=""),AA85="J"),0,1))) -> 1 | B85: =IF('170 N'!$E$6=Stammdaten!AF85,H85,0) -> 0 | C85: 3 | D85: Geflügelmast | E85: =IF('170 N'!$C$6=Stammdaten!D85,1,0) -> 0 | F85: Mist/Tr.Kot/Jauche | G85: =IF('170 N'!$CJ$6=Stammdaten!F85,1,0) -> 0 | H85: Standard-/ Universalfutter | I85: =IF(AF85="Kalb Aufzucht, 0-4 Mon,45-135 kg LM, 3 Durchgänge",1,IF('170 N'!$CK$6=Stammdaten!H85,1,0)) -> 0 | J85: 0 | K85: 0 | M85: 84 | N85: Gänse Elterntiere Standardfutter | O85: 0.18 | P85: t | Q85: Gänse Elterntiermist | R85: 2.05 | S85: 0.9 | V85: =5.6/365 -> 0.01534246575 | W85: 5.6 | X85: 0.004 | Z85: 0.044 | AA85: J | AB85: 0.5 | AC85: 0.93 | AE85: Gefluegel_156_M | AF85: Gänse Elterntiere | AG85: 40 | AH85: 30 | AI85: 84 | AJ85: Geflügelmist | AL85: 2.05 | AM85: 17 | AN85: 50 | AP85: 1.07 | AQ85: 0 | BA85: DB_SYS | BB85: DB_SYS | BC85: Gänse Elterntiere, Konv., Mist | BD85: Standardfutter | BE85: Gefluegel_156 | BF85: Gefluegel_156_M | BO85: 30 | BP85: 30 | BR85: 0.2375
A86: =IF(AD86=1,1,IF(AND(OR('170 N'!$R$6="halb- tags",'170 N'!$R$6="ganz- tags"),AA86="N"),0,IF(AND(OR('170 N'!$C$6="Milchviehhaltung",'170 N'!$C$6="Pferdehaltung"),OR('170 N'!$R$6="Stall- haltung",'170 N'!$R$6=""),AA86="J"),0,1))) -> 1 | B86: =IF('170 N'!$E$6=Stammdaten!AF86,H86,0) -> 0 | C86: 3 | D86: Geflügelmast | E86: =IF('170 N'!$C$6=Stammdaten!D86,1,0) -> 0 | F86: Mist/Tr.Kot/Jauche | G86: =IF('170 N'!$CJ$6=Stammdaten!F86,1,0) -> 0 | H86: Standard-/ Universalfutter | I86: =IF(AF86="Kalb Aufzucht, 0-4 Mon,45-135 kg LM, 3 Durchgänge",1,IF('170 N'!$CK$6=Stammdaten!H86,1,0)) -> 0 | J86: 0 | K86: 0 | M86: 85 | N86: Gänsemast, 16 Wochen / Tier Mittelmast, 6,8kg Zuwachs/Tier | O86: 0.0374 | P86: t | Q86: Gänse Mittelmastmist | R86: 0.702 | S86: 0.387 | V86: =5.6/365 -> 0.01534246575 | W86: 5.6 | X86: 0.004 | Z86: 0.044 | AA86: J | AB86: 0.5 | AC86: 0.93 | AE86: Gefluegel_158_M | AF86: Gänsemast, 16 Wochen / Tier Mittelmast, 6,8kg Zuwachs/Tier | AG86: 40 | AH86: 30 | AI86: 85 | AJ86: Geflügelmist | AL86: 0.702 | AM86: 17 | AN86: 50 | AP86: 0.308 | AQ86: 0 | BA86: DB_SYS | BB86: QFN_ZENTRALE | BC86: Gänsemast, 16 Wochen / Tier, Konv., Mist | BD86: Mittelmast, 6,8kg Zuwachs/Tier | BE86: Gefluegel_158 | BF86: Gefluegel_158_M | BO86: 30 | BP86: 30 | BR86: 0.2375
A87: =IF(AD87=1,1,IF(AND(OR('170 N'!$R$6="halb- tags",'170 N'!$R$6="ganz- tags"),AA87="N"),0,IF(AND(OR('170 N'!$C$6="Milchviehhaltung",'170 N'!$C$6="Pferdehaltung"),OR('170 N'!$R$6="Stall- haltung",'170 N'!$R$6=""),AA87="J"),0,1))) -> 1 | B87: =IF('170 N'!$E$6=Stammdaten!AF87,H87,0) -> 0 | C87: 3 | D87: Geflügelmast | E87: =IF('170 N'!$C$6=Stammdaten!D87,1,0) -> 0 | F87: Mist/Tr.Kot/Jauche | G87: =IF('170 N'!$CJ$6=Stammdaten!F87,1,0) -> 0 | H87: Standard-/ Universalfutter | I87: =IF(AF87="Kalb Aufzucht, 0-4 Mon,45-135 kg LM, 3 Durchgänge",1,IF('170 N'!$CK$6=Stammdaten!H87,1,0)) -> 0 | J87: 0 | K87: 0 | M87: 86 | N87: Gänsemast, 30 Wochen / Tier Spät-/Weidemast, 7,8 kg Zuwachs/Tier | O87: 0.0606 | P87: t | Q87: Gänse Spätmastmist | R87: 1.074 | S87: 0.334 | V87: =11.2/365 -> 0.03068493151 | W87: 11.2 | X87: 0.004 | Z87: 0.044 | AA87: J | AB87: 0.5 | AC87: 0.93 | AE87: Gefluegel_159_M | AF87: Gänsemast, 30 Wochen / Tier Spät-/Weidemast, 7,8 kg Zuwachs/Tier | AG87: 40 | AH87: 30 | AI87: 86 | AJ87: Geflügelmist | AL87: 1.074 | AM87: 17 | AN87: 50 | AP87: 1.03 | AQ87: 0 | BA87: DB_SYS | BB87: DB_SYS | BC87: Gänsemast, 30 Wochen / Tier, Konv., Mist | BD87: SpÃ¤t-/Weidemast, 7,8 kg Zuwachs/Tier | BE87: Gefluegel_159 | BF87: Gefluegel_159_M | BO87: 30 | BP87: 30 | BR87: 0.2375
A88: =IF(AD88=1,1,IF(AND(OR('170 N'!$R$6="halb- tags",'170 N'!$R$6="ganz- tags"),AA88="N"),0,IF(AND(OR('170 N'!$C$6="Milchviehhaltung",'170 N'!$C$6="Pferdehaltung"),OR('170 N'!$R$6="Stall- haltung",'170 N'!$R$6=""),AA88="J"),0,1))) -> 1 | B88: =IF('170 N'!$E$6=Stammdaten!AF88,H88,0) -> 0 | C88: 3 | D88: Geflügelmast | E88: =IF('170 N'!$C$6=Stammdaten!D88,1,0) -> 0 | F88: Mist/Tr.Kot/Jauche | G88: =IF('170 N'!$CJ$6=Stammdaten!F88,1,0) -> 0 | H88: Standard-/ Universalfutter | I88: =IF(AF88="Kalb Aufzucht, 0-4 Mon,45-135 kg LM, 3 Durchgänge",1,IF('170 N'!$CK$6=Stammdaten!H88,1,0)) -> 0 | J88: 0 | K88: 0 | M88: 87 | N88: Gänsemast, 9 Wochen / Tier Schnellmast, 5 kg Zuwachs/Tier | O88: 0.0166 | P88: t | Q88: Gänse Schnellmastmist | R88: 0.231 | S88: 0.133 | V88: =3.15/365 -> 0.008630136986 | W88: 3.15 | X88: 0.004 | Z88: 0.044 | AA88: J | AB88: 0.5 | AC88: 0.93 | AE88: Gefluegel_157_M | AF88: Gänsemast, 9 Wochen / Tier Schnellmast, 5 kg Zuwachs/Tier | AG88: 40 | AH88: 30 | AI88: 87 | AJ88: Geflügelmist | AL88: 0.231 | AM88: 17 | AN88: 50 | AP88: 0.121 | AQ88: 0 | BA88: DB_SYS | BB88: QFN_ZENTRALE | BC88: Gänsemast, 9 Wochen / Tier, Konv., Mist | BD88: Schnellmast, 5 kg Zuwachs/Tier | BE88: Gefluegel_157 | BF88: Gefluegel_157_M | BO88: 30 | BP88: 30 | BR88: 0.2375
A89: =IF(AD89=1,1,IF(AND(OR('170 N'!$R$6="halb- tags",'170 N'!$R$6="ganz- tags"),AA89="N"),0,IF(AND(OR('170 N'!$C$6="Milchviehhaltung",'170 N'!$C$6="Pferdehaltung"),OR('170 N'!$R$6="Stall- haltung",'170 N'!$R$6=""),AA89="J"),0,1))) -> 1 | B89: =IF('170 N'!$E$6=Stammdaten!AF89,H89,0) -> 0 | C89: 3 | D89: Geflügelmast | E89: =IF('170 N'!$C$6=Stammdaten!D89,1,0) -> 0 | F89: Mist/Tr.Kot/Jauche | G89: =IF('170 N'!$CJ$6=Stammdaten!F89,1,0) -> 0 | H89: N-/P-reduziert | I89: =IF(AF89="Kalb Aufzucht, 0-4 Mon,45-135 kg LM, 3 Durchgänge",1,IF('170 N'!$CK$6=Stammdaten!H89,1,0)) -> 0 | J89: 0 | K89: 0 | M89: 88 | N89: Hähnchen Mastelterntiere Hähne N-/ P-reduziert | O89: 0.022 | P89: t | Q89: Hähnchenmast Elterntierkot | R89: 1.02 | S89: 0.39 | V89: =1.22/365 -> 0.003342465753 | W89: 1.22 | X89: 0.004 | Z89: 0.044 | AA89: N | AB89: 0.5 | AC89: 0.76 | AE89: Gefluegel_164_T | AF89: Hähnchen Mastelterntiere Hähne | AG89: 40 | AH89: 60 | AI89: 88 | AJ89: Geflügelkot | AL89: 1.02 | AM89: 17 | AN89: 50 | AP89: 0.36 | AQ89: 0 | BA89: DB_SYS | BB89: DB_SYS | BC89: Hähnchen Mastelterntiere Hähne, Konv., Tr.kot | BD89: N-/ P-reduziert | BE89: Gefluegel_164 | BF89: Gefluegel_164_T | BO89: 60 | BP89: 60 | BR89: 0.244 | BS89: Werte vom Hähnchen
A90: =IF(AD90=1,1,IF(AND(OR('170 N'!$R$6="halb- tags",'170 N'!$R$6="ganz- tags"),AA90="N"),0,IF(AND(OR('170 N'!$C$6="Milchviehhaltung",'170 N'!$C$6="Pferdehaltung"),OR('170 N'!$R$6="Stall- haltung",'170 N'!$R$6=""),AA90="J"),0,1))) -> 1 | B90: =IF('170 N'!$E$6=Stammdaten!AF90,H90,0) -> 0 | C90: 3 | D90: Geflügelmast | E90: =IF('170 N'!$C$6=Stammdaten!D90,1,0) -> 0 | F90: Mist/Tr.Kot/Jauche | G90: =IF('170 N'!$CJ$6=Stammdaten!F90,1,0) -> 0 | H90: Standard-/ Universalfutter | I90: =IF(AF90="Kalb Aufzucht, 0-4 Mon,45-135 kg LM, 3 Durchgänge",1,IF('170 N'!$CK$6=Stammdaten!H90,1,0)) -> 0 | J90: 0 | K90: 0 | M90: 89 | N90: Hähnchen Mastelterntiere Hähne Universalfutter | O90: 0.022 | P90: t | Q90: Hähnchenmast Elterntierkot | R90: 1.03 | S90: 0.39 | V90: =1.22/365 -> 0.003342465753 | W90: 1.22 | X90: 0.004 | Z90: 0.044 | AA90: N | AB90: 0.5 | AC90: 0.76 | AE90: Gefluegel_116_T | AF90: Hähnchen Mastelterntiere Hähne | AG90: 40 | AH90: 60 | AI90: 89 | AJ90: Geflügelkot | AL90: 1.03 | AM90: 17 | AN90: 50 | AP90: 0.36 | AQ90: 0 | BA90: DB_SYS | BB90: DB_SYS | BC90: Hähnchen Mastelterntiere Hähne, Konv., Tr.kot | BD90: Universalfutter | BE90: Gefluegel_116 | BF90: Gefluegel_116_T | BO90: 60 | BP90: 60 | BR90: 0.2444444444 | BS90: Werte vom Hähnchen
A91: =IF(AD91=1,1,IF(AND(OR('170 N'!$R$6="halb- tags",'170 N'!$R$6="ganz- tags"),AA91="N"),0,IF(AND(OR('170 N'!$C$6="Milchviehhaltung",'170 N'!$C$6="Pferdehaltung"),OR('170 N'!$R$6="Stall- haltung",'170 N'!$R$6=""),AA91="J"),0,1))) -> 1 | B91: =IF('170 N'!$E$6=Stammdaten!AF91,H91,0) -> 0 | C91: 3 | D91: Geflügelmast | E91: =IF('170 N'!$C$6=Stammdaten!D91,1,0) -> 0 | F91: Mist/Tr.Kot/Jauche | G91: =IF('170 N'!$CJ$6=Stammdaten!F91,1,0) -> 0 | H91: Standard-/ Universalfutter | I91: =IF(AF91="Kalb Aufzucht, 0-4 Mon,45-135 kg LM, 3 Durchgänge",1,IF('170 N'!$CK$6=Stammdaten!H91,1,0)) -> 0 | J91: 0 | K91: 0 | M91: 90 | N91: Hähnchen Mastelterntiere Hennen Universalfutter | O91: 0.022 | P91: t | Q91: Hähnchenmast Elterntierkot | R91: 1.19 | S91: 0.56 | V91: =1.22/365 -> 0.003342465753 | W91: 1.22 | X91: 0.004 | Z91: 0.044 | AA91: N | AB91: 0.5 | AC91: 0.76 | AE91: Gefluegel_117_T | AF91: Hähnchen Mastelterntiere Hennen | AG91: 40 | AH91: 60 | AI91: 90 | AJ91: Geflügelkot | AL91: 1.19 | AM91: 17 | AN91: 50 | AP91: 0.36 | AQ91: 0 | BA91: DB_SYS | BB91: DB_SYS | BC91: Hähnchen Mastelterntiere Hennen, Konv., Tr.kot | BD91: Universalfutter | BE91: Gefluegel_117 | BF91: Gefluegel_117_T | BO91: 60 | BP91: 60 | BR91: 0.244 | BS91: Werte vom Hähnchen
A92: =IF(AD92=1,1,IF(AND(OR('170 N'!$R$6="halb- tags",'170 N'!$R$6="ganz- tags"),AA92="N"),0,IF(AND(OR('170 N'!$C$6="Milchviehhaltung",'170 N'!$C$6="Pferdehaltung"),OR('170 N'!$R$6="Stall- haltung",'170 N'!$R$6=""),AA92="J"),0,1))) -> 1 | B92: =IF('170 N'!$E$6=Stammdaten!AF92,H92,0) -> 0 | C92: 3 | D92: Geflügelmast | E92: =IF('170 N'!$C$6=Stammdaten!D92,1,0) -> 0 | F92: Mist/Tr.Kot/Jauche | G92: =IF('170 N'!$CJ$6=Stammdaten!F92,1,0) -> 0 | H92: N-/P-reduziert | I92: =IF(AF92="Kalb Aufzucht, 0-4 Mon,45-135 kg LM, 3 Durchgänge",1,IF('170 N'!$CK$6=Stammdaten!H92,1,0)) -> 0 | J92: 0 | K92: 0 | M92: 91 | N92: Hähnchen Mastelterntiere Hennen N-/ P-reduziert | O92: 0.022 | P92: t | Q92: Hähnchenmast Elterntierkot | R92: 1.16 | S92: 0.49 | V92: =1.22/365 -> 0.003342465753 | W92: 1.22 | X92: 0.004 | Z92: 0.044 | AA92: N | AB92: 0.5 | AC92: 0.76 | AE92: Gefluegel_165_T | AF92: Hähnchen Mastelterntiere Hennen | AG92: 40 | AH92: 60 | AI92: 91 | AJ92: Geflügelkot | AL92: 1.16 | AM92: 17 | AN92: 50 | AP92: 0.36 | AQ92: 0 | BA92: DB_SYS | BB92: DB_SYS | BC92: Hähnchen Mastelterntiere Hennen, Konv., Tr.kot | BD92: N-/ P-reduziert | BE92: Gefluegel_165 | BF92: Gefluegel_165_T | BO92: 60 | BP92: 60 | BR92: 0.2444444444 | BS92: Werte vom Hähnchen
A93: =IF(AD93=1,1,IF(AND(OR('170 N'!$R$6="halb- tags",'170 N'!$R$6="ganz- tags"),AA93="N"),0,IF(AND(OR('170 N'!$C$6="Milchviehhaltung",'170 N'!$C$6="Pferdehaltung"),OR('170 N'!$R$6="Stall- haltung",'170 N'!$R$6=""),AA93="J"),0,1))) -> 1 | B93: =IF('170 N'!$E$6=Stammdaten!AF93,H93,0) -> 0 | C93: 3 | D93: Geflügelmast | E93: =IF('170 N'!$C$6=Stammdaten!D93,1,0) -> 0 | F93: Mist/Tr.Kot/Jauche | G93: =IF('170 N'!$CJ$6=Stammdaten!F93,1,0) -> 0 | H93: Standard-/ Universalfutter | I93: =IF(AF93="Kalb Aufzucht, 0-4 Mon,45-135 kg LM, 3 Durchgänge",1,IF('170 N'!$CK$6=Stammdaten!H93,1,0)) -> 0 | J93: 0 | K93: 0 | M93: 92 | N93: Elterntier Puten Hähne Standardfutter | O93: 0.0484 | P93: t | Q93: Puten Elterntiermist | R93: 3.6 | S93: 2.09 | V93: =7*3/365 -> 0.05753424658 | W93: 21 | X93: 0.004 | Z93: 0.044 | AA93: N | AB93: 0.4 | AC93: 0.81 | AE93: Gefluegel_167_M | AF93: Elterntier Puten Hähne | AG93: 40 | AH93: 30 | AI93: 92 | AJ93: Geflügelmist | AL93: 3.6 | AM93: 17 | AN93: 50 | AP93: 1.086 | AQ93: 0 | BA93: DB_SYS | BB93: QFN_ZENTRALE | BC93: Elterntier Puten Hähne, Konv., Mist | BD93: Standardfutter | BE93: Gefluegel_167 | BF93: Gefluegel_167_M | BO93: 30 | BP93: 30 | BR93: 0.2009345794 | BS93: Werte von der Pute
A94: =IF(AD94=1,1,IF(AND(OR('170 N'!$R$6="halb- tags",'170 N'!$R$6="ganz- tags"),AA94="N"),0,IF(AND(OR('170 N'!$C$6="Milchviehhaltung",'170 N'!$C$6="Pferdehaltung"),OR('170 N'!$R$6="Stall- haltung",'170 N'!$R$6=""),AA94="J"),0,1))) -> 1 | B94: =IF('170 N'!$E$6=Stammdaten!AF94,H94,0) -> 0 | C94: 3 | D94: Geflügelmast | E94: =IF('170 N'!$C$6=Stammdaten!D94,1,0) -> 0 | F94: Mist/Tr.Kot/Jauche | G94: =IF('170 N'!$CJ$6=Stammdaten!F94,1,0) -> 0 | H94: Standard-/ Universalfutter | I94: =IF(AF94="Kalb Aufzucht, 0-4 Mon,45-135 kg LM, 3 Durchgänge",1,IF('170 N'!$CK$6=Stammdaten!H94,1,0)) -> 0 | J94: 0 | K94: 0 | M94: 93 | N94: Elterntier Puten Hennen Standardfutter | O94: 0.0504 | P94: t | Q94: Puten Elterntiermist | R94: 2.25 | S94: 1.39 | V94: =5.25*3/365 -> 0.04315068493 | W94: 15.75 | X94: 0.004 | Z94: 0.044 | AA94: N | AB94: 0.4 | AC94: 0.81 | AE94: Gefluegel_166_M | AF94: Elterntier Puten Hennen | AG94: 40 | AH94: 30 | AI94: 93 | AJ94: Geflügelmist | AL94: 2.25 | AM94: 17 | AN94: 50 | AP94: 0.703 | AQ94: 0 | BA94: DB_SYS | BB94: QFN_ZENTRALE | BC94: Elterntier Puten Hennen, Konv., Mist | BD94: Standardfutter | BE94: Gefluegel_166 | BF94: Gefluegel_166_M | BO94: 30 | BP94: 30 | BR94: 0.2009345794 | BS94: Werte von der Pute
A95: =IF(AD95=1,1,IF(AND(OR('170 N'!$R$6="halb- tags",'170 N'!$R$6="ganz- tags"),AA95="N"),0,IF(AND(OR('170 N'!$C$6="Milchviehhaltung",'170 N'!$C$6="Pferdehaltung"),OR('170 N'!$R$6="Stall- haltung",'170 N'!$R$6=""),AA95="J"),0,1))) -> 1 | B95: =IF('170 N'!$E$6=Stammdaten!AF95,H95,0) -> 0 | C95: 3 | D95: Geflügelmast | E95: =IF('170 N'!$C$6=Stammdaten!D95,1,0) -> 0 | F95: Mist/Tr.Kot/Jauche | G95: =IF('170 N'!$CJ$6=Stammdaten!F95,1,0) -> 0 | H95: Standard-/ Universalfutter | I95: =IF(AF95="Kalb Aufzucht, 0-4 Mon,45-135 kg LM, 3 Durchgänge",1,IF('170 N'!$CK$6=Stammdaten!H95,1,0)) -> 0 | J95: 0 | K95: 0 | M95: 94 | N95: Elterntieraufzucht Puten Hähne Standardfutter | O95: 0.0484 | P95: t | Q95: Puten Elterntieraufzuchtmist | R95: 2.48 | S95: 1.62 | V95: =7*3/365 -> 0.05753424658 | W95: 21 | X95: 0.004 | Z95: 0.044 | AA95: N | AB95: 0.4 | AC95: 0.81 | AE95: Gefluegel_169_M | AF95: Elterntieraufzucht Puten Hähne | AG95: 40 | AH95: 30 | AI95: 94 | AJ95: Geflügelmist | AL95: 2.48 | AM95: 17 | AN95: 50 | AP95: 1.086 | AQ95: 0 | BA95: DB_SYS | BB95: QFN_ZENTRALE | BC95: Elterntieraufzucht Puten Hähne, Konv., Mist | BD95: Standardfutter | BE95: Gefluegel_169 | BF95: Gefluegel_169_M | BO95: 30 | BP95: 30 | BR95: 0.2009345794 | BS95: Werte von der Pute
A96: =IF(AD96=1,1,IF(AND(OR('170 N'!$R$6="halb- tags",'170 N'!$R$6="ganz- tags"),AA96="N"),0,IF(AND(OR('170 N'!$C$6="Milchviehhaltung",'170 N'!$C$6="Pferdehaltung"),OR('170 N'!$R$6="Stall- haltung",'170 N'!$R$6=""),AA96="J"),0,1))) -> 1 | B96: =IF('170 N'!$E$6=Stammdaten!AF96,H96,0) -> 0 | C96: 3 | D96: Geflügelmast | E96: =IF('170 N'!$C$6=Stammdaten!D96,1,0) -> 0 | F96: Mist/Tr.Kot/Jauche | G96: =IF('170 N'!$CJ$6=Stammdaten!F96,1,0) -> 0 | H96: Standard-/ Universalfutter | I96: =IF(AF96="Kalb Aufzucht, 0-4 Mon,45-135 kg LM, 3 Durchgänge",1,IF('170 N'!$CK$6=Stammdaten!H96,1,0)) -> 0 | J96: 0 | K96: 0 | M96: 95 | N96: Elterntieraufzucht Puten Hennen Standardfutter | O96: 0.0504 | P96: t | Q96: Puten Elterntieraufzuchtmist | R96: 1.92 | S96: 1.18 | V96: =5.25*3/365 -> 0.04315068493 | W96: 15.75 | X96: 0.004 | Z96: 0.044 | AA96: N | AB96: 0.4 | AC96: 0.81 | AE96: Gefluegel_168_M | AF96: Elterntieraufzucht Puten Hennen | AG96: 40 | AH96: 30 | AI96: 95 | AJ96: Geflügelmist | AL96: 1.92 | AM96: 17 | AN96: 50 | AP96: 1.086 | AQ96: 0 | BA96: DB_SYS | BB96: QFN_ZENTRALE | BC96: Elterntieraufzucht Puten Hennen, Konv., Mist | BD96: Standardfutter | BE96: Gefluegel_168 | BF96: Gefluegel_168_M | BO96: 30 | BP96: 30 | BR96: 0.2009345794 | BS96: Werte von der Pute
A97: =IF(AD97=1,1,IF(AND(OR('170 N'!$R$6="halb- tags",'170 N'!$R$6="ganz- tags"),AA97="N"),0,IF(AND(OR('170 N'!$C$6="Milchviehhaltung",'170 N'!$C$6="Pferdehaltung"),OR('170 N'!$R$6="Stall- haltung",'170 N'!$R$6=""),AA97="J"),0,1))) -> 1 | B97: =IF('170 N'!$E$6=Stammdaten!AF97,H97,0) -> 0 | C97: 4 | D97: Gehegewild | E97: =IF('170 N'!$C$6=Stammdaten!D97,1,0) -> 0 | F97: Mist/Tr.Kot/Jauche | G97: =IF('170 N'!$CJ$6=Stammdaten!F97,1,0) -> 0 | H97: Standardfutter | I97: =IF(AF97="Kalb Aufzucht, 0-4 Mon,45-135 kg LM, 3 Durchgänge",1,IF('170 N'!$CK$6=Stammdaten!H97,1,0)) -> 0 | J97: 0 | K97: 0 | M97: 96 | N97: Alpaka Alpakazucht | O97: 0.8 | P97: t | Q97: Festmist von Huf- und Klauentieren | R97: 18.9 | S97: 6.5 | V97: 0.6 | W97: 219 | X97: 0.1 | Y97: =X97*7 -> 0.7 | Z97: 1.1 | AA97: J | AB97: 0.8 | AC97: 0.93 | AE97: Alpaka_001_M | AF97: Alpaka Alpakazucht | AG97: 45 | AH97: 25 | AI97: 96 | AJ97: Mist | AL97: 18.9 | AM97: 9 | AN97: 50 | AP97: 26.8 | AQ97: 0 | BA97: DB_SYS | BB97: QFN_ZENTRALE | BC97: Alpaka, Konv., Mist | BD97: Alpakazucht | BE97: Alpaka_001 | BF97: Alpaka_001_M | BR97: 0.0875 | BS97: Werte vom Schaf
